Workbook

Sheet Visor
A1: Programas de Apoyo a la Generación de Nuevo Empleo y al Empleo Joven
A2: Reporte por sector económico - consolidado nóminas de julio 2021 a octubre 2022
A4: Seleccione el sector económico | D4: Comercio al por mayor y al por menor; reparación de vehículos automotores y motocicletas | N4: =IFERROR(VLOOKUP(D4,Hoja4!$C$2:$D$23,2,FALSE),"") -> G
B7: Sección | D7: Jovenes | F7: Mujeres > 28 años | H7: Hombres > 28 años | J7: Total Empleados o Recursos | M7: % | Q7: Empleadores beneficiados
A9: Nuevos empleos | B9: General | D9: =SUMIFS(insumos2!$T$2:$T$400000,insumos2!$J$2:$J$400000,"Aprobado con subsidio") -> 535426 | F9: =SUMIFS(insumos2!$U$2:$U$400000,insumos2!$J$2:$J$400000,"Aprobado con subsidio") -> 98465 | H9: =SUMIFS(insumos2!$V$2:$V$400000,insumos2!$J$2:$J$400000,"Aprobado con subsidio") -> 85137 | J9: =Hoja4!K24 -> 719028 | M9: =J9/$J$9 -> 1 | Q9: =B9 -> General | S9: =Hoja4!I24 -> 25480
B10: ="Sección "&N4 -> Sección G | D10: =SUMIFS(insumos2!$BC$2:$BC$400000,insumos2!$AS$2:$AS$400000,"Aprobado con subsidio") -> 55939 | F10: =SUMIFS(insumos2!$BD$2:$BD$400000,insumos2!$AS$2:$AS$400000,"Aprobado con subsidio") -> 9522 | H10: =SUMIFS(insumos2!$BE$2:$BE$400000,insumos2!$AS$2:$AS$400000,"Aprobado con subsidio") -> 6289 | J10: =VLOOKUP(N4,Hoja4!$H$1:$M$24,4,FALSE) -> 71750 | M10: =J10/$J$9 -> 0.09978749089 | Q10: =B10 -> Sección G | S10: =VLOOKUP(N4,Hoja4!$H$1:$M$24,2,FALSE) -> 5787
A11: Millones en subsidios | B11: =B9 -> General | D11: =SUM(insumos1!$L$2:$L$150000)/1000000 -> 462365.7038 | F11: =SUM(insumos1!$N$2:$N$300000)/1000000 -> 54623.91211 | H11: =SUM(insumos1!$M$2:$M$300000)/1000000 -> 27844.48675 | J11: =Hoja4!M24/1000000 -> 544834.1027 | M11: =J11/$J$11 -> 1
B12: =B10 -> Sección G | D12: =SUMIFS(insumos1!$L$2:$L$300000,insumos1!$H$2:$H$300000,Visor!$N$4)/1000000 -> 50019.35282 | F12: =SUMIFS(insumos1!$N$2:$N$300000,insumos1!$H$2:$H$300000,Visor!$N$4)/1000000 -> 4724.018616 | H12: =SUMIFS(insumos1!$M$2:$M$300000,insumos1!$H$2:$H$300000,Visor!$N$4)/1000000 -> 1982.621292 | J12: =VLOOKUP(N4,Hoja4!$H$1:$M$24,6,FALSE)/1000000 -> 56725.99273 | M12: =J12/$J$11 -> 0.1041160831 | P12: Tipo de documento del empleado
R13: Nacional | T13: Extranjero
P14: =B9 -> General | R14: =SUMIFS(insumos2!$W$2:$W$500000,insumos2!$J$2:$J$500000,"Aprobado con subsidio") -> 706302 | T14: =SUMIFS(insumos2!$X$2:$X$500000,insumos2!$J$2:$J$500000,"Aprobado con subsidio") -> 12726
P16: =B12 -> Sección G | R16: =SUMIFS(insumos2!$W$2:$W$500000,insumos2!$J$2:$J$500000,"Aprobado con subsidio",insumos2!$N$2:$N$500000,Visor!$N$4) -> 70384 | T16: =SUMIFS(insumos2!$X$2:$X$500000,insumos2!$J$2:$J$500000,"Aprobado con subsidio",insumos2!$N$2:$N$500000,Visor!$N$4) -> 1366
P18: * Los tipos de indentificación tomados par los extranjeros corresponden a CE, PE y PT
B30: Empleadores | E30: Natural | H30: Jurídica | L30: Recurso en millones | O30: Natural | R30: Jurídica
B31: ="Total sección "&N4 -> Total sección G | E31: =COUNTIFS(insumos2!$AS$1:$AS$399999,"Aprobado con subsidio",insumos2!$AP$1:$AP$399999,"Natural") -> 1108 | H31: =COUNTIFS(insumos2!$AS$1:$AS$399999,"Aprobado con subsidio",insumos2!$AP$1:$AP$399999,"Jurídica") -> 4679 | L31: ="Total sección "&N4 -> Total sección G | O31: =SUMIFS(insumos1!$K$2:$K$372158,insumos1!$H$2:$H$372158,Visor!N4,insumos1!$I$2:$I$372158,"Natural")/1000000 -> 2371.818522 | R31: =SUMIFS(insumos1!$K$2:$K$372158,insumos1!$H$2:$H$372158,Visor!N4,insumos1!$I$2:$I$372158,"Jurídica")/1000000 -> 54354.17421
B32: ="% sección "&N4 -> % sección G | E32: =E31/(E31+H31) -> 0.1914636254 | H32: =H31/(E31+H31) -> 0.8085363746 | L32: ="% sección "&N4 -> % sección G | O32: =O31/(O31+R31) -> 0.04181184688 | R32: =R31/(O31+R31) -> 0.9581881531
B33: ="% general" -> % general | E33: 0.1646 | H33: 0.8354 | L33: ="% general" -> % general | O33: 0.0563 | R33: 0.9437
C36: Tamaño | E36: Empleadores | H36: % | J36: Empleados | N36: % | P36: Recursos en millones
C37: Micro | E37: =COUNTIFS(insumos2!$AS$2:$AS$399999,"Aprobado con subsidio",insumos2!$AT$2:$AT$399999,"MICRO") -> 3262 | H37: =E37/$E$42 -> 0.5636772075 | J37: =SUMIFS(insumos2!$AN$2:$AN$399999,insumos2!$AS$2:$AS$399999,"Aprobado con subsidio",insumos2!$AT$2:$AT$399999,"MICRO") -> 11936 | N37: =J37/$J$42 -> 0.1663554007 | P37: =SUMIFS(insumos1!$K$2:$K$372158,insumos1!$H$2:$H$372158,Visor!N4,insumos1!$J$2:$J$372158,"MICRO")/1000000 -> 7563.216329
C38: Pequeña | E38: =COUNTIFS(insumos2!$AS$2:$AS$399999,"Aprobado con subsidio",insumos2!$AT$2:$AT$399999,"PEQUEÑA") -> 1811 | H38: 0.3129428028 | J38: =SUMIFS(insumos2!$AN$2:$AN$399999,insumos2!$AS$2:$AS$399999,"Aprobado con subsidio",insumos2!$AT$2:$AT$399999,"PEQUEÑA") -> 15207 | N38: 0.2119442509 | P38: =SUMIFS(insumos1!$K$2:$K$372158,insumos1!$H$2:$H$372158,Visor!N4,insumos1!$J$2:$J$372158,"PEQUEÑA")/1000000 -> 9682.656498
C39: Mediana | E39: =COUNTIFS(insumos2!$AS$2:$AS$399999,"Aprobado con subsidio",insumos2!$AT$2:$AT$399999,"MEDIANA") -> 537 | H39: 0.09279419388 | J39: =SUMIFS(insumos2!$AN$2:$AN$399999,insumos2!$AS$2:$AS$399999,"Aprobado con subsidio",insumos2!$AT$2:$AT$399999,"MEDIANA") -> 13232 | N39: 0.1844181185 | P39: =SUMIFS(insumos1!$K$2:$K$372158,insumos1!$H$2:$H$372158,Visor!N4,insumos1!$J$2:$J$372158,"MEDIANA")/1000000 -> 9411.902259
C40: Grande | E40: =COUNTIFS(insumos2!$AS$2:$AS$399999,"Aprobado con subsidio",insumos2!$AT$2:$AT$399999,"GRANDE") -> 111 | H40: 0.01918092276 | J40: =SUMIFS(insumos2!$AN$2:$AN$399999,insumos2!$AS$2:$AS$399999,"Aprobado con subsidio",insumos2!$AT$2:$AT$399999,"GRANDE") -> 7784 | N40: 0.1084878049 | P40: =SUMIFS(insumos1!$K$2:$K$372158,insumos1!$H$2:$H$372158,Visor!N4,insumos1!$J$2:$J$372158,"GRANDE")/1000000 -> 6415.86712
C41: Muy grande | E41: =COUNTIFS(insumos2!$AS$2:$AS$399999,"Aprobado con subsidio",insumos2!$AT$2:$AT$399999,"MUY GRANDE") -> 66 | H41: 0.01140487299 | J41: =SUMIFS(insumos2!$AN$2:$AN$399999,insumos2!$AS$2:$AS$399999,"Aprobado con subsidio",insumos2!$AT$2:$AT$399999,"MUY GRANDE") -> 23591 | N41: 0.3287944251 | P41: =SUMIFS(insumos1!$K$2:$K$372158,insumos1!$H$2:$H$372158,Visor!N4,insumos1!$J$2:$J$372158,"MUY GRANDE")/1000000 -> 23652.35052
C42: Total | E42: =COUNTIFS(insumos2!$AS$2:$AS$399999,"Aprobado con subsidio") -> 5787 | H42: 1 | J42: =SUMIFS(insumos2!$AN$2:$AN$399999,insumos2!$AS$2:$AS$399999,"Aprobado con subsidio") -> 71750 | N42: 1 | P42: =P41+P40+P39+P37+P38 -> 56725.99273
B44: Tamaño | C44: ="Sección "&N4 -> Sección G | D44: general | E44: ="Sección "&N4 -> Sección G | F44: general
B45: Micro | C45: =H37 -> 0.5636772075 | D45: 0.6376801371 | E45: =N37 -> 0.1663554007 | F45: 0.104427293
B46: Pequeña | C46: =H38 -> 0.3129428028 | D46: 0.2743797922 | E46: =N38 -> 0.2119442509 | F46: 0.1894298344
B47: Mediana | C47: =H39 -> 0.09279419388 | D47: 0.06616490439 | E47: =N39 -> 0.1844181185 | F47: 0.1934365931
B48: Grande | C48: =H40 -> 0.01918092276 | D48: 0.01371264116 | E48: =N40 -> 0.1084878049 | F48: 0.1301781558
B49: Muy Grande | C49: =H41 -> 0.01140487299 | D49: 0.008062525129 | E49: =N41 -> 0.3287944251 | F49: 0.3835281237
G60: Actividad económica | J60: =D4 -> Comercio al por mayor y al por menor; reparación de vehículos automotores y motocicletas | U60: =N4 -> G
A65: Distribución Departamental | K65: Distribución en los principales municipios del País
A66: Departamento | D66: Empleadores | F66: % | G66: Empleados | I66: % | K66: Departamento | M66: Municipio | P66: Empleadores | R66: % | S66: Empleados | U66: %
A67: =IFERROR(insumos2!BP2,"") -> Bogotá | D67: =insumos2!BQ2 -> 1658 | F67: =IFERROR(D67/$D$95,"") -> 0.2865042336 | G67: =insumos2!BR2 -> 28643 | I67: =G67/$G$95 -> 0.3992055749 | K67: =IFERROR(insumos2!BY2,"") -> Bogotá | M67: =IFERROR(insumos2!BZ2,"") -> Bogotá, d.c. | P67: =IF(K67<>"",insumos2!CA2,"") -> 1658 | R67: =IFERROR(P67/$P$95,"") -> 0.2865042336 | S67: =IF(K67<>"",insumos2!CB2,"") -> 28643 | U67: =IFERROR(S67/$S$95,"") -> 0.3992055749
A68: =IFERROR(insumos2!BP3,"") -> Antioquia | D68: =insumos2!BQ3 -> 1198 | F68: =IFERROR(D68/$D$95,"") -> 0.2070157249 | G68: =insumos2!BR3 -> 14378 | I68: 0.2003902439 | K68: =IFERROR(insumos2!BY3,"") -> Antioquia | M68: =IFERROR(insumos2!BZ3,"") -> Medellín | P68: =IF(K68<>"",insumos2!CA3,"") -> 727 | R68: =IFERROR(P68/$P$95,"") -> 0.125626404 | S68: =IF(K68<>"",insumos2!CB3,"") -> 10349 | U68: =IFERROR(S68/$S$95,"") -> 0.1442369338
A69: =IFERROR(insumos2!BP4,"") -> Valle del cauca | D69: =insumos2!BQ4 -> 526 | F69: 0.09089338172 | G69: =insumos2!BR4 -> 4970 | I69: 0.06926829268 | K69: =IFERROR(insumos2!BY4,"") -> Valle del cauca | M69: =IFERROR(insumos2!BZ4,"") -> Cali | P69: =IF(K69<>"",insumos2!CA4,"") -> 384 | R69: 0.06635562468 | S69: =IF(K69<>"",insumos2!CB4,"") -> 3913 | U69: 0.05453658537
A70: =IFERROR(insumos2!BP5,"") -> Cundinamarca | D70: =insumos2!BQ5 -> 302 | F70: 0.05218593399 | G70: =insumos2!BR5 -> 3740 | I70: 0.05212543554 | K70: =IFERROR(insumos2!BY5,"") -> Atlántico | M70: =IFERROR(insumos2!BZ5,"") -> Barranquilla | P70: =IF(K70<>"",insumos2!CA5,"") -> 202 | R70: 0.0349058234 | S70: =IF(K70<>"",insumos2!CB5,"") -> 2157 | U70: 0.03006271777
A71: =IFERROR(insumos2!BP6,"") -> Santander | D71: =insumos2!BQ6 -> 263 | F71: 0.04544669086 | G71: =insumos2!BR6 -> 4931 | I71: 0.06872473868 | K71: =IFERROR(insumos2!BY6,"") -> Norte de stder | M71: =IFERROR(insumos2!BZ6,"") -> Cucuta | P71: =IF(K71<>"",insumos2!CA6,"") -> 188 | R71: 0.03248660791 | S71: =IF(K71<>"",insumos2!CB6,"") -> 2155 | U71: 0.03003484321
A72: =IFERROR(insumos2!BP7,"") -> Norte de stder | D72: =insumos2!BQ7 -> 248 | F72: 0.04285467427 | G72: =insumos2!BR7 -> 2638 | I72: 0.03676655052 | K72: =IFERROR(insumos2!BY7,"") -> Santander | M72: =IFERROR(insumos2!BZ7,"") -> Bucaramanga | P72: =IF(K72<>"",insumos2!CA7,"") -> 174 | R72: 0.03006739243 | S72: =IF(K72<>"",insumos2!CB7,"") -> 2104 | U72: 0.02932404181
A73: =IFERROR(insumos2!BP8,"") -> Atlántico | D73: =insumos2!BQ8 -> 217 | F73: 0.03749783999 | G73: =insumos2!BR8 -> 2262 | I73: 0.0315261324 | K73: =IFERROR(insumos2!BY8,"") -> Antioquia | M73: =IFERROR(insumos2!BZ8,"") -> Itagüí | P73: =IF(K73<>"",insumos2!CA8,"") -> 108 | R73: 0.01866251944 | S73: =IF(K73<>"",insumos2!CB8,"") -> 875 | U73: 0.01219512195
A74: =IFERROR(insumos2!BP9,"") -> Risaralda | D74: =insumos2!BQ9 -> 143 | F74: 0.02471055815 | G74: =insumos2!BR9 -> 1316 | I74: 0.01834146341 | K74: =IFERROR(insumos2!BY9,"") -> Risaralda | M74: =IFERROR(insumos2!BZ9,"") -> Pereira | P74: =IF(K74<>"",insumos2!CA9,"") -> 105 | R74: 0.01814411612 | S74: =IF(K74<>"",insumos2!CB9,"") -> 729 | U74: 0.01016027875
A75: =IFERROR(insumos2!BP10,"") -> Tolima | D75: =insumos2!BQ10 -> 129 | F75: 0.02229134266 | G75: =insumos2!BR10 -> 1197 | I75: 0.01668292683 | K75: =IFERROR(insumos2!BY10,"") -> Tolima | M75: =IFERROR(insumos2!BZ10,"") -> Ibagué | P75: =IF(K75<>"",insumos2!CA10,"") -> 100 | R75: 0.01728011059 | S75: =IF(K75<>"",insumos2!CB10,"") -> 1052 | U75: 0.01466202091
A76: =IFERROR(insumos2!BP11,"") -> Nariño | D76: =insumos2!BQ11 -> 128 | F76: 0.02211854156 | G76: =insumos2!BR11 -> 843 | I76: 0.01174912892 | K76: =IFERROR(insumos2!BY11,"") -> Meta | M76: =IFERROR(insumos2!BZ11,"") -> Villavicencio | P76: =IF(K76<>"",insumos2!CA11,"") -> 97 | R76: 0.01676170727 | S76: =IF(K76<>"",insumos2!CB11,"") -> 701 | U76: 0.009770034843
A77: =IFERROR(insumos2!BP12,"") -> Meta | D77: =insumos2!BQ12 -> 115 | F77: 0.01987212718 | G77: =insumos2!BR12 -> 751 | I77: 0.01046689895 | K77: =IFERROR(insumos2!BY12,"") -> Nariño | M77: =IFERROR(insumos2!BZ12,"") -> Pasto | P77: =IF(K77<>"",insumos2!CA12,"") -> 95 | R77: 0.01641610506 | S77: =IF(K77<>"",insumos2!CB12,"") -> 692 | U77: 0.009644599303
A78: =IFERROR(insumos2!BP13,"") -> Huila | D78: =insumos2!BQ13 -> 111 | F78: 0.01918092276 | G78: =insumos2!BR13 -> 708 | I78: 0.009867595819 | K78: =IFERROR(insumos2!BY13,"") -> Bolívar | M78: =IFERROR(insumos2!BZ13,"") -> Cartagena de ind | P78: =IF(K78<>"",insumos2!CA13,"") -> 84 | R78: 0.0145152929 | S78: =IF(K78<>"",insumos2!CB13,"") -> 718 | U78: 0.01000696864
A79: =IFERROR(insumos2!BP14,"") -> Bolívar | D79: =insumos2!BQ14 -> 97 | F79: 0.01676170727 | G79: =insumos2!BR14 -> 834 | I79: 0.01162369338 | K79: =IFERROR(insumos2!BY14,"") -> Huila | M79: =IFERROR(insumos2!BZ14,"") -> Neiva | P79: =IF(K79<>"",insumos2!CA14,"") -> 77 | R79: 0.01330568516 | S79: =IF(K79<>"",insumos2!CB14,"") -> 539 | U79: 0.007512195122
A80: =IFERROR(insumos2!BP15,"") -> Boyacá | D80: =insumos2!BQ15 -> 90 | F80: 0.01555209953 | G80: =insumos2!BR15 -> 513 | I80: 0.007149825784 | K80: =IFERROR(insumos2!BY15,"") -> Cundinamarca | M80: =IFERROR(insumos2!BZ15,"") -> Cota | P80: =IF(K80<>"",insumos2!CA15,"") -> 75 | R80: 0.01296008294 | S80: =IF(K80<>"",insumos2!CB15,"") -> 1502 | U80: 0.02093379791
A81: =IFERROR(insumos2!BP16,"") -> Caldas | D81: =insumos2!BQ16 -> 89 | F81: 0.01537929843 | G81: =insumos2!BR16 -> 822 | I81: 0.01145644599 | K81: =IFERROR(insumos2!BY16,"") -> Caldas | M81: =IFERROR(insumos2!BZ16,"") -> Manizales | P81: =IF(K81<>"",insumos2!CA16,"") -> 64 | R81: 0.01105927078 | S81: =IF(K81<>"",insumos2!CB16,"") -> 631 | U81: 0.008794425087
A82: =IFERROR(insumos2!BP17,"") -> Quindío | D82: =insumos2!BQ17 -> 72 | F82: 0.01244167963 | G82: =insumos2!BR17 -> 817 | I82: 0.01138675958 | K82: =IFERROR(insumos2!BY17,"") -> Quindío | M82: =IFERROR(insumos2!BZ17,"") -> Armenia | P82: =IF(K82<>"",insumos2!CA17,"") -> 58 | R82: 0.01002246414 | S82: =IF(K82<>"",insumos2!CB17,"") -> 601 | U82: 0.00837630662
A83: =IFERROR(insumos2!BP18,"") -> Córdoba | D83: =insumos2!BQ18 -> 70 | F83: 0.01209607741 | G83: =insumos2!BR18 -> 575 | I83: 0.008013937282 | K83: =IFERROR(insumos2!BY18,"") -> Córdoba | M83: =IFERROR(insumos2!BZ18,"") -> Montería | P83: =IF(K83<>"",insumos2!CA18,"") -> 55 | R83: 0.009504060826 | S83: =IF(K83<>"",insumos2!CB18,"") -> 435 | U83: 0.00606271777
A84: =IFERROR(insumos2!BP19,"") -> Magdalena | D84: =insumos2!BQ19 -> 55 | F84: 0.009504060826 | G84: =insumos2!BR19 -> 428 | I84: 0.005965156794 | K84: =IFERROR(insumos2!BY19,"") -> Antioquia | M84: =IFERROR(insumos2!BZ19,"") -> Envigado | P84: =IF(K84<>"",insumos2!CA19,"") -> 53 | R84: 0.009158458614 | S84: =IF(K84<>"",insumos2!CB19,"") -> 414 | U84: 0.005770034843
A85: =IFERROR(insumos2!BP20,"") -> Caquetá | D85: =insumos2!BQ20 -> 52 | F85: 0.008985657508 | G85: =insumos2!BR20 -> 249 | I85: 0.003470383275 | K85: =IFERROR(insumos2!BY20,"") -> Magdalena | M85: =IFERROR(insumos2!BZ20,"") -> Santa marta | P85: =IF(K85<>"",insumos2!CA20,"") -> 50 | R85: 0.008640055296 | S85: =IF(K85<>"",insumos2!CB20,"") -> 372 | U85: 0.00518466899
A86: =IFERROR(insumos2!BP21,"") -> Cesar | D86: =insumos2!BQ21 -> 49 | F86: 0.00846725419 | G86: =insumos2!BR21 -> 395 | I86: 0.005505226481 | K86: =IFERROR(insumos2!BY21,"") -> Caquetá | M86: =IFERROR(insumos2!BZ21,"") -> Florencia | P86: =IF(K86<>"",insumos2!CA21,"") -> 41 | R86: 0.007084845343 | S86: =IF(K86<>"",insumos2!CB21,"") -> 224 | U86: 0.00312195122
A87: =IFERROR(insumos2!BP22,"") -> Cauca | D87: =insumos2!BQ22 -> 41 | F87: 0.007084845343 | G87: =insumos2!BR22 -> 122 | I87: 0.001700348432 | K87: =IFERROR(insumos2!BY22,"") -> Antioquia | M87: =IFERROR(insumos2!BZ22,"") -> Rionegro | P87: =IF(K87<>"",insumos2!CA22,"") -> 38 | R87: 0.006566442025 | S87: =IF(K87<>"",insumos2!CB22,"") -> 430 | U87: 0.005993031359
A88: =IFERROR(insumos2!BP23,"") -> Sucre | D88: =insumos2!BQ23 -> 27 | F88: 0.00466562986 | G88: =insumos2!BR23 -> 210 | I88: 0.002926829268 | K88: =IFERROR(insumos2!BY23,"") -> Antioquia | M88: =IFERROR(insumos2!BZ23,"") -> Bello | P88: =IF(K88<>"",insumos2!CA23,"") -> 37 | R88: 0.006393640919 | S88: =IF(K88<>"",insumos2!CB23,"") -> 323 | U88: 0.00450174216
A89: =IFERROR(insumos2!BP24,"") -> Arauca | D89: =insumos2!BQ24 -> 22 | F89: 0.00380162433 | G89: =insumos2!BR24 -> 62 | I89: 0.0008641114983 | K89: =IFERROR(insumos2!BY24,"") -> Cesar | M89: =IFERROR(insumos2!BZ24,"") -> Valledupar | P89: =IF(K89<>"",insumos2!CA24,"") -> 37 | R89: 0.006393640919 | S89: =IF(K89<>"",insumos2!CB24,"") -> 327 | U89: 0.004557491289
A90: =IFERROR(insumos2!BP25,"") -> Casanare | D90: =insumos2!BQ25 -> 21 | F90: 0.003628823224 | G90: =insumos2!BR25 -> 87 | I90: 0.001212543554 | K90: =IFERROR(insumos2!BY25,"") -> Antioquia | M90: =IFERROR(insumos2!BZ25,"") -> Sabaneta | P90: =IF(K90<>"",insumos2!CA25,"") -> 36 | R90: 0.006220839813 | S90: =IF(K90<>"",insumos2!CB25,"") -> 385 | U90: 0.005365853659
A91: =IFERROR(insumos2!BP26,"") -> Putumayo | D91: =insumos2!BQ26 -> 17 | F91: =D91/$D$95 -> 0.002937618801 | G91: =insumos2!BR26 -> 72 | I91: 0.001003484321 | K91: =IFERROR(insumos2!BY26,"") -> Cundinamarca | M91: =IFERROR(insumos2!BZ26,"") -> Chía | P91: =IF(K91<>"",insumos2!CA26,"") -> 33 | R91: 0.005702436496 | S91: =IF(K91<>"",insumos2!CB26,"") -> 739 | U91: 0.01029965157
A92: =IFERROR(insumos2!BP27,"") -> La guajira | D92: =insumos2!BQ27 -> 13 | F92: 0.002246414377 | G92: =insumos2!BR27 -> 55 | I92: 0.0007665505226 | K92: =IFERROR(insumos2!BY27,"") -> Boyacá | M92: =IFERROR(insumos2!BZ27,"") -> Duitama | P92: =IF(K92<>"",insumos2!CA27,"") -> 31 | R92: 0.005356834284 | S92: =IF(K92<>"",insumos2!CB27,"") -> 156 | U92: 0.002174216028
A93: =IFERROR(insumos2!BP28,"") -> San Andrés | D93: =insumos2!BQ28 -> 11 | F93: 0.001900812165 | G93: =insumos2!BR28 -> 70 | I93: 0.0009756097561 | K93: =IFERROR(insumos2!BY28,"") -> Risaralda | M93: =IFERROR(insumos2!BZ28,"") -> Dosquebradas | P93: =IF(K93<>"",insumos2!CA28,"") -> 29 | R93: 0.005011232072 | S93: =IF(K93<>"",insumos2!CB28,"") -> 562 | U93: 0.007832752613
A94: =IFERROR(insumos2!BP29,"") -> Otros | D94: =insumos2!BQ29 -> 23 | F94: 0.003974425436 | G94: =insumos2!BR29 -> 62 | I94: 0.0008641114983 | K94: =IF(K93="","",IFERROR(insumos2!BY29,"")) -> Otros | M94: =IF(M93="","",IFERROR(insumos2!BZ29,"")) -> Otros | P94: =IF(K94<>"",insumos2!CA29,"") -> 1151 | R94: 0.1988940729 | S94: =IF(K94<>"",insumos2!CB29,"") -> 10022 | U94: 0.1396794425
A95: =insumos2!BP30 -> Total | D95: =insumos2!BQ30 -> 5787 | F95: =D95/$D$95 -> 1 | G95: =insumos2!BR30 -> 71750 | I95: 1 | K95: =insumos2!BY30 -> Total | P95: =insumos2!CA30 -> 5787 | R95: =P95/$P$95 -> 1 | S95: =insumos2!CB30 -> 71750 | U95: =S95/$S$95 -> 1
G126: Actividad económica | J126: =J60 -> Comercio al por mayor y al por menor; reparación de vehículos automotores y motocicletas | U126: =U60 -> G
B130: Sexo | D130: ="Total empleadores sección "&N4 -> Total empleadores sección G | G130: %
B132: Hombres | D132: =VLOOKUP(N4,Hoja4!$H$2:$P$23,7,FALSE) -> 30744 | G132: =D132/$D$135 -> 0.4284878049
B133: Mujeres | D133: =VLOOKUP(N4,Hoja4!$H$2:$P$23,8,FALSE) -> 40930 | G133: =D133/$D$135 -> 0.5704529617
B134: No disponible | D134: =VLOOKUP(N4,Hoja4!$H$2:$P$23,9,FALSE) -> 76 | G134: =D134/$D$135 -> 0.001059233449
B135: Total | D135: =D134+D133+D132 -> 71750 | G135: =D135/$D$135 -> 1
B138: =IFERROR("Para la Sección "&U126&" hay "&ROUND(VLOOKUP(U126,Hoja4!$H$2:$R$23,11,FALSE),0)&" mujeres por cada 100 hombres beneficiados del Programa.","") -> Para la Sección G hay 133 mujeres por cada 100 hombres beneficiados del Programa.
G203: Actividad económica | J203: =J126 -> Comercio al por mayor y al por menor; reparación de vehículos automotores y motocicletas | U203: =U126 -> G
B213: ="Grupo o División de la sección "&U126 -> Grupo o División de la sección G | I213: Empleadores | M213: % | O213: Empleados | S213: %
B214: =IF(insumos2!CG2=0,"",insumos2!CG2) -> Comercio al por menor de otros productos en establecimientos especializados | I214: =IF(insumos2!CG2=0,"",insumos2!CH2) -> 867 | M214: =IFERROR(I214/insumos2!$CE$28,"") -> 0.1498185588 | O214: =IF(insumos2!CI2=0,"",insumos2!CI2) -> 14538 | S214: =IFERROR(O214/insumos2!$CF$28,"") -> 0.2026202091
B215: =IF(insumos2!CG3=0,"",insumos2!CG3) -> Comercio al por mayor especializado de otros productos | I215: =IF(insumos2!CG3=0,"",insumos2!CH3) -> 666 | M215: =IFERROR(I215/insumos2!$CE$28,"") -> 0.1150855365 | O215: =IF(insumos2!CI3=0,"",insumos2!CI3) -> 6223 | S215: =IFERROR(O215/insumos2!$CF$28,"") -> 0.08673170732
B216: =IF(insumos2!CG4=0,"",insumos2!CG4) -> Comercio al por menor de otros enseres domésticos en establecimientos especializados | I216: =IF(insumos2!CG4=0,"",insumos2!CH4) -> 653 | M216: =IFERROR(I216/insumos2!$CE$28,"") -> 0.1128391222 | O216: =IF(insumos2!CI4=0,"",insumos2!CI4) -> 4168 | S216: =IFERROR(O216/insumos2!$CF$28,"") -> 0.05809059233
B217: =IF(insumos2!CG5=0,"",insumos2!CG5) -> Comercio al por mayor de maquinaria y equipo | I217: =IF(insumos2!CG5=0,"",insumos2!CH5) -> 416 | M217: =IFERROR(I217/insumos2!$CE$28,"") -> 0.07188526007 | O217: =IF(insumos2!CI5=0,"",insumos2!CI5) -> 3636 | S217: =IFERROR(O217/insumos2!$CF$28,"") -> 0.05067595819
B218: =IF(insumos2!CG6=0,"",insumos2!CG6) -> Comercio al por mayor de artículos y enseres domésticos (incluidas prendas de vestir) | I218: =IF(insumos2!CG6=0,"",insumos2!CH6) -> 410 | M218: =IFERROR(I218/insumos2!$CE$28,"") -> 0.07084845343 | O218: =IF(insumos2!CI6=0,"",insumos2!CI6) -> 5139 | S218: =IFERROR(O218/insumos2!$CF$28,"") -> 0.07162369338
B219: =IF(insumos2!CG7=0,"",insumos2!CG7) -> Comercio al por menor en establecimientos no especializados | I219: =IF(insumos2!CG7=0,"",insumos2!CH7) -> 387 | M219: =IFERROR(I219/insumos2!$CE$28,"") -> 0.06687402799 | O219: =IF(insumos2!CI7=0,"",insumos2!CI7) -> 14548 | S219: =IFERROR(O219/insumos2!$CF$28,"") -> 0.2027595819
B220: =IF(insumos2!CG8=0,"",insumos2!CG8) -> Comercio de partes, piezas (autopartes) y accesorios (lujos) para vehículos automotores | I220: =IF(insumos2!CG8=0,"",insumos2!CH8) -> 356 | M220: =IFERROR(I220/insumos2!$CE$28,"") -> 0.06151719371 | O220: =IF(insumos2!CI8=0,"",insumos2!CI8) -> 2096 | S220: =IFERROR(O220/insumos2!$CF$28,"") -> 0.02921254355
B221: =IF(insumos2!CG9=0,"",insumos2!CG9) -> Comercio al por menor de alimentos (víveres en general), bebidas y tabaco, en establecimientos especializados | I221: =IF(insumos2!CG9=0,"",insumos2!CH9) -> 297 | M221: =IFERROR(I221/insumos2!$CE$28,"") -> 0.05132192846 | O221: =IF(insumos2!CI9=0,"",insumos2!CI9) -> 2439 | S221: =IFERROR(O221/insumos2!$CF$28,"") -> 0.03399303136
B222: =IF(insumos2!CG10=0,"",insumos2!CG10) -> Comercio al por mayor de alimentos, bebidas y tabaco | I222: =IF(insumos2!CG10=0,"",insumos2!CH10) -> 293 | M222: =IFERROR(I222/insumos2!$CE$28,"") -> 0.05063072404 | O222: =IF(insumos2!CI10=0,"",insumos2!CI10) -> 3346 | S222: =IFERROR(O222/insumos2!$CF$28,"") -> 0.04663414634
B223: =IF(insumos2!CG11=0,"",insumos2!CG11) -> Comercio al por mayor no especializado | I223: =IF(insumos2!CG11=0,"",insumos2!CH11) -> 204 | M223: =IFERROR(I223/insumos2!$CE$28,"") -> 0.03525142561 | O223: =IF(insumos2!CI11=0,"",insumos2!CI11) -> 2011 | S223: =IFERROR(O223/insumos2!$CF$28,"") -> 0.02802787456
B224: =IF(insumos2!CG12=0,"",insumos2!CG12) -> Comercio, mantenimiento y reparación de motocicletas y de sus partes, piezas y accesorios | I224: =IF(insumos2!CG12=0,"",insumos2!CH12) -> 189 | M224: =IFERROR(I224/insumos2!$CE$28,"") -> 0.03265940902 | O224: =IF(insumos2!CI12=0,"",insumos2!CI12) -> 2911 | S224: =IFERROR(O224/insumos2!$CF$28,"") -> 0.04057142857
B225: =IF(insumos2!CG13=0,"",insumos2!CG13) -> Comercio al por menor de combustible, lubricantes, aditivos y productos de limpieza para automotores, en establecimientos especializados | I225: =IF(insumos2!CG13=0,"",insumos2!CH13) -> 174 | M225: =IFERROR(I225/insumos2!$CE$28,"") -> 0.03006739243 | O225: =IF(insumos2!CI13=0,"",insumos2!CI13) -> 1303 | S225: =IFERROR(O225/insumos2!$CF$28,"") -> 0.01816027875
B226: =IF(insumos2!CG14=0,"",insumos2!CG14) -> Mantenimiento y reparación de vehículos automotores | I226: =IF(insumos2!CG14=0,"",insumos2!CH14) -> 157 | M226: =IFERROR(I226/insumos2!$CE$28,"") -> 0.02712977363 | O226: =IF(insumos2!CI14=0,"",insumos2!CI14) -> 1192 | S226: =IFERROR(O226/insumos2!$CF$28,"") -> 0.01661324042
B227: =IF(insumos2!CG15=0,"",insumos2!CG15) -> Comercio al por menor de equipos de informática y de comunicaciones, en establecimientos especializados | I227: =IF(insumos2!CG15=0,"",insumos2!CH15) -> 157 | M227: =IFERROR(I227/insumos2!$CE$28,"") -> 0.02712977363 | O227: =IF(insumos2!CI15=0,"",insumos2!CI15) -> 1317 | S227: =IFERROR(O227/insumos2!$CF$28,"") -> 0.0183554007
B228: =IF(insumos2!CG16=0,"",insumos2!CG16) -> Comercio al por menor de artículos culturales y de entretenimiento, en establecimientos especializados | I228: =IF(insumos2!CG16=0,"",insumos2!CH16) -> 153 | M228: =IFERROR(I228/insumos2!$CE$28,"") -> 0.02643856921 | O228: =IF(insumos2!CI16=0,"",insumos2!CI16) -> 1440 | S228: =IFERROR(O228/insumos2!$CF$28,"") -> 0.02006968641
B229: =IF(insumos2!CG17=0,"",insumos2!CG17) -> Comercio al por mayor de materias primas agropecuarias; animales vivos | I229: =IF(insumos2!CG17=0,"",insumos2!CH17) -> 134 | M229: =IFERROR(I229/insumos2!$CE$28,"") -> 0.02315534819 | O229: =IF(insumos2!CI17=0,"",insumos2!CI17) -> 1345 | S229: =IFERROR(O229/insumos2!$CF$28,"") -> 0.0187456446
B230: =IF(insumos2!CG18=0,"",insumos2!CG18) -> Comercio al por menor no realizado en establecimientos, puestos de venta o mercados | I230: =IF(insumos2!CG18=0,"",insumos2!CH18) -> 122 | M230: =IFERROR(I230/insumos2!$CE$28,"") -> 0.02108173492 | O230: =IF(insumos2!CI18=0,"",insumos2!CI18) -> 757 | S230: =IFERROR(O230/insumos2!$CF$28,"") -> 0.01055052265
B231: =IF(insumos2!CG19=0,"",insumos2!CG19) -> Comercio de vehículos automotores | I231: =IF(insumos2!CG19=0,"",insumos2!CH19) -> 107 | M231: =IFERROR(I231/insumos2!$CE$28,"") -> 0.01848971833 | O231: =IF(insumos2!CI19=0,"",insumos2!CI19) -> 2784 | S231: =IFERROR(O231/insumos2!$CF$28,"") -> 0.03880139373
B232: =IF(insumos2!CG20=0,"",insumos2!CG20) -> Comercio al por mayor a cambio de una retribución o por contrata | I232: =IF(insumos2!CG20=0,"",insumos2!CH20) -> 38 | M232: =IFERROR(I232/insumos2!$CE$28,"") -> 0.006566442025 | O232: =IF(insumos2!CI20=0,"",insumos2!CI20) -> 540 | S232: =IFERROR(O232/insumos2!$CF$28,"") -> 0.007526132404
B233: =IF(insumos2!CG21=0,"",insumos2!CG21) -> Comercio al por menor en puestos de venta móviles | I233: =IF(insumos2!CG21=0,"",insumos2!CH21) -> 7 | M233: =IFERROR(I233/insumos2!$CE$28,"") -> 0.001209607741 | O233: =IF(insumos2!CI21=0,"",insumos2!CI21) -> 17 | S233: =IFERROR(O233/insumos2!$CF$28,"") -> 0.0002369337979
B234: =IF(insumos2!CG22=0,"",insumos2!CG22) ->  | I234: =IF(insumos2!CG22=0,"",insumos2!CH22) ->  | M234: =IFERROR(I234/insumos2!$CE$28,"") ->  | O234: =IF(insumos2!CI22=0,"",insumos2!CI22) ->  | S234: =IFERROR(O234/insumos2!$CF$28,"") -> 
B235: =IF(insumos2!CG23=0,"",insumos2!CG23) ->  | I235: =IF(insumos2!CG23=0,"",insumos2!CH23) ->  | M235: =IFERROR(I235/insumos2!$CE$28,"") ->  | O235: =IF(insumos2!CI23=0,"",insumos2!CI23) ->  | S235: =IFERROR(O235/insumos2!$CF$28,"") -> 
B236: =IF(insumos2!CG24=0,"",insumos2!CG24) ->  | I236: =IF(insumos2!CG24=0,"",insumos2!CH24) ->  | M236: =IFERROR(I236/insumos2!$CE$28,"") ->  | O236: =IF(insumos2!CI24=0,"",insumos2!CI24) ->  | S236: =IFERROR(O236/insumos2!$CF$28,"") -> 
B237: =IF(insumos2!CG25=0,"",insumos2!CG25) ->  | I237: =IF(insumos2!CG25=0,"",insumos2!CH25) ->  | M237: =IFERROR(I237/insumos2!$CE$28,"") ->  | O237: =IF(insumos2!CI25=0,"",insumos2!CI25) ->  | S237: =IFERROR(O237/insumos2!$CF$28,"") -> 
B238: =IF(insumos2!CG26=0,"",insumos2!CG26) ->  | I238: =IF(insumos2!CG26=0,"",insumos2!CH26) ->  | M238: =IFERROR(I238/insumos2!$CE$28,"") ->  | O238: =IF(insumos2!CI26=0,"",insumos2!CI26) ->  | S238: =IFERROR(O238/insumos2!$CF$28,"") -> 
G241: Postulaciones recibidas en la sección | K241: Cantidad | N241: %
G242: Total solicitudes | K242: =COUNT(insumos2!$AN$2:$AN$399999) -> 9461 | N242: =K242/$K$242 -> 1
G243: Empleadores con beneficiados | K243: =COUNTIFS(insumos2!$AS$2:$AS$399999,"Aprobado con subsidio") -> 5787 | N243: =K243/$K$242 -> 0.6116689568
G244: Empleadores sin beneficio | K244: =K242-K243 -> 3674 | N244: =K244/$K$242 -> 0.3883310432

Sheet insumos1 (hidden)
A1: Ciclo | B1: DIVIPOLA1 | C1: MpioNOM | D1: Depto | E1: DeptoNOM | F1: NOM_AECONOMICA1 | G1: SECTOR_ECONOMICO1 | H1: actividad | I1: TIPO_PERSONA1 | J1: SIZE1 | K1: Suma de RECURSOS1 | L1: Recursos_Jovenes | M1: Recursos_Masculino | N1: Recursos_Femenino | Q1: Suma de Suma de RECURSOS1 | R1: Etiquetas de columna
B2: 63001 | C2: ARMENIA | D2: 63 | E2: QUINDÍO | F2: ALOJAMIENTO Y SERVICIOS DE COMIDA | G2: 5611 | H2: I | I2: Natural | J2: MICRO | K2: 227131 | L2: 227131 | M2: 0 | N2: 0 | Q2: Etiquetas de fila | R2: (en blanco) | S2: Total general
B3: 5001 | C3: MEDELLÍN | D3: 5 | E3: ANTIOQUIA | F3: AGRICULTURA, GANADERÍA, CAZA, SILVICULTURA Y PESCA | G3: 141 | H3: A | I3: Natural | J3: MICRO | K3: 454262 | L3: 454262 | M3: 0 | N3: 0 | Q3: ACTIVIDADES ARTÍSTICAS, DE ENTRETENIMIENTO Y RECREACIÓN | R3: 8654096805 | S3: 8654096805
B4: 25307 | C4: GIRARDOT | D4: 25 | E4: CUNDINAMARCA | F4: COMERCIO AL POR MAYOR Y AL POR MENOR; REPARACIÓN DE VEHÍCULOS AUTOMOTORES Y MOTOCICLETAS | G4: 4530 | H4: G | I4: Natural | J4: MICRO | K4: 250000 | L4: 250000 | M4: 0 | N4: 0 | Q4: ACTIVIDADES DE ATENCIÓN DE LA SALUD HUMANA Y DE ASISTENCIA SOCIAL | R4: 30171634122 | S4: 30171634122
B5: 5001 | C5: MEDELLÍN | D5: 5 | E5: ANTIOQUIA | F5: ALOJAMIENTO Y SERVICIOS DE COMIDA | G5: 5611 | H5: I | I5: Natural | J5: MICRO | K5: 2450000 | L5: 2250000 | M5: 200000 | N5: 0 | Q5: ACTIVIDADES DE LOS HOGARES INDIVIDUALES EN CALIDAD DE EMPLEADORES; ACTIVIDADES NO DIFERENCIADAS DE LOS HOGARES INDIVIDUALES COMO PRODUCTORES DE BIENES Y SERVICIOS PARA USO PROPIO | R5: 37427643 | S5: 37427643
B6: 11001 | C6: BOGOTÁ, D.C. | D6: 11 | E6: BOGOTÁ, D.C. | F6: COMERCIO AL POR MAYOR Y AL POR MENOR; REPARACIÓN DE VEHÍCULOS AUTOMOTORES Y MOTOCICLETAS | G6: 4663 | H6: G | I6: Natural | J6: MICRO | K6: 3977131 | L6: 3977131 | M6: 0 | N6: 0 | Q6: ACTIVIDADES DE SERVICIOS ADMINISTRATIVOS Y DE APOYO | R6: 200294684782 | S6: 200294684782
B7: 15176 | C7: CHIQUINQUIRÁ | D7: 15 | E7: BOYACÁ | F7: COMERCIO AL POR MAYOR Y AL POR MENOR; REPARACIÓN DE VEHÍCULOS AUTOMOTORES Y MOTOCICLETAS | G7: 4752 | H7: G | I7: Natural | J7: MICRO | K7: 2858524 | L7: 2408524 | M7: 300000 | N7: 150000 | Q7: ACTIVIDADES FINANCIERAS Y DE SEGUROS | R7: 5271280445 | S7: 5271280445
B8: 76001 | C8: CALI | D8: 76 | E8: VALLE DEL CAUCA | F8: COMERCIO AL POR MAYOR Y AL POR MENOR; REPARACIÓN DE VEHÍCULOS AUTOMOTORES Y MOTOCICLETAS | G8: 4774 | H8: G | I8: Natural | J8: MICRO | K8: 454262 | L8: 454262 | M8: 0 | N8: 0 | Q8: ACTIVIDADES INMOBILIARIAS | R8: 1871623651 | S8: 1871623651
B9: 76001 | C9: CALI | D9: 76 | E9: VALLE DEL CAUCA | F9: ALOJAMIENTO Y SERVICIOS DE COMIDA | G9: 5511 | H9: I | I9: Natural | J9: MICRO | K9: 454262 | L9: 454262 | M9: 0 | N9: 0 | Q9: ACTIVIDADES PROFESIONALES, CIENTÍFICAS Y TÉCNICAS | R9: 24372428546 | S9: 24372428546
B10: 41001 | C10: NEIVA | D10: 41 | E10: HUILA | F10: COMERCIO AL POR MAYOR Y AL POR MENOR; REPARACIÓN DE VEHÍCULOS AUTOMOTORES Y MOTOCICLETAS | G10: 4729 | H10: G | I10: Natural | J10: MICRO | K10: 1550000 | L10: 500000 | M10: 0 | N10: 1050000 | Q10: ADMINISTRACIÓN PÚBLICA Y DEFENSA; PLANES DE SEGURIDAD SOCIAL DE AFILIACIÓN OBLIGATORIA | R10: 3670620041 | S10: 3670620041
B11: 52356 | C11: IPIALES | D11: 52 | E11: NARIÑO | F11: TRANSPORTE Y ALMACENAMIENTO | G11: 4923 | H11: H | I11: Natural | J11: MICRO | K11: 400000 | L11: 0 | M11: 400000 | N11: 0 | Q11: AGRICULTURA, GANADERÍA, CAZA, SILVICULTURA Y PESCA | R11: 13789524784 | S11: 13789524784
B12: 54001 | C12: CÚCUTA | D12: 54 | E12: NORTE DE SANTANDER | F12: OTRAS | G12: 90 | H12: Otras | I12: Natural | J12: PEQUEÑA | K12: 2700000 | L12: 500000 | M12: 1600000 | N12: 600000 | Q12: ALOJAMIENTO Y SERVICIOS DE COMIDA | R12: 32216506803 | S12: 32216506803
B13: 54405 | C13: LOS PATIOS | D13: 54 | E13: NORTE DE SANTANDER | F13: TRANSPORTE Y ALMACENAMIENTO | G13: 4923 | H13: H | I13: Natural | J13: MICRO | K13: 317983 | L13: 227131 | M13: 90852 | N13: 0 | Q13: COMERCIO AL POR MAYOR Y AL POR MENOR; REPARACIÓN DE VEHÍCULOS AUTOMOTORES Y MOTOCICLETAS | R13: 56725992727 | S13: 56725992727
B14: 68276 | C14: FLORIDABLANCA | D14: 68 | E14: SANTANDER | F14: AGRICULTURA, GANADERÍA, CAZA, SILVICULTURA Y PESCA | G14: 126 | H14: A | I14: Natural | J14: MICRO | K14: 227131 | L14: 227131 | M14: 0 | N14: 0 | Q14: CONSTRUCCIÓN | R14: 40209781291 | S14: 40209781291
B15: 76828 | C15: TRUJILLO | D15: 76 | E15: VALLE DEL CAUCA | F15: COMERCIO AL POR MAYOR Y AL POR MENOR; REPARACIÓN DE VEHÍCULOS AUTOMOTORES Y MOTOCICLETAS | G15: 4752 | H15: G | I15: Natural | J15: MICRO | K15: 3631080 | L15: 2658524 | M15: 972556 | N15: 0 | Q15: DISTRIBUCIÓN DE AGUA; EVACUACIÓN Y TRATAMIENTO DE AGUAS RESIDUALES, GESTIÓN DE DESECHOS Y ACTIVIDADES DE SANEAMIENTO AMBIENTAL | R15: 1670277628 | S15: 1670277628
B16: 76001 | C16: CALI | D16: 76 | E16: VALLE DEL CAUCA | F16: AGRICULTURA, GANADERÍA, CAZA, SILVICULTURA Y PESCA | G16: 121 | H16: A | I16: Natural | J16: MICRO | K16: 227131 | L16: 227131 | M16: 0 | N16: 0 | Q16: EDUCACIÓN | R16: 7320556708 | S16: 7320556708
B17: 11001 | C17: BOGOTÁ, D.C. | D17: 11 | E17: BOGOTÁ, D.C. | F17: INDUSTRIAS MANUFACTURERAS | G17: 1313 | H17: C | I17: Natural | J17: MICRO | K17: 726818 | L17: 454262 | M17: 0 | N17: 272556 | Q17: EXPLOTACIÓN DE MINAS Y CANTERAS | R17: 2445191793 | S17: 2445191793
B18: 11001 | C18: BOGOTÁ, D.C. | D18: 11 | E18: BOGOTÁ, D.C. | F18: COMERCIO AL POR MAYOR Y AL POR MENOR; REPARACIÓN DE VEHÍCULOS AUTOMOTORES Y MOTOCICLETAS | G18: 4754 | H18: G | I18: Natural | J18: MICRO | K18: 1000000 | L18: 1000000 | M18: 0 | N18: 0 | Q18: INDUSTRIAS MANUFACTURERAS | R18: 53712192327 | S18: 53712192327
B19: 11001 | C19: BOGOTÁ, D.C. | D19: 11 | E19: BOGOTÁ, D.C. | F19: EDUCACIÓN | G19: 8512 | H19: P | I19: Natural | J19: MICRO | K19: 750000 | L19: 0 | M19: 0 | N19: 750000 | Q19: INFORMACIÓN Y COMUNICACIONES | R19: 35249007039 | S19: 35249007039
B20: 25181 | C20: CHOACHÍ | D20: 25 | E20: CUNDINAMARCA | F20: AGRICULTURA, GANADERÍA, CAZA, SILVICULTURA Y PESCA | G20: 145 | H20: A | I20: Natural | J20: MICRO | K20: 500000 | L20: 0 | M20: 500000 | N20: 0 | Q20: OTRAS | R20: 12671620 | S20: 12671620
B21: 25181 | C21: CHOACHÍ | D21: 25 | E21: CUNDINAMARCA | F21: COMERCIO AL POR MAYOR Y AL POR MENOR; REPARACIÓN DE VEHÍCULOS AUTOMOTORES Y MOTOCICLETAS | G21: 4663 | H21: G | I21: Natural | J21: PEQUEÑA | K21: 181704 | L21: 0 | M21: 181704 | N21: 0 | Q21: OTRAS ACTIVIDADES DE SERVICIOS | R21: 5123501657 | S21: 5123501657
B22: 25279 | C22: FOMEQUE | D22: 25 | E22: CUNDINAMARCA | F22: AGRICULTURA, GANADERÍA, CAZA, SILVICULTURA Y PESCA | G22: 145 | H22: A | I22: Natural | J22: PEQUEÑA | K22: 250000 | L22: 250000 | M22: 0 | N22: 0 | Q22: SUMINISTRO DE ELECTRICIDAD, GAS, VAPOR Y AIRE ACONDICIONADO | R22: 376204356 | S22: 376204356
B23: 5001 | C23: MEDELLÍN | D23: 5 | E23: ANTIOQUIA | F23: COMERCIO AL POR MAYOR Y AL POR MENOR; REPARACIÓN DE VEHÍCULOS AUTOMOTORES Y MOTOCICLETAS | G23: 4520 | H23: G | I23: Natural | J23: PEQUEÑA | K23: 227131 | L23: 227131 | M23: 0 | N23: 0 | Q23: TRANSPORTE Y ALMACENAMIENTO | R23: 21638897895 | S23: 21638897895
B24: 25214 | C24: COTA | D24: 25 | E24: CUNDINAMARCA | F24: CONSTRUCCIÓN | G24: 4290 | H24: F | I24: Natural | J24: MICRO | K24: 90852 | L24: 0 | M24: 90852 | N24: 0 | Q24: (en blanco)
B25: 25758 | C25: SOPÓ | D25: 25 | E25: CUNDINAMARCA | F25: AGRICULTURA, GANADERÍA, CAZA, SILVICULTURA Y PESCA | G25: 141 | H25: A | I25: Natural | J25: MICRO | K25: 1050000 | L25: 750000 | M25: 0 | N25: 300000 | Q25: Total general | R25: 544834102663 | S25: 544834102663
B26: 25297 | C26: GACHETÁ | D26: 25 | E26: CUNDINAMARCA | F26: COMERCIO AL POR MAYOR Y AL POR MENOR; REPARACIÓN DE VEHÍCULOS AUTOMOTORES Y MOTOCICLETAS | G26: 4663 | H26: G | I26: Natural | J26: MICRO | K26: 750000 | L26: 750000 | M26: 0 | N26: 0
B27: 11001 | C27: BOGOTÁ, D.C. | D27: 11 | E27: BOGOTÁ, D.C. | F27: EDUCACIÓN | G27: 8521 | H27: P | I27: Natural | J27: PEQUEÑA | K27: 227131 | L27: 227131 | M27: 0 | N27: 0
B28: 11001 | C28: BOGOTÁ, D.C. | D28: 11 | E28: BOGOTÁ, D.C. | F28: ACTIVIDADES PROFESIONALES, CIENTÍFICAS Y TÉCNICAS | G28: 7310 | H28: M | I28: Natural | J28: MICRO | K28: 227131 | L28: 227131 | M28: 0 | N28: 0
B29: 25430 | C29: MADRID | D29: 25 | E29: CUNDINAMARCA | F29: AGRICULTURA, GANADERÍA, CAZA, SILVICULTURA Y PESCA | G29: 145 | H29: A | I29: Natural | J29: MICRO | K29: 250000 | L29: 250000 | M29: 0 | N29: 0
B30: 25754 | C30: SOACHA | D30: 25 | E30: CUNDINAMARCA | F30: ACTIVIDADES DE SERVICIOS ADMINISTRATIVOS Y DE APOYO | G30: 8219 | H30: N | I30: Natural | J30: MICRO | K30: 1200000 | L30: 750000 | M30: 0 | N30: 450000
B31: 11001 | C31: BOGOTÁ, D.C. | D31: 11 | E31: BOGOTÁ, D.C. | F31: ACTIVIDADES PROFESIONALES, CIENTÍFICAS Y TÉCNICAS | G31: 6910 | H31: M | I31: Natural | J31: PEQUEÑA | K31: 10448026 | L31: 10448026 | M31: 0 | N31: 0
B32: 11001 | C32: BOGOTÁ, D.C. | D32: 11 | E32: BOGOTÁ, D.C. | F32: COMERCIO AL POR MAYOR Y AL POR MENOR; REPARACIÓN DE VEHÍCULOS AUTOMOTORES Y MOTOCICLETAS | G32: 4751 | H32: G | I32: Natural | J32: MICRO | K32: 681393 | L32: 681393 | M32: 0 | N32: 0
B33: 25785 | C33: TABIO | D33: 25 | E33: CUNDINAMARCA | F33: ACTIVIDADES ARTÍSTICAS, DE ENTRETENIMIENTO Y RECREACIÓN | G33: 9004 | H33: R | I33: Natural | J33: MICRO | K33: 250000 | L33: 250000 | M33: 0 | N33: 0
B34: 50001 | C34: VILLAVICENCIO | D34: 50 | E34: META | F34: COMERCIO AL POR MAYOR Y AL POR MENOR; REPARACIÓN DE VEHÍCULOS AUTOMOTORES Y MOTOCICLETAS | G34: 4729 | H34: G | I34: Natural | J34: MICRO | K34: 3204262 | L34: 3204262 | M34: 0 | N34: 0
B35: 25875 | C35: VILLETA | D35: 25 | E35: CUNDINAMARCA | F35: INDUSTRIAS MANUFACTURERAS | G35: 1081 | H35: C | I35: Natural | J35: PEQUEÑA | K35: 454262 | L35: 454262 | M35: 0 | N35: 0
B36: 25269 | C36: FACATATIVÁ | D36: 25 | E36: CUNDINAMARCA | F36: EDUCACIÓN | G36: 8560 | H36: P | I36: Natural | J36: MICRO | K36: 2100000 | L36: 1000000 | M36: 800000 | N36: 300000
B37: 85001 | C37: YOPAL | D37: 85 | E37: CASANARE | F37: COMERCIO AL POR MAYOR Y AL POR MENOR; REPARACIÓN DE VEHÍCULOS AUTOMOTORES Y MOTOCICLETAS | G37: 4769 | H37: G | I37: Natural | J37: MICRO | K37: 2450000 | L37: 2000000 | M37: 0 | N37: 450000
B38: 5001 | C38: MEDELLÍN | D38: 5 | E38: ANTIOQUIA | F38: OTRAS | G38: 90 | H38: Otras | I38: Natural | J38: MICRO | K38: 400000 | L38: 0 | M38: 400000 | N38: 0
B39: 15759 | C39: SOGAMOSO | D39: 15 | E39: BOYACÁ | F39: COMERCIO AL POR MAYOR Y AL POR MENOR; REPARACIÓN DE VEHÍCULOS AUTOMOTORES Y MOTOCICLETAS | G39: 4799 | H39: G | I39: Natural | J39: MICRO | K39: 600000 | L39: 500000 | M39: 100000 | N39: 0
B40: 5001 | C40: MEDELLÍN | D40: 5 | E40: ANTIOQUIA | F40: ALOJAMIENTO Y SERVICIOS DE COMIDA | G40: 5611 | H40: I | I40: Natural | J40: MICRO | K40: 100000 | L40: 0 | M40: 100000 | N40: 0
B41: 5001 | C41: MEDELLÍN | D41: 5 | E41: ANTIOQUIA | F41: COMERCIO AL POR MAYOR Y AL POR MENOR; REPARACIÓN DE VEHÍCULOS AUTOMOTORES Y MOTOCICLETAS | G41: 4722 | H41: G | I41: Natural | J41: MICRO | K41: 2000000 | L41: 1000000 | M41: 400000 | N41: 600000
B42: 5001 | C42: MEDELLÍN | D42: 5 | E42: ANTIOQUIA | F42: INDUSTRIAS MANUFACTURERAS | G42: 3240 | H42: C | I42: Natural | J42: MICRO | K42: 2108524 | L42: 1908524 | M42: 200000 | N42: 0
B43: 5001 | C43: MEDELLÍN | D43: 5 | E43: ANTIOQUIA | F43: COMERCIO AL POR MAYOR Y AL POR MENOR; REPARACIÓN DE VEHÍCULOS AUTOMOTORES Y MOTOCICLETAS | G43: 4771 | H43: G | I43: Natural | J43: MICRO | K43: 1135655 | L43: 1135655 | M43: 0 | N43: 0
B44: 5001 | C44: MEDELLÍN | D44: 5 | E44: ANTIOQUIA | F44: COMERCIO AL POR MAYOR Y AL POR MENOR; REPARACIÓN DE VEHÍCULOS AUTOMOTORES Y MOTOCICLETAS | G44: 4663 | H44: G | I44: Natural | J44: MICRO | K44: 454262 | L44: 454262 | M44: 0 | N44: 0
B45: 11001 | C45: BOGOTÁ, D.C. | D45: 11 | E45: BOGOTÁ, D.C. | F45: COMERCIO AL POR MAYOR Y AL POR MENOR; REPARACIÓN DE VEHÍCULOS AUTOMOTORES Y MOTOCICLETAS | G45: 4771 | H45: G | I45: Natural | J45: PEQUEÑA | K45: 454262 | L45: 454262 | M45: 0 | N45: 0
B46: 5001 | C46: MEDELLÍN | D46: 5 | E46: ANTIOQUIA | F46: INDUSTRIAS MANUFACTURERAS | G46: 3110 | H46: C | I46: Natural | J46: MICRO | K46: 454262 | L46: 454262 | M46: 0 | N46: 0
B47: 5697 | C47: EL SANTUARIO | D47: 5 | E47: ANTIOQUIA | F47: COMERCIO AL POR MAYOR Y AL POR MENOR; REPARACIÓN DE VEHÍCULOS AUTOMOTORES Y MOTOCICLETAS | G47: 4773 | H47: G | I47: Natural | J47: MICRO | K47: 681393 | L47: 681393 | M47: 0 | N47: 0
B48: 11001 | C48: BOGOTÁ, D.C. | D48: 11 | E48: BOGOTÁ, D.C. | F48: COMERCIO AL POR MAYOR Y AL POR MENOR; REPARACIÓN DE VEHÍCULOS AUTOMOTORES Y MOTOCICLETAS | G48: 4652 | H48: G | I48: Natural | J48: MICRO | K48: 227131 | L48: 227131 | M48: 0 | N48: 0
B49: 54001 | C49: CÚCUTA | D49: 54 | E49: NORTE DE SANTANDER | F49: COMERCIO AL POR MAYOR Y AL POR MENOR; REPARACIÓN DE VEHÍCULOS AUTOMOTORES Y MOTOCICLETAS | G49: 4631 | H49: G | I49: Natural | J49: PEQUEÑA | K49: 454262 | L49: 454262 | M49: 0 | N49: 0
B50: 5001 | C50: MEDELLÍN | D50: 5 | E50: ANTIOQUIA | F50: ACTIVIDADES INMOBILIARIAS | G50: 6810 | H50: L | I50: Natural | J50: MICRO | K50: 90852 | L50: 0 | M50: 90852 | N50: 0
B51: 15759 | C51: SOGAMOSO | D51: 15 | E51: BOYACÁ | F51: EDUCACIÓN | G51: 8512 | H51: P | I51: Natural | J51: MICRO | K51: 2950000 | L51: 1000000 | M51: 0 | N51: 1950000
B52: 15176 | C52: CHIQUINQUIRÁ | D52: 15 | E52: BOYACÁ | F52: INDUSTRIAS MANUFACTURERAS | G52: 1081 | H52: C | I52: Natural | J52: MICRO | K52: 3700000 | L52: 3250000 | M52: 0 | N52: 450000
B53: 11001 | C53: BOGOTÁ, D.C. | D53: 11 | E53: BOGOTÁ, D.C. | F53: INDUSTRIAS MANUFACTURERAS | G53: 2920 | H53: C | I53: Natural | J53: MICRO | K53: 1800000 | L53: 0 | M53: 0 | N53: 1800000
B54: 15238 | C54: DUITAMA | D54: 15 | E54: BOYACÁ | F54: TRANSPORTE Y ALMACENAMIENTO | G54: 4923 | H54: H | I54: Natural | J54: MICRO | K54: 500000 | L54: 500000 | M54: 0 | N54: 0
B55: 85001 | C55: YOPAL | D55: 85 | E55: CASANARE | F55: COMERCIO AL POR MAYOR Y AL POR MENOR; REPARACIÓN DE VEHÍCULOS AUTOMOTORES Y MOTOCICLETAS | G55: 4542 | H55: G | I55: Natural | J55: MICRO | K55: 4408524 | L55: 4408524 | M55: 0 | N55: 0
B56: 15537 | C56: PAZ DE RÍO | D56: 15 | E56: BOYACÁ | F56: TRANSPORTE Y ALMACENAMIENTO | G56: 4923 | H56: H | I56: Natural | J56: PEQUEÑA | K56: 681393 | L56: 681393 | M56: 0 | N56: 0
B57: 15759 | C57: SOGAMOSO | D57: 15 | E57: BOYACÁ | F57: INDUSTRIAS MANUFACTURERAS | G57: 2395 | H57: C | I57: Natural | J57: PEQUEÑA | K57: 100000 | L57: 0 | M57: 100000 | N57: 0
B58: 11001 | C58: BOGOTÁ, D.C. | D58: 11 | E58: BOGOTÁ, D.C. | F58: COMERCIO AL POR MAYOR Y AL POR MENOR; REPARACIÓN DE VEHÍCULOS AUTOMOTORES Y MOTOCICLETAS | G58: 4663 | H58: G | I58: Natural | J58: MICRO | K58: 500000 | L58: 500000 | M58: 0 | N58: 0
B59: 15753 | C59: SOATÁ | D59: 15 | E59: BOYACÁ | F59: COMERCIO AL POR MAYOR Y AL POR MENOR; REPARACIÓN DE VEHÍCULOS AUTOMOTORES Y MOTOCICLETAS | G59: 4631 | H59: G | I59: Natural | J59: MICRO | K59: 381704 | L59: 0 | M59: 381704 | N59: 0
B60: 11001 | C60: BOGOTÁ, D.C. | D60: 11 | E60: BOGOTÁ, D.C. | F60: INDUSTRIAS MANUFACTURERAS | G60: 1081 | H60: C | I60: Natural | J60: MICRO | K60: 4158524 | L60: 4158524 | M60: 0 | N60: 0
B61: 15759 | C61: SOGAMOSO | D61: 15 | E61: BOYACÁ | F61: TRANSPORTE Y ALMACENAMIENTO | G61: 4923 | H61: H | I61: Natural | J61: MICRO | K61: 950000 | L61: 750000 | M61: 200000 | N61: 0
B62: 11001 | C62: BOGOTÁ, D.C. | D62: 11 | E62: BOGOTÁ, D.C. | F62: TRANSPORTE Y ALMACENAMIENTO | G62: 4923 | H62: H | I62: Natural | J62: MICRO | K62: 2526818 | L62: 1954262 | M62: 272556 | N62: 300000
B63: 11001 | C63: BOGOTÁ, D.C. | D63: 11 | E63: BOGOTÁ, D.C. | F63: ALOJAMIENTO Y SERVICIOS DE COMIDA | G63: 5611 | H63: I | I63: Natural | J63: MICRO | K63: 1800000 | L63: 0 | M63: 900000 | N63: 900000
B64: 5266 | C64: ENVIGADO | D64: 5 | E64: ANTIOQUIA | F64: COMERCIO AL POR MAYOR Y AL POR MENOR; REPARACIÓN DE VEHÍCULOS AUTOMOTORES Y MOTOCICLETAS | G64: 4541 | H64: G | I64: Natural | J64: MICRO | K64: 681393 | L64: 681393 | M64: 0 | N64: 0
B65: 17442 | C65: MARMATO | D65: 17 | E65: CALDAS | F65: EXPLOTACIÓN DE MINAS Y CANTERAS | G65: 722 | H65: B | I65: Natural | J65: PEQUEÑA | K65: 5350000 | L65: 4250000 | M65: 1100000 | N65: 0
B66: 17442 | C66: MARMATO | D66: 17 | E66: CALDAS | F66: EXPLOTACIÓN DE MINAS Y CANTERAS | G66: 722 | H66: B | I66: Natural | J66: PEQUEÑA | K66: 1700000 | L66: 1000000 | M66: 700000 | N66: 0
B67: 50001 | C67: VILLAVICENCIO | D67: 50 | E67: META | F67: CONSTRUCCIÓN | G67: 4321 | H67: F | I67: Natural | J67: MICRO | K67: 1000000 | L67: 750000 | M67: 100000 | N67: 150000
B68: 66001 | C68: PEREIRA | D68: 66 | E68: RISARALDA | F68: OTRAS ACTIVIDADES DE SERVICIOS | G68: 9609 | H68: S | I68: Natural | J68: MICRO | K68: 2412784 | L68: 1408524 | M68: 581704 | N68: 422556
B69: 66001 | C69: PEREIRA | D69: 66 | E69: RISARALDA | F69: COMERCIO AL POR MAYOR Y AL POR MENOR; REPARACIÓN DE VEHÍCULOS AUTOMOTORES Y MOTOCICLETAS | G69: 4773 | H69: G | I69: Natural | J69: PEQUEÑA | K69: 227131 | L69: 227131 | M69: 0 | N69: 0
B70: 66594 | C70: QUINCHÍA | D70: 66 | E70: RISARALDA | F70: COMERCIO AL POR MAYOR Y AL POR MENOR; REPARACIÓN DE VEHÍCULOS AUTOMOTORES Y MOTOCICLETAS | G70: 4711 | H70: G | I70: Natural | J70: MICRO | K70: 3000000 | L70: 3000000 | M70: 0 | N70: 0
B71: 66170 | C71: DOSQUEBRADAS | D71: 66 | E71: RISARALDA | F71: COMERCIO AL POR MAYOR Y AL POR MENOR; REPARACIÓN DE VEHÍCULOS AUTOMOTORES Y MOTOCICLETAS | G71: 4775 | H71: G | I71: Natural | J71: MICRO | K71: 1000000 | L71: 1000000 | M71: 0 | N71: 0
B72: 66170 | C72: DOSQUEBRADAS | D72: 66 | E72: RISARALDA | F72: ACTIVIDADES PROFESIONALES, CIENTÍFICAS Y TÉCNICAS | G72: 6910 | H72: M | I72: Natural | J72: PEQUEÑA | K72: 6400000 | L72: 4750000 | M72: 0 | N72: 1650000
B73: 66001 | C73: PEREIRA | D73: 66 | E73: RISARALDA | F73: COMERCIO AL POR MAYOR Y AL POR MENOR; REPARACIÓN DE VEHÍCULOS AUTOMOTORES Y MOTOCICLETAS | G73: 4754 | H73: G | I73: Natural | J73: PEQUEÑA | K73: 2250000 | L73: 2250000 | M73: 0 | N73: 0
B74: 18205 | C74: CURILLO | D74: 18 | E74: CAQUETÁ | F74: INDUSTRIAS MANUFACTURERAS | G74: 1040 | H74: C | I74: Natural | J74: PEQUEÑA | K74: 6800000 | L74: 4750000 | M74: 1300000 | N74: 750000
B75: 19001 | C75: POPAYÁN | D75: 19 | E75: CAUCA | F75: EDUCACIÓN | G75: 8559 | H75: P | I75: Natural | J75: MICRO | K75: 317982 | L75: 0 | M75: 181704 | N75: 136278
B76: 76001 | C76: CALI | D76: 76 | E76: VALLE DEL CAUCA | F76: COMERCIO AL POR MAYOR Y AL POR MENOR; REPARACIÓN DE VEHÍCULOS AUTOMOTORES Y MOTOCICLETAS | G76: 4752 | H76: G | I76: Natural | J76: MICRO | K76: 7748441 | L76: 7748441 | M76: 0 | N76: 0
B77: 41001 | C77: NEIVA | D77: 41 | E77: HUILA | F77: COMERCIO AL POR MAYOR Y AL POR MENOR; REPARACIÓN DE VEHÍCULOS AUTOMOTORES Y MOTOCICLETAS | G77: 4752 | H77: G | I77: Natural | J77: PEQUEÑA | K77: 12050000 | L77: 7000000 | M77: 4600000 | N77: 450000
B78: 41001 | C78: NEIVA | D78: 41 | E78: HUILA | F78: COMERCIO AL POR MAYOR Y AL POR MENOR; REPARACIÓN DE VEHÍCULOS AUTOMOTORES Y MOTOCICLETAS | G78: 4711 | H78: G | I78: Natural | J78: PEQUEÑA | K78: 227131 | L78: 227131 | M78: 0 | N78: 0
B79: 41551 | C79: PITALITO | D79: 41 | E79: HUILA | F79: COMERCIO AL POR MAYOR Y AL POR MENOR; REPARACIÓN DE VEHÍCULOS AUTOMOTORES Y MOTOCICLETAS | G79: 4754 | H79: G | I79: Natural | J79: MICRO | K79: 363409 | L79: 227131 | M79: 0 | N79: 136278
B80: 41551 | C80: PITALITO | D80: 41 | E80: HUILA | F80: COMERCIO AL POR MAYOR Y AL POR MENOR; REPARACIÓN DE VEHÍCULOS AUTOMOTORES Y MOTOCICLETAS | G80: 4620 | H80: G | I80: Natural | J80: MICRO | K80: 1000000 | L80: 1000000 | M80: 0 | N80: 0
B81: 54498 | C81: OCAÑA | D81: 54 | E81: NORTE DE SANTANDER | F81: COMERCIO AL POR MAYOR Y AL POR MENOR; REPARACIÓN DE VEHÍCULOS AUTOMOTORES Y MOTOCICLETAS | G81: 4541 | H81: G | I81: Natural | J81: MICRO | K81: 1635655 | L81: 1635655 | M81: 0 | N81: 0
B82: 52001 | C82: PASTO | D82: 52 | E82: NARIÑO | F82: COMERCIO AL POR MAYOR Y AL POR MENOR; REPARACIÓN DE VEHÍCULOS AUTOMOTORES Y MOTOCICLETAS | G82: 4731 | H82: G | I82: Natural | J82: PEQUEÑA | K82: 227131 | L82: 227131 | M82: 0 | N82: 0
B83: 52317 | C83: GUACHUCAL | D83: 52 | E83: NARIÑO | F83: COMERCIO AL POR MAYOR Y AL POR MENOR; REPARACIÓN DE VEHÍCULOS AUTOMOTORES Y MOTOCICLETAS | G83: 4731 | H83: G | I83: Natural | J83: PEQUEÑA | K83: 1750000 | L83: 1750000 | M83: 0 | N83: 0
B84: 52560 | C84: POTOSÍ | D84: 52 | E84: NARIÑO | F84: INDUSTRIAS MANUFACTURERAS | G84: 1040 | H84: C | I84: Natural | J84: MICRO | K84: 1650000 | L84: 1500000 | M84: 0 | N84: 150000
B85: 52683 | C85: SANDONÁ | D85: 52 | E85: NARIÑO | F85: COMERCIO AL POR MAYOR Y AL POR MENOR; REPARACIÓN DE VEHÍCULOS AUTOMOTORES Y MOTOCICLETAS | G85: 4711 | H85: G | I85: Natural | J85: MICRO | K85: 250000 | L85: 0 | M85: 100000 | N85: 150000
B86: 54001 | C86: CÚCUTA | D86: 54 | E86: NORTE DE SANTANDER | F86: INDUSTRIAS MANUFACTURERAS | G86: 2599 | H86: C | I86: Natural | J86: MICRO | K86: 227131 | L86: 227131 | M86: 0 | N86: 0
B87: 54001 | C87: CÚCUTA | D87: 54 | E87: NORTE DE SANTANDER | F87: TRANSPORTE Y ALMACENAMIENTO | G87: 4923 | H87: H | I87: Natural | J87: MICRO | K87: 250000 | L87: 250000 | M87: 0 | N87: 0
B88: 54518 | C88: PAMPLONA | D88: 54 | E88: NORTE DE SANTANDER | F88: ALOJAMIENTO Y SERVICIOS DE COMIDA | G88: 5611 | H88: I | I88: Natural | J88: PEQUEÑA | K88: 5204262 | L88: 5204262 | M88: 0 | N88: 0
B89: 54001 | C89: CÚCUTA | D89: 54 | E89: NORTE DE SANTANDER | F89: COMERCIO AL POR MAYOR Y AL POR MENOR; REPARACIÓN DE VEHÍCULOS AUTOMOTORES Y MOTOCICLETAS | G89: 4752 | H89: G | I89: Natural | J89: MICRO | K89: 100000 | L89: 0 | M89: 100000 | N89: 0
B90: 68001 | C90: BUCARAMANGA | D90: 68 | E90: SANTANDER | F90: INDUSTRIAS MANUFACTURERAS | G90: 1610 | H90: C | I90: Natural | J90: PEQUEÑA | K90: 250000 | L90: 250000 | M90: 0 | N90: 0
B91: 68001 | C91: BUCARAMANGA | D91: 68 | E91: SANTANDER | F91: COMERCIO AL POR MAYOR Y AL POR MENOR; REPARACIÓN DE VEHÍCULOS AUTOMOTORES Y MOTOCICLETAS | G91: 4774 | H91: G | I91: Natural | J91: MICRO | K91: 5500000 | L91: 5500000 | M91: 0 | N91: 0
B92: 11001 | C92: BOGOTÁ, D.C. | D92: 11 | E92: BOGOTÁ, D.C. | F92: COMERCIO AL POR MAYOR Y AL POR MENOR; REPARACIÓN DE VEHÍCULOS AUTOMOTORES Y MOTOCICLETAS | G92: 4732 | H92: G | I92: Natural | J92: MICRO | K92: 11866421 | L92: 8544179 | M92: 963408 | N92: 2358834
B93: 54001 | C93: CÚCUTA | D93: 54 | E93: NORTE DE SANTANDER | F93: INDUSTRIAS MANUFACTURERAS | G93: 1410 | H93: C | I93: Natural | J93: MICRO | K93: 1158524 | L93: 1158524 | M93: 0 | N93: 0
B94: 68001 | C94: BUCARAMANGA | D94: 68 | E94: SANTANDER | F94: ACTIVIDADES PROFESIONALES, CIENTÍFICAS Y TÉCNICAS | G94: 7420 | H94: M | I94: Natural | J94: MICRO | K94: 550000 | L94: 250000 | M94: 300000 | N94: 0
B95: 68679 | C95: SAN GIL | D95: 68 | E95: SANTANDER | F95: COMERCIO AL POR MAYOR Y AL POR MENOR; REPARACIÓN DE VEHÍCULOS AUTOMOTORES Y MOTOCICLETAS | G95: 4711 | H95: G | I95: Natural | J95: PEQUEÑA | K95: 15900000 | L95: 15000000 | M95: 300000 | N95: 600000
B96: 68861 | C96: VÉLEZ | D96: 68 | E96: SANTANDER | F96: INDUSTRIAS MANUFACTURERAS | G96: 1089 | H96: C | I96: Natural | J96: MICRO | K96: 954262 | L96: 954262 | M96: 0 | N96: 0
B97: 68001 | C97: BUCARAMANGA | D97: 68 | E97: SANTANDER | F97: ACTIVIDADES FINANCIERAS Y DE SEGUROS | G97: 6621 | H97: K | I97: Natural | J97: MICRO | K97: 227131 | L97: 227131 | M97: 0 | N97: 0
B98: 68001 | C98: BUCARAMANGA | D98: 68 | E98: SANTANDER | F98: COMERCIO AL POR MAYOR Y AL POR MENOR; REPARACIÓN DE VEHÍCULOS AUTOMOTORES Y MOTOCICLETAS | G98: 4711 | H98: G | I98: Natural | J98: MEDIANA | K98: 1000000 | L98: 1000000 | M98: 0 | N98: 0
B99: 11001 | C99: BOGOTÁ, D.C. | D99: 11 | E99: BOGOTÁ, D.C. | F99: ACTIVIDADES DE SERVICIOS ADMINISTRATIVOS Y DE APOYO | G99: 8121 | H99: N | I99: Natural | J99: MICRO | K99: 400000 | L99: 0 | M99: 100000 | N99: 300000
B100: 41001 | C100: NEIVA | D100: 41 | E100: HUILA | F100: ALOJAMIENTO Y SERVICIOS DE COMIDA | G100: 5511 | H100: I | I100: Natural | J100: MICRO | K100: 750000 | L100: 750000 | M100: 0 | N100: 0
B101: 73001 | C101: IBAGUÉ | D101: 73 | E101: TOLIMA | F101: COMERCIO AL POR MAYOR Y AL POR MENOR; REPARACIÓN DE VEHÍCULOS AUTOMOTORES Y MOTOCICLETAS | G101: 4773 | H101: G | I101: Natural | J101: MICRO | K101: 550000 | L101: 0 | M101: 100000 | N101: 450000
B102: 76001 | C102: CALI | D102: 76 | E102: VALLE DEL CAUCA | F102: INDUSTRIAS MANUFACTURERAS | G102: 1811 | H102: C | I102: Natural | J102: MICRO | K102: 750000 | L102: 750000 | M102: 0 | N102: 0
B103: 73001 | C103: IBAGUÉ | D103: 73 | E103: TOLIMA | F103: COMERCIO AL POR MAYOR Y AL POR MENOR; REPARACIÓN DE VEHÍCULOS AUTOMOTORES Y MOTOCICLETAS | G103: 4752 | H103: G | I103: Natural | J103: MICRO | K103: 2635655 | L103: 2635655 | M103: 0 | N103: 0
B104: 50001 | C104: VILLAVICENCIO | D104: 50 | E104: META | F104: ALOJAMIENTO Y SERVICIOS DE COMIDA | G104: 5511 | H104: I | I104: Natural | J104: PEQUEÑA | K104: 4253949 | L104: 3681393 | M104: 0 | N104: 572556
B105: 76834 | C105: TULUÁ | D105: 76 | E105: VALLE DEL CAUCA | F105: COMERCIO AL POR MAYOR Y AL POR MENOR; REPARACIÓN DE VEHÍCULOS AUTOMOTORES Y MOTOCICLETAS | G105: 4751 | H105: G | I105: Natural | J105: PEQUEÑA | K105: 950000 | L105: 500000 | M105: 0 | N105: 450000
B106: 76020 | C106: ALCALÁ | D106: 76 | E106: VALLE DEL CAUCA | F106: COMERCIO AL POR MAYOR Y AL POR MENOR; REPARACIÓN DE VEHÍCULOS AUTOMOTORES Y MOTOCICLETAS | G106: 4752 | H106: G | I106: Natural | J106: MICRO | K106: 2000000 | L106: 1000000 | M106: 400000 | N106: 600000
B107: 76001 | C107: CALI | D107: 76 | E107: VALLE DEL CAUCA | F107: ALOJAMIENTO Y SERVICIOS DE COMIDA | G107: 5611 | H107: I | I107: Natural | J107: MICRO | K107: 4900000 | L107: 3250000 | M107: 900000 | N107: 750000
B108: 76122 | C108: CAICEDONIA | D108: 76 | E108: VALLE DEL CAUCA | F108: ACTIVIDADES PROFESIONALES, CIENTÍFICAS Y TÉCNICAS | G108: 6920 | H108: M | I108: Natural | J108: MICRO | K108: 250000 | L108: 250000 | M108: 0 | N108: 0
B109: 76400 | C109: LA UNIÓN | D109: 76 | E109: VALLE DEL CAUCA | F109: AGRICULTURA, GANADERÍA, CAZA, SILVICULTURA Y PESCA | G109: 130 | H109: A | I109: Natural | J109: PEQUEÑA | K109: 6879834 | L109: 6679834 | M109: 200000 | N109: 0
B110: 76001 | C110: CALI | D110: 76 | E110: VALLE DEL CAUCA | F110: COMERCIO AL POR MAYOR Y AL POR MENOR; REPARACIÓN DE VEHÍCULOS AUTOMOTORES Y MOTOCICLETAS | G110: 4741 | H110: G | I110: Natural | J110: MICRO | K110: 290852 | L110: 0 | M110: 290852 | N110: 0
B111: 76001 | C111: CALI | D111: 76 | E111: VALLE DEL CAUCA | F111: INDUSTRIAS MANUFACTURERAS | G111: 1081 | H111: C | I111: Natural | J111: MICRO | K111: 500000 | L111: 0 | M111: 200000 | N111: 300000
B112: 76122 | C112: CAICEDONIA | D112: 76 | E112: VALLE DEL CAUCA | F112: COMERCIO AL POR MAYOR Y AL POR MENOR; REPARACIÓN DE VEHÍCULOS AUTOMOTORES Y MOTOCICLETAS | G112: 4669 | H112: G | I112: Natural | J112: MEDIANA | K112: 227131 | L112: 227131 | M112: 0 | N112: 0
B113: 76001 | C113: CALI | D113: 76 | E113: VALLE DEL CAUCA | F113: INDUSTRIAS MANUFACTURERAS | G113: 1410 | H113: C | I113: Natural | J113: PEQUEÑA | K113: 227131 | L113: 227131 | M113: 0 | N113: 0
B114: 76834 | C114: TULUÁ | D114: 76 | E114: VALLE DEL CAUCA | F114: COMERCIO AL POR MAYOR Y AL POR MENOR; REPARACIÓN DE VEHÍCULOS AUTOMOTORES Y MOTOCICLETAS | G114: 4774 | H114: G | I114: Natural | J114: MICRO | K114: 14341368 | L114: 11451144 | M114: 0 | N114: 2890224
B115: 76111 | C115: GUADALAJARA DE BUGA | D115: 76 | E115: VALLE DEL CAUCA | F115: TRANSPORTE Y ALMACENAMIENTO | G115: 4923 | H115: H | I115: Natural | J115: MICRO | K115: 90852 | L115: 0 | M115: 90852 | N115: 0
B116: 5088 | C116: BELLO | D116: 5 | E116: ANTIOQUIA | F116: COMERCIO AL POR MAYOR Y AL POR MENOR; REPARACIÓN DE VEHÍCULOS AUTOMOTORES Y MOTOCICLETAS | G116: 4752 | H116: G | I116: Natural | J116: MICRO | K116: 750000 | L116: 750000 | M116: 0 | N116: 0
B117: 41551 | C117: PITALITO | D117: 41 | E117: HUILA | F117: COMERCIO AL POR MAYOR Y AL POR MENOR; REPARACIÓN DE VEHÍCULOS AUTOMOTORES Y MOTOCICLETAS | G117: 4711 | H117: G | I117: Natural | J117: MEDIANA | K117: 227131 | L117: 227131 | M117: 0 | N117: 0
B118: 11001 | C118: BOGOTÁ, D.C. | D118: 11 | E118: BOGOTÁ, D.C. | F118: EDUCACIÓN | G118: 8521 | H118: P | I118: Natural | J118: PEQUEÑA | K118: 908524 | L118: 908524 | M118: 0 | N118: 0
B119: 11001 | C119: BOGOTÁ, D.C. | D119: 11 | E119: BOGOTÁ, D.C. | F119: ALOJAMIENTO Y SERVICIOS DE COMIDA | G119: 5611 | H119: I | I119: Natural | J119: MICRO | K119: 5704262 | L119: 5704262 | M119: 0 | N119: 0
B120: 11001 | C120: BOGOTÁ, D.C. | D120: 11 | E120: BOGOTÁ, D.C. | F120: CONSTRUCCIÓN | G120: 4210 | H120: F | I120: Natural | J120: PEQUEÑA | K120: 12067048 | L120: 10067048 | M120: 500000 | N120: 1500000
B121: 5631 | C121: SABANETA | D121: 5 | E121: ANTIOQUIA | F121: COMERCIO AL POR MAYOR Y AL POR MENOR; REPARACIÓN DE VEHÍCULOS AUTOMOTORES Y MOTOCICLETAS | G121: 4771 | H121: G | I121: Natural | J121: MICRO | K121: 2658524 | L121: 2658524 | M121: 0 | N121: 0
B122: 18001 | C122: FLORENCIA | D122: 18 | E122: CAQUETÁ | F122: COMERCIO AL POR MAYOR Y AL POR MENOR; REPARACIÓN DE VEHÍCULOS AUTOMOTORES Y MOTOCICLETAS | G122: 4643 | H122: G | I122: Natural | J122: MICRO | K122: 1953949 | L122: 1681393 | M122: 0 | N122: 272556
B123: 18001 | C123: FLORENCIA | D123: 18 | E123: CAQUETÁ | F123: ACTIVIDADES DE SERVICIOS ADMINISTRATIVOS Y DE APOYO | G123: 8020 | H123: N | I123: Natural | J123: MICRO | K123: 454262 | L123: 454262 | M123: 0 | N123: 0
B124: 18001 | C124: FLORENCIA | D124: 18 | E124: CAQUETÁ | F124: COMERCIO AL POR MAYOR Y AL POR MENOR; REPARACIÓN DE VEHÍCULOS AUTOMOTORES Y MOTOCICLETAS | G124: 4741 | H124: G | I124: Natural | J124: MICRO | K124: 2750000 | L124: 2750000 | M124: 0 | N124: 0
B125: 70001 | C125: SINCELEJO | D125: 70 | E125: SUCRE | F125: COMERCIO AL POR MAYOR Y AL POR MENOR; REPARACIÓN DE VEHÍCULOS AUTOMOTORES Y MOTOCICLETAS | G125: 4530 | H125: G | I125: Natural | J125: MICRO | K125: 250000 | L125: 250000 | M125: 0 | N125: 0
B126: 23001 | C126: MONTERÍA | D126: 23 | E126: CÓRDOBA | F126: COMERCIO AL POR MAYOR Y AL POR MENOR; REPARACIÓN DE VEHÍCULOS AUTOMOTORES Y MOTOCICLETAS | G126: 4541 | H126: G | I126: Natural | J126: MICRO | K126: 5962786 | L126: 5362786 | M126: 0 | N126: 600000
B127: 23001 | C127: MONTERÍA | D127: 23 | E127: CÓRDOBA | F127: COMERCIO AL POR MAYOR Y AL POR MENOR; REPARACIÓN DE VEHÍCULOS AUTOMOTORES Y MOTOCICLETAS | G127: 4752 | H127: G | I127: Natural | J127: PEQUEÑA | K127: 3050000 | L127: 2750000 | M127: 0 | N127: 300000
B128: 91001 | C128: LETICIA | D128: 91 | E128: AMAZONAS | F128: ALOJAMIENTO Y SERVICIOS DE COMIDA | G128: 5613 | H128: I | I128: Natural | J128: MICRO | K128: 590540 | L128: 454262 | M128: 0 | N128: 136278
B129: 15776 | C129: SUTAMARCHÁN | D129: 15 | E129: BOYACÁ | F129: ALOJAMIENTO Y SERVICIOS DE COMIDA | G129: 5611 | H129: I | I129: Natural | J129: PEQUEÑA | K129: 2708211 | L129: 2135655 | M129: 0 | N129: 572556
B130: 15001 | C130: TUNJA | D130: 15 | E130: BOYACÁ | F130: ACTIVIDADES PROFESIONALES, CIENTÍFICAS Y TÉCNICAS | G130: 7310 | H130: M | I130: Natural | J130: MICRO | K130: 704262 | L130: 704262 | M130: 0 | N130: 0
B131: 15001 | C131: TUNJA | D131: 15 | E131: BOYACÁ | F131: ACTIVIDADES ARTÍSTICAS, DE ENTRETENIMIENTO Y RECREACIÓN | G131: 9311 | H131: R | I131: Natural | J131: MICRO | K131: 6484406 | L131: 4225572 | M131: 800000 | N131: 1458834
B132: 15001 | C132: TUNJA | D132: 15 | E132: BOYACÁ | F132: ACTIVIDADES PROFESIONALES, CIENTÍFICAS Y TÉCNICAS | G132: 6920 | H132: M | I132: Natural | J132: MICRO | K132: 227131 | L132: 227131 | M132: 0 | N132: 0
B133: 15238 | C133: DUITAMA | D133: 15 | E133: BOYACÁ | F133: TRANSPORTE Y ALMACENAMIENTO | G133: 4923 | H133: H | I133: Natural | J133: MICRO | K133: 400000 | L133: 0 | M133: 400000 | N133: 0
B134: 15238 | C134: DUITAMA | D134: 15 | E134: BOYACÁ | F134: COMERCIO AL POR MAYOR Y AL POR MENOR; REPARACIÓN DE VEHÍCULOS AUTOMOTORES Y MOTOCICLETAS | G134: 4732 | H134: G | I134: Natural | J134: MICRO | K134: 250000 | L134: 250000 | M134: 0 | N134: 0
B135: 85139 | C135: MANÍ | D135: 85 | E135: CASANARE | F135: COMERCIO AL POR MAYOR Y AL POR MENOR; REPARACIÓN DE VEHÍCULOS AUTOMOTORES Y MOTOCICLETAS | G135: 4731 | H135: G | I135: Natural | J135: PEQUEÑA | K135: 1000000 | L135: 1000000 | M135: 0 | N135: 0
B136: 15238 | C136: DUITAMA | D136: 15 | E136: BOYACÁ | F136: COMERCIO AL POR MAYOR Y AL POR MENOR; REPARACIÓN DE VEHÍCULOS AUTOMOTORES Y MOTOCICLETAS | G136: 4761 | H136: G | I136: Natural | J136: MICRO | K136: 2900000 | L136: 2500000 | M136: 100000 | N136: 300000
B137: 15238 | C137: DUITAMA | D137: 15 | E137: BOYACÁ | F137: INDUSTRIAS MANUFACTURERAS | G137: 1392 | H137: C | I137: Natural | J137: MICRO | K137: 1950000 | L137: 1250000 | M137: 700000 | N137: 0
B138: 15238 | C138: DUITAMA | D138: 15 | E138: BOYACÁ | F138: COMERCIO AL POR MAYOR Y AL POR MENOR; REPARACIÓN DE VEHÍCULOS AUTOMOTORES Y MOTOCICLETAS | G138: 4771 | H138: G | I138: Natural | J138: PEQUEÑA | K138: 1000000 | L138: 1000000 | M138: 0 | N138: 0
B139: 15759 | C139: SOGAMOSO | D139: 15 | E139: BOYACÁ | F139: ALOJAMIENTO Y SERVICIOS DE COMIDA | G139: 5619 | H139: I | I139: Natural | J139: MICRO | K139: 1362786 | L139: 1362786 | M139: 0 | N139: 0
B140: 11001 | C140: BOGOTÁ, D.C. | D140: 11 | E140: BOGOTÁ, D.C. | F140: INDUSTRIAS MANUFACTURERAS | G140: 1081 | H140: C | I140: Natural | J140: MICRO | K140: 272556 | L140: 0 | M140: 0 | N140: 272556
B141: 15238 | C141: DUITAMA | D141: 15 | E141: BOYACÁ | F141: COMERCIO AL POR MAYOR Y AL POR MENOR; REPARACIÓN DE VEHÍCULOS AUTOMOTORES Y MOTOCICLETAS | G141: 4722 | H141: G | I141: Natural | J141: PEQUEÑA | K141: 136278 | L141: 0 | M141: 0 | N141: 136278
B142: 15238 | C142: DUITAMA | D142: 15 | E142: BOYACÁ | F142: COMERCIO AL POR MAYOR Y AL POR MENOR; REPARACIÓN DE VEHÍCULOS AUTOMOTORES Y MOTOCICLETAS | G142: 4530 | H142: G | I142: Natural | J142: MICRO | K142: 150000 | L142: 0 | M142: 0 | N142: 150000
B143: 11001 | C143: BOGOTÁ, D.C. | D143: 11 | E143: BOGOTÁ, D.C. | F143: COMERCIO AL POR MAYOR Y AL POR MENOR; REPARACIÓN DE VEHÍCULOS AUTOMOTORES Y MOTOCICLETAS | G143: 4752 | H143: G | I143: Natural | J143: MICRO | K143: 454262 | L143: 454262 | M143: 0 | N143: 0
B144: 15176 | C144: CHIQUINQUIRÁ | D144: 15 | E144: BOYACÁ | F144: CONSTRUCCIÓN | G144: 4112 | H144: F | I144: Natural | J144: MICRO | K144: 3839602 | L144: 2612786 | M144: 1226816 | N144: 0
B145: 8001 | C145: BARRANQUILLA | D145: 8 | E145: ATLÁNTICO | F145: INDUSTRIAS MANUFACTURERAS | G145: 1081 | H145: C | I145: Natural | J145: PEQUEÑA | K145: 227131 | L145: 227131 | M145: 0 | N145: 0
B146: 47001 | C146: SANTA MARTA | D146: 47 | E146: MAGDALENA | F146: COMERCIO AL POR MAYOR Y AL POR MENOR; REPARACIÓN DE VEHÍCULOS AUTOMOTORES Y MOTOCICLETAS | G146: 4773 | H146: G | I146: Natural | J146: MICRO | K146: 1750000 | L146: 1750000 | M146: 0 | N146: 0
B147: 63001 | C147: ARMENIA | D147: 63 | E147: QUINDÍO | F147: CONSTRUCCIÓN | G147: 4330 | H147: F | I147: Natural | J147: PEQUEÑA | K147: 1408209 | L147: 681393 | M147: 726816 | N147: 0
B148: 63001 | C148: ARMENIA | D148: 63 | E148: QUINDÍO | F148: CONSTRUCCIÓN | G148: 4111 | H148: F | I148: Natural | J148: MICRO | K148: 1044801 | L148: 681393 | M148: 363408 | N148: 0
B149: 76834 | C149: TULUÁ | D149: 76 | E149: VALLE DEL CAUCA | F149: COMERCIO AL POR MAYOR Y AL POR MENOR; REPARACIÓN DE VEHÍCULOS AUTOMOTORES Y MOTOCICLETAS | G149: 4530 | H149: G | I149: Natural | J149: MICRO | K149: 227131 | L149: 227131 | M149: 0 | N149: 0
B150: 19290 | C150: FLORENCIA | D150: 19 | E150: CAUCA | F150: COMERCIO AL POR MAYOR Y AL POR MENOR; REPARACIÓN DE VEHÍCULOS AUTOMOTORES Y MOTOCICLETAS | G150: 4759 | H150: G | I150: Natural | J150: MICRO | K150: 1150000 | L150: 1000000 | M150: 0 | N150: 150000
B151: 5266 | C151: ENVIGADO | D151: 5 | E151: ANTIOQUIA | F151: ACTIVIDADES PROFESIONALES, CIENTÍFICAS Y TÉCNICAS | G151: 7111 | H151: M | I151: Natural | J151: MICRO | K151: 2776195 | L151: 2339917 | M151: 0 | N151: 436278
B152: 73001 | C152: IBAGUÉ | D152: 73 | E152: TOLIMA | F152: COMERCIO AL POR MAYOR Y AL POR MENOR; REPARACIÓN DE VEHÍCULOS AUTOMOTORES Y MOTOCICLETAS | G152: 4752 | H152: G | I152: Natural | J152: PEQUEÑA | K152: 8550000 | L152: 8250000 | M152: 0 | N152: 300000
B153: 63001 | C153: ARMENIA | D153: 63 | E153: QUINDÍO | F153: CONSTRUCCIÓN | G153: 4210 | H153: F | I153: Natural | J153: MICRO | K153: 900000 | L153: 750000 | M153: 0 | N153: 150000
B154: 25899 | C154: ZIPAQUIRÁ | D154: 25 | E154: CUNDINAMARCA | F154: ALOJAMIENTO Y SERVICIOS DE COMIDA | G154: 5511 | H154: I | I154: Natural | J154: MICRO | K154: 7254262 | L154: 6954262 | M154: 300000 | N154: 0
B155: 63001 | C155: ARMENIA | D155: 63 | E155: QUINDÍO | F155: COMERCIO AL POR MAYOR Y AL POR MENOR; REPARACIÓN DE VEHÍCULOS AUTOMOTORES Y MOTOCICLETAS | G155: 4661 | H155: G | I155: Natural | J155: PEQUEÑA | K155: 454262 | L155: 454262 | M155: 0 | N155: 0
B156: 20001 | C156: VALLEDUPAR | D156: 20 | E156: CESAR | F156: INDUSTRIAS MANUFACTURERAS | G156: 1410 | H156: C | I156: Natural | J156: PEQUEÑA | K156: 3500000 | L156: 1500000 | M156: 800000 | N156: 1200000
B157: 44001 | C157: RIOHACHA | D157: 44 | E157: LA GUAJIRA | F157: COMERCIO AL POR MAYOR Y AL POR MENOR; REPARACIÓN DE VEHÍCULOS AUTOMOTORES Y MOTOCICLETAS | G157: 4530 | H157: G | I157: Natural | J157: MICRO | K157: 500000 | L157: 500000 | M157: 0 | N157: 0
B158: 5318 | C158: GUARNE | D158: 5 | E158: ANTIOQUIA | F158: INDUSTRIAS MANUFACTURERAS | G158: 2221 | H158: C | I158: Natural | J158: PEQUEÑA | K158: 1650000 | L158: 750000 | M158: 0 | N158: 900000
B159: 41001 | C159: NEIVA | D159: 41 | E159: HUILA | F159: ACTIVIDADES PROFESIONALES, CIENTÍFICAS Y TÉCNICAS | G159: 7310 | H159: M | I159: Natural | J159: MICRO | K159: 700000 | L159: 500000 | M159: 200000 | N159: 0
B160: 76001 | C160: CALI | D160: 76 | E160: VALLE DEL CAUCA | F160: INDUSTRIAS MANUFACTURERAS | G160: 1313 | H160: C | I160: Natural | J160: PEQUEÑA | K160: 227131 | L160: 227131 | M160: 0 | N160: 0
B161: 73001 | C161: IBAGUÉ | D161: 73 | E161: TOLIMA | F161: COMERCIO AL POR MAYOR Y AL POR MENOR; REPARACIÓN DE VEHÍCULOS AUTOMOTORES Y MOTOCICLETAS | G161: 4729 | H161: G | I161: Natural | J161: MICRO | K161: 9345943 | L161: 7928275 | M161: 0 | N161: 1417668
B162: 41001 | C162: NEIVA | D162: 41 | E162: HUILA | F162: INDUSTRIAS MANUFACTURERAS | G162: 1081 | H162: C | I162: Natural | J162: MICRO | K162: 1554262 | L162: 954262 | M162: 0 | N162: 600000
B163: 41001 | C163: NEIVA | D163: 41 | E163: HUILA | F163: TRANSPORTE Y ALMACENAMIENTO | G163: 4923 | H163: H | I163: Natural | J163: MICRO | K163: 500000 | L163: 500000 | M163: 0 | N163: 0
B164: 41001 | C164: NEIVA | D164: 41 | E164: HUILA | F164: COMERCIO AL POR MAYOR Y AL POR MENOR; REPARACIÓN DE VEHÍCULOS AUTOMOTORES Y MOTOCICLETAS | G164: 4752 | H164: G | I164: Natural | J164: MICRO | K164: 1850000 | L164: 1750000 | M164: 100000 | N164: 0
B165: 5001 | C165: MEDELLÍN | D165: 5 | E165: ANTIOQUIA | F165: ACTIVIDADES DE SERVICIOS ADMINISTRATIVOS Y DE APOYO | G165: 8299 | H165: N | I165: Natural | J165: MICRO | K165: 4200000 | L165: 2250000 | M165: 1200000 | N165: 750000
B166: 41001 | C166: NEIVA | D166: 41 | E166: HUILA | F166: COMERCIO AL POR MAYOR Y AL POR MENOR; REPARACIÓN DE VEHÍCULOS AUTOMOTORES Y MOTOCICLETAS | G166: 4653 | H166: G | I166: Natural | J166: MICRO | K166: 250000 | L166: 250000 | M166: 0 | N166: 0
B167: 86001 | C167: MOCOA | D167: 86 | E167: PUTUMAYO | F167: ACTIVIDADES PROFESIONALES, CIENTÍFICAS Y TÉCNICAS | G167: 7500 | H167: M | I167: Natural | J167: MICRO | K167: 2750000 | L167: 2000000 | M167: 0 | N167: 750000
B168: 41298 | C168: GARZÓN | D168: 41 | E168: HUILA | F168: EDUCACIÓN | G168: 8530 | H168: P | I168: Natural | J168: MICRO | K168: 900000 | L168: 750000 | M168: 0 | N168: 150000
B169: 41551 | C169: PITALITO | D169: 41 | E169: HUILA | F169: TRANSPORTE Y ALMACENAMIENTO | G169: 4923 | H169: H | I169: Natural | J169: MICRO | K169: 750000 | L169: 750000 | M169: 0 | N169: 0
B170: 41001 | C170: NEIVA | D170: 41 | E170: HUILA | F170: ACTIVIDADES DE SERVICIOS ADMINISTRATIVOS Y DE APOYO | G170: 8230 | H170: N | I170: Natural | J170: MICRO | K170: 2581079 | L170: 1431393 | M170: 290852 | N170: 858834
B171: 18753 | C171: SAN VICENTE DEL CAGUÁN | D171: 18 | E171: CAQUETÁ | F171: INDUSTRIAS MANUFACTURERAS | G171: 1040 | H171: C | I171: Natural | J171: MICRO | K171: 1000000 | L171: 1000000 | M171: 0 | N171: 0
B172: 13001 | C172: CARTAGENA | D172: 13 | E172: BOLÍVAR | F172: TRANSPORTE Y ALMACENAMIENTO | G172: 5310 | H172: H | I172: Natural | J172: MICRO | K172: 300000 | L172: 0 | M172: 0 | N172: 300000
B173: 13688 | C173: SANTA ROSA DEL SUR | D173: 13 | E173: BOLÍVAR | F173: COMERCIO AL POR MAYOR Y AL POR MENOR; REPARACIÓN DE VEHÍCULOS AUTOMOTORES Y MOTOCICLETAS | G173: 4663 | H173: G | I173: Natural | J173: PEQUEÑA | K173: 750000 | L173: 750000 | M173: 0 | N173: 0
B174: 25001 | C174: AGUA DE DIOS | D174: 25 | E174: CUNDINAMARCA | F174: COMERCIO AL POR MAYOR Y AL POR MENOR; REPARACIÓN DE VEHÍCULOS AUTOMOTORES Y MOTOCICLETAS | G174: 4723 | H174: G | I174: Natural | J174: MICRO | K174: 454262 | L174: 454262 | M174: 0 | N174: 0
B175: 5001 | C175: MEDELLÍN | D175: 5 | E175: ANTIOQUIA | F175: INDUSTRIAS MANUFACTURERAS | G175: 2511 | H175: C | I175: Natural | J175: MICRO | K175: 1227131 | L175: 1227131 | M175: 0 | N175: 0
B176: 5631 | C176: SABANETA | D176: 5 | E176: ANTIOQUIA | F176: ALOJAMIENTO Y SERVICIOS DE COMIDA | G176: 5630 | H176: I | I176: Natural | J176: MICRO | K176: 3463096 | L176: 954262 | M176: 0 | N176: 2508834
B177: 5001 | C177: MEDELLÍN | D177: 5 | E177: ANTIOQUIA | F177: INDUSTRIAS MANUFACTURERAS | G177: 1089 | H177: C | I177: Natural | J177: PEQUEÑA | K177: 800000 | L177: 500000 | M177: 0 | N177: 300000
B178: 5001 | C178: MEDELLÍN | D178: 5 | E178: ANTIOQUIA | F178: ACTIVIDADES PROFESIONALES, CIENTÍFICAS Y TÉCNICAS | G178: 7420 | H178: M | I178: Natural | J178: MICRO | K178: 750000 | L178: 750000 | M178: 0 | N178: 0
B179: 5001 | C179: MEDELLÍN | D179: 5 | E179: ANTIOQUIA | F179: COMERCIO AL POR MAYOR Y AL POR MENOR; REPARACIÓN DE VEHÍCULOS AUTOMOTORES Y MOTOCICLETAS | G179: 4711 | H179: G | I179: Natural | J179: PEQUEÑA | K179: 681393 | L179: 681393 | M179: 0 | N179: 0
B180: 5154 | C180: CAUCASIA | D180: 5 | E180: ANTIOQUIA | F180: COMERCIO AL POR MAYOR Y AL POR MENOR; REPARACIÓN DE VEHÍCULOS AUTOMOTORES Y MOTOCICLETAS | G180: 4541 | H180: G | I180: Natural | J180: MICRO | K180: 681393 | L180: 681393 | M180: 0 | N180: 0
B181: 23466 | C181: MONTELÍBANO | D181: 23 | E181: CÓRDOBA | F181: AGRICULTURA, GANADERÍA, CAZA, SILVICULTURA Y PESCA | G181: 141 | H181: A | I181: Natural | J181: MICRO | K181: 700000 | L181: 250000 | M181: 300000 | N181: 150000
B182: 5001 | C182: MEDELLÍN | D182: 5 | E182: ANTIOQUIA | F182: ALOJAMIENTO Y SERVICIOS DE COMIDA | G182: 5612 | H182: I | I182: Natural | J182: MICRO | K182: 4900000 | L182: 2000000 | M182: 500000 | N182: 2400000
B183: 5001 | C183: MEDELLÍN | D183: 5 | E183: ANTIOQUIA | F183: INDUSTRIAS MANUFACTURERAS | G183: 1081 | H183: C | I183: Natural | J183: MICRO | K183: 227131 | L183: 227131 | M183: 0 | N183: 0
B184: 5001 | C184: MEDELLÍN | D184: 5 | E184: ANTIOQUIA | F184: COMERCIO AL POR MAYOR Y AL POR MENOR; REPARACIÓN DE VEHÍCULOS AUTOMOTORES Y MOTOCICLETAS | G184: 4711 | H184: G | I184: Natural | J184: MICRO | K184: 454262 | L184: 454262 | M184: 0 | N184: 0
B185: 5001 | C185: MEDELLÍN | D185: 5 | E185: ANTIOQUIA | F185: TRANSPORTE Y ALMACENAMIENTO | G185: 4923 | H185: H | I185: Natural | J185: MICRO | K185: 227131 | L185: 227131 | M185: 0 | N185: 0
B186: 5686 | C186: SANTA ROSA DE OSOS | D186: 5 | E186: ANTIOQUIA | F186: AGRICULTURA, GANADERÍA, CAZA, SILVICULTURA Y PESCA | G186: 141 | H186: A | I186: Natural | J186: MICRO | K186: 100000 | L186: 0 | M186: 100000 | N186: 0
B187: 5686 | C187: SANTA ROSA DE OSOS | D187: 5 | E187: ANTIOQUIA | F187: INDUSTRIAS MANUFACTURERAS | G187: 1610 | H187: C | I187: Natural | J187: MICRO | K187: 2250000 | L187: 750000 | M187: 1500000 | N187: 0
B188: 5001 | C188: MEDELLÍN | D188: 5 | E188: ANTIOQUIA | F188: COMERCIO AL POR MAYOR Y AL POR MENOR; REPARACIÓN DE VEHÍCULOS AUTOMOTORES Y MOTOCICLETAS | G188: 4741 | H188: G | I188: Natural | J188: MICRO | K188: 1907900 | L188: 1817048 | M188: 90852 | N188: 0
B189: 5001 | C189: MEDELLÍN | D189: 5 | E189: ANTIOQUIA | F189: INDUSTRIAS MANUFACTURERAS | G189: 1410 | H189: C | I189: Natural | J189: MICRO | K189: 227131 | L189: 227131 | M189: 0 | N189: 0
B190: 5001 | C190: MEDELLÍN | D190: 5 | E190: ANTIOQUIA | F190: INDUSTRIAS MANUFACTURERAS | G190: 1081 | H190: C | I190: Natural | J190: PEQUEÑA | K190: 227131 | L190: 227131 | M190: 0 | N190: 0
B191: 50001 | C191: VILLAVICENCIO | D191: 50 | E191: META | F191: ALOJAMIENTO Y SERVICIOS DE COMIDA | G191: 5511 | H191: I | I191: Natural | J191: PEQUEÑA | K191: 950000 | L191: 500000 | M191: 0 | N191: 450000
B192: 23001 | C192: MONTERÍA | D192: 23 | E192: CÓRDOBA | F192: ALOJAMIENTO Y SERVICIOS DE COMIDA | G192: 5611 | H192: I | I192: Natural | J192: PEQUEÑA | K192: 150000 | L192: 0 | M192: 0 | N192: 150000
B193: 5001 | C193: MEDELLÍN | D193: 5 | E193: ANTIOQUIA | F193: INDUSTRIAS MANUFACTURERAS | G193: 1410 | H193: C | I193: Natural | J193: PEQUEÑA | K193: 250000 | L193: 250000 | M193: 0 | N193: 0
B194: 5001 | C194: MEDELLÍN | D194: 5 | E194: ANTIOQUIA | F194: ACTIVIDADES FINANCIERAS Y DE SEGUROS | G194: 6495 | H194: K | I194: Natural | J194: MICRO | K194: 250000 | L194: 250000 | M194: 0 | N194: 0
B195: 5266 | C195: ENVIGADO | D195: 5 | E195: ANTIOQUIA | F195: COMERCIO AL POR MAYOR Y AL POR MENOR; REPARACIÓN DE VEHÍCULOS AUTOMOTORES Y MOTOCICLETAS | G195: 4620 | H195: G | I195: Natural | J195: MICRO | K195: 350000 | L195: 0 | M195: 200000 | N195: 150000
B196: 47001 | C196: SANTA MARTA | D196: 47 | E196: MAGDALENA | F196: ALOJAMIENTO Y SERVICIOS DE COMIDA | G196: 5611 | H196: I | I196: Natural | J196: MICRO | K196: 4849374 | L196: 2204262 | M196: 0 | N196: 2645112
B197: 5001 | C197: MEDELLÍN | D197: 5 | E197: ANTIOQUIA | F197: ALOJAMIENTO Y SERVICIOS DE COMIDA | G197: 5611 | H197: I | I197: Natural | J197: MICRO | K197: 250000 | L197: 250000 | M197: 0 | N197: 0
B198: 5631 | C198: SABANETA | D198: 5 | E198: ANTIOQUIA | F198: INDUSTRIAS MANUFACTURERAS | G198: 3110 | H198: C | I198: Natural | J198: PEQUEÑA | K198: 1200000 | L198: 500000 | M198: 100000 | N198: 600000
B199: 5001 | C199: MEDELLÍN | D199: 5 | E199: ANTIOQUIA | F199: COMERCIO AL POR MAYOR Y AL POR MENOR; REPARACIÓN DE VEHÍCULOS AUTOMOTORES Y MOTOCICLETAS | G199: 4530 | H199: G | I199: Natural | J199: MICRO | K199: 227131 | L199: 227131 | M199: 0 | N199: 0
B200: 5001 | C200: MEDELLÍN | D200: 5 | E200: ANTIOQUIA | F200: COMERCIO AL POR MAYOR Y AL POR MENOR; REPARACIÓN DE VEHÍCULOS AUTOMOTORES Y MOTOCICLETAS | G200: 4711 | H200: G | I200: Natural | J200: PEQUEÑA | K200: 977131 | L200: 977131 | M200: 0 | N200: 0
... 4300 more rows

Sheet insumos2 (hidden)
A1: TIPO DE IDENTIFICACION POSTULANTE | B1: NUMERO IDENTIFICACION EMPRESA | C1: CIUDAD - DIVIPOLA - R | D1: Municipio | E1: TOTAL COTIZANTES CON CONCEPTO DE CONFORMIDAD TOTAL A GIRAR | F1: TOTAL COTIZANTES CON CONCEPTO DE NO CONFORMIDAD | G1: TIPO DE PERSONA | H1: Departamento DIVIPOLA (P) | I1: Nombre dpto | J1: ESTADO_TOTAL A GIRAR | K1: Tamaño del Empleador | L1: STRCODPAR_CIIU_EMPRESA | M1: ACTIVIDAD ECONOMICA | N1: ACTIVIDAD ECONOMICA | O1: Division 3DC_TD 3D | P1: grupo especial 2DC_TD 3D | Q1: SEXO_F_ | R1: SEXO_M_ | S1: SEXO_ND_ | T1: Jovenes | U1: Mujeres 28 años | V1: Hombres 28 años | W1: Cot_nacional | X1: Cot_extranjero | Z1: Departamentos | AA1: empleadores | AB1: Departamentos | AC1: empleadores | AJ1: TIPO DE IDENTIFICACION POSTULANTE | AK1: NUMERO IDENTIFICACION EMPRESA | AL1: CIUDAD - DIVIPOLA - R | AM1: Municipio | AN1: TOTAL COTIZANTES CON CONCEPTO DE CONFORMIDAD TOTAL A GIRAR | AO1: TOTAL COTIZANTES CON CONCEPTO DE NO CONFORMIDAD | AP1: TIPO DE PERSONA | AQ1: Departamento DIVIPOLA (P) | AR1: Nombre dpto | AS1: ESTADO_TOTAL A GIRAR | AT1: Tamaño del Empleador | AU1: STRCODPAR_CIIU_EMPRESA | AV1: ACTIVIDAD ECONOMICA | AW1: ACTIVIDAD ECONOMICA | AX1: Division 3DC_TD 3D | AY1: grupo especial 2DC_TD 3D | AZ1: SEXO_F_ | BA1: SEXO_M_ | BB1: SEXO_ND_ | BC1: Jovenes | BD1: Mujeres 28 años | BE1: Hombres 28 años | BF1: Cot_nacional | BG1: Cot_extranjero | BJ1: Departamentos | BK1: empleadores | BL1: Departamentos | BM1: empleadores | BN1: nomdpto | BP1: =BN1 -> nomdpto | BQ1: empleadores | BR1: empleados | BT1: codmunicipio | BU1: aportantes | BV1: codmunicipio | BW1: aportantes | BX1: cod_dpto | BY1: nom_dpto | BZ1: nom_mpio | CA1: empleadores | CB1: empleados | CD1: Grupo | CE1: empleadores | CF1: empleados | CG1: Grupo | CH1: empleadores | CI1: empleados | CN1: Jovenes | CO1: Mujeres > 28 años | CP1: Hombres> 28 años | CT1: Jovenes | CU1: Mujeres > 28 años | CV1: Hombres> 28 años | CY1: Jovenes | CZ1: Mujeres > 28 años | DA1: Hombres> 28 años
C2: 63001 | D2: ARMENIA | E2: 1 | F2: 0 | G2: Natural | H2: 63 | I2: QUINDÍO | J2: Aprobado con subsidio | K2: MICRO | L2: 5611 | M2: ALOJAMIENTO Y SERVICIOS DE COMIDA | N2: I | O2: Actividades de restaurantes, cafeterías y servicio móvil de comidas | P2: Actividades de restaurantes, cafeterías y servicio móvil de comidas | Q2: 0 | R2: 1 | S2: 0 | T2: 1 | U2: 0 | V2: 0 | W2: 1 | X2: 0 | Z2: 68 | AA2: =COUNTIFS($J$2:$J$399999,"Aprobado con subsidio",$H$2:$H$399999,Z2) -> 1247 | AB2: =_xlfn._xlws.SORT($Z$2:$AA$34,2,-1) -> 11 | AC2: 8426 | AD2: =VLOOKUP(AB2,Hoja4!$A$29:$B$61,2,FALSE) -> Bogotá | AJ2: =_xlfn._xlws.FILTER($A$2:$X$399999,$N$2:$N$399999=Visor!$N$4,"") -> 0 | AK2: 0 | AL2: 68001 | AM2: BUCARAMANGA | AN2: 0 | AO2: 0 | AP2: Natural | AQ2: 68 | AR2: SANTANDER | AS2: 0 | AT2: 0 | AU2: 4771 | AV2: COMERCIO AL POR MAYOR Y AL POR MENOR; REPARACIÓN DE VEHÍCULOS AUTOMOTORES Y MOTOCICLETAS | AW2: G | AX2: Comercio al por menor de otros productos en establecimientos especializados | AY2: Comercio al por menor de otros productos en establecimientos especializados | AZ2: 0 | BA2: 0 | BB2: 0 | BC2: 0 | BD2: 0 | BE2: 0 | BF2: 0 | BG2: 0 | BJ2: 68 | BK2: =COUNTIFS($AS$2:$AS$399999,"Aprobado con subsidio",$AQ$2:$AQ$399999,BJ2) -> 263 | BL2: =_xlfn._xlws.SORT($BJ$2:$BK$34,2,-1) -> 11 | BM2: 1658 | BN2: =VLOOKUP(BL2,Hoja4!$A$29:$B$61,2,FALSE) -> Bogotá | BP2: =BN2 -> Bogotá | BQ2: =BM2 -> 1658 | BR2: =SUMIFS($AN$2:$AN$399999,$AS$2:$AS$399999,"Aprobado con subsidio",$AQ$2:$AQ$399999,BL2) -> 28643 | BT2: =_xlfn.UNIQUE($AL$2:$AL$399999) -> 68001 | BU2: =COUNTIFS($AS$2:$AS$399999,"Aprobado con subsidio",$AL$2:$AL$399999,BT2) -> 174 | BV2: =_xlfn._xlws.SORT($BT$2:$BU$1122,2,-1) -> 11001 | BW2: 1658 | BX2: =IF(LEN(BV2)=5,MID(BV2,1,2),MID(BV2,1,1))*1 -> 11 | BY2: =VLOOKUP(BX2,Hoja4!$A$29:$B$61,2,FALSE) -> Bogotá | BZ2: =VLOOKUP(BV2,Hoja4!$D$29:$E$1150,2,FALSE) -> Bogotá, d.c. | CA2: =BW2 -> 1658 | CB2: =SUMIFS($AN$2:$AN$399999,$AL$2:$AL$399999,BV2) -> 28643 | CD2: =_xlfn.UNIQUE($AY$2:$AY$399999) -> Comercio al por menor de otros productos en establecimientos especializados | CE2: =COUNTIFS($AY$2:$AY$399999,CD2,$AS$2:$AS$399999,"Aprobado con subsidio") -> 867 | CF2: =SUMIFS($AN$2:$AN$399999,$AY$2:$AY$399999,CD2,$AS$2:$AS$399999,"Aprobado con subsidio") -> 14538 | CG2: =_xlfn._xlws.SORT(CD2:CF26,2,-1) -> Comercio al por menor de otros productos en establecimientos especializados | CH2: 867 | CI2: 14538 | CM2: =_xlfn.UNIQUE($M$2:$M$400000) -> ALOJAMIENTO Y SERVICIOS DE COMIDA | CN2: =SUMIFS(T$2:T$400000,$M$2:$M$400000,$CM2,$J$2:$J$400000,"Aprobado con subsidio") -> 29291 | CO2: =SUMIFS(U$2:U$400000,$M$2:$M$400000,$CM2,$J$2:$J$400000,"Aprobado con subsidio") -> 6780 | CP2: =SUMIFS(V$2:V$400000,$M$2:$M$400000,$CM2,$J$2:$J$400000,"Aprobado con subsidio") -> 3018 | CS2: =_xlfn._xlws.SORT(CM2:CP23,2,-1) -> ACTIVIDADES DE SERVICIOS ADMINISTRATIVOS Y DE APOYO | CT2: 216290 | CU2: 34760 | CV2: 13329 | CX2: =IF(CS23=0,"Total",PROPER(CS23)) -> Total | CY2: =IF(CX2="Total",SUM($CT$2:$CT$23)/SUM($CT$2:$CV$23),CT23/SUM($CT23:$CV23)) -> 0.7446525031 | CZ2: =IF(CX2="Total",SUM($CU$2:$CU$23)/SUM($CT$2:$CV$23),CU23/SUM($CT23:$CV23)) -> 0.1369418159 | DA2: =IF(CX2="Total",SUM($CV$2:$CV$23)/SUM($CT$2:$CV$23),CV23/SUM($CT23:$CV23)) -> 0.118405681
C3: 17380 | D3: LA DORADA | E3: 0 | F3: 0 | G3: Natural | H3: 17 | I3: CALDAS | J3: 0 | K3: MICRO | L3: 141 | M3: AGRICULTURA, GANADERÍA, CAZA, SILVICULTURA Y PESCA | N3: A | O3: Ganadería | P3: Ganadería | Q3: 0 | R3: 0 | S3: 0 | T3: 0 | U3: 0 | V3: 0 | W3: 0 | X3: 0 | Z3: 13 | AA3: =COUNTIFS($J$2:$J$399999,"Aprobado con subsidio",$H$2:$H$399999,Z3) -> 502 | AB3: 5 | AC3: 5303 | AD3: =VLOOKUP(AB3,Hoja4!$A$29:$B$61,2,FALSE) -> Antioquia | AJ3: 0 | AK3: 0 | AL3: 44430 | AM3: MAICAO | AN3: 0 | AO3: 0 | AP3: Natural | AQ3: 44 | AR3: LA GUAJIRA | AS3: 0 | AT3: 0 | AU3: 4530 | AV3: COMERCIO AL POR MAYOR Y AL POR MENOR; REPARACIÓN DE VEHÍCULOS AUTOMOTORES Y MOTOCICLETAS | AW3: G | AX3: Comercio de partes, piezas (autopartes) y accesorios (lujos) para vehículos automotores | AY3: Comercio de partes, piezas (autopartes) y accesorios (lujos) para vehículos automotores | AZ3: 0 | BA3: 0 | BB3: 0 | BC3: 0 | BD3: 0 | BE3: 0 | BF3: 0 | BG3: 0 | BJ3: 13 | BK3: 97 | BL3: 5 | BM3: 1198 | BN3: =VLOOKUP(BL3,Hoja4!$A$29:$B$61,2,FALSE) -> Antioquia | BP3: =BN3 -> Antioquia | BQ3: =BM3 -> 1198 | BR3: 14378 | BT3: 44430 | BU3: 4 | BV3: 5001 | BW3: 727 | BX3: =IF(LEN(BV3)=5,MID(BV3,1,2),MID(BV3,1,1))*1 -> 5 | BY3: =VLOOKUP(BX3,Hoja4!$A$29:$B$61,2,FALSE) -> Antioquia | BZ3: =VLOOKUP(BV3,Hoja4!$D$29:$E$1150,2,FALSE) -> Medellín | CA3: 727 | CB3: 10349 | CD3: Comercio de partes, piezas (autopartes) y accesorios (lujos) para vehículos automotores | CE3: 356 | CF3: 2096 | CG3: Comercio al por mayor especializado de otros productos | CH3: 666 | CI3: 6223 | CM3: AGRICULTURA, GANADERÍA, CAZA, SILVICULTURA Y PESCA | CN3: 14978 | CO3: 1663 | CP3: 1926 | CS3: COMERCIO AL POR MAYOR Y AL POR MENOR; REPARACIÓN DE VEHÍCULOS AUTOMOTORES Y MOTOCICLETAS | CT3: 55939 | CU3: 9522 | CV3: 6289 | CX3: =IF(CS2=0,"Total",PROPER(CS2)) -> Actividades De Servicios Administrativos Y De Apoyo | CY3: =IF(CX3="Total",SUM($CT$2:$CT$23)/SUM($CT$2:$CV$23),CT2/SUM($CT2:$CV2)) -> 0.8181058253 | CZ3: =IF(CX3="Total",SUM($CU$2:$CU$23)/SUM($CT$2:$CV$23),CU2/SUM($CT2:$CV2)) -> 0.1314779162 | DA3: =IF(CX3="Total",SUM($CV$2:$CV$23)/SUM($CT$2:$CV$23),CV2/SUM($CT2:$CV2)) -> 0.05041625848
C4: 25035 | D4: ANAPOIMA | E4: 0 | F4: 0 | G4: Natural | H4: 25 | I4: CUNDINAMARCA | J4: 0 | K4: MICRO | L4: 7730 | M4: ACTIVIDADES DE SERVICIOS ADMINISTRATIVOS Y DE APOYO | N4: N | O4: Alquiler y arrendamiento de otros tipos de maquinaria, equipo y bienes tangibles n.c.p. | P4: Alquiler y arrendamiento de otros tipos de maquinaria, equipo y bienes tangibles n.c.p. | Q4: 0 | R4: 0 | S4: 0 | T4: 0 | U4: 0 | V4: 0 | W4: 0 | X4: 0 | Z4: 15 | AA4: 386 | AB4: 76 | AC4: 2307 | AD4: =VLOOKUP(AB4,Hoja4!$A$29:$B$61,2,FALSE) -> Valle del cauca | AJ4: 0 | AK4: 0 | AL4: 41001 | AM4: NEIVA | AN4: 0 | AO4: 0 | AP4: Natural | AQ4: 41 | AR4: HUILA | AS4: 0 | AT4: 0 | AU4: 4773 | AV4: COMERCIO AL POR MAYOR Y AL POR MENOR; REPARACIÓN DE VEHÍCULOS AUTOMOTORES Y MOTOCICLETAS | AW4: G | AX4: Comercio al por menor de otros productos en establecimientos especializados | AY4: Comercio al por menor de otros productos en establecimientos especializados | AZ4: 0 | BA4: 0 | BB4: 0 | BC4: 0 | BD4: 0 | BE4: 0 | BF4: 0 | BG4: 0 | BJ4: 15 | BK4: 90 | BL4: 76 | BM4: 526 | BN4: =VLOOKUP(BL4,Hoja4!$A$29:$B$61,2,FALSE) -> Valle del cauca | BP4: Valle del cauca | BQ4: 526 | BR4: 4970 | BT4: 41001 | BU4: 77 | BV4: 76001 | BW4: 384 | BX4: 76 | BY4: =VLOOKUP(BX4,Hoja4!$A$29:$B$61,2,FALSE) -> Valle del cauca | BZ4: =VLOOKUP(BV4,Hoja4!$D$29:$E$1150,2,FALSE) -> Cali | CA4: 384 | CB4: 3913 | CD4: Comercio al por mayor especializado de otros productos | CE4: 666 | CF4: 6223 | CG4: Comercio al por menor de otros enseres domésticos en establecimientos especializados | CH4: 653 | CI4: 4168 | CM4: ACTIVIDADES DE SERVICIOS ADMINISTRATIVOS Y DE APOYO | CN4: 216290 | CO4: 34760 | CP4: 13329 | CS4: INDUSTRIAS MANUFACTURERAS | CT4: 51889 | CU4: 10442 | CV4: 7459 | CX4: =IF(CS3=0,"Total",PROPER(CS3)) -> Comercio Al Por Mayor Y Al Por Menor; Reparación De Vehículos Automotores Y Motocicletas | CY4: 0.7796376307 | CZ4: 0.1327108014 | DA4: 0.08765156794
C5: 68001 | D5: BUCARAMANGA | E5: 0 | F5: 0 | G5: Natural | H5: 68 | I5: SANTANDER | J5: 0 | K5: 0 | L5: 4771 | M5: COMERCIO AL POR MAYOR Y AL POR MENOR; REPARACIÓN DE VEHÍCULOS AUTOMOTORES Y MOTOCICLETAS | N5: G | O5: Comercio al por menor de otros productos en establecimientos especializados | P5: Comercio al por menor de otros productos en establecimientos especializados | Q5: 0 | R5: 0 | S5: 0 | T5: 0 | U5: 0 | V5: 0 | W5: 0 | X5: 0 | Z5: 5 | AA5: 5303 | AB5: 68 | AC5: 1247 | AD5: =VLOOKUP(AB5,Hoja4!$A$29:$B$61,2,FALSE) -> Santander | AJ5: 0 | AK5: 0 | AL5: 25307 | AM5: GIRARDOT | AN5: 1 | AO5: 3 | AP5: Natural | AQ5: 25 | AR5: CUNDINAMARCA | AS5: Aprobado con subsidio | AT5: MICRO | AU5: 4530 | AV5: COMERCIO AL POR MAYOR Y AL POR MENOR; REPARACIÓN DE VEHÍCULOS AUTOMOTORES Y MOTOCICLETAS | AW5: G | AX5: Comercio de partes, piezas (autopartes) y accesorios (lujos) para vehículos automotores | AY5: Comercio de partes, piezas (autopartes) y accesorios (lujos) para vehículos automotores | AZ5: 1 | BA5: 0 | BB5: 0 | BC5: 1 | BD5: 0 | BE5: 0 | BF5: 1 | BG5: 0 | BJ5: 5 | BK5: 1198 | BL5: 25 | BM5: 302 | BN5: =VLOOKUP(BL5,Hoja4!$A$29:$B$61,2,FALSE) -> Cundinamarca | BP5: Cundinamarca | BQ5: 302 | BR5: 3740 | BT5: 25307 | BU5: 13 | BV5: 8001 | BW5: 202 | BX5: 8 | BY5: =VLOOKUP(BX5,Hoja4!$A$29:$B$61,2,FALSE) -> Atlántico | BZ5: =VLOOKUP(BV5,Hoja4!$D$29:$E$1150,2,FALSE) -> Barranquilla | CA5: 202 | CB5: 2157 | CD5: Comercio al por menor de otros enseres domésticos en establecimientos especializados | CE5: 653 | CF5: 4168 | CG5: Comercio al por mayor de maquinaria y equipo | CH5: 416 | CI5: 3636 | CM5: COMERCIO AL POR MAYOR Y AL POR MENOR; REPARACIÓN DE VEHÍCULOS AUTOMOTORES Y MOTOCICLETAS | CN5: 55939 | CO5: 9522 | CP5: 6289 | CS5: CONSTRUCCIÓN | CT5: 35416 | CU5: 5670 | CV5: 28872 | CX5: Industrias Manufactureras | CY5: 0.7435019344 | CZ5: 0.1496202894 | DA5: 0.1068777762
C6: 68001 | D6: BUCARAMANGA | E6: 0 | F6: 0 | G6: Natural | H6: 68 | I6: SANTANDER | J6: 0 | K6: 0 | L6: 1089 | M6: INDUSTRIAS MANUFACTURERAS | N6: C | O6: Elaboración de otros productos alimenticios | P6: Elaboración de productos alimenticios | Q6: 0 | R6: 0 | S6: 0 | T6: 0 | U6: 0 | V6: 0 | W6: 0 | X6: 0 | Z6: 76 | AA6: 2307 | AB6: 25 | AC6: 1223 | AD6: =VLOOKUP(AB6,Hoja4!$A$29:$B$61,2,FALSE) -> Cundinamarca | AJ6: 0 | AK6: 0 | AL6: 11001 | AM6: BOGOTÁ, D.C. | AN6: 6 | AO6: 3 | AP6: Natural | AQ6: 11 | AR6: BOGOTÁ, D.C. | AS6: Aprobado con subsidio | AT6: MICRO | AU6: 4663 | AV6: COMERCIO AL POR MAYOR Y AL POR MENOR; REPARACIÓN DE VEHÍCULOS AUTOMOTORES Y MOTOCICLETAS | AW6: G | AX6: Comercio al por mayor especializado de otros productos | AY6: Comercio al por mayor especializado de otros productos | AZ6: 1 | BA6: 5 | BB6: 0 | BC6: 6 | BD6: 0 | BE6: 0 | BF6: 6 | BG6: 0 | BJ6: 76 | BK6: 526 | BL6: 68 | BM6: 263 | BN6: =VLOOKUP(BL6,Hoja4!$A$29:$B$61,2,FALSE) -> Santander | BP6: Santander | BQ6: 263 | BR6: 4931 | BT6: 11001 | BU6: 1658 | BV6: 54001 | BW6: 188 | BX6: 54 | BY6: =VLOOKUP(BX6,Hoja4!$A$29:$B$61,2,FALSE) -> Norte de stder | BZ6: =VLOOKUP(BV6,Hoja4!$D$29:$E$1150,2,FALSE) -> Cucuta | CA6: 188 | CB6: 2155 | CD6: Comercio al por menor de alimentos (víveres en general), bebidas y tabaco, en establecimientos especializados | CE6: 297 | CF6: 2439 | CG6: Comercio al por mayor de artículos y enseres domésticos (incluidas prendas de vestir) | CH6: 410 | CI6: 5139 | CM6: INDUSTRIAS MANUFACTURERAS | CN6: 51889 | CO6: 10442 | CP6: 7459 | CS6: ALOJAMIENTO Y SERVICIOS DE COMIDA | CT6: 29291 | CU6: 6780 | CV6: 3018 | CX6: Construcción | CY6: 0.5062466051 | CZ6: 0.08104862918 | DA6: 0.4127047657
C7: 44430 | D7: MAICAO | E7: 0 | F7: 0 | G7: Natural | H7: 44 | I7: LA GUAJIRA | J7: 0 | K7: 0 | L7: 4530 | M7: COMERCIO AL POR MAYOR Y AL POR MENOR; REPARACIÓN DE VEHÍCULOS AUTOMOTORES Y MOTOCICLETAS | N7: G | O7: Comercio de partes, piezas (autopartes) y accesorios (lujos) para vehículos automotores | P7: Comercio de partes, piezas (autopartes) y accesorios (lujos) para vehículos automotores | Q7: 0 | R7: 0 | S7: 0 | T7: 0 | U7: 0 | V7: 0 | W7: 0 | X7: 0 | Z7: 54 | AA7: 653 | AB7: 8 | AC7: 971 | AD7: =VLOOKUP(AB7,Hoja4!$A$29:$B$61,2,FALSE) -> Atlántico | AJ7: 0 | AK7: 0 | AL7: 15176 | AM7: CHIQUINQUIRÁ | AN7: 4 | AO7: 1 | AP7: Natural | AQ7: 15 | AR7: BOYACÁ | AS7: Aprobado con subsidio | AT7: MICRO | AU7: 4752 | AV7: COMERCIO AL POR MAYOR Y AL POR MENOR; REPARACIÓN DE VEHÍCULOS AUTOMOTORES Y MOTOCICLETAS | AW7: G | AX7: Comercio al por menor de otros enseres domésticos en establecimientos especializados | AY7: Comercio al por menor de otros enseres domésticos en establecimientos especializados | AZ7: 2 | BA7: 2 | BB7: 0 | BC7: 2 | BD7: 1 | BE7: 1 | BF7: 4 | BG7: 0 | BJ7: 54 | BK7: 248 | BL7: 54 | BM7: 248 | BN7: =VLOOKUP(BL7,Hoja4!$A$29:$B$61,2,FALSE) -> Norte de stder | BP7: Norte de stder | BQ7: 248 | BR7: 2638 | BT7: 15176 | BU7: 5 | BV7: 68001 | BW7: 174 | BX7: 68 | BY7: =VLOOKUP(BX7,Hoja4!$A$29:$B$61,2,FALSE) -> Santander | BZ7: =VLOOKUP(BV7,Hoja4!$D$29:$E$1150,2,FALSE) -> Bucaramanga | CA7: 174 | CB7: 2104 | CD7: Comercio al por mayor de materias primas agropecuarias; animales vivos | CE7: 134 | CF7: 1345 | CG7: Comercio al por menor en establecimientos no especializados | CH7: 387 | CI7: 14548 | CM7: TRANSPORTE Y ALMACENAMIENTO | CN7: 18754 | CO7: 3255 | CP7: 8292 | CS7: INFORMACIÓN Y COMUNICACIONES | CT7: 29143 | CU7: 4081 | CV7: 4118 | CX7: Alojamiento Y Servicios De Comida | CY7: 0.7493412469 | CZ7: 0.1734503313 | DA7: 0.07720842181
C8: 5001 | D8: MEDELLÍN | E8: 2 | F8: 1 | G8: Natural | H8: 5 | I8: ANTIOQUIA | J8: Aprobado con subsidio | K8: MICRO | L8: 141 | M8: AGRICULTURA, GANADERÍA, CAZA, SILVICULTURA Y PESCA | N8: A | O8: Ganadería | P8: Ganadería | Q8: 0 | R8: 2 | S8: 0 | T8: 2 | U8: 0 | V8: 0 | W8: 2 | X8: 0 | Z8: 11 | AA8: 8426 | AB8: 54 | AC8: 653 | AD8: =VLOOKUP(AB8,Hoja4!$A$29:$B$61,2,FALSE) -> Norte de stder | AJ8: 0 | AK8: 0 | AL8: 76001 | AM8: CALI | AN8: 1 | AO8: 0 | AP8: Natural | AQ8: 76 | AR8: VALLE DEL CAUCA | AS8: Aprobado con subsidio | AT8: MICRO | AU8: 4774 | AV8: COMERCIO AL POR MAYOR Y AL POR MENOR; REPARACIÓN DE VEHÍCULOS AUTOMOTORES Y MOTOCICLETAS | AW8: G | AX8: Comercio al por menor de otros productos en establecimientos especializados | AY8: Comercio al por menor de otros productos en establecimientos especializados | AZ8: 0 | BA8: 1 | BB8: 0 | BC8: 1 | BD8: 0 | BE8: 0 | BF8: 1 | BG8: 0 | BJ8: 11 | BK8: 1658 | BL8: 8 | BM8: 217 | BN8: =VLOOKUP(BL8,Hoja4!$A$29:$B$61,2,FALSE) -> Atlántico | BP8: Atlántico | BQ8: 217 | BR8: 2262 | BT8: 76001 | BU8: 384 | BV8: 5360 | BW8: 108 | BX8: 5 | BY8: =VLOOKUP(BX8,Hoja4!$A$29:$B$61,2,FALSE) -> Antioquia | BZ8: =VLOOKUP(BV8,Hoja4!$D$29:$E$1150,2,FALSE) -> Itagüí | CA8: 108 | CB8: 875 | CD8: Mantenimiento y reparación de vehículos automotores | CE8: 157 | CF8: 1192 | CG8: Comercio de partes, piezas (autopartes) y accesorios (lujos) para vehículos automotores | CH8: 356 | CI8: 2096 | CM8: OTRAS | CN8: 11 | CO8: 6 | CP8: 12 | CS8: ACTIVIDADES DE ATENCIÓN DE LA SALUD HUMANA Y DE ASISTENCIA SOCIAL | CT8: 27268 | CU8: 6997 | CV8: 1154 | CX8: Información Y Comunicaciones | CY8: 0.780434899 | CZ8: 0.1092871298 | DA8: 0.1102779712
C9: 41001 | D9: NEIVA | E9: 0 | F9: 0 | G9: Natural | H9: 41 | I9: HUILA | J9: 0 | K9: 0 | L9: 4773 | M9: COMERCIO AL POR MAYOR Y AL POR MENOR; REPARACIÓN DE VEHÍCULOS AUTOMOTORES Y MOTOCICLETAS | N9: G | O9: Comercio al por menor de otros productos en establecimientos especializados | P9: Comercio al por menor de otros productos en establecimientos especializados | Q9: 0 | R9: 0 | S9: 0 | T9: 0 | U9: 0 | V9: 0 | W9: 0 | X9: 0 | Z9: 66 | AA9: 609 | AB9: 66 | AC9: 609 | AD9: =VLOOKUP(AB9,Hoja4!$A$29:$B$61,2,FALSE) -> Risaralda | AJ9: 0 | AK9: 0 | AL9: 41001 | AM9: NEIVA | AN9: 4 | AO9: 0 | AP9: Natural | AQ9: 41 | AR9: HUILA | AS9: Aprobado con subsidio | AT9: MICRO | AU9: 4729 | AV9: COMERCIO AL POR MAYOR Y AL POR MENOR; REPARACIÓN DE VEHÍCULOS AUTOMOTORES Y MOTOCICLETAS | AW9: G | AX9: Comercio al por menor de alimentos (víveres en general), bebidas y tabaco, en establecimientos especializados | AY9: Comercio al por menor de alimentos (víveres en general), bebidas y tabaco, en establecimientos especializados | AZ9: 4 | BA9: 0 | BB9: 0 | BC9: 1 | BD9: 3 | BE9: 0 | BF9: 4 | BG9: 0 | BJ9: 66 | BK9: 143 | BL9: 66 | BM9: 143 | BN9: =VLOOKUP(BL9,Hoja4!$A$29:$B$61,2,FALSE) -> Risaralda | BP9: Risaralda | BQ9: 143 | BR9: 1316 | BT9: 76400 | BU9: 5 | BV9: 66001 | BW9: 105 | BX9: 66 | BY9: =VLOOKUP(BX9,Hoja4!$A$29:$B$61,2,FALSE) -> Risaralda | BZ9: =VLOOKUP(BV9,Hoja4!$D$29:$E$1150,2,FALSE) -> Pereira | CA9: 105 | CB9: 729 | CD9: Comercio al por menor en establecimientos no especializados | CE9: 387 | CF9: 14548 | CG9: Comercio al por menor de alimentos (víveres en general), bebidas y tabaco, en establecimientos especializados | CH9: 297 | CI9: 2439 | CM9: ACTIVIDADES PROFESIONALES, CIENTÍFICAS Y TÉCNICAS | CN9: 22649 | CO9: 4893 | CP9: 6257 | CS9: ACTIVIDADES PROFESIONALES, CIENTÍFICAS Y TÉCNICAS | CT9: 22649 | CU9: 4893 | CV9: 6257 | CX9: Actividades De Atención De La Salud Humana Y De Asistencia Social | CY9: 0.7698692792 | CZ9: 0.1975493379 | DA9: 0.03258138287
C10: 25307 | D10: GIRARDOT | E10: 1 | F10: 3 | G10: Natural | H10: 25 | I10: CUNDINAMARCA | J10: Aprobado con subsidio | K10: MICRO | L10: 4530 | M10: COMERCIO AL POR MAYOR Y AL POR MENOR; REPARACIÓN DE VEHÍCULOS AUTOMOTORES Y MOTOCICLETAS | N10: G | O10: Comercio de partes, piezas (autopartes) y accesorios (lujos) para vehículos automotores | P10: Comercio de partes, piezas (autopartes) y accesorios (lujos) para vehículos automotores | Q10: 1 | R10: 0 | S10: 0 | T10: 1 | U10: 0 | V10: 0 | W10: 1 | X10: 0 | Z10: 52 | AA10: 361 | AB10: 13 | AC10: 502 | AD10: =VLOOKUP(AB10,Hoja4!$A$29:$B$61,2,FALSE) -> Bolívar | AJ10: 0 | AK10: 0 | AL10: 76400 | AM10: LA UNIÓN | AN10: 0 | AO10: 0 | AP10: Natural | AQ10: 76 | AR10: VALLE DEL CAUCA | AS10: 0 | AT10: MICRO | AU10: 4620 | AV10: COMERCIO AL POR MAYOR Y AL POR MENOR; REPARACIÓN DE VEHÍCULOS AUTOMOTORES Y MOTOCICLETAS | AW10: G | AX10: Comercio al por mayor de materias primas agropecuarias; animales vivos | AY10: Comercio al por mayor de materias primas agropecuarias; animales vivos | AZ10: 0 | BA10: 0 | BB10: 0 | BC10: 0 | BD10: 0 | BE10: 0 | BF10: 0 | BG10: 0 | BJ10: 52 | BK10: 128 | BL10: 73 | BM10: 129 | BN10: =VLOOKUP(BL10,Hoja4!$A$29:$B$61,2,FALSE) -> Tolima | BP10: Tolima | BQ10: 129 | BR10: 1197 | BT10: 63001 | BU10: 58 | BV10: 73001 | BW10: 100 | BX10: 73 | BY10: =VLOOKUP(BX10,Hoja4!$A$29:$B$61,2,FALSE) -> Tolima | BZ10: =VLOOKUP(BV10,Hoja4!$D$29:$E$1150,2,FALSE) -> Ibagué | CA10: 100 | CB10: 1052 | CD10: Comercio al por menor de artículos culturales y de entretenimiento, en establecimientos especializados | CE10: 153 | CF10: 1440 | CG10: Comercio al por mayor de alimentos, bebidas y tabaco | CH10: 293 | CI10: 3346 | CM10: EDUCACIÓN | CN10: 7087 | CO10: 3546 | CP10: 448 | CS10: TRANSPORTE Y ALMACENAMIENTO | CT10: 18754 | CU10: 3255 | CV10: 8292 | CX10: Actividades Profesionales, Científicas Y Técnicas | CY10: 0.6701085831 | CZ10: 0.1447675967 | DA10: 0.1851238202
C11: 54001 | D11: CÚCUTA | E11: 0 | F11: 0 | G11: Natural | H11: 54 | I11: NORTE DE SANTANDER | J11: 0 | K11: 0 | L11: 5611 | M11: ALOJAMIENTO Y SERVICIOS DE COMIDA | N11: I | O11: Actividades de restaurantes, cafeterías y servicio móvil de comidas | P11: Actividades de restaurantes, cafeterías y servicio móvil de comidas | Q11: 0 | R11: 0 | S11: 0 | T11: 0 | U11: 0 | V11: 0 | W11: 0 | X11: 0 | Z11: 19 | AA11: 164 | AB11: 73 | AC11: 465 | AD11: =VLOOKUP(AB11,Hoja4!$A$29:$B$61,2,FALSE) -> Tolima | AJ11: 0 | AK11: 0 | AL11: 63001 | AM11: ARMENIA | AN11: 0 | AO11: 0 | AP11: Natural | AQ11: 63 | AR11: QUINDÍO | AS11: 0 | AT11: PEQUEÑA | AU11: 4771 | AV11: COMERCIO AL POR MAYOR Y AL POR MENOR; REPARACIÓN DE VEHÍCULOS AUTOMOTORES Y MOTOCICLETAS | AW11: G | AX11: Comercio al por menor de otros productos en establecimientos especializados | AY11: Comercio al por menor de otros productos en establecimientos especializados | AZ11: 0 | BA11: 0 | BB11: 0 | BC11: 0 | BD11: 0 | BE11: 0 | BF11: 0 | BG11: 0 | BJ11: 19 | BK11: 41 | BL11: 52 | BM11: 128 | BN11: =VLOOKUP(BL11,Hoja4!$A$29:$B$61,2,FALSE) -> Nariño | BP11: Nariño | BQ11: 128 | BR11: 843 | BT11: 76828 | BU11: 2 | BV11: 50001 | BW11: 97 | BX11: 50 | BY11: =VLOOKUP(BX11,Hoja4!$A$29:$B$61,2,FALSE) -> Meta | BZ11: =VLOOKUP(BV11,Hoja4!$D$29:$E$1150,2,FALSE) -> Villavicencio | CA11: 97 | CB11: 701 | CD11: Comercio al por menor no realizado en establecimientos, puestos de venta o mercados | CE11: 122 | CF11: 757 | CG11: Comercio al por mayor no especializado | CH11: 204 | CI11: 2011 | CM11: CONSTRUCCIÓN | CN11: 35416 | CO11: 5670 | CP11: 28872 | CS11: AGRICULTURA, GANADERÍA, CAZA, SILVICULTURA Y PESCA | CT11: 14978 | CU11: 1663 | CV11: 1926 | CX11: Transporte Y Almacenamiento | CY11: 0.6189234679 | CZ11: 0.1074221973 | DA11: 0.2736543348
C12: 5001 | D12: MEDELLÍN | E12: 0 | F12: 1 | G12: Natural | H12: 5 | I12: ANTIOQUIA | J12: 0 | K12: MICRO | L12: 3315 | M12: INDUSTRIAS MANUFACTURERAS | N12: C | O12: Mantenimiento y reparación especializado de productos elaborados en metal y de maquinaria y equipo | P12: Instalación, mantenimiento y reparación especializado de maquinaria y equipo | Q12: 0 | R12: 0 | S12: 0 | T12: 0 | U12: 0 | V12: 0 | W12: 0 | X12: 0 | Z12: 47 | AA12: 241 | AB12: 50 | AC12: 446 | AD12: =VLOOKUP(AB12,Hoja4!$A$29:$B$61,2,FALSE) -> Meta | AJ12: 0 | AK12: 0 | AL12: 76828 | AM12: TRUJILLO | AN12: 6 | AO12: 1 | AP12: Natural | AQ12: 76 | AR12: VALLE DEL CAUCA | AS12: Aprobado con subsidio | AT12: MICRO | AU12: 4752 | AV12: COMERCIO AL POR MAYOR Y AL POR MENOR; REPARACIÓN DE VEHÍCULOS AUTOMOTORES Y MOTOCICLETAS | AW12: G | AX12: Comercio al por menor de otros enseres domésticos en establecimientos especializados | AY12: Comercio al por menor de otros enseres domésticos en establecimientos especializados | AZ12: 3 | BA12: 3 | BB12: 0 | BC12: 3 | BD12: 0 | BE12: 3 | BF12: 6 | BG12: 0 | BJ12: 47 | BK12: 55 | BL12: 50 | BM12: 115 | BN12: =VLOOKUP(BL12,Hoja4!$A$29:$B$61,2,FALSE) -> Meta | BP12: Meta | BQ12: 115 | BR12: 751 | BT12: 50001 | BU12: 97 | BV12: 52001 | BW12: 95 | BX12: 52 | BY12: =VLOOKUP(BX12,Hoja4!$A$29:$B$61,2,FALSE) -> Nariño | BZ12: =VLOOKUP(BV12,Hoja4!$D$29:$E$1150,2,FALSE) -> Pasto | CA12: 95 | CB12: 692 | CD12: Comercio al por menor de combustible, lubricantes, aditivos y productos de limpieza para automotores, en establecimientos especializados | CE12: 174 | CF12: 1303 | CG12: Comercio, mantenimiento y reparación de motocicletas y de sus partes, piezas y accesorios | CH12: 189 | CI12: 2911 | CM12: ACTIVIDADES ARTÍSTICAS, DE ENTRETENIMIENTO Y RECREACIÓN | CN12: 6934 | CO12: 1682 | CP12: 459 | CS12: EDUCACIÓN | CT12: 7087 | CU12: 3546 | CV12: 448 | CX12: Agricultura, Ganadería, Caza, Silvicultura Y Pesca | CY12: 0.8067000592 | CZ12: 0.08956751225 | DA12: 0.1037324285
C13: 5001 | D13: MEDELLÍN | E13: 0 | F13: 0 | G13: Natural | H13: 5 | I13: ANTIOQUIA | J13: 0 | K13: MICRO | L13: 5611 | M13: ALOJAMIENTO Y SERVICIOS DE COMIDA | N13: I | O13: Actividades de restaurantes, cafeterías y servicio móvil de comidas | P13: Actividades de restaurantes, cafeterías y servicio móvil de comidas | Q13: 0 | R13: 0 | S13: 0 | T13: 0 | U13: 0 | V13: 0 | W13: 0 | X13: 0 | Z13: 50 | AA13: 446 | AB13: 17 | AC13: 439 | AD13: =VLOOKUP(AB13,Hoja4!$A$29:$B$61,2,FALSE) -> Caldas | AJ13: 0 | AK13: 0 | AL13: 50001 | AM13: VILLAVICENCIO | AN13: 0 | AO13: 0 | AP13: Natural | AQ13: 50 | AR13: META | AS13: 0 | AT13: MICRO | AU13: 4530 | AV13: COMERCIO AL POR MAYOR Y AL POR MENOR; REPARACIÓN DE VEHÍCULOS AUTOMOTORES Y MOTOCICLETAS | AW13: G | AX13: Comercio de partes, piezas (autopartes) y accesorios (lujos) para vehículos automotores | AY13: Comercio de partes, piezas (autopartes) y accesorios (lujos) para vehículos automotores | AZ13: 0 | BA13: 0 | BB13: 0 | BC13: 0 | BD13: 0 | BE13: 0 | BF13: 0 | BG13: 0 | BJ13: 50 | BK13: 115 | BL13: 41 | BM13: 111 | BN13: =VLOOKUP(BL13,Hoja4!$A$29:$B$61,2,FALSE) -> Huila | BP13: Huila | BQ13: 111 | BR13: 708 | BT13: 25181 | BU13: 1 | BV13: 13001 | BW13: 84 | BX13: 13 | BY13: =VLOOKUP(BX13,Hoja4!$A$29:$B$61,2,FALSE) -> Bolívar | BZ13: =VLOOKUP(BV13,Hoja4!$D$29:$E$1150,2,FALSE) -> Cartagena de ind | CA13: 84 | CB13: 718 | CD13: Comercio al por mayor de maquinaria y equipo | CE13: 416 | CF13: 3636 | CG13: Comercio al por menor de combustible, lubricantes, aditivos y productos de limpieza para automotores, en establecimientos especializados | CH13: 174 | CI13: 1303 | CM13: ACTIVIDADES INMOBILIARIAS | CN13: 1842 | CO13: 618 | CP13: 479 | CS13: ACTIVIDADES ARTÍSTICAS, DE ENTRETENIMIENTO Y RECREACIÓN | CT13: 6934 | CU13: 1682 | CV13: 459 | CX13: Educación | CY13: 0.6395632163 | CZ13: 0.3200072196 | DA13: 0.04042956412
C14: 5001 | D14: MEDELLÍN | E14: 3 | F14: 0 | G14: Natural | H14: 5 | I14: ANTIOQUIA | J14: Aprobado con subsidio | K14: MICRO | L14: 5611 | M14: ALOJAMIENTO Y SERVICIOS DE COMIDA | N14: I | O14: Actividades de restaurantes, cafeterías y servicio móvil de comidas | P14: Actividades de restaurantes, cafeterías y servicio móvil de comidas | Q14: 0 | R14: 3 | S14: 0 | T14: 2 | U14: 0 | V14: 1 | W14: 3 | X14: 0 | Z14: 63 | AA14: 323 | AB14: 41 | AC14: 388 | AD14: =VLOOKUP(AB14,Hoja4!$A$29:$B$61,2,FALSE) -> Huila | AJ14: 0 | AK14: 0 | AL14: 11001 | AM14: BOGOTÁ, D.C. | AN14: 1 | AO14: 1 | AP14: Natural | AQ14: 11 | AR14: BOGOTÁ, D.C. | AS14: Aprobado con subsidio | AT14: MICRO | AU14: 4754 | AV14: COMERCIO AL POR MAYOR Y AL POR MENOR; REPARACIÓN DE VEHÍCULOS AUTOMOTORES Y MOTOCICLETAS | AW14: G | AX14: Comercio al por menor de otros enseres domésticos en establecimientos especializados | AY14: Comercio al por menor de otros enseres domésticos en establecimientos especializados | AZ14: 0 | BA14: 1 | BB14: 0 | BC14: 1 | BD14: 0 | BE14: 0 | BF14: 1 | BG14: 0 | BJ14: 63 | BK14: 72 | BL14: 13 | BM14: 97 | BN14: =VLOOKUP(BL14,Hoja4!$A$29:$B$61,2,FALSE) -> Bolívar | BP14: Bolívar | BQ14: 97 | BR14: 834 | BT14: 5001 | BU14: 727 | BV14: 41001 | BW14: 77 | BX14: 41 | BY14: =VLOOKUP(BX14,Hoja4!$A$29:$B$61,2,FALSE) -> Huila | BZ14: =VLOOKUP(BV14,Hoja4!$D$29:$E$1150,2,FALSE) -> Neiva | CA14: 77 | CB14: 539 | CD14: Comercio al por mayor de alimentos, bebidas y tabaco | CE14: 293 | CF14: 3346 | CG14: Mantenimiento y reparación de vehículos automotores | CH14: 157 | CI14: 1192 | CM14: EXPLOTACIÓN DE MINAS Y CANTERAS | CN14: 2561 | CO14: 257 | CP14: 1157 | CS14: ACTIVIDADES FINANCIERAS Y DE SEGUROS | CT14: 4801 | CU14: 1811 | CV14: 301 | CX14: Actividades Artísticas, De Entretenimiento Y Recreación | CY14: 0.764077135 | CZ14: 0.1853443526 | DA14: 0.0505785124
C15: 11001 | D15: BOGOTÁ, D.C. | E15: 6 | F15: 3 | G15: Natural | H15: 11 | I15: BOGOTÁ, D.C. | J15: Aprobado con subsidio | K15: MICRO | L15: 4663 | M15: COMERCIO AL POR MAYOR Y AL POR MENOR; REPARACIÓN DE VEHÍCULOS AUTOMOTORES Y MOTOCICLETAS | N15: G | O15: Comercio al por mayor especializado de otros productos | P15: Comercio al por mayor especializado de otros productos | Q15: 1 | R15: 5 | S15: 0 | T15: 6 | U15: 0 | V15: 0 | W15: 6 | X15: 0 | Z15: 70 | AA15: 99 | AB15: 15 | AC15: 386 | AD15: =VLOOKUP(AB15,Hoja4!$A$29:$B$61,2,FALSE) -> Boyacá | AJ15: 0 | AK15: 0 | AL15: 25181 | AM15: CHOACHÍ | AN15: 1 | AO15: 1 | AP15: Natural | AQ15: 25 | AR15: CUNDINAMARCA | AS15: Aprobado con subsidio | AT15: PEQUEÑA | AU15: 4663 | AV15: COMERCIO AL POR MAYOR Y AL POR MENOR; REPARACIÓN DE VEHÍCULOS AUTOMOTORES Y MOTOCICLETAS | AW15: G | AX15: Comercio al por mayor especializado de otros productos | AY15: Comercio al por mayor especializado de otros productos | AZ15: 0 | BA15: 1 | BB15: 0 | BC15: 0 | BD15: 0 | BE15: 1 | BF15: 1 | BG15: 0 | BJ15: 70 | BK15: 27 | BL15: 15 | BM15: 90 | BN15: =VLOOKUP(BL15,Hoja4!$A$29:$B$61,2,FALSE) -> Boyacá | BP15: Boyacá | BQ15: 90 | BR15: 513 | BT15: 25297 | BU15: 1 | BV15: 25214 | BW15: 75 | BX15: 25 | BY15: =VLOOKUP(BX15,Hoja4!$A$29:$B$61,2,FALSE) -> Cundinamarca | BZ15: =VLOOKUP(BV15,Hoja4!$D$29:$E$1150,2,FALSE) -> Cota | CA15: 75 | CB15: 1502 | CD15: Comercio, mantenimiento y reparación de motocicletas y de sus partes, piezas y accesorios | CE15: 189 | CF15: 2911 | CG15: Comercio al por menor de equipos de informática y de comunicaciones, en establecimientos especializados | CH15: 157 | CI15: 1317 | CM15: OTRAS ACTIVIDADES DE SERVICIOS | CN15: 4651 | CO15: 1530 | CP15: 635 | CS15: OTRAS ACTIVIDADES DE SERVICIOS | CT15: 4651 | CU15: 1530 | CV15: 635 | CX15: Actividades Financieras Y De Seguros | CY15: 0.6944886446 | CZ15: 0.2619702011 | DA15: 0.04354115435
C16: 15176 | D16: CHIQUINQUIRÁ | E16: 4 | F16: 1 | G16: Natural | H16: 15 | I16: BOYACÁ | J16: Aprobado con subsidio | K16: MICRO | L16: 4752 | M16: COMERCIO AL POR MAYOR Y AL POR MENOR; REPARACIÓN DE VEHÍCULOS AUTOMOTORES Y MOTOCICLETAS | N16: G | O16: Comercio al por menor de otros enseres domésticos en establecimientos especializados | P16: Comercio al por menor de otros enseres domésticos en establecimientos especializados | Q16: 2 | R16: 2 | S16: 0 | T16: 2 | U16: 1 | V16: 1 | W16: 4 | X16: 0 | Z16: 41 | AA16: 388 | AB16: 52 | AC16: 361 | AD16: =VLOOKUP(AB16,Hoja4!$A$29:$B$61,2,FALSE) -> Nariño | AJ16: 0 | AK16: 0 | AL16: 11001 | AM16: BOGOTÁ, D.C. | AN16: 0 | AO16: 0 | AP16: Natural | AQ16: 11 | AR16: BOGOTÁ, D.C. | AS16: 0 | AT16: PEQUEÑA | AU16: 4520 | AV16: COMERCIO AL POR MAYOR Y AL POR MENOR; REPARACIÓN DE VEHÍCULOS AUTOMOTORES Y MOTOCICLETAS | AW16: G | AX16: Mantenimiento y reparación de vehículos automotores | AY16: Mantenimiento y reparación de vehículos automotores | AZ16: 0 | BA16: 0 | BB16: 0 | BC16: 0 | BD16: 0 | BE16: 0 | BF16: 0 | BG16: 0 | BJ16: 41 | BK16: 111 | BL16: 17 | BM16: 89 | BN16: =VLOOKUP(BL16,Hoja4!$A$29:$B$61,2,FALSE) -> Caldas | BP16: Caldas | BQ16: 89 | BR16: 822 | BT16: 25799 | BU16: 3 | BV16: 17001 | BW16: 64 | BX16: 17 | BY16: =VLOOKUP(BX16,Hoja4!$A$29:$B$61,2,FALSE) -> Caldas | BZ16: =VLOOKUP(BV16,Hoja4!$D$29:$E$1150,2,FALSE) -> Manizales | CA16: 64 | CB16: 631 | CD16: Comercio al por mayor de artículos y enseres domésticos (incluidas prendas de vestir) | CE16: 410 | CF16: 5139 | CG16: Comercio al por menor de artículos culturales y de entretenimiento, en establecimientos especializados | CH16: 153 | CI16: 1440 | CM16: ACTIVIDADES FINANCIERAS Y DE SEGUROS | CN16: 4801 | CO16: 1811 | CP16: 301 | CS16: ADMINISTRACIÓN PÚBLICA Y DEFENSA; PLANES DE SEGURIDAD SOCIAL DE AFILIACIÓN OBLIGATORIA | CT16: 3769 | CU16: 590 | CV16: 7 | CX16: Otras Actividades De Servicios | CY16: 0.6823650235 | CZ16: 0.224471831 | DA16: 0.09316314554
C17: 76001 | D17: CALI | E17: 1 | F17: 0 | G17: Natural | H17: 76 | I17: VALLE DEL CAUCA | J17: Aprobado con subsidio | K17: MICRO | L17: 4774 | M17: COMERCIO AL POR MAYOR Y AL POR MENOR; REPARACIÓN DE VEHÍCULOS AUTOMOTORES Y MOTOCICLETAS | N17: G | O17: Comercio al por menor de otros productos en establecimientos especializados | P17: Comercio al por menor de otros productos en establecimientos especializados | Q17: 0 | R17: 1 | S17: 0 | T17: 1 | U17: 0 | V17: 0 | W17: 1 | X17: 0 | Z17: 25 | AA17: 1223 | AB17: 63 | AC17: 323 | AD17: =VLOOKUP(AB17,Hoja4!$A$29:$B$61,2,FALSE) -> Quindío | AJ17: 0 | AK17: 0 | AL17: 5001 | AM17: MEDELLÍN | AN17: 1 | AO17: 0 | AP17: Natural | AQ17: 5 | AR17: ANTIOQUIA | AS17: Aprobado con subsidio | AT17: PEQUEÑA | AU17: 4520 | AV17: COMERCIO AL POR MAYOR Y AL POR MENOR; REPARACIÓN DE VEHÍCULOS AUTOMOTORES Y MOTOCICLETAS | AW17: G | AX17: Mantenimiento y reparación de vehículos automotores | AY17: Mantenimiento y reparación de vehículos automotores | AZ17: 0 | BA17: 1 | BB17: 0 | BC17: 1 | BD17: 0 | BE17: 0 | BF17: 1 | BG17: 0 | BJ17: 25 | BK17: 302 | BL17: 63 | BM17: 72 | BN17: =VLOOKUP(BL17,Hoja4!$A$29:$B$61,2,FALSE) -> Quindío | BP17: Quindío | BQ17: 72 | BR17: 817 | BT17: 85001 | BU17: 15 | BV17: 63001 | BW17: 58 | BX17: 63 | BY17: =VLOOKUP(BX17,Hoja4!$A$29:$B$61,2,FALSE) -> Quindío | BZ17: =VLOOKUP(BV17,Hoja4!$D$29:$E$1150,2,FALSE) -> Armenia | CA17: 58 | CB17: 601 | CD17: Comercio al por menor de equipos de informática y de comunicaciones, en establecimientos especializados | CE17: 157 | CF17: 1317 | CG17: Comercio al por mayor de materias primas agropecuarias; animales vivos | CH17: 134 | CI17: 1345 | CM17: ACTIVIDADES DE ATENCIÓN DE LA SALUD HUMANA Y DE ASISTENCIA SOCIAL | CN17: 27268 | CO17: 6997 | CP17: 1154 | CS17: EXPLOTACIÓN DE MINAS Y CANTERAS | CT17: 2561 | CU17: 257 | CV17: 1157 | CX17: Administración Pública Y Defensa; Planes De Seguridad Social De Afiliación Obligatoria | CY17: 0.8632615667 | CZ17: 0.1351351351 | DA17: 0.001603298213
C18: 76001 | D18: CALI | E18: 2 | F18: 1 | G18: Natural | H18: 76 | I18: VALLE DEL CAUCA | J18: Aprobado con subsidio | K18: MICRO | L18: 5511 | M18: ALOJAMIENTO Y SERVICIOS DE COMIDA | N18: I | O18: Actividades de alojamiento de estancias cortas | P18: Actividades de alojamiento de estancias cortas | Q18: 2 | R18: 0 | S18: 0 | T18: 2 | U18: 0 | V18: 0 | W18: 2 | X18: 0 | Z18: 8 | AA18: 971 | AB18: 47 | AC18: 241 | AD18: =VLOOKUP(AB18,Hoja4!$A$29:$B$61,2,FALSE) -> Magdalena | AJ18: 0 | AK18: 0 | AL18: 25297 | AM18: GACHETÁ | AN18: 1 | AO18: 3 | AP18: Natural | AQ18: 25 | AR18: CUNDINAMARCA | AS18: Aprobado con subsidio | AT18: MICRO | AU18: 4663 | AV18: COMERCIO AL POR MAYOR Y AL POR MENOR; REPARACIÓN DE VEHÍCULOS AUTOMOTORES Y MOTOCICLETAS | AW18: G | AX18: Comercio al por mayor especializado de otros productos | AY18: Comercio al por mayor especializado de otros productos | AZ18: 1 | BA18: 0 | BB18: 0 | BC18: 1 | BD18: 0 | BE18: 0 | BF18: 1 | BG18: 0 | BJ18: 8 | BK18: 217 | BL18: 23 | BM18: 70 | BN18: =VLOOKUP(BL18,Hoja4!$A$29:$B$61,2,FALSE) -> Córdoba | BP18: Córdoba | BQ18: 70 | BR18: 575 | BT18: 15759 | BU18: 22 | BV18: 23001 | BW18: 55 | BX18: 23 | BY18: =VLOOKUP(BX18,Hoja4!$A$29:$B$61,2,FALSE) -> Córdoba | BZ18: =VLOOKUP(BV18,Hoja4!$D$29:$E$1150,2,FALSE) -> Montería | CA18: 55 | CB18: 435 | CD18: Comercio al por mayor no especializado | CE18: 204 | CF18: 2011 | CG18: Comercio al por menor no realizado en establecimientos, puestos de venta o mercados | CH18: 122 | CI18: 757 | CM18: INFORMACIÓN Y COMUNICACIONES | CN18: 29143 | CO18: 4081 | CP18: 4118 | CS18: ACTIVIDADES INMOBILIARIAS | CT18: 1842 | CU18: 618 | CV18: 479 | CX18: Explotación De Minas Y Canteras | CY18: 0.6442767296 | CZ18: 0.06465408805 | DA18: 0.2910691824
C19: 41001 | D19: NEIVA | E19: 4 | F19: 0 | G19: Natural | H19: 41 | I19: HUILA | J19: Aprobado con subsidio | K19: MICRO | L19: 4729 | M19: COMERCIO AL POR MAYOR Y AL POR MENOR; REPARACIÓN DE VEHÍCULOS AUTOMOTORES Y MOTOCICLETAS | N19: G | O19: Comercio al por menor de alimentos (víveres en general), bebidas y tabaco, en establecimientos especializados | P19: Comercio al por menor de alimentos (víveres en general), bebidas y tabaco, en establecimientos especializados | Q19: 4 | R19: 0 | S19: 0 | T19: 1 | U19: 3 | V19: 0 | W19: 4 | X19: 0 | Z19: 85 | AA19: 152 | AB19: 23 | AC19: 228 | AD19: =VLOOKUP(AB19,Hoja4!$A$29:$B$61,2,FALSE) -> Córdoba | AJ19: 0 | AK19: 0 | AL19: 11001 | AM19: BOGOTÁ, D.C. | AN19: 1 | AO19: 2 | AP19: Natural | AQ19: 11 | AR19: BOGOTÁ, D.C. | AS19: Aprobado con subsidio | AT19: MICRO | AU19: 4751 | AV19: COMERCIO AL POR MAYOR Y AL POR MENOR; REPARACIÓN DE VEHÍCULOS AUTOMOTORES Y MOTOCICLETAS | AW19: G | AX19: Comercio al por menor de otros enseres domésticos en establecimientos especializados | AY19: Comercio al por menor de otros enseres domésticos en establecimientos especializados | AZ19: 1 | BA19: 0 | BB19: 0 | BC19: 1 | BD19: 0 | BE19: 0 | BF19: 1 | BG19: 0 | BJ19: 85 | BK19: 21 | BL19: 47 | BM19: 55 | BN19: =VLOOKUP(BL19,Hoja4!$A$29:$B$61,2,FALSE) -> Magdalena | BP19: Magdalena | BQ19: 55 | BR19: 428 | BT19: 5591 | BU19: 1 | BV19: 5266 | BW19: 53 | BX19: 5 | BY19: =VLOOKUP(BX19,Hoja4!$A$29:$B$61,2,FALSE) -> Antioquia | BZ19: =VLOOKUP(BV19,Hoja4!$D$29:$E$1150,2,FALSE) -> Envigado | CA19: 53 | CB19: 414 | CD19: Comercio al por menor en puestos de venta móviles | CE19: 7 | CF19: 17 | CG19: Comercio de vehículos automotores | CH19: 107 | CI19: 2784 | CM19: ACTIVIDADES DE LOS HOGARES INDIVIDUALES EN CALIDAD DE EMPLEADORES; ACTIVIDADES NO DIFERENCIADAS DE LOS HOGARES INDIVIDUALES COMO PRODUCTORES DE BIENES Y SERVICIOS PARA USO PROPIO | CN19: 35 | CO19: 41 | CP19: 0 | CS19: DISTRIBUCIÓN DE AGUA; EVACUACIÓN Y TRATAMIENTO DE AGUAS RESIDUALES, GESTIÓN DE DESECHOS Y ACTIVIDADES DE SANEAMIENTO AMBIENTAL | CT19: 1699 | CU19: 236 | CV19: 844 | CX19: Actividades Inmobiliarias | CY19: 0.6267437904 | CZ19: 0.2102756039 | DA19: 0.1629806056
C20: 52356 | D20: IPIALES | E20: 2 | F20: 0 | G20: Natural | H20: 52 | I20: NARIÑO | J20: Aprobado con subsidio | K20: MICRO | L20: 4923 | M20: TRANSPORTE Y ALMACENAMIENTO | N20: H | O20: Transporte terrestre publico automotor | P20: Transporte terrestre publico automotor | Q20: 0 | R20: 2 | S20: 0 | T20: 0 | U20: 0 | V20: 2 | W20: 2 | X20: 0 | Z20: 73 | AA20: 465 | AB20: 20 | AC20: 199 | AD20: =VLOOKUP(AB20,Hoja4!$A$29:$B$61,2,FALSE) -> Cesar | AJ20: 0 | AK20: 0 | AL20: 25799 | AM20: TENJO | AN20: 0 | AO20: 0 | AP20: Natural | AQ20: 25 | AR20: CUNDINAMARCA | AS20: 0 | AT20: PEQUEÑA | AU20: 4711 | AV20: COMERCIO AL POR MAYOR Y AL POR MENOR; REPARACIÓN DE VEHÍCULOS AUTOMOTORES Y MOTOCICLETAS | AW20: G | AX20: Comercio al por menor en establecimientos no especializados | AY20: Comercio al por menor en establecimientos no especializados | AZ20: 0 | BA20: 0 | BB20: 0 | BC20: 0 | BD20: 0 | BE20: 0 | BF20: 0 | BG20: 0 | BJ20: 73 | BK20: 129 | BL20: 18 | BM20: 52 | BN20: =VLOOKUP(BL20,Hoja4!$A$29:$B$61,2,FALSE) -> Caquetá | BP20: Caquetá | BQ20: 52 | BR20: 249 | BT20: 5264 | BU20: 0 | BV20: 47001 | BW20: 50 | BX20: 47 | BY20: =VLOOKUP(BX20,Hoja4!$A$29:$B$61,2,FALSE) -> Magdalena | BZ20: =VLOOKUP(BV20,Hoja4!$D$29:$E$1150,2,FALSE) -> Santa marta | CA20: 50 | CB20: 372 | CD20: Comercio de vehículos automotores | CE20: 107 | CF20: 2784 | CG20: Comercio al por mayor a cambio de una retribución o por contrata | CH20: 38 | CI20: 540 | CM20: SUMINISTRO DE ELECTRICIDAD, GAS, VAPOR Y AIRE ACONDICIONADO | CN20: 419 | CO20: 85 | CP20: 81 | CS20: SUMINISTRO DE ELECTRICIDAD, GAS, VAPOR Y AIRE ACONDICIONADO | CT20: 419 | CU20: 85 | CV20: 81 | CX20: Distribución De Agua; Evacuación Y Tratamiento De Aguas Residuales, Gestión De Desechos Y Actividades De Saneamiento Ambiental | CY20: 0.6113709968 | CZ20: 0.08492263404 | DA20: 0.3037063692
C21: 54001 | D21: CÚCUTA | E21: 12 | F21: 12 | G21: Natural | H21: 54 | I21: NORTE DE SANTANDER | J21: Aprobado con subsidio | K21: PEQUEÑA | L21: 90 | M21: OTRAS | N21: Otras | O21: Otras | P21: Otras | Q21: 3 | R21: 9 | S21: 0 | T21: 2 | U21: 2 | V21: 8 | W21: 12 | X21: 0 | Z21: 20 | AA21: 199 | AB21: 19 | AC21: 164 | AD21: =VLOOKUP(AB21,Hoja4!$A$29:$B$61,2,FALSE) -> Cauca | AJ21: 0 | AK21: 0 | AL21: 50001 | AM21: VILLAVICENCIO | AN21: 5 | AO21: 8 | AP21: Natural | AQ21: 50 | AR21: META | AS21: Aprobado con subsidio | AT21: MICRO | AU21: 4729 | AV21: COMERCIO AL POR MAYOR Y AL POR MENOR; REPARACIÓN DE VEHÍCULOS AUTOMOTORES Y MOTOCICLETAS | AW21: G | AX21: Comercio al por menor de alimentos (víveres en general), bebidas y tabaco, en establecimientos especializados | AY21: Comercio al por menor de alimentos (víveres en general), bebidas y tabaco, en establecimientos especializados | AZ21: 0 | BA21: 5 | BB21: 0 | BC21: 5 | BD21: 0 | BE21: 0 | BF21: 5 | BG21: 0 | BJ21: 20 | BK21: 49 | BL21: 20 | BM21: 49 | BN21: =VLOOKUP(BL21,Hoja4!$A$29:$B$61,2,FALSE) -> Cesar | BP21: Cesar | BQ21: 49 | BR21: 395 | BT21: 5360 | BU21: 108 | BV21: 18001 | BW21: 41 | BX21: 18 | BY21: =VLOOKUP(BX21,Hoja4!$A$29:$B$61,2,FALSE) -> Caquetá | BZ21: =VLOOKUP(BV21,Hoja4!$D$29:$E$1150,2,FALSE) -> Florencia | CA21: 41 | CB21: 224 | CD21: Comercio al por mayor a cambio de una retribución o por contrata | CE21: 38 | CF21: 540 | CG21: Comercio al por menor en puestos de venta móviles | CH21: 7 | CI21: 17 | CM21: ADMINISTRACIÓN PÚBLICA Y DEFENSA; PLANES DE SEGURIDAD SOCIAL DE AFILIACIÓN OBLIGATORIA | CN21: 3769 | CO21: 590 | CP21: 7 | CS21: ACTIVIDADES DE LOS HOGARES INDIVIDUALES EN CALIDAD DE EMPLEADORES; ACTIVIDADES NO DIFERENCIADAS DE LOS HOGARES INDIVIDUALES COMO PRODUCTORES DE BIENES Y SERVICIOS PARA USO PROPIO | CT21: 35 | CU21: 41 | CV21: 0 | CX21: Suministro De Electricidad, Gas, Vapor Y Aire Acondicionado | CY21: 0.7162393162 | CZ21: 0.1452991453 | DA21: 0.1384615385
C22: 54405 | D22: LOS PATIOS | E22: 2 | F22: 0 | G22: Natural | H22: 54 | I22: NORTE DE SANTANDER | J22: Aprobado con subsidio | K22: MICRO | L22: 4923 | M22: TRANSPORTE Y ALMACENAMIENTO | N22: H | O22: Transporte terrestre publico automotor | P22: Transporte terrestre publico automotor | Q22: 1 | R22: 1 | S22: 0 | T22: 1 | U22: 0 | V22: 1 | W22: 2 | X22: 0 | Z22: 97 | AA22: 2 | AB22: 85 | AC22: 152 | AD22: =VLOOKUP(AB22,Hoja4!$A$29:$B$61,2,FALSE) -> Casanare | AJ22: 0 | AK22: 0 | AL22: 85001 | AM22: YOPAL | AN22: 4 | AO22: 0 | AP22: Natural | AQ22: 85 | AR22: CASANARE | AS22: Aprobado con subsidio | AT22: MICRO | AU22: 4769 | AV22: COMERCIO AL POR MAYOR Y AL POR MENOR; REPARACIÓN DE VEHÍCULOS AUTOMOTORES Y MOTOCICLETAS | AW22: G | AX22: Comercio al por menor de artículos culturales y de entretenimiento, en establecimientos especializados | AY22: Comercio al por menor de artículos culturales y de entretenimiento, en establecimientos especializados | AZ22: 3 | BA22: 1 | BB22: 0 | BC22: 3 | BD22: 1 | BE22: 0 | BF22: 4 | BG22: 0 | BJ22: 97 | BK22: 0 | BL22: 19 | BM22: 41 | BN22: =VLOOKUP(BL22,Hoja4!$A$29:$B$61,2,FALSE) -> Cauca | BP22: Cauca | BQ22: 41 | BR22: 122 | BT22: 23001 | BU22: 55 | BV22: 5615 | BW22: 38 | BX22: 5 | BY22: =VLOOKUP(BX22,Hoja4!$A$29:$B$61,2,FALSE) -> Antioquia | BZ22: =VLOOKUP(BV22,Hoja4!$D$29:$E$1150,2,FALSE) -> Rionegro | CA22: 38 | CB22: 430 | CD22: 0 | CE22: 0 | CF22: 0 | CG22: 0 | CH22: 0 | CI22: 0 | CM22: DISTRIBUCIÓN DE AGUA; EVACUACIÓN Y TRATAMIENTO DE AGUAS RESIDUALES, GESTIÓN DE DESECHOS Y ACTIVIDADES DE SANEAMIENTO AMBIENTAL | CN22: 1699 | CO22: 236 | CP22: 844 | CS22: OTRAS | CT22: 11 | CU22: 6 | CV22: 12 | CX22: Actividades De Los Hogares Individuales En Calidad De Empleadores; Actividades No Diferenciadas De Los Hogares Individuales Como Productores De Bienes Y Servicios Para Uso Propio | CY22: 0.4605263158 | CZ22: 0.5394736842 | DA22: 0
C23: 68276 | D23: FLORIDABLANCA | E23: 1 | F23: 2 | G23: Natural | H23: 68 | I23: SANTANDER | J23: Aprobado con subsidio | K23: MICRO | L23: 126 | M23: AGRICULTURA, GANADERÍA, CAZA, SILVICULTURA Y PESCA | N23: A | O23: Cultivos agrícolas permanentes | P23: Cultivos agrícolas permanentes | Q23: 0 | R23: 1 | S23: 0 | T23: 1 | U23: 0 | V23: 0 | W23: 1 | X23: 0 | Z23: 81 | AA23: 54 | AB23: 18 | AC23: 106 | AD23: =VLOOKUP(AB23,Hoja4!$A$29:$B$61,2,FALSE) -> Caquetá | AJ23: 0 | AK23: 0 | AL23: 15759 | AM23: SOGAMOSO | AN23: 2 | AO23: 2 | AP23: Natural | AQ23: 15 | AR23: BOYACÁ | AS23: Aprobado con subsidio | AT23: MICRO | AU23: 4799 | AV23: COMERCIO AL POR MAYOR Y AL POR MENOR; REPARACIÓN DE VEHÍCULOS AUTOMOTORES Y MOTOCICLETAS | AW23: G | AX23: Comercio al por menor no realizado en establecimientos, puestos de venta o mercados | AY23: Comercio al por menor no realizado en establecimientos, puestos de venta o mercados | AZ23: 1 | BA23: 1 | BB23: 0 | BC23: 1 | BD23: 0 | BE23: 1 | BF23: 2 | BG23: 0 | BJ23: 81 | BK23: 22 | BL23: 70 | BM23: 27 | BN23: =VLOOKUP(BL23,Hoja4!$A$29:$B$61,2,FALSE) -> Sucre | BP23: Sucre | BQ23: 27 | BR23: 210 | BT23: 5697 | BU23: 3 | BV23: 5088 | BW23: 37 | BX23: 5 | BY23: =VLOOKUP(BX23,Hoja4!$A$29:$B$61,2,FALSE) -> Antioquia | BZ23: =VLOOKUP(BV23,Hoja4!$D$29:$E$1150,2,FALSE) -> Bello | CA23: 37 | CB23: 323 | CE23: 0 | CF23: 0 | CG23: 0 | CH23: 0 | CI23: 0 | CM23: 0 | CN23: 0 | CO23: 0 | CP23: 0 | CS23: 0 | CT23: 0 | CU23: 0 | CV23: 0 | CX23: Otras | CY23: 0.3793103448 | CZ23: 0.2068965517 | DA23: 0.4137931034
C24: 54001 | D24: CÚCUTA | E24: 0 | F24: 0 | G24: Natural | H24: 54 | I24: NORTE DE SANTANDER | J24: 0 | K24: PEQUEÑA | L24: 6910 | M24: ACTIVIDADES PROFESIONALES, CIENTÍFICAS Y TÉCNICAS | N24: M | O24: Actividades jurídicas | P24: Actividades jurídicas | Q24: 0 | R24: 0 | S24: 0 | T24: 0 | U24: 0 | V24: 0 | W24: 0 | X24: 0 | Z24: 44 | AA24: 53 | AB24: 70 | AC24: 99 | AD24: =VLOOKUP(AB24,Hoja4!$A$29:$B$61,2,FALSE) -> Sucre | AJ24: 0 | AK24: 0 | AL24: 5001 | AM24: MEDELLÍN | AN24: 3 | AO24: 0 | AP24: Natural | AQ24: 5 | AR24: ANTIOQUIA | AS24: Aprobado con subsidio | AT24: MICRO | AU24: 4722 | AV24: COMERCIO AL POR MAYOR Y AL POR MENOR; REPARACIÓN DE VEHÍCULOS AUTOMOTORES Y MOTOCICLETAS | AW24: G | AX24: Comercio al por menor de alimentos (víveres en general), bebidas y tabaco, en establecimientos especializados | AY24: Comercio al por menor de alimentos (víveres en general), bebidas y tabaco, en establecimientos especializados | AZ24: 1 | BA24: 2 | BB24: 0 | BC24: 1 | BD24: 1 | BE24: 1 | BF24: 3 | BG24: 0 | BJ24: 44 | BK24: 13 | BL24: 81 | BM24: 22 | BN24: =VLOOKUP(BL24,Hoja4!$A$29:$B$61,2,FALSE) -> Arauca | BP24: Arauca | BQ24: 22 | BR24: 62 | BT24: 54001 | BU24: 188 | BV24: 20001 | BW24: 37 | BX24: 20 | BY24: =VLOOKUP(BX24,Hoja4!$A$29:$B$61,2,FALSE) -> Cesar | BZ24: =VLOOKUP(BV24,Hoja4!$D$29:$E$1150,2,FALSE) -> Valledupar | CA24: 37 | CB24: 327 | CE24: 0 | CF24: 0 | CG24: 0 | CH24: 0 | CI24: 0
C25: 76400 | D25: LA UNIÓN | E25: 0 | F25: 0 | G25: Natural | H25: 76 | I25: VALLE DEL CAUCA | J25: 0 | K25: MICRO | L25: 4620 | M25: COMERCIO AL POR MAYOR Y AL POR MENOR; REPARACIÓN DE VEHÍCULOS AUTOMOTORES Y MOTOCICLETAS | N25: G | O25: Comercio al por mayor de materias primas agropecuarias; animales vivos | P25: Comercio al por mayor de materias primas agropecuarias; animales vivos | Q25: 0 | R25: 0 | S25: 0 | T25: 0 | U25: 0 | V25: 0 | W25: 0 | X25: 0 | Z25: 17 | AA25: 439 | AB25: 81 | AC25: 54 | AD25: =VLOOKUP(AB25,Hoja4!$A$29:$B$61,2,FALSE) -> Arauca | AJ25: 0 | AK25: 0 | AL25: 5001 | AM25: MEDELLÍN | AN25: 1 | AO25: 0 | AP25: Natural | AQ25: 5 | AR25: ANTIOQUIA | AS25: Aprobado con subsidio | AT25: MICRO | AU25: 4771 | AV25: COMERCIO AL POR MAYOR Y AL POR MENOR; REPARACIÓN DE VEHÍCULOS AUTOMOTORES Y MOTOCICLETAS | AW25: G | AX25: Comercio al por menor de otros productos en establecimientos especializados | AY25: Comercio al por menor de otros productos en establecimientos especializados | AZ25: 1 | BA25: 0 | BB25: 0 | BC25: 1 | BD25: 0 | BE25: 0 | BF25: 1 | BG25: 0 | BJ25: 17 | BK25: 89 | BL25: 85 | BM25: 21 | BN25: =VLOOKUP(BL25,Hoja4!$A$29:$B$61,2,FALSE) -> Casanare | BP25: =BN25 -> Casanare | BQ25: =BM25 -> 21 | BR25: 87 | BT25: 15667 | BU25: 0 | BV25: 5631 | BW25: 36 | BX25: 5 | BY25: =VLOOKUP(BX25,Hoja4!$A$29:$B$61,2,FALSE) -> Antioquia | BZ25: =VLOOKUP(BV25,Hoja4!$D$29:$E$1150,2,FALSE) -> Sabaneta | CA25: 36 | CB25: 385 | CE25: 0 | CF25: 0 | CG25: 0 | CH25: 0 | CI25: 0
C26: 63001 | D26: ARMENIA | E26: 0 | F26: 0 | G26: Natural | H26: 63 | I26: QUINDÍO | J26: 0 | K26: PEQUEÑA | L26: 4771 | M26: COMERCIO AL POR MAYOR Y AL POR MENOR; REPARACIÓN DE VEHÍCULOS AUTOMOTORES Y MOTOCICLETAS | N26: G | O26: Comercio al por menor de otros productos en establecimientos especializados | P26: Comercio al por menor de otros productos en establecimientos especializados | Q26: 0 | R26: 0 | S26: 0 | T26: 0 | U26: 0 | V26: 0 | W26: 0 | X26: 0 | Z26: 18 | AA26: 106 | AB26: 44 | AC26: 53 | AD26: =VLOOKUP(AB26,Hoja4!$A$29:$B$61,2,FALSE) -> La guajira | AJ26: 0 | AK26: 0 | AL26: 41001 | AM26: NEIVA | AN26: 0 | AO26: 0 | AP26: Natural | AQ26: 41 | AR26: HUILA | AS26: 0 | AT26: MICRO | AU26: 4755 | AV26: COMERCIO AL POR MAYOR Y AL POR MENOR; REPARACIÓN DE VEHÍCULOS AUTOMOTORES Y MOTOCICLETAS | AW26: G | AX26: Comercio al por menor de otros enseres domésticos en establecimientos especializados | AY26: Comercio al por menor de otros enseres domésticos en establecimientos especializados | AZ26: 0 | BA26: 0 | BB26: 0 | BC26: 0 | BD26: 0 | BE26: 0 | BF26: 0 | BG26: 0 | BJ26: 18 | BK26: 52 | BL26: 86 | BM26: 17 | BN26: =VLOOKUP(BL26,Hoja4!$A$29:$B$61,2,FALSE) -> Putumayo | BP26: Putumayo | BQ26: =BM26 -> 17 | BR26: 72 | BT26: 15001 | BU26: 19 | BV26: 25175 | BW26: 33 | BX26: 25 | BY26: =VLOOKUP(BX26,Hoja4!$A$29:$B$61,2,FALSE) -> Cundinamarca | BZ26: =VLOOKUP(BV26,Hoja4!$D$29:$E$1150,2,FALSE) -> Chía | CA26: 33 | CB26: 739 | CE26: 0 | CF26: 0 | CG26: 0 | CH26: 0 | CI26: 0
C27: 52001 | D27: PASTO | E27: 0 | F27: 0 | G27: Natural | H27: 52 | I27: NARIÑO | J27: 0 | K27: MICRO | L27: 5611 | M27: ALOJAMIENTO Y SERVICIOS DE COMIDA | N27: I | O27: Actividades de restaurantes, cafeterías y servicio móvil de comidas | P27: Actividades de restaurantes, cafeterías y servicio móvil de comidas | Q27: 0 | R27: 0 | S27: 0 | T27: 0 | U27: 0 | V27: 0 | W27: 0 | X27: 0 | Z27: 23 | AA27: 228 | AB27: 86 | AC27: 53 | AD27: =VLOOKUP(AB27,Hoja4!$A$29:$B$61,2,FALSE) -> Putumayo | AJ27: 0 | AK27: 0 | AL27: 5591 | AM27: PUERTO TRIUNFO | AN27: 0 | AO27: 0 | AP27: Natural | AQ27: 5 | AR27: ANTIOQUIA | AS27: 0 | AT27: MICRO | AU27: 4711 | AV27: COMERCIO AL POR MAYOR Y AL POR MENOR; REPARACIÓN DE VEHÍCULOS AUTOMOTORES Y MOTOCICLETAS | AW27: G | AX27: Comercio al por menor en establecimientos no especializados | AY27: Comercio al por menor en establecimientos no especializados | AZ27: 0 | BA27: 0 | BB27: 0 | BC27: 0 | BD27: 0 | BE27: 0 | BF27: 0 | BG27: 0 | BJ27: 23 | BK27: 70 | BL27: 44 | BM27: 13 | BN27: =VLOOKUP(BL27,Hoja4!$A$29:$B$61,2,FALSE) -> La guajira | BP27: La guajira | BQ27: =BM27 -> 13 | BR27: 55 | BT27: 15753 | BU27: 1 | BV27: 15238 | BW27: 31 | BX27: 15 | BY27: =VLOOKUP(BX27,Hoja4!$A$29:$B$61,2,FALSE) -> Boyacá | BZ27: =VLOOKUP(BV27,Hoja4!$D$29:$E$1150,2,FALSE) -> Duitama | CA27: 31 | CB27: 156 | CE27: 0 | CF27: 0
C28: 76828 | D28: TRUJILLO | E28: 6 | F28: 1 | G28: Natural | H28: 76 | I28: VALLE DEL CAUCA | J28: Aprobado con subsidio | K28: MICRO | L28: 4752 | M28: COMERCIO AL POR MAYOR Y AL POR MENOR; REPARACIÓN DE VEHÍCULOS AUTOMOTORES Y MOTOCICLETAS | N28: G | O28: Comercio al por menor de otros enseres domésticos en establecimientos especializados | P28: Comercio al por menor de otros enseres domésticos en establecimientos especializados | Q28: 3 | R28: 3 | S28: 0 | T28: 3 | U28: 0 | V28: 3 | W28: 6 | X28: 0 | Z28: 88 | AA28: 27 | AB28: 88 | AC28: 27 | AD28: =VLOOKUP(AB28,Hoja4!$A$29:$B$61,2,FALSE) -> San Andrés | AJ28: 0 | AK28: 0 | AL28: 5001 | AM28: MEDELLÍN | AN28: 2 | AO28: 1 | AP28: Natural | AQ28: 5 | AR28: ANTIOQUIA | AS28: Aprobado con subsidio | AT28: MICRO | AU28: 4663 | AV28: COMERCIO AL POR MAYOR Y AL POR MENOR; REPARACIÓN DE VEHÍCULOS AUTOMOTORES Y MOTOCICLETAS | AW28: G | AX28: Comercio al por mayor especializado de otros productos | AY28: Comercio al por mayor especializado de otros productos | AZ28: 0 | BA28: 0 | BB28: 2 | BC28: 2 | BD28: 0 | BE28: 0 | BF28: 0 | BG28: 2 | BJ28: 88 | BK28: 11 | BL28: 88 | BM28: 11 | BN28: =VLOOKUP(BL28,Hoja4!$A$29:$B$61,2,FALSE) -> San Andrés | BP28: San Andrés | BQ28: =BM28 -> 11 | BR28: 70 | BT28: 15808 | BU28: 0 | BV28: 66170 | BW28: 29 | BX28: 66 | BY28: =VLOOKUP(BX28,Hoja4!$A$29:$B$61,2,FALSE) -> Risaralda | BZ28: =VLOOKUP(BV28,Hoja4!$D$29:$E$1150,2,FALSE) -> Dosquebradas | CA28: 29 | CB28: 562 | CE28: =SUM(CE2:CE27) -> 5787 | CF28: =SUM(CF2:CF27) -> 71750
C29: 76001 | D29: CALI | E29: 1 | F29: 1 | G29: Natural | H29: 76 | I29: VALLE DEL CAUCA | J29: Aprobado con subsidio | K29: MICRO | L29: 121 | M29: AGRICULTURA, GANADERÍA, CAZA, SILVICULTURA Y PESCA | N29: A | O29: Cultivos agrícolas permanentes | P29: Cultivos agrícolas permanentes | Q29: 1 | R29: 0 | S29: 0 | T29: 1 | U29: 0 | V29: 0 | W29: 1 | X29: 0 | Z29: 91 | AA29: 18 | AB29: 91 | AC29: 18 | AD29: =VLOOKUP(AB29,Hoja4!$A$29:$B$61,2,FALSE) -> Amazonas | AJ29: 0 | AK29: 0 | AL29: 5264 | AM29: ENTRERRIOS | AN29: 0 | AO29: 0 | AP29: Natural | AQ29: 5 | AR29: ANTIOQUIA | AS29: 0 | AT29: MICRO | AU29: 4724 | AV29: COMERCIO AL POR MAYOR Y AL POR MENOR; REPARACIÓN DE VEHÍCULOS AUTOMOTORES Y MOTOCICLETAS | AW29: G | AX29: Comercio al por menor de alimentos (víveres en general), bebidas y tabaco, en establecimientos especializados | AY29: Comercio al por menor de alimentos (víveres en general), bebidas y tabaco, en establecimientos especializados | AZ29: 0 | BA29: 0 | BB29: 0 | BC29: 0 | BD29: 0 | BE29: 0 | BF29: 0 | BG29: 0 | BJ29: 91 | BK29: 7 | BL29: 91 | BM29: 7 | BN29: =VLOOKUP(BL29,Hoja4!$A$29:$B$61,2,FALSE) -> Amazonas | BP29: Otros | BQ29: =SUM(BM29:BM34) -> 23 | BR29: =SUMIFS($AN$2:$AN$399999,$AS$2:$AS$399999,"Aprobado con subsidio")-SUM(BR2:BR28) -> 62 | BT29: 18001 | BU29: 41 | BV29: 76520 | BW29: 29 | BY29: Otros | BZ29: Otros | CA29: =SUM(BW29:BW1000) -> 1151 | CB29: =SUMIFS($AN$2:$AN$399999,$AS$2:$AS$399999,"Aprobado con subsidio")-SUM(CB2:CB28) -> 10022
C30: 5615 | D30: RIONEGRO | E30: 0 | F30: 0 | G30: Natural | H30: 5 | I30: ANTIOQUIA | J30: 0 | K30: PEQUEÑA | L30: 2012 | M30: INDUSTRIAS MANUFACTURERAS | N30: C | O30: Fabricación de sustancias químicas básicas, abonos y compuestos inorgánicos nitrogenados, plásticos y caucho sintético en formas primarias | P30: Fabricación de sustancias y productos químicos | Q30: 0 | R30: 0 | S30: 0 | T30: 0 | U30: 0 | V30: 0 | W30: 0 | X30: 0 | Z30: 95 | AA30: 10 | AB30: 27 | AC30: 18 | AD30: =VLOOKUP(AB30,Hoja4!$A$29:$B$61,2,FALSE) -> Chocó | AJ30: 0 | AK30: 0 | AL30: 5360 | AM30: ITAGUI | AN30: 0 | AO30: 0 | AP30: Natural | AQ30: 5 | AR30: ANTIOQUIA | AS30: 0 | AT30: MICRO | AU30: 4721 | AV30: COMERCIO AL POR MAYOR Y AL POR MENOR; REPARACIÓN DE VEHÍCULOS AUTOMOTORES Y MOTOCICLETAS | AW30: G | AX30: Comercio al por menor de alimentos (víveres en general), bebidas y tabaco, en establecimientos especializados | AY30: Comercio al por menor de alimentos (víveres en general), bebidas y tabaco, en establecimientos especializados | AZ30: 0 | BA30: 0 | BB30: 0 | BC30: 0 | BD30: 0 | BE30: 0 | BF30: 0 | BG30: 0 | BJ30: 95 | BK30: 5 | BL30: 27 | BM30: 7 | BN30: =VLOOKUP(BL30,Hoja4!$A$29:$B$61,2,FALSE) -> Chocó | BP30: Total | BQ30: =SUM(BQ2:BQ29) -> 5787 | BR30: =SUM(BR2:BR29) -> 71750 | BT30: 5266 | BU30: 53 | BV30: 25286 | BW30: 29 | BY30: Total | CA30: =SUM(CA2:CA29) -> 5787 | CB30: =SUM(CB2:CB29) -> 71750
C31: 11001 | D31: BOGOTÁ, D.C. | E31: 2 | F31: 1 | G31: Natural | H31: 11 | I31: BOGOTÁ, D.C. | J31: Aprobado con subsidio | K31: MICRO | L31: 1313 | M31: INDUSTRIAS MANUFACTURERAS | N31: C | O31: Preparación, hilatura, tejeduría y acabado de productos textiles | P31: Fabricación de productos textiles | Q31: 2 | R31: 0 | S31: 0 | T31: 1 | U31: 1 | V31: 0 | W31: 2 | X31: 0 | Z31: 86 | AA31: 53 | AB31: 95 | AC31: 10 | AD31: =VLOOKUP(AB31,Hoja4!$A$29:$B$61,2,FALSE) -> Guaviare | AJ31: 0 | AK31: 0 | AL31: 23001 | AM31: MONTERÍA | AN31: 0 | AO31: 0 | AP31: Natural | AQ31: 23 | AR31: CÓRDOBA | AS31: 0 | AT31: MEDIANA | AU31: 4711 | AV31: COMERCIO AL POR MAYOR Y AL POR MENOR; REPARACIÓN DE VEHÍCULOS AUTOMOTORES Y MOTOCICLETAS | AW31: G | AX31: Comercio al por menor en establecimientos no especializados | AY31: Comercio al por menor en establecimientos no especializados | AZ31: 0 | BA31: 0 | BB31: 0 | BC31: 0 | BD31: 0 | BE31: 0 | BF31: 0 | BG31: 0 | BJ31: 86 | BK31: 17 | BL31: 95 | BM31: 5 | BN31: =VLOOKUP(BL31,Hoja4!$A$29:$B$61,2,FALSE) -> Guaviare | BT31: 66001 | BU31: 105 | BV31: 76834 | BW31: 28
C32: 25214 | D32: COTA | E32: 0 | F32: 0 | G32: Natural | H32: 25 | I32: CUNDINAMARCA | J32: 0 | K32: PEQUEÑA | L32: 8530 | M32: EDUCACIÓN | N32: P | O32: Establecimientos que combinan diferentes niveles de educación | P32: Establecimientos que combinan diferentes niveles de educación | Q32: 0 | R32: 0 | S32: 0 | T32: 0 | U32: 0 | V32: 0 | W32: 0 | X32: 0 | Z32: 27 | AA32: 18 | AB32: 94 | AC32: 5 | AD32: =VLOOKUP(AB32,Hoja4!$A$29:$B$61,2,FALSE) -> Guainía | AJ32: 0 | AK32: 0 | AL32: 5001 | AM32: MEDELLÍN | AN32: 0 | AO32: 0 | AP32: Natural | AQ32: 5 | AR32: ANTIOQUIA | AS32: 0 | AT32: PEQUEÑA | AU32: 4711 | AV32: COMERCIO AL POR MAYOR Y AL POR MENOR; REPARACIÓN DE VEHÍCULOS AUTOMOTORES Y MOTOCICLETAS | AW32: G | AX32: Comercio al por menor en establecimientos no especializados | AY32: Comercio al por menor en establecimientos no especializados | AZ32: 0 | BA32: 0 | BB32: 0 | BC32: 0 | BD32: 0 | BE32: 0 | BF32: 0 | BG32: 0 | BJ32: 27 | BK32: 7 | BL32: 94 | BM32: 2 | BN32: =VLOOKUP(BL32,Hoja4!$A$29:$B$61,2,FALSE) -> Guainía | BT32: 66594 | BU32: 4 | BV32: 5045 | BW32: 28
C33: 50001 | D33: VILLAVICENCIO | E33: 0 | F33: 0 | G33: Natural | H33: 50 | I33: META | J33: 0 | K33: MICRO | L33: 4530 | M33: COMERCIO AL POR MAYOR Y AL POR MENOR; REPARACIÓN DE VEHÍCULOS AUTOMOTORES Y MOTOCICLETAS | N33: G | O33: Comercio de partes, piezas (autopartes) y accesorios (lujos) para vehículos automotores | P33: Comercio de partes, piezas (autopartes) y accesorios (lujos) para vehículos automotores | Q33: 0 | R33: 0 | S33: 0 | T33: 0 | U33: 0 | V33: 0 | W33: 0 | X33: 0 | Z33: 94 | AA33: 5 | AB33: 97 | AC33: 2 | AD33: =VLOOKUP(AB33,Hoja4!$A$29:$B$61,2,FALSE) -> Vaupés | AJ33: 0 | AK33: 0 | AL33: 11001 | AM33: BOGOTÁ, D.C. | AN33: 1 | AO33: 7 | AP33: Natural | AQ33: 11 | AR33: BOGOTÁ, D.C. | AS33: Aprobado con subsidio | AT33: PEQUEÑA | AU33: 4771 | AV33: COMERCIO AL POR MAYOR Y AL POR MENOR; REPARACIÓN DE VEHÍCULOS AUTOMOTORES Y MOTOCICLETAS | AW33: G | AX33: Comercio al por menor de otros productos en establecimientos especializados | AY33: Comercio al por menor de otros productos en establecimientos especializados | AZ33: 1 | BA33: 0 | BB33: 0 | BC33: 1 | BD33: 0 | BE33: 0 | BF33: 0 | BG33: 1 | BJ33: 94 | BK33: 2 | BL33: 99 | BM33: 2 | BN33: =VLOOKUP(BL33,Hoja4!$A$29:$B$61,2,FALSE) -> Vichada | BT33: 66170 | BU33: 29 | BV33: 19001 | BW33: 26
C34: 11001 | D34: BOGOTÁ, D.C. | E34: 1 | F34: 1 | G34: Natural | H34: 11 | I34: BOGOTÁ, D.C. | J34: Aprobado con subsidio | K34: MICRO | L34: 4754 | M34: COMERCIO AL POR MAYOR Y AL POR MENOR; REPARACIÓN DE VEHÍCULOS AUTOMOTORES Y MOTOCICLETAS | N34: G | O34: Comercio al por menor de otros enseres domésticos en establecimientos especializados | P34: Comercio al por menor de otros enseres domésticos en establecimientos especializados | Q34: 0 | R34: 1 | S34: 0 | T34: 1 | U34: 0 | V34: 0 | W34: 1 | X34: 0 | Z34: 99 | AA34: 2 | AB34: 99 | AC34: 2 | AD34: =VLOOKUP(AB34,Hoja4!$A$29:$B$61,2,FALSE) -> Vichada | AJ34: 0 | AK34: 0 | AL34: 5001 | AM34: MEDELLÍN | AN34: 0 | AO34: 0 | AP34: Natural | AQ34: 5 | AR34: ANTIOQUIA | AS34: 0 | AT34: MICRO | AU34: 4520 | AV34: COMERCIO AL POR MAYOR Y AL POR MENOR; REPARACIÓN DE VEHÍCULOS AUTOMOTORES Y MOTOCICLETAS | AW34: G | AX34: Mantenimiento y reparación de vehículos automotores | AY34: Mantenimiento y reparación de vehículos automotores | AZ34: 0 | BA34: 0 | BB34: 0 | BC34: 0 | BD34: 0 | BE34: 0 | BF34: 0 | BG34: 0 | BJ34: 99 | BK34: 2 | BL34: 97 | BM34: 0 | BN34: =VLOOKUP(BL34,Hoja4!$A$29:$B$61,2,FALSE) -> Vaupés | BT34: 17777 | BU34: 1 | BV34: 5380 | BW34: 25
C35: 11001 | D35: BOGOTÁ, D.C. | E35: 2 | F35: 2 | G35: Natural | H35: 11 | I35: BOGOTÁ, D.C. | J35: Aprobado con subsidio | K35: MICRO | L35: 8512 | M35: EDUCACIÓN | N35: P | O35: Educación de la primera infancia, preescolar y básica primaria | P35: Educación de la primera infancia, preescolar y básica primaria | Q35: 2 | R35: 0 | S35: 0 | T35: 0 | U35: 2 | V35: 0 | W35: 2 | X35: 0 | AJ35: 0 | AK35: 0 | AL35: 5001 | AM35: MEDELLÍN | AN35: 0 | AO35: 0 | AP35: Natural | AQ35: 5 | AR35: ANTIOQUIA | AS35: 0 | AT35: MICRO | AU35: 4731 | AV35: COMERCIO AL POR MAYOR Y AL POR MENOR; REPARACIÓN DE VEHÍCULOS AUTOMOTORES Y MOTOCICLETAS | AW35: G | AX35: Comercio al por menor de combustible, lubricantes, aditivos y productos de limpieza para automotores, en establecimientos especializados | AY35: Comercio al por menor de combustible, lubricantes, aditivos y productos de limpieza para automotores, en establecimientos especializados | AZ35: 0 | BA35: 0 | BB35: 0 | BC35: 0 | BD35: 0 | BE35: 0 | BF35: 0 | BG35: 0 | BT35: 19698 | BU35: 6 | BV35: 15759 | BW35: 22
C36: 25181 | D36: CHOACHÍ | E36: 1 | F36: 0 | G36: Natural | H36: 25 | I36: CUNDINAMARCA | J36: Aprobado con subsidio | K36: MICRO | L36: 145 | M36: AGRICULTURA, GANADERÍA, CAZA, SILVICULTURA Y PESCA | N36: A | O36: Ganadería | P36: Ganadería | Q36: 0 | R36: 1 | S36: 0 | T36: 0 | U36: 0 | V36: 1 | W36: 1 | X36: 0 | AJ36: 0 | AK36: 0 | AL36: 5697 | AM36: EL SANTUARIO | AN36: 1 | AO36: 1 | AP36: Natural | AQ36: 5 | AR36: ANTIOQUIA | AS36: Aprobado con subsidio | AT36: MICRO | AU36: 4773 | AV36: COMERCIO AL POR MAYOR Y AL POR MENOR; REPARACIÓN DE VEHÍCULOS AUTOMOTORES Y MOTOCICLETAS | AW36: G | AX36: Comercio al por menor de otros productos en establecimientos especializados | AY36: Comercio al por menor de otros productos en establecimientos especializados | AZ36: 1 | BA36: 0 | BB36: 0 | BC36: 1 | BD36: 0 | BE36: 0 | BF36: 1 | BG36: 0 | BT36: 41807 | BU36: 0 | BV36: 25473 | BW36: 22
C37: 25181 | D37: CHOACHÍ | E37: 1 | F37: 1 | G37: Natural | H37: 25 | I37: CUNDINAMARCA | J37: Aprobado con subsidio | K37: PEQUEÑA | L37: 4663 | M37: COMERCIO AL POR MAYOR Y AL POR MENOR; REPARACIÓN DE VEHÍCULOS AUTOMOTORES Y MOTOCICLETAS | N37: G | O37: Comercio al por mayor especializado de otros productos | P37: Comercio al por mayor especializado de otros productos | Q37: 0 | R37: 1 | S37: 0 | T37: 0 | U37: 0 | V37: 1 | W37: 1 | X37: 0 | AJ37: 0 | AK37: 0 | AL37: 11001 | AM37: BOGOTÁ, D.C. | AN37: 1 | AO37: 1 | AP37: Natural | AQ37: 11 | AR37: BOGOTÁ, D.C. | AS37: Aprobado con subsidio | AT37: MICRO | AU37: 4652 | AV37: COMERCIO AL POR MAYOR Y AL POR MENOR; REPARACIÓN DE VEHÍCULOS AUTOMOTORES Y MOTOCICLETAS | AW37: G | AX37: Comercio al por mayor de maquinaria y equipo | AY37: Comercio al por mayor de maquinaria y equipo | AZ37: 0 | BA37: 1 | BB37: 0 | BC37: 1 | BD37: 0 | BE37: 0 | BF37: 1 | BG37: 0 | BT37: 41551 | BU37: 16 | BV37: 68307 | BW37: 21
C38: 11001 | D38: BOGOTÁ, D.C. | E38: 0 | F38: 0 | G38: Natural | H38: 11 | I38: BOGOTÁ, D.C. | J38: 0 | K38: PEQUEÑA | L38: 4520 | M38: COMERCIO AL POR MAYOR Y AL POR MENOR; REPARACIÓN DE VEHÍCULOS AUTOMOTORES Y MOTOCICLETAS | N38: G | O38: Mantenimiento y reparación de vehículos automotores | P38: Mantenimiento y reparación de vehículos automotores | Q38: 0 | R38: 0 | S38: 0 | T38: 0 | U38: 0 | V38: 0 | W38: 0 | X38: 0 | AJ38: 0 | AK38: 0 | AL38: 54001 | AM38: CÚCUTA | AN38: 2 | AO38: 0 | AP38: Natural | AQ38: 54 | AR38: NORTE DE SANTANDER | AS38: Aprobado con subsidio | AT38: PEQUEÑA | AU38: 4631 | AV38: COMERCIO AL POR MAYOR Y AL POR MENOR; REPARACIÓN DE VEHÍCULOS AUTOMOTORES Y MOTOCICLETAS | AW38: G | AX38: Comercio al por mayor de alimentos, bebidas y tabaco | AY38: Comercio al por mayor de alimentos, bebidas y tabaco | AZ38: 0 | BA38: 2 | BB38: 0 | BC38: 2 | BD38: 0 | BE38: 0 | BF38: 2 | BG38: 0 | BT38: 54498 | BU38: 18 | BV38: 76892 | BW38: 21
C39: 25279 | D39: FOMEQUE | E39: 1 | F39: 5 | G39: Natural | H39: 25 | I39: CUNDINAMARCA | J39: Aprobado con subsidio | K39: PEQUEÑA | L39: 145 | M39: AGRICULTURA, GANADERÍA, CAZA, SILVICULTURA Y PESCA | N39: A | O39: Ganadería | P39: Ganadería | Q39: 0 | R39: 1 | S39: 0 | T39: 1 | U39: 0 | V39: 0 | W39: 1 | X39: 0 | AJ39: 0 | AK39: 0 | AL39: 15667 | AM39: SAN LUIS DE GACENO | AN39: 0 | AO39: 0 | AP39: Natural | AQ39: 15 | AR39: BOYACÁ | AS39: 0 | AT39: MICRO | AU39: 4711 | AV39: COMERCIO AL POR MAYOR Y AL POR MENOR; REPARACIÓN DE VEHÍCULOS AUTOMOTORES Y MOTOCICLETAS | AW39: G | AX39: Comercio al por menor en establecimientos no especializados | AY39: Comercio al por menor en establecimientos no especializados | AZ39: 0 | BA39: 0 | BB39: 0 | BC39: 0 | BD39: 0 | BE39: 0 | BF39: 0 | BG39: 0 | BT39: 20011 | BU39: 7 | BV39: 70001 | BW39: 20
C40: 5001 | D40: MEDELLÍN | E40: 1 | F40: 0 | G40: Natural | H40: 5 | I40: ANTIOQUIA | J40: Aprobado con subsidio | K40: PEQUEÑA | L40: 4520 | M40: COMERCIO AL POR MAYOR Y AL POR MENOR; REPARACIÓN DE VEHÍCULOS AUTOMOTORES Y MOTOCICLETAS | N40: G | O40: Mantenimiento y reparación de vehículos automotores | P40: Mantenimiento y reparación de vehículos automotores | Q40: 0 | R40: 1 | S40: 0 | T40: 1 | U40: 0 | V40: 0 | W40: 1 | X40: 0 | AJ40: 0 | AK40: 0 | AL40: 15001 | AM40: TUNJA | AN40: 0 | AO40: 0 | AP40: Natural | AQ40: 15 | AR40: BOYACÁ | AS40: 0 | AT40: MICRO | AU40: 4721 | AV40: COMERCIO AL POR MAYOR Y AL POR MENOR; REPARACIÓN DE VEHÍCULOS AUTOMOTORES Y MOTOCICLETAS | AW40: G | AX40: Comercio al por menor de alimentos (víveres en general), bebidas y tabaco, en establecimientos especializados | AY40: Comercio al por menor de alimentos (víveres en general), bebidas y tabaco, en establecimientos especializados | AZ40: 0 | BA40: 0 | BB40: 0 | BC40: 0 | BD40: 0 | BE40: 0 | BF40: 0 | BG40: 0 | BT40: 52001 | BU40: 95 | BV40: 25754 | BW40: 20
C41: 25214 | D41: COTA | E41: 1 | F41: 6 | G41: Natural | H41: 25 | I41: CUNDINAMARCA | J41: Aprobado con subsidio | K41: MICRO | L41: 4290 | M41: CONSTRUCCIÓN | N41: F | O41: Construcción de otras obras de ingeniería civil | P41: Construcción de otras obras de ingeniería civil | Q41: 0 | R41: 1 | S41: 0 | T41: 0 | U41: 0 | V41: 1 | W41: 1 | X41: 0 | AJ41: 0 | AK41: 0 | AL41: 85001 | AM41: YOPAL | AN41: 2 | AO41: 1 | AP41: Natural | AQ41: 85 | AR41: CASANARE | AS41: Aprobado con subsidio | AT41: MICRO | AU41: 4542 | AV41: COMERCIO AL POR MAYOR Y AL POR MENOR; REPARACIÓN DE VEHÍCULOS AUTOMOTORES Y MOTOCICLETAS | AW41: G | AX41: Comercio, mantenimiento y reparación de motocicletas y de sus partes, piezas y accesorios | AY41: Comercio, mantenimiento y reparación de motocicletas y de sus partes, piezas y accesorios | AZ41: 1 | BA41: 1 | BB41: 0 | BC41: 2 | BD41: 0 | BE41: 0 | BF41: 2 | BG41: 0 | BT41: 52317 | BU41: 1 | BV41: 25126 | BW41: 20
C42: 25758 | D42: SOPÓ | E42: 2 | F42: 3 | G42: Natural | H42: 25 | I42: CUNDINAMARCA | J42: Aprobado con subsidio | K42: MICRO | L42: 141 | M42: AGRICULTURA, GANADERÍA, CAZA, SILVICULTURA Y PESCA | N42: A | O42: Ganadería | P42: Ganadería | Q42: 1 | R42: 1 | S42: 0 | T42: 1 | U42: 1 | V42: 0 | W42: 2 | X42: 0 | AJ42: 0 | AK42: 0 | AL42: 11001 | AM42: BOGOTÁ, D.C. | AN42: 0 | AO42: 0 | AP42: Natural | AQ42: 11 | AR42: BOGOTÁ, D.C. | AS42: 0 | AT42: MICRO | AU42: 4752 | AV42: COMERCIO AL POR MAYOR Y AL POR MENOR; REPARACIÓN DE VEHÍCULOS AUTOMOTORES Y MOTOCICLETAS | AW42: G | AX42: Comercio al por menor de otros enseres domésticos en establecimientos especializados | AY42: Comercio al por menor de otros enseres domésticos en establecimientos especializados | AZ42: 0 | BA42: 0 | BB42: 0 | BC42: 0 | BD42: 0 | BE42: 0 | BF42: 0 | BG42: 0 | BT42: 52683 | BU42: 1 | BV42: 15001 | BW42: 19
C43: 25297 | D43: GACHETÁ | E43: 1 | F43: 3 | G43: Natural | H43: 25 | I43: CUNDINAMARCA | J43: Aprobado con subsidio | K43: MICRO | L43: 4663 | M43: COMERCIO AL POR MAYOR Y AL POR MENOR; REPARACIÓN DE VEHÍCULOS AUTOMOTORES Y MOTOCICLETAS | N43: G | O43: Comercio al por mayor especializado de otros productos | P43: Comercio al por mayor especializado de otros productos | Q43: 1 | R43: 0 | S43: 0 | T43: 1 | U43: 0 | V43: 0 | W43: 1 | X43: 0 | AJ43: 0 | AK43: 0 | AL43: 11001 | AM43: BOGOTÁ, D.C. | AN43: 1 | AO43: 1 | AP43: Natural | AQ43: 11 | AR43: BOGOTÁ, D.C. | AS43: Aprobado con subsidio | AT43: MICRO | AU43: 4663 | AV43: COMERCIO AL POR MAYOR Y AL POR MENOR; REPARACIÓN DE VEHÍCULOS AUTOMOTORES Y MOTOCICLETAS | AW43: G | AX43: Comercio al por mayor especializado de otros productos | AY43: Comercio al por mayor especializado de otros productos | AZ43: 0 | BA43: 1 | BB43: 0 | BC43: 1 | BD43: 0 | BE43: 0 | BF43: 1 | BG43: 0 | BT43: 68406 | BU43: 4 | BV43: 54498 | BW43: 18
C44: 11001 | D44: BOGOTÁ, D.C. | E44: 0 | F44: 0 | G44: Natural | H44: 11 | I44: BOGOTÁ, D.C. | J44: 0 | K44: MICRO | L44: 2711 | M44: INDUSTRIAS MANUFACTURERAS | N44: C | O44: Fabricación de motores, generadores y transformadores eléctricos y de aparatos de distribución y control de la energía eléctrica | P44: Fabricación de aparatos y equipo eléctrico | Q44: 0 | R44: 0 | S44: 0 | T44: 0 | U44: 0 | V44: 0 | W44: 0 | X44: 0 | AJ44: 0 | AK44: 0 | AL44: 15753 | AM44: SOATÁ | AN44: 2 | AO44: 1 | AP44: Natural | AQ44: 15 | AR44: BOYACÁ | AS44: Aprobado con subsidio | AT44: MICRO | AU44: 4631 | AV44: COMERCIO AL POR MAYOR Y AL POR MENOR; REPARACIÓN DE VEHÍCULOS AUTOMOTORES Y MOTOCICLETAS | AW44: G | AX44: Comercio al por mayor de alimentos, bebidas y tabaco | AY44: Comercio al por mayor de alimentos, bebidas y tabaco | AZ44: 0 | BA44: 2 | BB44: 0 | BC44: 0 | BD44: 0 | BE44: 2 | BF44: 2 | BG44: 0 | BT44: 68081 | BU44: 10 | BV44: 5376 | BW44: 17
C45: 11001 | D45: BOGOTÁ, D.C. | E45: 0 | F45: 0 | G45: Natural | H45: 11 | I45: BOGOTÁ, D.C. | J45: 0 | K45: MICRO | L45: 7500 | M45: ACTIVIDADES PROFESIONALES, CIENTÍFICAS Y TÉCNICAS | N45: M | O45: Actividades veterinarias | P45: Actividades veterinarias | Q45: 0 | R45: 0 | S45: 0 | T45: 0 | U45: 0 | V45: 0 | W45: 0 | X45: 0 | AJ45: 0 | AK45: 0 | AL45: 11001 | AM45: BOGOTÁ, D.C. | AN45: 0 | AO45: 0 | AP45: Natural | AQ45: 11 | AR45: BOGOTÁ, D.C. | AS45: 0 | AT45: MICRO | AU45: 4642 | AV45: COMERCIO AL POR MAYOR Y AL POR MENOR; REPARACIÓN DE VEHÍCULOS AUTOMOTORES Y MOTOCICLETAS | AW45: G | AX45: Comercio al por mayor de artículos y enseres domésticos (incluidas prendas de vestir) | AY45: Comercio al por mayor de artículos y enseres domésticos (incluidas prendas de vestir) | AZ45: 0 | BA45: 0 | BB45: 0 | BC45: 0 | BD45: 0 | BE45: 0 | BF45: 0 | BG45: 0 | BT45: 68679 | BU45: 15 | BV45: 41551 | BW45: 16
C46: 11001 | D46: BOGOTÁ, D.C. | E46: 1 | F46: 6 | G46: Natural | H46: 11 | I46: BOGOTÁ, D.C. | J46: Aprobado con subsidio | K46: PEQUEÑA | L46: 8521 | M46: EDUCACIÓN | N46: P | O46: Educación secundaria y de formación laboral | P46: Educación secundaria y de formación laboral | Q46: 1 | R46: 0 | S46: 0 | T46: 1 | U46: 0 | V46: 0 | W46: 1 | X46: 0 | AJ46: 0 | AK46: 0 | AL46: 15808 | AM46: TINJACÁ | AN46: 0 | AO46: 0 | AP46: Natural | AQ46: 15 | AR46: BOYACÁ | AS46: 0 | AT46: MICRO | AU46: 4752 | AV46: COMERCIO AL POR MAYOR Y AL POR MENOR; REPARACIÓN DE VEHÍCULOS AUTOMOTORES Y MOTOCICLETAS | AW46: G | AX46: Comercio al por menor de otros enseres domésticos en establecimientos especializados | AY46: Comercio al por menor de otros enseres domésticos en establecimientos especializados | AZ46: 0 | BA46: 0 | BB46: 0 | BC46: 0 | BD46: 0 | BE46: 0 | BF46: 0 | BG46: 0 | BT46: 47288 | BU46: 1 | BV46: 68547 | BW46: 16
C47: 11001 | D47: BOGOTÁ, D.C. | E47: 0 | F47: 0 | G47: Natural | H47: 11 | I47: BOGOTÁ, D.C. | J47: 0 | K47: PEQUEÑA | L47: 1513 | M47: INDUSTRIAS MANUFACTURERAS | N47: C | O47: Curtido y recurtido de cueros; fabricación de artículos de viaje, bolsos de mano y artículos similares, y fabricación de artículos de talabartería y guarnicionería; adobo y teñido de pieles | P47: Curtido y recurtido de cueros; fabricación de calzado; fabricación de artículos de viaje, maletas, bolsos de mano y artículos similares, y fabricación de artículos de talabartería y guarnicionería; adobo y teñido de pieles | Q47: 0 | R47: 0 | S47: 0 | T47: 0 | U47: 0 | V47: 0 | W47: 0 | X47: 0 | AJ47: 0 | AK47: 0 | AL47: 18001 | AM47: FLORENCIA | AN47: 0 | AO47: 0 | AP47: Natural | AQ47: 18 | AR47: CAQUETÁ | AS47: 0 | AT47: MICRO | AU47: 4651 | AV47: COMERCIO AL POR MAYOR Y AL POR MENOR; REPARACIÓN DE VEHÍCULOS AUTOMOTORES Y MOTOCICLETAS | AW47: G | AX47: Comercio al por mayor de maquinaria y equipo | AY47: Comercio al por mayor de maquinaria y equipo | AZ47: 0 | BA47: 0 | BB47: 0 | BC47: 0 | BD47: 0 | BE47: 0 | BF47: 0 | BG47: 0 | BT47: 68895 | BU47: 0 | BV47: 54405 | BW47: 16
C48: 11001 | D48: BOGOTÁ, D.C. | E48: 1 | F48: 3 | G48: Natural | H48: 11 | I48: BOGOTÁ, D.C. | J48: Aprobado con subsidio | K48: MICRO | L48: 7310 | M48: ACTIVIDADES PROFESIONALES, CIENTÍFICAS Y TÉCNICAS | N48: M | O48: Publicidad | P48: Publicidad | Q48: 0 | R48: 1 | S48: 0 | T48: 1 | U48: 0 | V48: 0 | W48: 1 | X48: 0 | AJ48: 0 | AK48: 0 | AL48: 5266 | AM48: ENVIGADO | AN48: 1 | AO48: 0 | AP48: Natural | AQ48: 5 | AR48: ANTIOQUIA | AS48: Aprobado con subsidio | AT48: MICRO | AU48: 4541 | AV48: COMERCIO AL POR MAYOR Y AL POR MENOR; REPARACIÓN DE VEHÍCULOS AUTOMOTORES Y MOTOCICLETAS | AW48: G | AX48: Comercio, mantenimiento y reparación de motocicletas y de sus partes, piezas y accesorios | AY48: Comercio, mantenimiento y reparación de motocicletas y de sus partes, piezas y accesorios | AZ48: 1 | BA48: 0 | BB48: 0 | BC48: 1 | BD48: 0 | BE48: 0 | BF48: 1 | BG48: 0 | BT48: 73001 | BU48: 100 | BV48: 85001 | BW48: 15
C49: 15407 | D49: VILLA DE LEYVA | E49: 0 | F49: 0 | G49: Natural | H49: 15 | I49: BOYACÁ | J49: 0 | K49: MICRO | L49: 5511 | M49: ALOJAMIENTO Y SERVICIOS DE COMIDA | N49: I | O49: Actividades de alojamiento de estancias cortas | P49: Actividades de alojamiento de estancias cortas | Q49: 0 | R49: 0 | S49: 0 | T49: 0 | U49: 0 | V49: 0 | W49: 0 | X49: 0 | AJ49: 0 | AK49: 0 | AL49: 76001 | AM49: CALI | AN49: 0 | AO49: 0 | AP49: Natural | AQ49: 76 | AR49: VALLE DEL CAUCA | AS49: 0 | AT49: MICRO | AU49: 4530 | AV49: COMERCIO AL POR MAYOR Y AL POR MENOR; REPARACIÓN DE VEHÍCULOS AUTOMOTORES Y MOTOCICLETAS | AW49: G | AX49: Comercio de partes, piezas (autopartes) y accesorios (lujos) para vehículos automotores | AY49: Comercio de partes, piezas (autopartes) y accesorios (lujos) para vehículos automotores | AZ49: 0 | BA49: 0 | BB49: 0 | BC49: 0 | BD49: 0 | BE49: 0 | BF49: 0 | BG49: 0 | BT49: 76834 | BU49: 28 | BV49: 68679 | BW49: 15
C50: 25572 | D50: PUERTO SALGAR | E50: 0 | F50: 0 | G50: Natural | H50: 25 | I50: CUNDINAMARCA | J50: 0 | K50: PEQUEÑA | L50: 4290 | M50: CONSTRUCCIÓN | N50: F | O50: Construcción de otras obras de ingeniería civil | P50: Construcción de otras obras de ingeniería civil | Q50: 0 | R50: 0 | S50: 0 | T50: 0 | U50: 0 | V50: 0 | W50: 0 | X50: 0 | AJ50: 0 | AK50: 0 | AL50: 66001 | AM50: PEREIRA | AN50: 0 | AO50: 0 | AP50: Natural | AQ50: 66 | AR50: RISARALDA | AS50: 0 | AT50: MICRO | AU50: 4711 | AV50: COMERCIO AL POR MAYOR Y AL POR MENOR; REPARACIÓN DE VEHÍCULOS AUTOMOTORES Y MOTOCICLETAS | AW50: G | AX50: Comercio al por menor en establecimientos no especializados | AY50: Comercio al por menor en establecimientos no especializados | AZ50: 0 | BA50: 0 | BB50: 0 | BC50: 0 | BD50: 0 | BE50: 0 | BF50: 0 | BG50: 0 | BT50: 76020 | BU50: 1 | BV50: 25899 | BW50: 15
C51: 25430 | D51: MADRID | E51: 1 | F51: 3 | G51: Natural | H51: 25 | I51: CUNDINAMARCA | J51: Aprobado con subsidio | K51: MICRO | L51: 145 | M51: AGRICULTURA, GANADERÍA, CAZA, SILVICULTURA Y PESCA | N51: A | O51: Ganadería | P51: Ganadería | Q51: 1 | R51: 0 | S51: 0 | T51: 1 | U51: 0 | V51: 0 | W51: 1 | X51: 0 | AJ51: 0 | AK51: 0 | AL51: 66001 | AM51: PEREIRA | AN51: 1 | AO51: 8 | AP51: Natural | AQ51: 66 | AR51: RISARALDA | AS51: Aprobado con subsidio | AT51: PEQUEÑA | AU51: 4773 | AV51: COMERCIO AL POR MAYOR Y AL POR MENOR; REPARACIÓN DE VEHÍCULOS AUTOMOTORES Y MOTOCICLETAS | AW51: G | AX51: Comercio al por menor de otros productos en establecimientos especializados | AY51: Comercio al por menor de otros productos en establecimientos especializados | AZ51: 0 | BA51: 0 | BB51: 1 | BC51: 1 | BD51: 0 | BE51: 0 | BF51: 0 | BG51: 1 | BT51: 76122 | BU51: 6 | BV51: 52356 | BW51: 15
C52: 25599 | D52: APULO | E52: 0 | F52: 0 | G52: Natural | H52: 25 | I52: CUNDINAMARCA | J52: 0 | K52: MICRO | L52: 4322 | M52: CONSTRUCCIÓN | N52: F | O52: Instalaciones eléctricas, de fontanería y otras instalaciones especializadas | P52: Instalaciones eléctricas, de fontanería y otras instalaciones especializadas | Q52: 0 | R52: 0 | S52: 0 | T52: 0 | U52: 0 | V52: 0 | W52: 0 | X52: 0 | AJ52: 0 | AK52: 0 | AL52: 66594 | AM52: QUINCHÍA | AN52: 3 | AO52: 1 | AP52: Natural | AQ52: 66 | AR52: RISARALDA | AS52: Aprobado con subsidio | AT52: MICRO | AU52: 4711 | AV52: COMERCIO AL POR MAYOR Y AL POR MENOR; REPARACIÓN DE VEHÍCULOS AUTOMOTORES Y MOTOCICLETAS | AW52: G | AX52: Comercio al por menor en establecimientos no especializados | AY52: Comercio al por menor en establecimientos no especializados | AZ52: 0 | BA52: 3 | BB52: 0 | BC52: 3 | BD52: 0 | BE52: 0 | BF52: 3 | BG52: 0 | BT52: 5088 | BU52: 37 | BV52: 41396 | BW52: 14
C53: 25754 | D53: SOACHA | E53: 2 | F53: 0 | G53: Natural | H53: 25 | I53: CUNDINAMARCA | J53: Aprobado con subsidio | K53: MICRO | L53: 8219 | M53: ACTIVIDADES DE SERVICIOS ADMINISTRATIVOS Y DE APOYO | N53: N | O53: Actividades administrativas y de apoyo de oficina | P53: Actividades administrativas y de apoyo de oficina | Q53: 2 | R53: 0 | S53: 0 | T53: 1 | U53: 1 | V53: 0 | W53: 2 | X53: 0 | AJ53: 0 | AK53: 0 | AL53: 66170 | AM53: DOSQUEBRADAS | AN53: 1 | AO53: 0 | AP53: Natural | AQ53: 66 | AR53: RISARALDA | AS53: Aprobado con subsidio | AT53: MICRO | AU53: 4775 | AV53: COMERCIO AL POR MAYOR Y AL POR MENOR; REPARACIÓN DE VEHÍCULOS AUTOMOTORES Y MOTOCICLETAS | AW53: G | AX53: Comercio al por menor de otros productos en establecimientos especializados | AY53: Comercio al por menor de otros productos en establecimientos especializados | AZ53: 0 | BA53: 1 | BB53: 0 | BC53: 1 | BD53: 0 | BE53: 0 | BF53: 1 | BG53: 0 | BT53: 5631 | BU53: 36 | BV53: 81001 | BW53: 14
C54: 11001 | D54: BOGOTÁ, D.C. | E54: 14 | F54: 12 | G54: Natural | H54: 11 | I54: BOGOTÁ, D.C. | J54: Aprobado con subsidio | K54: PEQUEÑA | L54: 6910 | M54: ACTIVIDADES PROFESIONALES, CIENTÍFICAS Y TÉCNICAS | N54: M | O54: Actividades jurídicas | P54: Actividades jurídicas | Q54: 9 | R54: 5 | S54: 0 | T54: 14 | U54: 0 | V54: 0 | W54: 14 | X54: 0 | AJ54: 0 | AK54: 0 | AL54: 66001 | AM54: PEREIRA | AN54: 5 | AO54: 13 | AP54: Natural | AQ54: 66 | AR54: RISARALDA | AS54: Aprobado con subsidio | AT54: PEQUEÑA | AU54: 4754 | AV54: COMERCIO AL POR MAYOR Y AL POR MENOR; REPARACIÓN DE VEHÍCULOS AUTOMOTORES Y MOTOCICLETAS | AW54: G | AX54: Comercio al por menor de otros enseres domésticos en establecimientos especializados | AY54: Comercio al por menor de otros enseres domésticos en establecimientos especializados | AZ54: 1 | BA54: 4 | BB54: 0 | BC54: 5 | BD54: 0 | BE54: 0 | BF54: 4 | BG54: 1 | BT54: 70001 | BU54: 20 | BV54: 68276 | BW54: 14
C55: 11001 | D55: BOGOTÁ, D.C. | E55: 1 | F55: 2 | G55: Natural | H55: 11 | I55: BOGOTÁ, D.C. | J55: Aprobado con subsidio | K55: MICRO | L55: 4751 | M55: COMERCIO AL POR MAYOR Y AL POR MENOR; REPARACIÓN DE VEHÍCULOS AUTOMOTORES Y MOTOCICLETAS | N55: G | O55: Comercio al por menor de otros enseres domésticos en establecimientos especializados | P55: Comercio al por menor de otros enseres domésticos en establecimientos especializados | Q55: 1 | R55: 0 | S55: 0 | T55: 1 | U55: 0 | V55: 0 | W55: 1 | X55: 0 | AJ55: 0 | AK55: 0 | AL55: 17777 | AM55: SUPÍA | AN55: 0 | AO55: 0 | AP55: Natural | AQ55: 17 | AR55: CALDAS | AS55: 0 | AT55: PEQUEÑA | AU55: 4759 | AV55: COMERCIO AL POR MAYOR Y AL POR MENOR; REPARACIÓN DE VEHÍCULOS AUTOMOTORES Y MOTOCICLETAS | AW55: G | AX55: Comercio al por menor de otros enseres domésticos en establecimientos especializados | AY55: Comercio al por menor de otros enseres domésticos en establecimientos especializados | AZ55: 0 | BA55: 0 | BB55: 0 | BC55: 0 | BD55: 0 | BE55: 0 | BF55: 0 | BG55: 0 | BT55: 8001 | BU55: 202 | BV55: 25307 | BW55: 13
C56: 25785 | D56: TABIO | E56: 1 | F56: 2 | G56: Natural | H56: 25 | I56: CUNDINAMARCA | J56: Aprobado con subsidio | K56: MICRO | L56: 9004 | M56: ACTIVIDADES ARTÍSTICAS, DE ENTRETENIMIENTO Y RECREACIÓN | N56: R | O56: Actividades creativas, artísticas y de entretenimiento | P56: Actividades creativas, artísticas y de entretenimiento | Q56: 1 | R56: 0 | S56: 0 | T56: 1 | U56: 0 | V56: 0 | W56: 1 | X56: 0 | AJ56: 0 | AK56: 0 | AL56: 19698 | AM56: SANTANDER DE QUILICHAO | AN56: 0 | AO56: 0 | AP56: Natural | AQ56: 19 | AR56: CAUCA | AS56: 0 | AT56: MICRO | AU56: 4719 | AV56: COMERCIO AL POR MAYOR Y AL POR MENOR; REPARACIÓN DE VEHÍCULOS AUTOMOTORES Y MOTOCICLETAS | AW56: G | AX56: Comercio al por menor en establecimientos no especializados | AY56: Comercio al por menor en establecimientos no especializados | AZ56: 0 | BA56: 0 | BB56: 0 | BC56: 0 | BD56: 0 | BE56: 0 | BF56: 0 | BG56: 0 | BT56: 15646 | BU56: 1 | BV56: 76147 | BW56: 12
C57: 25799 | D57: TENJO | E57: 0 | F57: 0 | G57: Natural | H57: 25 | I57: CUNDINAMARCA | J57: 0 | K57: PEQUEÑA | L57: 4711 | M57: COMERCIO AL POR MAYOR Y AL POR MENOR; REPARACIÓN DE VEHÍCULOS AUTOMOTORES Y MOTOCICLETAS | N57: G | O57: Comercio al por menor en establecimientos no especializados | P57: Comercio al por menor en establecimientos no especializados | Q57: 0 | R57: 0 | S57: 0 | T57: 0 | U57: 0 | V57: 0 | W57: 0 | X57: 0 | AJ57: 0 | AK57: 0 | AL57: 76001 | AM57: CALI | AN57: 5 | AO57: 0 | AP57: Natural | AQ57: 76 | AR57: VALLE DEL CAUCA | AS57: Aprobado con subsidio | AT57: MICRO | AU57: 4752 | AV57: COMERCIO AL POR MAYOR Y AL POR MENOR; REPARACIÓN DE VEHÍCULOS AUTOMOTORES Y MOTOCICLETAS | AW57: G | AX57: Comercio al por menor de otros enseres domésticos en establecimientos especializados | AY57: Comercio al por menor de otros enseres domésticos en establecimientos especializados | AZ57: 5 | BA57: 0 | BB57: 0 | BC57: 5 | BD57: 0 | BE57: 0 | BF57: 5 | BG57: 0 | BT57: 15238 | BU57: 31 | BV57: 63130 | BW57: 11
C58: 50001 | D58: VILLAVICENCIO | E58: 5 | F58: 8 | G58: Natural | H58: 50 | I58: META | J58: Aprobado con subsidio | K58: MICRO | L58: 4729 | M58: COMERCIO AL POR MAYOR Y AL POR MENOR; REPARACIÓN DE VEHÍCULOS AUTOMOTORES Y MOTOCICLETAS | N58: G | O58: Comercio al por menor de alimentos (víveres en general), bebidas y tabaco, en establecimientos especializados | P58: Comercio al por menor de alimentos (víveres en general), bebidas y tabaco, en establecimientos especializados | Q58: 0 | R58: 5 | S58: 0 | T58: 5 | U58: 0 | V58: 0 | W58: 5 | X58: 0 | AJ58: 0 | AK58: 0 | AL58: 41807 | AM58: TIMANÁ | AN58: 0 | AO58: 0 | AP58: Natural | AQ58: 41 | AR58: HUILA | AS58: 0 | AT58: PEQUEÑA | AU58: 4711 | AV58: COMERCIO AL POR MAYOR Y AL POR MENOR; REPARACIÓN DE VEHÍCULOS AUTOMOTORES Y MOTOCICLETAS | AW58: G | AX58: Comercio al por menor en establecimientos no especializados | AY58: Comercio al por menor en establecimientos no especializados | AZ58: 0 | BA58: 0 | BB58: 0 | BC58: 0 | BD58: 0 | BE58: 0 | BF58: 0 | BG58: 0 | BT58: 85139 | BU58: 1 | BV58: 68081 | BW58: 10
C59: 11001 | D59: BOGOTÁ, D.C. | E59: 0 | F59: 0 | G59: Natural | H59: 11 | I59: BOGOTÁ, D.C. | J59: 0 | K59: MICRO | L59: 6810 | M59: ACTIVIDADES INMOBILIARIAS | N59: L | O59: Actividades inmobiliarias realizadas con bienes propios o arrendados | P59: Actividades inmobiliarias realizadas con bienes propios o arrendados | Q59: 0 | R59: 0 | S59: 0 | T59: 0 | U59: 0 | V59: 0 | W59: 0 | X59: 0 | AJ59: 0 | AK59: 0 | AL59: 41001 | AM59: NEIVA | AN59: 46 | AO59: 105 | AP59: Natural | AQ59: 41 | AR59: HUILA | AS59: Aprobado con subsidio | AT59: PEQUEÑA | AU59: 4752 | AV59: COMERCIO AL POR MAYOR Y AL POR MENOR; REPARACIÓN DE VEHÍCULOS AUTOMOTORES Y MOTOCICLETAS | AW59: G | AX59: Comercio al por menor de otros enseres domésticos en establecimientos especializados | AY59: Comercio al por menor de otros enseres domésticos en establecimientos especializados | AZ59: 1 | BA59: 45 | BB59: 0 | BC59: 18 | BD59: 1 | BE59: 27 | BF59: 45 | BG59: 1 | BT59: 47001 | BU59: 50 | BV59: 5129 | BW59: 10
C60: 25875 | D60: VILLETA | E60: 1 | F60: 0 | G60: Natural | H60: 25 | I60: CUNDINAMARCA | J60: Aprobado con subsidio | K60: PEQUEÑA | L60: 1081 | M60: INDUSTRIAS MANUFACTURERAS | N60: C | O60: Elaboración de otros productos alimenticios | P60: Elaboración de productos alimenticios | Q60: 1 | R60: 0 | S60: 0 | T60: 1 | U60: 0 | V60: 0 | W60: 1 | X60: 0 | AJ60: 0 | AK60: 0 | AL60: 41001 | AM60: NEIVA | AN60: 1 | AO60: 8 | AP60: Natural | AQ60: 41 | AR60: HUILA | AS60: Aprobado con subsidio | AT60: PEQUEÑA | AU60: 4711 | AV60: COMERCIO AL POR MAYOR Y AL POR MENOR; REPARACIÓN DE VEHÍCULOS AUTOMOTORES Y MOTOCICLETAS | AW60: G | AX60: Comercio al por menor en establecimientos no especializados | AY60: Comercio al por menor en establecimientos no especializados | AZ60: 1 | BA60: 0 | BB60: 0 | BC60: 1 | BD60: 0 | BE60: 0 | BF60: 1 | BG60: 0 | BT60: 19290 | BU60: 3 | BV60: 25817 | BW60: 10
C61: 25269 | D61: FACATATIVÁ | E61: 6 | F61: 3 | G61: Natural | H61: 25 | I61: CUNDINAMARCA | J61: Aprobado con subsidio | K61: MICRO | L61: 8560 | M61: EDUCACIÓN | N61: P | O61: Actividades de apoyo a la educación | P61: Actividades de apoyo a la educación | Q61: 3 | R61: 3 | S61: 0 | T61: 2 | U61: 1 | V61: 3 | W61: 6 | X61: 0 | AJ61: 0 | AK61: 0 | AL61: 41551 | AM61: PITALITO | AN61: 2 | AO61: 3 | AP61: Natural | AQ61: 41 | AR61: HUILA | AS61: Aprobado con subsidio | AT61: MICRO | AU61: 4754 | AV61: COMERCIO AL POR MAYOR Y AL POR MENOR; REPARACIÓN DE VEHÍCULOS AUTOMOTORES Y MOTOCICLETAS | AW61: G | AX61: Comercio al por menor de otros enseres domésticos en establecimientos especializados | AY61: Comercio al por menor de otros enseres domésticos en establecimientos especializados | AZ61: 1 | BA61: 1 | BB61: 0 | BC61: 1 | BD61: 1 | BE61: 0 | BF61: 2 | BG61: 0 | BT61: 44001 | BU61: 7 | BV61: 88001 | BW61: 9
C62: 85001 | D62: YOPAL | E62: 4 | F62: 0 | G62: Natural | H62: 85 | I62: CASANARE | J62: Aprobado con subsidio | K62: MICRO | L62: 4769 | M62: COMERCIO AL POR MAYOR Y AL POR MENOR; REPARACIÓN DE VEHÍCULOS AUTOMOTORES Y MOTOCICLETAS | N62: G | O62: Comercio al por menor de artículos culturales y de entretenimiento, en establecimientos especializados | P62: Comercio al por menor de artículos culturales y de entretenimiento, en establecimientos especializados | Q62: 3 | R62: 1 | S62: 0 | T62: 3 | U62: 1 | V62: 0 | W62: 4 | X62: 0 | AJ62: 0 | AK62: 0 | AL62: 41551 | AM62: PITALITO | AN62: 2 | AO62: 0 | AP62: Natural | AQ62: 41 | AR62: HUILA | AS62: Aprobado con subsidio | AT62: MICRO | AU62: 4620 | AV62: COMERCIO AL POR MAYOR Y AL POR MENOR; REPARACIÓN DE VEHÍCULOS AUTOMOTORES Y MOTOCICLETAS | AW62: G | AX62: Comercio al por mayor de materias primas agropecuarias; animales vivos | AY62: Comercio al por mayor de materias primas agropecuarias; animales vivos | AZ62: 1 | BA62: 1 | BB62: 0 | BC62: 2 | BD62: 0 | BE62: 0 | BF62: 2 | BG62: 0 | BT62: 50577 | BU62: 0 | BV62: 25290 | BW62: 9
C63: 50001 | D63: VILLAVICENCIO | E63: 0 | F63: 0 | G63: Natural | H63: 50 | I63: META | J63: 0 | K63: MICRO | L63: 6810 | M63: ACTIVIDADES INMOBILIARIAS | N63: L | O63: Actividades inmobiliarias realizadas con bienes propios o arrendados | P63: Actividades inmobiliarias realizadas con bienes propios o arrendados | Q63: 0 | R63: 0 | S63: 0 | T63: 0 | U63: 0 | V63: 0 | W63: 0 | X63: 0 | AJ63: 0 | AK63: 0 | AL63: 54498 | AM63: OCAÑA | AN63: 2 | AO63: 6 | AP63: Natural | AQ63: 54 | AR63: NORTE DE SANTANDER | AS63: Aprobado con subsidio | AT63: MICRO | AU63: 4541 | AV63: COMERCIO AL POR MAYOR Y AL POR MENOR; REPARACIÓN DE VEHÍCULOS AUTOMOTORES Y MOTOCICLETAS | AW63: G | AX63: Comercio, mantenimiento y reparación de motocicletas y de sus partes, piezas y accesorios | AY63: Comercio, mantenimiento y reparación de motocicletas y de sus partes, piezas y accesorios | AZ63: 1 | BA63: 1 | BB63: 0 | BC63: 2 | BD63: 0 | BE63: 0 | BF63: 2 | BG63: 0 | BT63: 13688 | BU63: 1 | BV63: 25269 | BW63: 8
C64: 5360 | D64: ITAGUI | E64: 0 | F64: 0 | G64: Natural | H64: 5 | I64: ANTIOQUIA | J64: 0 | K64: MICRO | L64: 1921 | M64: INDUSTRIAS MANUFACTURERAS | N64: C | O64: Fabricación de productos de la refinación del petróleo | P64: Coquización, fabricación de productos de la refinación del petróleo y actividad de mezcla de combustibles | Q64: 0 | R64: 0 | S64: 0 | T64: 0 | U64: 0 | V64: 0 | W64: 0 | X64: 0 | AJ64: 0 | AK64: 0 | AL64: 20011 | AM64: AGUACHICA | AN64: 0 | AO64: 0 | AP64: Natural | AQ64: 20 | AR64: CESAR | AS64: 0 | AT64: MICRO | AU64: 4759 | AV64: COMERCIO AL POR MAYOR Y AL POR MENOR; REPARACIÓN DE VEHÍCULOS AUTOMOTORES Y MOTOCICLETAS | AW64: G | AX64: Comercio al por menor de otros enseres domésticos en establecimientos especializados | AY64: Comercio al por menor de otros enseres domésticos en establecimientos especializados | AZ64: 0 | BA64: 0 | BB64: 0 | BC64: 0 | BD64: 0 | BE64: 0 | BF64: 0 | BG64: 0 | BT64: 25001 | BU64: 1 | BV64: 73268 | BW64: 8
C65: 5001 | D65: MEDELLÍN | E65: 1 | F65: 1 | G65: Natural | H65: 5 | I65: ANTIOQUIA | J65: Aprobado con subsidio | K65: MICRO | L65: 90 | M65: OTRAS | N65: Otras | O65: Otras | P65: Otras | Q65: 0 | R65: 1 | S65: 0 | T65: 0 | U65: 0 | V65: 1 | W65: 1 | X65: 0 | AJ65: 0 | AK65: 0 | AL65: 52001 | AM65: PASTO | AN65: 0 | AO65: 0 | AP65: Natural | AQ65: 52 | AR65: NARIÑO | AS65: 0 | AT65: MICRO | AU65: 4530 | AV65: COMERCIO AL POR MAYOR Y AL POR MENOR; REPARACIÓN DE VEHÍCULOS AUTOMOTORES Y MOTOCICLETAS | AW65: G | AX65: Comercio de partes, piezas (autopartes) y accesorios (lujos) para vehículos automotores | AY65: Comercio de partes, piezas (autopartes) y accesorios (lujos) para vehículos automotores | AZ65: 0 | BA65: 0 | BB65: 0 | BC65: 0 | BD65: 0 | BE65: 0 | BF65: 0 | BG65: 0 | BT65: 5154 | BU65: 5 | BV65: 20011 | BW65: 7
C66: 15759 | D66: SOGAMOSO | E66: 2 | F66: 2 | G66: Natural | H66: 15 | I66: BOYACÁ | J66: Aprobado con subsidio | K66: MICRO | L66: 4799 | M66: COMERCIO AL POR MAYOR Y AL POR MENOR; REPARACIÓN DE VEHÍCULOS AUTOMOTORES Y MOTOCICLETAS | N66: G | O66: Comercio al por menor no realizado en establecimientos, puestos de venta o mercados | P66: Comercio al por menor no realizado en establecimientos, puestos de venta o mercados | Q66: 1 | R66: 1 | S66: 0 | T66: 1 | U66: 0 | V66: 1 | W66: 2 | X66: 0 | AJ66: 0 | AK66: 0 | AL66: 52001 | AM66: PASTO | AN66: 1 | AO66: 2 | AP66: Natural | AQ66: 52 | AR66: NARIÑO | AS66: Aprobado con subsidio | AT66: PEQUEÑA | AU66: 4731 | AV66: COMERCIO AL POR MAYOR Y AL POR MENOR; REPARACIÓN DE VEHÍCULOS AUTOMOTORES Y MOTOCICLETAS | AW66: G | AX66: Comercio al por menor de combustible, lubricantes, aditivos y productos de limpieza para automotores, en establecimientos especializados | AY66: Comercio al por menor de combustible, lubricantes, aditivos y productos de limpieza para automotores, en establecimientos especializados | AZ66: 0 | BA66: 1 | BB66: 0 | BC66: 1 | BD66: 0 | BE66: 0 | BF66: 1 | BG66: 0 | BT66: 5604 | BU66: =COUNTIFS($AS$2:$AS$399999,"Aprobado con subsidio",$AL$2:$AL$399999,BT66) -> 1 | BV66: 44001 | BW66: 7
C67: 5001 | D67: MEDELLÍN | E67: 0 | F67: 0 | G67: Natural | H67: 5 | I67: ANTIOQUIA | J67: 0 | K67: MICRO | L67: 141 | M67: AGRICULTURA, GANADERÍA, CAZA, SILVICULTURA Y PESCA | N67: A | O67: Ganadería | P67: Ganadería | Q67: 0 | R67: 0 | S67: 0 | T67: 0 | U67: 0 | V67: 0 | W67: 0 | X67: 0 | AJ67: 0 | AK67: 0 | AL67: 52001 | AM67: PASTO | AN67: 0 | AO67: 0 | AP67: Natural | AQ67: 52 | AR67: NARIÑO | AS67: 0 | AT67: MICRO | AU67: 4752 | AV67: COMERCIO AL POR MAYOR Y AL POR MENOR; REPARACIÓN DE VEHÍCULOS AUTOMOTORES Y MOTOCICLETAS | AW67: G | AX67: Comercio al por menor de otros enseres domésticos en establecimientos especializados | AY67: Comercio al por menor de otros enseres domésticos en establecimientos especializados | AZ67: 0 | BA67: 0 | BB67: 0 | BC67: 0 | BD67: 0 | BE67: 0 | BF67: 0 | BG67: 0 | BT67: 5736 | BU67: 2 | BV67: 17873 | BW67: 7
C68: 5001 | D68: MEDELLÍN | E68: 1 | F68: 2 | G68: Natural | H68: 5 | I68: ANTIOQUIA | J68: Aprobado con subsidio | K68: MICRO | L68: 5611 | M68: ALOJAMIENTO Y SERVICIOS DE COMIDA | N68: I | O68: Actividades de restaurantes, cafeterías y servicio móvil de comidas | P68: Actividades de restaurantes, cafeterías y servicio móvil de comidas | Q68: 0 | R68: 1 | S68: 0 | T68: 0 | U68: 0 | V68: 1 | W68: 1 | X68: 0 | AJ68: 0 | AK68: 0 | AL68: 52317 | AM68: GUACHUCAL | AN68: 2 | AO68: 0 | AP68: Natural | AQ68: 52 | AR68: NARIÑO | AS68: Aprobado con subsidio | AT68: PEQUEÑA | AU68: 4731 | AV68: COMERCIO AL POR MAYOR Y AL POR MENOR; REPARACIÓN DE VEHÍCULOS AUTOMOTORES Y MOTOCICLETAS | AW68: G | AX68: Comercio al por menor de combustible, lubricantes, aditivos y productos de limpieza para automotores, en establecimientos especializados | AY68: Comercio al por menor de combustible, lubricantes, aditivos y productos de limpieza para automotores, en establecimientos especializados | AZ68: 0 | BA68: 2 | BB68: 0 | BC68: 2 | BD68: 0 | BE68: 0 | BF68: 2 | BG68: 0 | BT68: 17873 | BU68: 7 | BV68: 5837 | BW68: 7
C69: 5001 | D69: MEDELLÍN | E69: 3 | F69: 0 | G69: Natural | H69: 5 | I69: ANTIOQUIA | J69: Aprobado con subsidio | K69: MICRO | L69: 4722 | M69: COMERCIO AL POR MAYOR Y AL POR MENOR; REPARACIÓN DE VEHÍCULOS AUTOMOTORES Y MOTOCICLETAS | N69: G | O69: Comercio al por menor de alimentos (víveres en general), bebidas y tabaco, en establecimientos especializados | P69: Comercio al por menor de alimentos (víveres en general), bebidas y tabaco, en establecimientos especializados | Q69: 1 | R69: 2 | S69: 0 | T69: 1 | U69: 1 | V69: 1 | W69: 3 | X69: 0 | AJ69: 0 | AK69: 0 | AL69: 52001 | AM69: PASTO | AN69: 0 | AO69: 0 | AP69: Natural | AQ69: 52 | AR69: NARIÑO | AS69: 0 | AT69: MICRO | AU69: 4731 | AV69: COMERCIO AL POR MAYOR Y AL POR MENOR; REPARACIÓN DE VEHÍCULOS AUTOMOTORES Y MOTOCICLETAS | AW69: G | AX69: Comercio al por menor de combustible, lubricantes, aditivos y productos de limpieza para automotores, en establecimientos especializados | AY69: Comercio al por menor de combustible, lubricantes, aditivos y productos de limpieza para automotores, en establecimientos especializados | AZ69: 0 | BA69: 0 | BB69: 0 | BC69: 0 | BD69: 0 | BE69: 0 | BF69: 0 | BG69: 0 | BT69: 5837 | BU69: 7 | BV69: 54874 | BW69: 7
C70: 5001 | D70: MEDELLÍN | E70: 3 | F70: 0 | G70: Natural | H70: 5 | I70: ANTIOQUIA | J70: Aprobado con subsidio | K70: MICRO | L70: 3240 | M70: INDUSTRIAS MANUFACTURERAS | N70: C | O70: Fabricación de juegos, juguetes y rompecabezas | P70: Otras industrias manufactureras | Q70: 2 | R70: 1 | S70: 0 | T70: 2 | U70: 0 | V70: 1 | W70: 3 | X70: 0 | AJ70: 0 | AK70: 0 | AL70: 76001 | AM70: CALI | AN70: 0 | AO70: 0 | AP70: Natural | AQ70: 76 | AR70: VALLE DEL CAUCA | AS70: 0 | AT70: MICRO | AU70: 4774 | AV70: COMERCIO AL POR MAYOR Y AL POR MENOR; REPARACIÓN DE VEHÍCULOS AUTOMOTORES Y MOTOCICLETAS | AW70: G | AX70: Comercio al por menor de otros productos en establecimientos especializados | AY70: Comercio al por menor de otros productos en establecimientos especializados | AZ70: 0 | BA70: 0 | BB70: 0 | BC70: 0 | BD70: 0 | BE70: 0 | BF70: 0 | BG70: 0 | BT70: 47189 | BU70: 1 | BV70: 5212 | BW70: 7
C71: 5001 | D71: MEDELLÍN | E71: 1 | F71: 0 | G71: Natural | H71: 5 | I71: ANTIOQUIA | J71: Aprobado con subsidio | K71: MICRO | L71: 4771 | M71: COMERCIO AL POR MAYOR Y AL POR MENOR; REPARACIÓN DE VEHÍCULOS AUTOMOTORES Y MOTOCICLETAS | N71: G | O71: Comercio al por menor de otros productos en establecimientos especializados | P71: Comercio al por menor de otros productos en establecimientos especializados | Q71: 1 | R71: 0 | S71: 0 | T71: 1 | U71: 0 | V71: 0 | W71: 1 | X71: 0 | AJ71: 0 | AK71: 0 | AL71: 52683 | AM71: SANDONÁ | AN71: 2 | AO71: 2 | AP71: Natural | AQ71: 52 | AR71: NARIÑO | AS71: Aprobado con subsidio | AT71: MICRO | AU71: 4711 | AV71: COMERCIO AL POR MAYOR Y AL POR MENOR; REPARACIÓN DE VEHÍCULOS AUTOMOTORES Y MOTOCICLETAS | AW71: G | AX71: Comercio al por menor en establecimientos no especializados | AY71: Comercio al por menor en establecimientos no especializados | AZ71: 1 | BA71: 1 | BB71: 0 | BC71: 0 | BD71: 1 | BE71: 1 | BF71: 2 | BG71: 0 | BT71: 8638 | BU71: 2 | BV71: 86001 | BW71: 7
C72: 41001 | D72: NEIVA | E72: 0 | F72: 0 | G72: Natural | H72: 41 | I72: HUILA | J72: 0 | K72: MICRO | L72: 4755 | M72: COMERCIO AL POR MAYOR Y AL POR MENOR; REPARACIÓN DE VEHÍCULOS AUTOMOTORES Y MOTOCICLETAS | N72: G | O72: Comercio al por menor de otros enseres domésticos en establecimientos especializados | P72: Comercio al por menor de otros enseres domésticos en establecimientos especializados | Q72: 0 | R72: 0 | S72: 0 | T72: 0 | U72: 0 | V72: 0 | W72: 0 | X72: 0 | AJ72: 0 | AK72: 0 | AL72: 54001 | AM72: CÚCUTA | AN72: 1 | AO72: 1 | AP72: Natural | AQ72: 54 | AR72: NORTE DE SANTANDER | AS72: Aprobado con subsidio | AT72: MICRO | AU72: 4752 | AV72: COMERCIO AL POR MAYOR Y AL POR MENOR; REPARACIÓN DE VEHÍCULOS AUTOMOTORES Y MOTOCICLETAS | AW72: G | AX72: Comercio al por menor de otros enseres domésticos en establecimientos especializados | AY72: Comercio al por menor de otros enseres domésticos en establecimientos especializados | AZ72: 0 | BA72: 1 | BB72: 0 | BC72: 0 | BD72: 0 | BE72: 1 | BF72: 1 | BG72: 0 | BT72: 13001 | BU72: 84 | BV72: 8758 | BW72: 7
C73: 5591 | D73: PUERTO TRIUNFO | E73: 0 | F73: 0 | G73: Natural | H73: 5 | I73: ANTIOQUIA | J73: 0 | K73: MICRO | L73: 4711 | M73: COMERCIO AL POR MAYOR Y AL POR MENOR; REPARACIÓN DE VEHÍCULOS AUTOMOTORES Y MOTOCICLETAS | N73: G | O73: Comercio al por menor en establecimientos no especializados | P73: Comercio al por menor en establecimientos no especializados | Q73: 0 | R73: 0 | S73: 0 | T73: 0 | U73: 0 | V73: 0 | W73: 0 | X73: 0 | AJ73: 0 | AK73: 0 | AL73: 11001 | AM73: BOGOTÁ, D.C. | AN73: 0 | AO73: 0 | AP73: Natural | AQ73: 11 | AR73: BOGOTÁ, D.C. | AS73: 0 | AT73: MICRO | AU73: 4773 | AV73: COMERCIO AL POR MAYOR Y AL POR MENOR; REPARACIÓN DE VEHÍCULOS AUTOMOTORES Y MOTOCICLETAS | AW73: G | AX73: Comercio al por menor de otros productos en establecimientos especializados | AY73: Comercio al por menor de otros productos en establecimientos especializados | AZ73: 0 | BA73: 0 | BB73: 0 | BC73: 0 | BD73: 0 | BE73: 0 | BF73: 0 | BG73: 0 | BT73: 25295 | BU73: 0 | BV73: 5308 | BW73: 7
C74: 5001 | D74: MEDELLÍN | E74: 0 | F74: 0 | G74: Natural | H74: 5 | I74: ANTIOQUIA | J74: 0 | K74: PEQUEÑA | L74: 121 | M74: AGRICULTURA, GANADERÍA, CAZA, SILVICULTURA Y PESCA | N74: A | O74: Cultivos agrícolas permanentes | P74: Cultivos agrícolas permanentes | Q74: 0 | R74: 0 | S74: 0 | T74: 0 | U74: 0 | V74: 0 | W74: 0 | X74: 0 | AJ74: 0 | AK74: 0 | AL74: 68001 | AM74: BUCARAMANGA | AN74: 3 | AO74: 2 | AP74: Natural | AQ74: 68 | AR74: SANTANDER | AS74: Aprobado con subsidio | AT74: MICRO | AU74: 4774 | AV74: COMERCIO AL POR MAYOR Y AL POR MENOR; REPARACIÓN DE VEHÍCULOS AUTOMOTORES Y MOTOCICLETAS | AW74: G | AX74: Comercio al por menor de otros productos en establecimientos especializados | AY74: Comercio al por menor de otros productos en establecimientos especializados | AZ74: 3 | BA74: 0 | BB74: 0 | BC74: 3 | BD74: 0 | BE74: 0 | BF74: 3 | BG74: 0 | BT74: 17001 | BU74: 64 | BV74: 54518 | BW74: 7
C75: 5001 | D75: MEDELLÍN | E75: 2 | F75: 1 | G75: Natural | H75: 5 | I75: ANTIOQUIA | J75: Aprobado con subsidio | K75: MICRO | L75: 4663 | M75: COMERCIO AL POR MAYOR Y AL POR MENOR; REPARACIÓN DE VEHÍCULOS AUTOMOTORES Y MOTOCICLETAS | N75: G | O75: Comercio al por mayor especializado de otros productos | P75: Comercio al por mayor especializado de otros productos | Q75: 0 | R75: 0 | S75: 2 | T75: 2 | U75: 0 | V75: 0 | W75: 0 | X75: 2 | AJ75: 0 | AK75: 0 | AL75: 68001 | AM75: BUCARAMANGA | AN75: 0 | AO75: 0 | AP75: Natural | AQ75: 68 | AR75: SANTANDER | AS75: 0 | AT75: MICRO | AU75: 4729 | AV75: COMERCIO AL POR MAYOR Y AL POR MENOR; REPARACIÓN DE VEHÍCULOS AUTOMOTORES Y MOTOCICLETAS | AW75: G | AX75: Comercio al por menor de alimentos (víveres en general), bebidas y tabaco, en establecimientos especializados | AY75: Comercio al por menor de alimentos (víveres en general), bebidas y tabaco, en establecimientos especializados | AZ75: 0 | BA75: 0 | BB75: 0 | BC75: 0 | BD75: 0 | BE75: 0 | BF75: 0 | BG75: 0 | BT75: 76147 | BU75: 12 | BV75: 19698 | BW75: 6
C76: 5001 | D76: MEDELLÍN | E76: 0 | F76: 0 | G76: Natural | H76: 5 | I76: ANTIOQUIA | J76: 0 | K76: MICRO | L76: 4923 | M76: TRANSPORTE Y ALMACENAMIENTO | N76: H | O76: Transporte terrestre publico automotor | P76: Transporte terrestre publico automotor | Q76: 0 | R76: 0 | S76: 0 | T76: 0 | U76: 0 | V76: 0 | W76: 0 | X76: 0 | AJ76: 0 | AK76: 0 | AL76: 68406 | AM76: LEBRIJA | AN76: 0 | AO76: 0 | AP76: Natural | AQ76: 68 | AR76: SANTANDER | AS76: 0 | AT76: MICRO | AU76: 4752 | AV76: COMERCIO AL POR MAYOR Y AL POR MENOR; REPARACIÓN DE VEHÍCULOS AUTOMOTORES Y MOTOCICLETAS | AW76: G | AX76: Comercio al por menor de otros enseres domésticos en establecimientos especializados | AY76: Comercio al por menor de otros enseres domésticos en establecimientos especializados | AZ76: 0 | BA76: 0 | BB76: 0 | BC76: 0 | BD76: 0 | BE76: 0 | BF76: 0 | BG76: 0 | BT76: 5034 | BU76: 2 | BV76: 76122 | BW76: 6
C77: 5264 | D77: ENTRERRIOS | E77: 0 | F77: 0 | G77: Natural | H77: 5 | I77: ANTIOQUIA | J77: 0 | K77: MEDIANA | L77: 121 | M77: AGRICULTURA, GANADERÍA, CAZA, SILVICULTURA Y PESCA | N77: A | O77: Cultivos agrícolas permanentes | P77: Cultivos agrícolas permanentes | Q77: 0 | R77: 0 | S77: 0 | T77: 0 | U77: 0 | V77: 0 | W77: 0 | X77: 0 | AJ77: 0 | AK77: 0 | AL77: 68406 | AM77: LEBRIJA | AN77: 0 | AO77: 0 | AP77: Natural | AQ77: 68 | AR77: SANTANDER | AS77: 0 | AT77: MEDIANA | AU77: 4711 | AV77: COMERCIO AL POR MAYOR Y AL POR MENOR; REPARACIÓN DE VEHÍCULOS AUTOMOTORES Y MOTOCICLETAS | AW77: G | AX77: Comercio al por menor en establecimientos no especializados | AY77: Comercio al por menor en establecimientos no especializados | AZ77: 0 | BA77: 0 | BB77: 0 | BC77: 0 | BD77: 0 | BE77: 0 | BF77: 0 | BG77: 0 | BT77: 17380 | BU77: 5 | BV77: 50313 | BW77: 6
C78: 5264 | D78: ENTRERRIOS | E78: 0 | F78: 0 | G78: Natural | H78: 5 | I78: ANTIOQUIA | J78: 0 | K78: MICRO | L78: 4724 | M78: COMERCIO AL POR MAYOR Y AL POR MENOR; REPARACIÓN DE VEHÍCULOS AUTOMOTORES Y MOTOCICLETAS | N78: G | O78: Comercio al por menor de alimentos (víveres en general), bebidas y tabaco, en establecimientos especializados | P78: Comercio al por menor de alimentos (víveres en general), bebidas y tabaco, en establecimientos especializados | Q78: 0 | R78: 0 | S78: 0 | T78: 0 | U78: 0 | V78: 0 | W78: 0 | X78: 0 | AJ78: 0 | AK78: 0 | AL78: 11001 | AM78: BOGOTÁ, D.C. | AN78: 18 | AO78: 16 | AP78: Natural | AQ78: 11 | AR78: BOGOTÁ, D.C. | AS78: Aprobado con subsidio | AT78: MICRO | AU78: 4732 | AV78: COMERCIO AL POR MAYOR Y AL POR MENOR; REPARACIÓN DE VEHÍCULOS AUTOMOTORES Y MOTOCICLETAS | AW78: G | AX78: Comercio al por menor de combustible, lubricantes, aditivos y productos de limpieza para automotores, en establecimientos especializados | AY78: Comercio al por menor de combustible, lubricantes, aditivos y productos de limpieza para automotores, en establecimientos especializados | AZ78: 10 | BA78: 8 | BB78: 0 | BC78: 7 | BD78: 5 | BE78: 6 | BF78: 18 | BG78: 0 | BT78: 19001 | BU78: 26 | BV78: 76111 | BW78: 6
C79: 5264 | D79: ENTRERRIOS | E79: 0 | F79: 0 | G79: Natural | H79: 5 | I79: ANTIOQUIA | J79: 0 | K79: MICRO | L79: 121 | M79: AGRICULTURA, GANADERÍA, CAZA, SILVICULTURA Y PESCA | N79: A | O79: Cultivos agrícolas permanentes | P79: Cultivos agrícolas permanentes | Q79: 0 | R79: 0 | S79: 0 | T79: 0 | U79: 0 | V79: 0 | W79: 0 | X79: 0 | AJ79: 0 | AK79: 0 | AL79: 68081 | AM79: BARRANCABERMEJA | AN79: 0 | AO79: 0 | AP79: Natural | AQ79: 68 | AR79: SANTANDER | AS79: 0 | AT79: MICRO | AU79: 4731 | AV79: COMERCIO AL POR MAYOR Y AL POR MENOR; REPARACIÓN DE VEHÍCULOS AUTOMOTORES Y MOTOCICLETAS | AW79: G | AX79: Comercio al por menor de combustible, lubricantes, aditivos y productos de limpieza para automotores, en establecimientos especializados | AY79: Comercio al por menor de combustible, lubricantes, aditivos y productos de limpieza para automotores, en establecimientos especializados | AZ79: 0 | BA79: 0 | BB79: 0 | BC79: 0 | BD79: 0 | BE79: 0 | BF79: 0 | BG79: 0 | BT79: 19532 | BU79: 1 | BV79: 5887 | BW79: 6
C80: 5360 | D80: ITAGUI | E80: 0 | F80: 0 | G80: Natural | H80: 5 | I80: ANTIOQUIA | J80: 0 | K80: MICRO | L80: 4721 | M80: COMERCIO AL POR MAYOR Y AL POR MENOR; REPARACIÓN DE VEHÍCULOS AUTOMOTORES Y MOTOCICLETAS | N80: G | O80: Comercio al por menor de alimentos (víveres en general), bebidas y tabaco, en establecimientos especializados | P80: Comercio al por menor de alimentos (víveres en general), bebidas y tabaco, en establecimientos especializados | Q80: 0 | R80: 0 | S80: 0 | T80: 0 | U80: 0 | V80: 0 | W80: 0 | X80: 0 | AJ80: 0 | AK80: 0 | AL80: 68679 | AM80: SAN GIL | AN80: 16 | AO80: 12 | AP80: Natural | AQ80: 68 | AR80: SANTANDER | AS80: Aprobado con subsidio | AT80: PEQUEÑA | AU80: 4711 | AV80: COMERCIO AL POR MAYOR Y AL POR MENOR; REPARACIÓN DE VEHÍCULOS AUTOMOTORES Y MOTOCICLETAS | AW80: G | AX80: Comercio al por menor en establecimientos no especializados | AY80: Comercio al por menor en establecimientos no especializados | AZ80: 6 | BA80: 10 | BB80: 0 | BC80: 14 | BD80: 1 | BE80: 1 | BF80: 14 | BG80: 2 | BT80: 73275 | BU80: 0 | BV80: 91001 | BW80: 6
C81: 5001 | D81: MEDELLÍN | E81: 0 | F81: 0 | G81: Natural | H81: 5 | I81: ANTIOQUIA | J81: 0 | K81: PEQUEÑA | L81: 1011 | M81: INDUSTRIAS MANUFACTURERAS | N81: C | O81: Procesamiento y conservación de carne, pescado, crustáceos y moluscos | P81: Elaboración de productos alimenticios | Q81: 0 | R81: 0 | S81: 0 | T81: 0 | U81: 0 | V81: 0 | W81: 0 | X81: 0 | AJ81: 0 | AK81: 0 | AL81: 11001 | AM81: BOGOTÁ, D.C. | AN81: 0 | AO81: 0 | AP81: Natural | AQ81: 11 | AR81: BOGOTÁ, D.C. | AS81: 0 | AT81: MICRO | AU81: 4723 | AV81: COMERCIO AL POR MAYOR Y AL POR MENOR; REPARACIÓN DE VEHÍCULOS AUTOMOTORES Y MOTOCICLETAS | AW81: G | AX81: Comercio al por menor de alimentos (víveres en general), bebidas y tabaco, en establecimientos especializados | AY81: Comercio al por menor de alimentos (víveres en general), bebidas y tabaco, en establecimientos especializados | AZ81: 0 | BA81: 0 | BB81: 0 | BC81: 0 | BD81: 0 | BE81: 0 | BF81: 0 | BG81: 0 | BT81: 25899 | BU81: 15 | BV81: 76364 | BW81: 6
C82: 23001 | D82: MONTERÍA | E82: 0 | F82: 0 | G82: Natural | H82: 23 | I82: CÓRDOBA | J82: 0 | K82: MEDIANA | L82: 4711 | M82: COMERCIO AL POR MAYOR Y AL POR MENOR; REPARACIÓN DE VEHÍCULOS AUTOMOTORES Y MOTOCICLETAS | N82: G | O82: Comercio al por menor en establecimientos no especializados | P82: Comercio al por menor en establecimientos no especializados | Q82: 0 | R82: 0 | S82: 0 | T82: 0 | U82: 0 | V82: 0 | W82: 0 | X82: 0 | AJ82: 0 | AK82: 0 | AL82: 47288 | AM82: FUNDACIÓN | AN82: 0 | AO82: 0 | AP82: Natural | AQ82: 47 | AR82: MAGDALENA | AS82: 0 | AT82: MICRO | AU82: 4664 | AV82: COMERCIO AL POR MAYOR Y AL POR MENOR; REPARACIÓN DE VEHÍCULOS AUTOMOTORES Y MOTOCICLETAS | AW82: G | AX82: Comercio al por mayor especializado de otros productos | AY82: Comercio al por mayor especializado de otros productos | AZ82: 0 | BA82: 0 | BB82: 0 | BC82: 0 | BD82: 0 | BE82: 0 | BF82: 0 | BG82: 0 | BT82: 25269 | BU82: 8 | BV82: 25875 | BW82: 6
C83: 5001 | D83: MEDELLÍN | E83: 0 | F83: 0 | G83: Natural | H83: 5 | I83: ANTIOQUIA | J83: 0 | K83: PEQUEÑA | L83: 4711 | M83: COMERCIO AL POR MAYOR Y AL POR MENOR; REPARACIÓN DE VEHÍCULOS AUTOMOTORES Y MOTOCICLETAS | N83: G | O83: Comercio al por menor en establecimientos no especializados | P83: Comercio al por menor en establecimientos no especializados | Q83: 0 | R83: 0 | S83: 0 | T83: 0 | U83: 0 | V83: 0 | W83: 0 | X83: 0 | AJ83: 0 | AK83: 0 | AL83: 68001 | AM83: BUCARAMANGA | AN83: 3 | AO83: 124 | AP83: Natural | AQ83: 68 | AR83: SANTANDER | AS83: Aprobado con subsidio | AT83: MEDIANA | AU83: 4711 | AV83: COMERCIO AL POR MAYOR Y AL POR MENOR; REPARACIÓN DE VEHÍCULOS AUTOMOTORES Y MOTOCICLETAS | AW83: G | AX83: Comercio al por menor en establecimientos no especializados | AY83: Comercio al por menor en establecimientos no especializados | AZ83: 3 | BA83: 0 | BB83: 0 | BC83: 3 | BD83: 0 | BE83: 0 | BF83: 3 | BG83: 0 | BT83: 52356 | BU83: 15 | BV83: 81736 | BW83: 6
C84: 11001 | D84: BOGOTÁ, D.C. | E84: 0 | F84: 0 | G84: Natural | H84: 11 | I84: BOGOTÁ, D.C. | J84: 0 | K84: MICRO | L84: 1410 | M84: INDUSTRIAS MANUFACTURERAS | N84: C | O84: Confección de prendas de vestir, excepto prendas de piel | P84: Confección de prendas de vestir | Q84: 0 | R84: 0 | S84: 0 | T84: 0 | U84: 0 | V84: 0 | W84: 0 | X84: 0 | AJ84: 0 | AK84: 0 | AL84: 68895 | AM84: ZAPATOCA | AN84: 0 | AO84: 0 | AP84: Natural | AQ84: 68 | AR84: SANTANDER | AS84: 0 | AT84: MICRO | AU84: 4752 | AV84: COMERCIO AL POR MAYOR Y AL POR MENOR; REPARACIÓN DE VEHÍCULOS AUTOMOTORES Y MOTOCICLETAS | AW84: G | AX84: Comercio al por menor de otros enseres domésticos en establecimientos especializados | AY84: Comercio al por menor de otros enseres domésticos en establecimientos especializados | AZ84: 0 | BA84: 0 | BB84: 0 | BC84: 0 | BD84: 0 | BE84: 0 | BF84: 0 | BG84: 0 | BT84: 76109 | BU84: 5 | BV84: 25758 | BW84: 6
C85: 11001 | D85: BOGOTÁ, D.C. | E85: 1 | F85: 7 | G85: Natural | H85: 11 | I85: BOGOTÁ, D.C. | J85: Aprobado con subsidio | K85: PEQUEÑA | L85: 4771 | M85: COMERCIO AL POR MAYOR Y AL POR MENOR; REPARACIÓN DE VEHÍCULOS AUTOMOTORES Y MOTOCICLETAS | N85: G | O85: Comercio al por menor de otros productos en establecimientos especializados | P85: Comercio al por menor de otros productos en establecimientos especializados | Q85: 1 | R85: 0 | S85: 0 | T85: 1 | U85: 0 | V85: 0 | W85: 0 | X85: 1 | AJ85: 0 | AK85: 0 | AL85: 73001 | AM85: IBAGUÉ | AN85: 0 | AO85: 0 | AP85: Natural | AQ85: 73 | AR85: TOLIMA | AS85: 0 | AT85: MICRO | AU85: 4751 | AV85: COMERCIO AL POR MAYOR Y AL POR MENOR; REPARACIÓN DE VEHÍCULOS AUTOMOTORES Y MOTOCICLETAS | AW85: G | AX85: Comercio al por menor de otros enseres domésticos en establecimientos especializados | AY85: Comercio al por menor de otros enseres domésticos en establecimientos especializados | AZ85: 0 | BA85: 0 | BB85: 0 | BC85: 0 | BD85: 0 | BE85: 0 | BF85: 0 | BG85: 0 | BT85: 41298 | BU85: 3 | BV85: 5541 | BW85: 6
C86: 5001 | D86: MEDELLÍN | E86: 2 | F86: 0 | G86: Natural | H86: 5 | I86: ANTIOQUIA | J86: Aprobado con subsidio | K86: MICRO | L86: 3110 | M86: INDUSTRIAS MANUFACTURERAS | N86: C | O86: Fabricación de muebles | P86: Fabricación de muebles, colchones y somieres | Q86: 1 | R86: 1 | S86: 0 | T86: 2 | U86: 0 | V86: 0 | W86: 2 | X86: 0 | AJ86: 0 | AK86: 0 | AL86: 73001 | AM86: IBAGUÉ | AN86: 4 | AO86: 0 | AP86: Natural | AQ86: 73 | AR86: TOLIMA | AS86: Aprobado con subsidio | AT86: MICRO | AU86: 4773 | AV86: COMERCIO AL POR MAYOR Y AL POR MENOR; REPARACIÓN DE VEHÍCULOS AUTOMOTORES Y MOTOCICLETAS | AW86: G | AX86: Comercio al por menor de otros productos en establecimientos especializados | AY86: Comercio al por menor de otros productos en establecimientos especializados | AZ86: 3 | BA86: 1 | BB86: 0 | BC86: 0 | BD86: 3 | BE86: 1 | BF86: 4 | BG86: 0 | BT86: 41396 | BU86: 14 | BV86: 5440 | BW86: 6
C87: 5001 | D87: MEDELLÍN | E87: 0 | F87: 0 | G87: Natural | H87: 5 | I87: ANTIOQUIA | J87: 0 | K87: MICRO | L87: 4520 | M87: COMERCIO AL POR MAYOR Y AL POR MENOR; REPARACIÓN DE VEHÍCULOS AUTOMOTORES Y MOTOCICLETAS | N87: G | O87: Mantenimiento y reparación de vehículos automotores | P87: Mantenimiento y reparación de vehículos automotores | Q87: 0 | R87: 0 | S87: 0 | T87: 0 | U87: 0 | V87: 0 | W87: 0 | X87: 0 | AJ87: 0 | AK87: 0 | AL87: 73001 | AM87: IBAGUÉ | AN87: 1 | AO87: 0 | AP87: Natural | AQ87: 73 | AR87: TOLIMA | AS87: Aprobado con subsidio | AT87: MICRO | AU87: 4752 | AV87: COMERCIO AL POR MAYOR Y AL POR MENOR; REPARACIÓN DE VEHÍCULOS AUTOMOTORES Y MOTOCICLETAS | AW87: G | AX87: Comercio al por menor de otros enseres domésticos en establecimientos especializados | AY87: Comercio al por menor de otros enseres domésticos en establecimientos especializados | AZ87: 0 | BA87: 1 | BB87: 0 | BC87: 1 | BD87: 0 | BE87: 0 | BF87: 1 | BG87: 0 | BT87: 41524 | BU87: 1 | BV87: 76130 | BW87: 6
C88: 5209 | D88: CONCORDIA | E88: 0 | F88: 0 | G88: Natural | H88: 5 | I88: ANTIOQUIA | J88: 0 | K88: MICRO | L88: 123 | M88: AGRICULTURA, GANADERÍA, CAZA, SILVICULTURA Y PESCA | N88: A | O88: Cultivos agrícolas permanentes | P88: Cultivos agrícolas permanentes | Q88: 0 | R88: 0 | S88: 0 | T88: 0 | U88: 0 | V88: 0 | W88: 0 | X88: 0 | AJ88: 0 | AK88: 0 | AL88: 73001 | AM88: IBAGUÉ | AN88: 0 | AO88: 0 | AP88: Natural | AQ88: 73 | AR88: TOLIMA | AS88: 0 | AT88: MICRO | AU88: 4752 | AV88: COMERCIO AL POR MAYOR Y AL POR MENOR; REPARACIÓN DE VEHÍCULOS AUTOMOTORES Y MOTOCICLETAS | AW88: G | AX88: Comercio al por menor de otros enseres domésticos en establecimientos especializados | AY88: Comercio al por menor de otros enseres domésticos en establecimientos especializados | AZ88: 0 | BA88: 0 | BB88: 0 | BC88: 0 | BD88: 0 | BE88: 0 | BF88: 0 | BG88: 0 | BT88: 25312 | BU88: 0 | BV88: 15176 | BW88: 5
C89: 5001 | D89: MEDELLÍN | E89: 0 | F89: 0 | G89: Natural | H89: 5 | I89: ANTIOQUIA | J89: 0 | K89: MICRO | L89: 4731 | M89: COMERCIO AL POR MAYOR Y AL POR MENOR; REPARACIÓN DE VEHÍCULOS AUTOMOTORES Y MOTOCICLETAS | N89: G | O89: Comercio al por menor de combustible, lubricantes, aditivos y productos de limpieza para automotores, en establecimientos especializados | P89: Comercio al por menor de combustible, lubricantes, aditivos y productos de limpieza para automotores, en establecimientos especializados | Q89: 0 | R89: 0 | S89: 0 | T89: 0 | U89: 0 | V89: 0 | W89: 0 | X89: 0 | AJ89: 0 | AK89: 0 | AL89: 5001 | AM89: MEDELLÍN | AN89: 0 | AO89: 0 | AP89: Natural | AQ89: 5 | AR89: ANTIOQUIA | AS89: 0 | AT89: MICRO | AU89: 4719 | AV89: COMERCIO AL POR MAYOR Y AL POR MENOR; REPARACIÓN DE VEHÍCULOS AUTOMOTORES Y MOTOCICLETAS | AW89: G | AX89: Comercio al por menor en establecimientos no especializados | AY89: Comercio al por menor en establecimientos no especializados | AZ89: 0 | BA89: 0 | BB89: 0 | BC89: 0 | BD89: 0 | BE89: 0 | BF89: 0 | BG89: 0 | BT89: 20400 | BU89: 1 | BV89: 76400 | BW89: 5
C90: 5697 | D90: EL SANTUARIO | E90: 1 | F90: 1 | G90: Natural | H90: 5 | I90: ANTIOQUIA | J90: Aprobado con subsidio | K90: MICRO | L90: 4773 | M90: COMERCIO AL POR MAYOR Y AL POR MENOR; REPARACIÓN DE VEHÍCULOS AUTOMOTORES Y MOTOCICLETAS | N90: G | O90: Comercio al por menor de otros productos en establecimientos especializados | P90: Comercio al por menor de otros productos en establecimientos especializados | Q90: 1 | R90: 0 | S90: 0 | T90: 1 | U90: 0 | V90: 0 | W90: 1 | X90: 0 | AJ90: 0 | AK90: 0 | AL90: 63001 | AM90: ARMENIA | AN90: 0 | AO90: 0 | AP90: Natural | AQ90: 63 | AR90: QUINDÍO | AS90: 0 | AT90: PEQUEÑA | AU90: 4752 | AV90: COMERCIO AL POR MAYOR Y AL POR MENOR; REPARACIÓN DE VEHÍCULOS AUTOMOTORES Y MOTOCICLETAS | AW90: G | AX90: Comercio al por menor de otros enseres domésticos en establecimientos especializados | AY90: Comercio al por menor de otros enseres domésticos en establecimientos especializados | AZ90: 0 | BA90: 0 | BB90: 0 | BC90: 0 | BD90: 0 | BE90: 0 | BF90: 0 | BG90: 0 | BT90: 20001 | BU90: 37 | BV90: 5154 | BW90: 5
C91: 5001 | D91: MEDELLÍN | E91: 0 | F91: 0 | G91: Natural | H91: 5 | I91: ANTIOQUIA | J91: 0 | K91: PEQUEÑA | L91: 722 | M91: EXPLOTACIÓN DE MINAS Y CANTERAS | N91: B | O91: Extracción de minerales metalíferos no ferrosos | P91: Extracción de minerales metalíferos no ferrosos | Q91: 0 | R91: 0 | S91: 0 | T91: 0 | U91: 0 | V91: 0 | W91: 0 | X91: 0 | AJ91: 0 | AK91: 0 | AL91: 73001 | AM91: IBAGUÉ | AN91: 0 | AO91: 0 | AP91: Natural | AQ91: 73 | AR91: TOLIMA | AS91: 0 | AT91: MICRO | AU91: 4752 | AV91: COMERCIO AL POR MAYOR Y AL POR MENOR; REPARACIÓN DE VEHÍCULOS AUTOMOTORES Y MOTOCICLETAS | AW91: G | AX91: Comercio al por menor de otros enseres domésticos en establecimientos especializados | AY91: Comercio al por menor de otros enseres domésticos en establecimientos especializados | AZ91: 0 | BA91: 0 | BB91: 0 | BC91: 0 | BD91: 0 | BE91: 0 | BF91: 0 | BG91: 0 | BT91: 54874 | BU91: 7 | BV91: 17380 | BW91: 5
C92: 5001 | D92: MEDELLÍN | E92: 0 | F92: 0 | G92: Natural | H92: 5 | I92: ANTIOQUIA | J92: 0 | K92: PEQUEÑA | L92: 141 | M92: AGRICULTURA, GANADERÍA, CAZA, SILVICULTURA Y PESCA | N92: A | O92: Ganadería | P92: Ganadería | Q92: 0 | R92: 0 | S92: 0 | T92: 0 | U92: 0 | V92: 0 | W92: 0 | X92: 0 | AJ92: 0 | AK92: 0 | AL92: 76834 | AM92: TULUÁ | AN92: 2 | AO92: 7 | AP92: Natural | AQ92: 76 | AR92: VALLE DEL CAUCA | AS92: Aprobado con subsidio | AT92: PEQUEÑA | AU92: 4751 | AV92: COMERCIO AL POR MAYOR Y AL POR MENOR; REPARACIÓN DE VEHÍCULOS AUTOMOTORES Y MOTOCICLETAS | AW92: G | AX92: Comercio al por menor de otros enseres domésticos en establecimientos especializados | AY92: Comercio al por menor de otros enseres domésticos en establecimientos especializados | AZ92: 2 | BA92: 0 | BB92: 0 | BC92: 1 | BD92: 1 | BE92: 0 | BF92: 2 | BG92: 0 | BT92: 91669 | BU92: 1 | BV92: 76109 | BW92: 5
C93: 11001 | D93: BOGOTÁ, D.C. | E93: 1 | F93: 1 | G93: Natural | H93: 11 | I93: BOGOTÁ, D.C. | J93: Aprobado con subsidio | K93: MICRO | L93: 4652 | M93: COMERCIO AL POR MAYOR Y AL POR MENOR; REPARACIÓN DE VEHÍCULOS AUTOMOTORES Y MOTOCICLETAS | N93: G | O93: Comercio al por mayor de maquinaria y equipo | P93: Comercio al por mayor de maquinaria y equipo | Q93: 0 | R93: 1 | S93: 0 | T93: 1 | U93: 0 | V93: 0 | W93: 1 | X93: 0 | AJ93: 0 | AK93: 0 | AL93: 76020 | AM93: ALCALÁ | AN93: 6 | AO93: 1 | AP93: Natural | AQ93: 76 | AR93: VALLE DEL CAUCA | AS93: Aprobado con subsidio | AT93: MICRO | AU93: 4752 | AV93: COMERCIO AL POR MAYOR Y AL POR MENOR; REPARACIÓN DE VEHÍCULOS AUTOMOTORES Y MOTOCICLETAS | AW93: G | AX93: Comercio al por menor de otros enseres domésticos en establecimientos especializados | AY93: Comercio al por menor de otros enseres domésticos en establecimientos especializados | AZ93: 2 | BA93: 4 | BB93: 0 | BC93: 2 | BD93: 2 | BE93: 2 | BF93: 6 | BG93: 0 | BT93: 76126 | BU93: 4 | BV93: 23417 | BW93: 5
C94: 54001 | D94: CÚCUTA | E94: 2 | F94: 0 | G94: Natural | H94: 54 | I94: NORTE DE SANTANDER | J94: Aprobado con subsidio | K94: PEQUEÑA | L94: 4631 | M94: COMERCIO AL POR MAYOR Y AL POR MENOR; REPARACIÓN DE VEHÍCULOS AUTOMOTORES Y MOTOCICLETAS | N94: G | O94: Comercio al por mayor de alimentos, bebidas y tabaco | P94: Comercio al por mayor de alimentos, bebidas y tabaco | Q94: 0 | R94: 2 | S94: 0 | T94: 2 | U94: 0 | V94: 0 | W94: 2 | X94: 0 | AJ94: 0 | AK94: 0 | AL94: 76001 | AM94: CALI | AN94: 0 | AO94: 0 | AP94: Natural | AQ94: 76 | AR94: VALLE DEL CAUCA | AS94: 0 | AT94: PEQUEÑA | AU94: 4762 | AV94: COMERCIO AL POR MAYOR Y AL POR MENOR; REPARACIÓN DE VEHÍCULOS AUTOMOTORES Y MOTOCICLETAS | AW94: G | AX94: Comercio al por menor de artículos culturales y de entretenimiento, en establecimientos especializados | AY94: Comercio al por menor de artículos culturales y de entretenimiento, en establecimientos especializados | AZ94: 0 | BA94: 0 | BB94: 0 | BC94: 0 | BD94: 0 | BE94: 0 | BF94: 0 | BG94: 0 | BT94: 25754 | BU94: 20 | BV94: 17174 | BW94: 5
C95: 5001 | D95: MEDELLÍN | E95: 1 | F95: 1 | G95: Natural | H95: 5 | I95: ANTIOQUIA | J95: Aprobado con subsidio | K95: MICRO | L95: 6810 | M95: ACTIVIDADES INMOBILIARIAS | N95: L | O95: Actividades inmobiliarias realizadas con bienes propios o arrendados | P95: Actividades inmobiliarias realizadas con bienes propios o arrendados | Q95: 0 | R95: 1 | S95: 0 | T95: 0 | U95: 0 | V95: 1 | W95: 1 | X95: 0 | AJ95: 0 | AK95: 0 | AL95: 50001 | AM95: VILLAVICENCIO | AN95: 0 | AO95: 0 | AP95: Natural | AQ95: 50 | AR95: META | AS95: 0 | AT95: MICRO | AU95: 4719 | AV95: COMERCIO AL POR MAYOR Y AL POR MENOR; REPARACIÓN DE VEHÍCULOS AUTOMOTORES Y MOTOCICLETAS | AW95: G | AX95: Comercio al por menor en establecimientos no especializados | AY95: Comercio al por menor en establecimientos no especializados | AZ95: 0 | BA95: 0 | BB95: 0 | BC95: 0 | BD95: 0 | BE95: 0 | BF95: 0 | BG95: 0 | BT95: 8433 | BU95: 2 | BV95: 86568 | BW95: 5
C96: 15667 | D96: SAN LUIS DE GACENO | E96: 0 | F96: 0 | G96: Natural | H96: 15 | I96: BOYACÁ | J96: 0 | K96: MICRO | L96: 4711 | M96: COMERCIO AL POR MAYOR Y AL POR MENOR; REPARACIÓN DE VEHÍCULOS AUTOMOTORES Y MOTOCICLETAS | N96: G | O96: Comercio al por menor en establecimientos no especializados | P96: Comercio al por menor en establecimientos no especializados | Q96: 0 | R96: 0 | S96: 0 | T96: 0 | U96: 0 | V96: 0 | W96: 0 | X96: 0 | AJ96: 0 | AK96: 0 | AL96: 76001 | AM96: CALI | AN96: 1 | AO96: 0 | AP96: Natural | AQ96: 76 | AR96: VALLE DEL CAUCA | AS96: Aprobado con subsidio | AT96: MICRO | AU96: 4741 | AV96: COMERCIO AL POR MAYOR Y AL POR MENOR; REPARACIÓN DE VEHÍCULOS AUTOMOTORES Y MOTOCICLETAS | AW96: G | AX96: Comercio al por menor de equipos de informática y de comunicaciones, en establecimientos especializados | AY96: Comercio al por menor de equipos de informática y de comunicaciones, en establecimientos especializados | AZ96: 0 | BA96: 1 | BB96: 0 | BC96: 0 | BD96: 0 | BE96: 1 | BF96: 1 | BG96: 0 | BT96: 54385 | BU96: 0 | BV96: 50006 | BW96: 5
C97: 15759 | D97: SOGAMOSO | E97: 6 | F97: 2 | G97: Natural | H97: 15 | I97: BOYACÁ | J97: Aprobado con subsidio | K97: MICRO | L97: 8512 | M97: EDUCACIÓN | N97: P | O97: Educación de la primera infancia, preescolar y básica primaria | P97: Educación de la primera infancia, preescolar y básica primaria | Q97: 6 | R97: 0 | S97: 0 | T97: 1 | U97: 5 | V97: 0 | W97: 6 | X97: 0 | AJ97: 0 | AK97: 0 | AL97: 76122 | AM97: CAICEDONIA | AN97: 1 | AO97: 18 | AP97: Natural | AQ97: 76 | AR97: VALLE DEL CAUCA | AS97: Aprobado con subsidio | AT97: MEDIANA | AU97: 4669 | AV97: COMERCIO AL POR MAYOR Y AL POR MENOR; REPARACIÓN DE VEHÍCULOS AUTOMOTORES Y MOTOCICLETAS | AW97: G | AX97: Comercio al por mayor especializado de otros productos | AY97: Comercio al por mayor especializado de otros productos | AZ97: 0 | BA97: 1 | BB97: 0 | BC97: 1 | BD97: 0 | BE97: 0 | BF97: 1 | BG97: 0 | BT97: 68432 | BU97: 2 | BV97: 5368 | BW97: 5
C98: 15176 | D98: CHIQUINQUIRÁ | E98: 7 | F98: 8 | G98: Natural | H98: 15 | I98: BOYACÁ | J98: Aprobado con subsidio | K98: MICRO | L98: 1081 | M98: INDUSTRIAS MANUFACTURERAS | N98: C | O98: Elaboración de otros productos alimenticios | P98: Elaboración de productos alimenticios | Q98: 4 | R98: 3 | S98: 0 | T98: 6 | U98: 1 | V98: 0 | W98: 7 | X98: 0 | AJ98: 0 | AK98: 0 | AL98: 76834 | AM98: TULUÁ | AN98: 6 | AO98: 0 | AP98: Natural | AQ98: 76 | AR98: VALLE DEL CAUCA | AS98: Aprobado con subsidio | AT98: MICRO | AU98: 4774 | AV98: COMERCIO AL POR MAYOR Y AL POR MENOR; REPARACIÓN DE VEHÍCULOS AUTOMOTORES Y MOTOCICLETAS | AW98: G | AX98: Comercio al por menor de otros productos en establecimientos especializados | AY98: Comercio al por menor de otros productos en establecimientos especializados | AZ98: 3 | BA98: 3 | BB98: 0 | BC98: 4 | BD98: 2 | BE98: 0 | BF98: 6 | BG98: 0 | BT98: 73349 | BU98: 2 | BV98: 25843 | BW98: 5
C99: 11001 | D99: BOGOTÁ, D.C. | E99: 2 | F99: 0 | G99: Natural | H99: 11 | I99: BOGOTÁ, D.C. | J99: Aprobado con subsidio | K99: MICRO | L99: 2920 | M99: INDUSTRIAS MANUFACTURERAS | N99: C | O99: Fabricación de carrocerías para vehículos automotores; fabricación de remolques y semirremolques | P99: Fabricación de vehículos automotores, remolques y semirremolques | Q99: 2 | R99: 0 | S99: 0 | T99: 0 | U99: 2 | V99: 0 | W99: 2 | X99: 0 | AJ99: 0 | AK99: 0 | AL99: 76001 | AM99: CALI | AN99: 0 | AO99: 0 | AP99: Natural | AQ99: 76 | AR99: VALLE DEL CAUCA | AS99: 0 | AT99: PEQUEÑA | AU99: 4773 | AV99: COMERCIO AL POR MAYOR Y AL POR MENOR; REPARACIÓN DE VEHÍCULOS AUTOMOTORES Y MOTOCICLETAS | AW99: G | AX99: Comercio al por menor de otros productos en establecimientos especializados | AY99: Comercio al por menor de otros productos en establecimientos especializados | AZ99: 0 | BA99: 0 | BB99: 0 | BC99: 0 | BD99: 0 | BE99: 0 | BF99: 0 | BG99: 0 | BT99: 5686 | BU99: 3 | BV99: 73449 | BW99: 5
C100: 15001 | D100: TUNJA | E100: 0 | F100: 0 | G100: Natural | H100: 15 | I100: BOYACÁ | J100: 0 | K100: MICRO | L100: 4721 | M100: COMERCIO AL POR MAYOR Y AL POR MENOR; REPARACIÓN DE VEHÍCULOS AUTOMOTORES Y MOTOCICLETAS | N100: G | O100: Comercio al por menor de alimentos (víveres en general), bebidas y tabaco, en establecimientos especializados | P100: Comercio al por menor de alimentos (víveres en general), bebidas y tabaco, en establecimientos especializados | Q100: 0 | R100: 0 | S100: 0 | T100: 0 | U100: 0 | V100: 0 | W100: 0 | X100: 0 | AJ100: 0 | AK100: 0 | AL100: 5088 | AM100: BELLO | AN100: 2 | AO100: 0 | AP100: Natural | AQ100: 5 | AR100: ANTIOQUIA | AS100: Aprobado con subsidio | AT100: MICRO | AU100: 4752 | AV100: COMERCIO AL POR MAYOR Y AL POR MENOR; REPARACIÓN DE VEHÍCULOS AUTOMOTORES Y MOTOCICLETAS | AW100: G | AX100: Comercio al por menor de otros enseres domésticos en establecimientos especializados | AY100: Comercio al por menor de otros enseres domésticos en establecimientos especializados | AZ100: 0 | BA100: 2 | BB100: 0 | BC100: 2 | BD100: 0 | BE100: 0 | BF100: 2 | BG100: 0 | BT100: 50313 | BU100: 6 | BV100: 95001 | BW100: 5
C101: 11001 | D101: BOGOTÁ, D.C. | E101: 0 | F101: 0 | G101: Natural | H101: 11 | I101: BOGOTÁ, D.C. | J101: 0 | K101: MICRO | L101: 1392 | M101: INDUSTRIAS MANUFACTURERAS | N101: C | O101: Fabricación de otros productos textiles | P101: Fabricación de productos textiles | Q101: 0 | R101: 0 | S101: 0 | T101: 0 | U101: 0 | V101: 0 | W101: 0 | X101: 0 | AJ101: 0 | AK101: 0 | AL101: 41551 | AM101: PITALITO | AN101: 1 | AO101: 29 | AP101: Natural | AQ101: 41 | AR101: HUILA | AS101: Aprobado con subsidio | AT101: MEDIANA | AU101: 4711 | AV101: COMERCIO AL POR MAYOR Y AL POR MENOR; REPARACIÓN DE VEHÍCULOS AUTOMOTORES Y MOTOCICLETAS | AW101: G | AX101: Comercio al por menor en establecimientos no especializados | AY101: Comercio al por menor en establecimientos no especializados | AZ101: 1 | BA101: 0 | BB101: 0 | BC101: 1 | BD101: 0 | BE101: 0 | BF101: 1 | BG101: 0 | BT101: 76248 | BU101: 1 | BV101: 44430 | BW101: 4
C102: 15238 | D102: DUITAMA | E102: 1 | F102: 1 | G102: Natural | H102: 15 | I102: BOYACÁ | J102: Aprobado con subsidio | K102: MICRO | L102: 4923 | M102: TRANSPORTE Y ALMACENAMIENTO | N102: H | O102: Transporte terrestre publico automotor | P102: Transporte terrestre publico automotor | Q102: 0 | R102: 1 | S102: 0 | T102: 1 | U102: 0 | V102: 0 | W102: 1 | X102: 0 | AJ102: 0 | AK102: 0 | AL102: 50001 | AM102: VILLAVICENCIO | AN102: 0 | AO102: 0 | AP102: Natural | AQ102: 50 | AR102: META | AS102: 0 | AT102: MICRO | AU102: 4752 | AV102: COMERCIO AL POR MAYOR Y AL POR MENOR; REPARACIÓN DE VEHÍCULOS AUTOMOTORES Y MOTOCICLETAS | AW102: G | AX102: Comercio al por menor de otros enseres domésticos en establecimientos especializados | AY102: Comercio al por menor de otros enseres domésticos en establecimientos especializados | AZ102: 0 | BA102: 0 | BB102: 0 | BC102: 0 | BD102: 0 | BE102: 0 | BF102: 0 | BG102: 0 | BT102: 76111 | BU102: 6 | BV102: 66594 | BW102: 4
C103: 85001 | D103: YOPAL | E103: 2 | F103: 1 | G103: Natural | H103: 85 | I103: CASANARE | J103: Aprobado con subsidio | K103: MICRO | L103: 4542 | M103: COMERCIO AL POR MAYOR Y AL POR MENOR; REPARACIÓN DE VEHÍCULOS AUTOMOTORES Y MOTOCICLETAS | N103: G | O103: Comercio, mantenimiento y reparación de motocicletas y de sus partes, piezas y accesorios | P103: Comercio, mantenimiento y reparación de motocicletas y de sus partes, piezas y accesorios | Q103: 1 | R103: 1 | S103: 0 | T103: 2 | U103: 0 | V103: 0 | W103: 2 | X103: 0 | AJ103: 0 | AK103: 0 | AL103: 5360 | AM103: ITAGUI | AN103: 0 | AO103: 0 | AP103: Natural | AQ103: 5 | AR103: ANTIOQUIA | AS103: 0 | AT103: MICRO | AU103: 4754 | AV103: COMERCIO AL POR MAYOR Y AL POR MENOR; REPARACIÓN DE VEHÍCULOS AUTOMOTORES Y MOTOCICLETAS | AW103: G | AX103: Comercio al por menor de otros enseres domésticos en establecimientos especializados | AY103: Comercio al por menor de otros enseres domésticos en establecimientos especializados | AZ103: 0 | BA103: 0 | BB103: 0 | BC103: 0 | BD103: 0 | BE103: 0 | BF103: 0 | BG103: 0 | BT103: 23417 | BU103: 5 | BV103: 68406 | BW103: 4
C104: 15537 | D104: PAZ DE RÍO | E104: 2 | F104: 2 | G104: Natural | H104: 15 | I104: BOYACÁ | J104: Aprobado con subsidio | K104: PEQUEÑA | L104: 4923 | M104: TRANSPORTE Y ALMACENAMIENTO | N104: H | O104: Transporte terrestre publico automotor | P104: Transporte terrestre publico automotor | Q104: 1 | R104: 1 | S104: 0 | T104: 2 | U104: 0 | V104: 0 | W104: 2 | X104: 0 | AJ104: 0 | AK104: 0 | AL104: 5631 | AM104: SABANETA | AN104: 2 | AO104: 6 | AP104: Natural | AQ104: 5 | AR104: ANTIOQUIA | AS104: Aprobado con subsidio | AT104: MICRO | AU104: 4771 | AV104: COMERCIO AL POR MAYOR Y AL POR MENOR; REPARACIÓN DE VEHÍCULOS AUTOMOTORES Y MOTOCICLETAS | AW104: G | AX104: Comercio al por menor de otros productos en establecimientos especializados | AY104: Comercio al por menor de otros productos en establecimientos especializados | AZ104: 2 | BA104: 0 | BB104: 0 | BC104: 2 | BD104: 0 | BE104: 0 | BF104: 2 | BG104: 0 | BT104: 88001 | BU104: 9 | BV104: 76126 | BW104: 4
C105: 15759 | D105: SOGAMOSO | E105: 1 | F105: 2 | G105: Natural | H105: 15 | I105: BOYACÁ | J105: Aprobado con subsidio | K105: PEQUEÑA | L105: 2395 | M105: INDUSTRIAS MANUFACTURERAS | N105: C | O105: Fabricación de productos minerales no metálicos n.c.p. | P105: Fabricación de otros productos minerales no metálicos | Q105: 0 | R105: 1 | S105: 0 | T105: 0 | U105: 0 | V105: 1 | W105: 1 | X105: 0 | AJ105: 0 | AK105: 0 | AL105: 18001 | AM105: FLORENCIA | AN105: 3 | AO105: 2 | AP105: Natural | AQ105: 18 | AR105: CAQUETÁ | AS105: Aprobado con subsidio | AT105: MICRO | AU105: 4643 | AV105: COMERCIO AL POR MAYOR Y AL POR MENOR; REPARACIÓN DE VEHÍCULOS AUTOMOTORES Y MOTOCICLETAS | AW105: G | AX105: Comercio al por mayor de artículos y enseres domésticos (incluidas prendas de vestir) | AY105: Comercio al por mayor de artículos y enseres domésticos (incluidas prendas de vestir) | AZ105: 1 | BA105: 2 | BB105: 0 | BC105: 2 | BD105: 1 | BE105: 0 | BF105: 3 | BG105: 0 | BT105: 88564 | BU105: 2 | BV105: 5318 | BW105: 4
C106: 11001 | D106: BOGOTÁ, D.C. | E106: 0 | F106: 0 | G106: Natural | H106: 11 | I106: BOGOTÁ, D.C. | J106: 0 | K106: MICRO | L106: 4752 | M106: COMERCIO AL POR MAYOR Y AL POR MENOR; REPARACIÓN DE VEHÍCULOS AUTOMOTORES Y MOTOCICLETAS | N106: G | O106: Comercio al por menor de otros enseres domésticos en establecimientos especializados | P106: Comercio al por menor de otros enseres domésticos en establecimientos especializados | Q106: 0 | R106: 0 | S106: 0 | T106: 0 | U106: 0 | V106: 0 | W106: 0 | X106: 0 | AJ106: 0 | AK106: 0 | AL106: 41001 | AM106: NEIVA | AN106: 0 | AO106: 0 | AP106: Natural | AQ106: 41 | AR106: HUILA | AS106: 0 | AT106: MICRO | AU106: 4732 | AV106: COMERCIO AL POR MAYOR Y AL POR MENOR; REPARACIÓN DE VEHÍCULOS AUTOMOTORES Y MOTOCICLETAS | AW106: G | AX106: Comercio al por menor de combustible, lubricantes, aditivos y productos de limpieza para automotores, en establecimientos especializados | AY106: Comercio al por menor de combustible, lubricantes, aditivos y productos de limpieza para automotores, en establecimientos especializados | AZ106: 0 | BA106: 0 | BB106: 0 | BC106: 0 | BD106: 0 | BE106: 0 | BF106: 0 | BG106: 0 | BT106: 5129 | BU106: 10 | BV106: 18753 | BW106: 4
C107: 11001 | D107: BOGOTÁ, D.C. | E107: 1 | F107: 1 | G107: Natural | H107: 11 | I107: BOGOTÁ, D.C. | J107: Aprobado con subsidio | K107: MICRO | L107: 4663 | M107: COMERCIO AL POR MAYOR Y AL POR MENOR; REPARACIÓN DE VEHÍCULOS AUTOMOTORES Y MOTOCICLETAS | N107: G | O107: Comercio al por mayor especializado de otros productos | P107: Comercio al por mayor especializado de otros productos | Q107: 0 | R107: 1 | S107: 0 | T107: 1 | U107: 0 | V107: 0 | W107: 1 | X107: 0 | AJ107: 0 | AK107: 0 | AL107: 18001 | AM107: FLORENCIA | AN107: 2 | AO107: 1 | AP107: Natural | AQ107: 18 | AR107: CAQUETÁ | AS107: Aprobado con subsidio | AT107: MICRO | AU107: 4741 | AV107: COMERCIO AL POR MAYOR Y AL POR MENOR; REPARACIÓN DE VEHÍCULOS AUTOMOTORES Y MOTOCICLETAS | AW107: G | AX107: Comercio al por menor de equipos de informática y de comunicaciones, en establecimientos especializados | AY107: Comercio al por menor de equipos de informática y de comunicaciones, en establecimientos especializados | AZ107: 1 | BA107: 1 | BB107: 0 | BC107: 2 | BD107: 0 | BE107: 0 | BF107: 2 | BG107: 0 | BT107: 5380 | BU107: 25 | BV107: 5172 | BW107: 4
C108: 11001 | D108: BOGOTÁ, D.C. | E108: 0 | F108: 0 | G108: Natural | H108: 11 | I108: BOGOTÁ, D.C. | J108: 0 | K108: PEQUEÑA | L108: 1410 | M108: INDUSTRIAS MANUFACTURERAS | N108: C | O108: Confección de prendas de vestir, excepto prendas de piel | P108: Confección de prendas de vestir | Q108: 0 | R108: 0 | S108: 0 | T108: 0 | U108: 0 | V108: 0 | W108: 0 | X108: 0 | AJ108: 0 | AK108: 0 | AL108: 70001 | AM108: SINCELEJO | AN108: 1 | AO108: 1 | AP108: Natural | AQ108: 70 | AR108: SUCRE | AS108: Aprobado con subsidio | AT108: MICRO | AU108: 4530 | AV108: COMERCIO AL POR MAYOR Y AL POR MENOR; REPARACIÓN DE VEHÍCULOS AUTOMOTORES Y MOTOCICLETAS | AW108: G | AX108: Comercio de partes, piezas (autopartes) y accesorios (lujos) para vehículos automotores | AY108: Comercio de partes, piezas (autopartes) y accesorios (lujos) para vehículos automotores | AZ108: 1 | BA108: 0 | BB108: 0 | BC108: 1 | BD108: 0 | BE108: 0 | BF108: 1 | BG108: 0 | BT108: 5240 | BU108: 1 | BV108: 5101 | BW108: 4
C109: 15753 | D109: SOATÁ | E109: 2 | F109: 1 | G109: Natural | H109: 15 | I109: BOYACÁ | J109: Aprobado con subsidio | K109: MICRO | L109: 4631 | M109: COMERCIO AL POR MAYOR Y AL POR MENOR; REPARACIÓN DE VEHÍCULOS AUTOMOTORES Y MOTOCICLETAS | N109: G | O109: Comercio al por mayor de alimentos, bebidas y tabaco | P109: Comercio al por mayor de alimentos, bebidas y tabaco | Q109: 0 | R109: 2 | S109: 0 | T109: 0 | U109: 0 | V109: 2 | W109: 2 | X109: 0 | AJ109: 0 | AK109: 0 | AL109: 23001 | AM109: MONTERÍA | AN109: 4 | AO109: 1 | AP109: Natural | AQ109: 23 | AR109: CÓRDOBA | AS109: Aprobado con subsidio | AT109: MICRO | AU109: 4541 | AV109: COMERCIO AL POR MAYOR Y AL POR MENOR; REPARACIÓN DE VEHÍCULOS AUTOMOTORES Y MOTOCICLETAS | AW109: G | AX109: Comercio, mantenimiento y reparación de motocicletas y de sus partes, piezas y accesorios | AY109: Comercio, mantenimiento y reparación de motocicletas y de sus partes, piezas y accesorios | AZ109: 2 | BA109: 2 | BB109: 0 | BC109: 3 | BD109: 1 | BE109: 0 | BF109: 4 | BG109: 0 | BT109: 5887 | BU109: 6 | BV109: 5148 | BW109: 4
C110: 54874 | D110: VILLA DEL ROSARIO | E110: 0 | F110: 0 | G110: Natural | H110: 54 | I110: NORTE DE SANTANDER | J110: 0 | K110: MICRO | L110: 5630 | M110: ALOJAMIENTO Y SERVICIOS DE COMIDA | N110: I | O110: Expendio de bebidas alcohólicas para el consumo dentro del establecimiento | P110: Expendio de bebidas alcohólicas para el consumo dentro del establecimiento | Q110: 0 | R110: 0 | S110: 0 | T110: 0 | U110: 0 | V110: 0 | W110: 0 | X110: 0 | AJ110: 0 | AK110: 0 | AL110: 23001 | AM110: MONTERÍA | AN110: 0 | AO110: 0 | AP110: Natural | AQ110: 23 | AR110: CÓRDOBA | AS110: 0 | AT110: MICRO | AU110: 4752 | AV110: COMERCIO AL POR MAYOR Y AL POR MENOR; REPARACIÓN DE VEHÍCULOS AUTOMOTORES Y MOTOCICLETAS | AW110: G | AX110: Comercio al por menor de otros enseres domésticos en establecimientos especializados | AY110: Comercio al por menor de otros enseres domésticos en establecimientos especializados | AZ110: 0 | BA110: 0 | BB110: 0 | BC110: 0 | BD110: 0 | BE110: 0 | BF110: 0 | BG110: 0 | BT110: 70708 | BU110: 2 | BV110: 25386 | BW110: 4
C111: 11001 | D111: BOGOTÁ, D.C. | E111: 0 | F111: 0 | G111: Natural | H111: 11 | I111: BOGOTÁ, D.C. | J111: 0 | K111: MICRO | L111: 4642 | M111: COMERCIO AL POR MAYOR Y AL POR MENOR; REPARACIÓN DE VEHÍCULOS AUTOMOTORES Y MOTOCICLETAS | N111: G | O111: Comercio al por mayor de artículos y enseres domésticos (incluidas prendas de vestir) | P111: Comercio al por mayor de artículos y enseres domésticos (incluidas prendas de vestir) | Q111: 0 | R111: 0 | S111: 0 | T111: 0 | U111: 0 | V111: 0 | W111: 0 | X111: 0 | AJ111: 0 | AK111: 0 | AL111: 23001 | AM111: MONTERÍA | AN111: 5 | AO111: 8 | AP111: Natural | AQ111: 23 | AR111: CÓRDOBA | AS111: Aprobado con subsidio | AT111: PEQUEÑA | AU111: 4752 | AV111: COMERCIO AL POR MAYOR Y AL POR MENOR; REPARACIÓN DE VEHÍCULOS AUTOMOTORES Y MOTOCICLETAS | AW111: G | AX111: Comercio al por menor de otros enseres domésticos en establecimientos especializados | AY111: Comercio al por menor de otros enseres domésticos en establecimientos especializados | AZ111: 4 | BA111: 1 | BB111: 0 | BC111: 4 | BD111: 1 | BE111: 0 | BF111: 5 | BG111: 0 | BT111: 5679 | BU111: 2 | BV111: 25430 | BW111: 4
C112: 11001 | D112: BOGOTÁ, D.C. | E112: 3 | F112: 13 | G112: Natural | H112: 11 | I112: BOGOTÁ, D.C. | J112: Aprobado con subsidio | K112: MICRO | L112: 1081 | M112: INDUSTRIAS MANUFACTURERAS | N112: C | O112: Elaboración de otros productos alimenticios | P112: Elaboración de productos alimenticios | Q112: 1 | R112: 2 | S112: 0 | T112: 3 | U112: 0 | V112: 0 | W112: 3 | X112: 0 | AJ112: 0 | AK112: 0 | AL112: 15667 | AM112: SAN LUIS DE GACENO | AN112: 0 | AO112: 0 | AP112: Natural | AQ112: 15 | AR112: BOYACÁ | AS112: 0 | AT112: MICRO | AU112: 4731 | AV112: COMERCIO AL POR MAYOR Y AL POR MENOR; REPARACIÓN DE VEHÍCULOS AUTOMOTORES Y MOTOCICLETAS | AW112: G | AX112: Comercio al por menor de combustible, lubricantes, aditivos y productos de limpieza para automotores, en establecimientos especializados | AY112: Comercio al por menor de combustible, lubricantes, aditivos y productos de limpieza para automotores, en establecimientos especializados | AZ112: 0 | BA112: 0 | BB112: 0 | BC112: 0 | BD112: 0 | BE112: 0 | BF112: 0 | BG112: 0 | BT112: 5615 | BU112: 38 | BV112: 52399 | BW112: 4
C113: 15759 | D113: SOGAMOSO | E113: 3 | F113: 2 | G113: Natural | H113: 15 | I113: BOYACÁ | J113: Aprobado con subsidio | K113: MICRO | L113: 4923 | M113: TRANSPORTE Y ALMACENAMIENTO | N113: H | O113: Transporte terrestre publico automotor | P113: Transporte terrestre publico automotor | Q113: 0 | R113: 3 | S113: 0 | T113: 2 | U113: 0 | V113: 1 | W113: 3 | X113: 0 | AJ113: 0 | AK113: 0 | AL113: 15001 | AM113: TUNJA | AN113: 0 | AO113: 0 | AP113: Natural | AQ113: 15 | AR113: BOYACÁ | AS113: 0 | AT113: MICRO | AU113: 4772 | AV113: COMERCIO AL POR MAYOR Y AL POR MENOR; REPARACIÓN DE VEHÍCULOS AUTOMOTORES Y MOTOCICLETAS | AW113: G | AX113: Comercio al por menor de otros productos en establecimientos especializados | AY113: Comercio al por menor de otros productos en establecimientos especializados | AZ113: 0 | BA113: 0 | BB113: 0 | BC113: 0 | BD113: 0 | BE113: 0 | BF113: 0 | BG113: 0 | BT113: 5376 | BU113: 17 | BV113: 52835 | BW113: 4
C114: 11001 | D114: BOGOTÁ, D.C. | E114: 5 | F114: 2 | G114: Natural | H114: 11 | I114: BOGOTÁ, D.C. | J114: Aprobado con subsidio | K114: MICRO | L114: 4923 | M114: TRANSPORTE Y ALMACENAMIENTO | N114: H | O114: Transporte terrestre publico automotor | P114: Transporte terrestre publico automotor | Q114: 1 | R114: 4 | S114: 0 | T114: 2 | U114: 1 | V114: 2 | W114: 5 | X114: 0 | AJ114: 0 | AK114: 0 | AL114: 15001 | AM114: TUNJA | AN114: 0 | AO114: 0 | AP114: Natural | AQ114: 15 | AR114: BOYACÁ | AS114: 0 | AT114: MICRO | AU114: 4541 | AV114: COMERCIO AL POR MAYOR Y AL POR MENOR; REPARACIÓN DE VEHÍCULOS AUTOMOTORES Y MOTOCICLETAS | AW114: G | AX114: Comercio, mantenimiento y reparación de motocicletas y de sus partes, piezas y accesorios | AY114: Comercio, mantenimiento y reparación de motocicletas y de sus partes, piezas y accesorios | AZ114: 0 | BA114: 0 | BB114: 0 | BC114: 0 | BD114: 0 | BE114: 0 | BF114: 0 | BG114: 0 | BT114: 5045 | BU114: 28 | BV114: 17013 | BW114: 4
C115: 85001 | D115: YOPAL | E115: 0 | F115: 0 | G115: Natural | H115: 85 | I115: CASANARE | J115: 0 | K115: MICRO | L115: 811 | M115: EXPLOTACIÓN DE MINAS Y CANTERAS | N115: B | O115: Extracción de piedra, arena, arcillas, cal, yeso, caolín, bentonitas y similares | P115: Extracción de piedra, arena, arcillas, cal, yeso, caolín, bentonitas y similares | Q115: 0 | R115: 0 | S115: 0 | T115: 0 | U115: 0 | V115: 0 | W115: 0 | X115: 0 | AJ115: 0 | AK115: 0 | AL115: 8001 | AM115: BARRANQUILLA | AN115: 0 | AO115: 0 | AP115: Natural | AQ115: 8 | AR115: ATLÁNTICO | AS115: 0 | AT115: MICRO | AU115: 4741 | AV115: COMERCIO AL POR MAYOR Y AL POR MENOR; REPARACIÓN DE VEHÍCULOS AUTOMOTORES Y MOTOCICLETAS | AW115: G | AX115: Comercio al por menor de equipos de informática y de comunicaciones, en establecimientos especializados | AY115: Comercio al por menor de equipos de informática y de comunicaciones, en establecimientos especializados | AZ115: 0 | BA115: 0 | BB115: 0 | BC115: 0 | BD115: 0 | BE115: 0 | BF115: 0 | BG115: 0 | BT115: 5212 | BU115: 7 | BV115: 23162 | BW115: 4
C116: 15808 | D116: TINJACÁ | E116: 0 | F116: 0 | G116: Natural | H116: 15 | I116: BOYACÁ | J116: 0 | K116: MICRO | L116: 4752 | M116: COMERCIO AL POR MAYOR Y AL POR MENOR; REPARACIÓN DE VEHÍCULOS AUTOMOTORES Y MOTOCICLETAS | N116: G | O116: Comercio al por menor de otros enseres domésticos en establecimientos especializados | P116: Comercio al por menor de otros enseres domésticos en establecimientos especializados | Q116: 0 | R116: 0 | S116: 0 | T116: 0 | U116: 0 | V116: 0 | W116: 0 | X116: 0 | AJ116: 0 | AK116: 0 | AL116: 15001 | AM116: TUNJA | AN116: 0 | AO116: 0 | AP116: Natural | AQ116: 15 | AR116: BOYACÁ | AS116: 0 | AT116: MICRO | AU116: 4752 | AV116: COMERCIO AL POR MAYOR Y AL POR MENOR; REPARACIÓN DE VEHÍCULOS AUTOMOTORES Y MOTOCICLETAS | AW116: G | AX116: Comercio al por menor de otros enseres domésticos en establecimientos especializados | AY116: Comercio al por menor de otros enseres domésticos en establecimientos especializados | AZ116: 0 | BA116: 0 | BB116: 0 | BC116: 0 | BD116: 0 | BE116: 0 | BF116: 0 | BG116: 0 | BT116: 52250 | BU116: 1 | BV116: 25799 | BW116: 3
C117: 11001 | D117: BOGOTÁ, D.C. | E117: 0 | F117: 0 | G117: Natural | H117: 11 | I117: BOGOTÁ, D.C. | J117: 0 | K117: MICRO | L117: 2592 | M117: INDUSTRIAS MANUFACTURERAS | N117: C | O117: Fabricación de otros productos elaborados de metal y actividades de servicios relacionadas con el trabajo de metales | P117: Fabricación de productos elaborados de metal, excepto maquinaria y equipo | Q117: 0 | R117: 0 | S117: 0 | T117: 0 | U117: 0 | V117: 0 | W117: 0 | X117: 0 | AJ117: 0 | AK117: 0 | AL117: 15646 | AM117: SAMACÁ | AN117: 0 | AO117: 0 | AP117: Natural | AQ117: 15 | AR117: BOYACÁ | AS117: 0 | AT117: MICRO | AU117: 4729 | AV117: COMERCIO AL POR MAYOR Y AL POR MENOR; REPARACIÓN DE VEHÍCULOS AUTOMOTORES Y MOTOCICLETAS | AW117: G | AX117: Comercio al por menor de alimentos (víveres en general), bebidas y tabaco, en establecimientos especializados | AY117: Comercio al por menor de alimentos (víveres en general), bebidas y tabaco, en establecimientos especializados | AZ117: 0 | BA117: 0 | BB117: 0 | BC117: 0 | BD117: 0 | BE117: 0 | BF117: 0 | BG117: 0 | BT117: 17174 | BU117: 5 | BV117: 5697 | BW117: 3
C118: 11001 | D118: BOGOTÁ, D.C. | E118: 5 | F118: 0 | G118: Natural | H118: 11 | I118: BOGOTÁ, D.C. | J118: Aprobado con subsidio | K118: MICRO | L118: 5611 | M118: ALOJAMIENTO Y SERVICIOS DE COMIDA | N118: I | O118: Actividades de restaurantes, cafeterías y servicio móvil de comidas | P118: Actividades de restaurantes, cafeterías y servicio móvil de comidas | Q118: 2 | R118: 3 | S118: 0 | T118: 0 | U118: 2 | V118: 3 | W118: 4 | X118: 1 | AJ118: 0 | AK118: 0 | AL118: 15238 | AM118: DUITAMA | AN118: 1 | AO118: 1 | AP118: Natural | AQ118: 15 | AR118: BOYACÁ | AS118: Aprobado con subsidio | AT118: MICRO | AU118: 4732 | AV118: COMERCIO AL POR MAYOR Y AL POR MENOR; REPARACIÓN DE VEHÍCULOS AUTOMOTORES Y MOTOCICLETAS | AW118: G | AX118: Comercio al por menor de combustible, lubricantes, aditivos y productos de limpieza para automotores, en establecimientos especializados | AY118: Comercio al por menor de combustible, lubricantes, aditivos y productos de limpieza para automotores, en establecimientos especializados | AZ118: 0 | BA118: 1 | BB118: 0 | BC118: 1 | BD118: 0 | BE118: 0 | BF118: 1 | BG118: 0 | BT118: 18785 | BU118: 2 | BV118: 19290 | BW118: 3
C119: 18001 | D119: FLORENCIA | E119: 0 | F119: 0 | G119: Natural | H119: 18 | I119: CAQUETÁ | J119: 0 | K119: MICRO | L119: 4651 | M119: COMERCIO AL POR MAYOR Y AL POR MENOR; REPARACIÓN DE VEHÍCULOS AUTOMOTORES Y MOTOCICLETAS | N119: G | O119: Comercio al por mayor de maquinaria y equipo | P119: Comercio al por mayor de maquinaria y equipo | Q119: 0 | R119: 0 | S119: 0 | T119: 0 | U119: 0 | V119: 0 | W119: 0 | X119: 0 | AJ119: 0 | AK119: 0 | AL119: 85139 | AM119: MANÍ | AN119: 2 | AO119: 7 | AP119: Natural | AQ119: 85 | AR119: CASANARE | AS119: Aprobado con subsidio | AT119: PEQUEÑA | AU119: 4731 | AV119: COMERCIO AL POR MAYOR Y AL POR MENOR; REPARACIÓN DE VEHÍCULOS AUTOMOTORES Y MOTOCICLETAS | AW119: G | AX119: Comercio al por menor de combustible, lubricantes, aditivos y productos de limpieza para automotores, en establecimientos especializados | AY119: Comercio al por menor de combustible, lubricantes, aditivos y productos de limpieza para automotores, en establecimientos especializados | AZ119: 2 | BA119: 0 | BB119: 0 | BC119: 2 | BD119: 0 | BE119: 0 | BF119: 2 | BG119: 0 | BT119: 5318 | BU119: 4 | BV119: 41298 | BW119: 3
C120: 5266 | D120: ENVIGADO | E120: 1 | F120: 0 | G120: Natural | H120: 5 | I120: ANTIOQUIA | J120: Aprobado con subsidio | K120: MICRO | L120: 4541 | M120: COMERCIO AL POR MAYOR Y AL POR MENOR; REPARACIÓN DE VEHÍCULOS AUTOMOTORES Y MOTOCICLETAS | N120: G | O120: Comercio, mantenimiento y reparación de motocicletas y de sus partes, piezas y accesorios | P120: Comercio, mantenimiento y reparación de motocicletas y de sus partes, piezas y accesorios | Q120: 1 | R120: 0 | S120: 0 | T120: 1 | U120: 0 | V120: 0 | W120: 1 | X120: 0 | AJ120: 0 | AK120: 0 | AL120: 15759 | AM120: SOGAMOSO | AN120: 0 | AO120: 0 | AP120: Natural | AQ120: 15 | AR120: BOYACÁ | AS120: 0 | AT120: MICRO | AU120: 4530 | AV120: COMERCIO AL POR MAYOR Y AL POR MENOR; REPARACIÓN DE VEHÍCULOS AUTOMOTORES Y MOTOCICLETAS | AW120: G | AX120: Comercio de partes, piezas (autopartes) y accesorios (lujos) para vehículos automotores | AY120: Comercio de partes, piezas (autopartes) y accesorios (lujos) para vehículos automotores | AZ120: 0 | BA120: 0 | BB120: 0 | BC120: 0 | BD120: 0 | BE120: 0 | BF120: 0 | BG120: 0 | BT120: 76520 | BU120: 29 | BV120: 5686 | BW120: 3
C121: 76001 | D121: CALI | E121: 0 | F121: 0 | G121: Natural | H121: 76 | I121: VALLE DEL CAUCA | J121: 0 | K121: MICRO | L121: 4530 | M121: COMERCIO AL POR MAYOR Y AL POR MENOR; REPARACIÓN DE VEHÍCULOS AUTOMOTORES Y MOTOCICLETAS | N121: G | O121: Comercio de partes, piezas (autopartes) y accesorios (lujos) para vehículos automotores | P121: Comercio de partes, piezas (autopartes) y accesorios (lujos) para vehículos automotores | Q121: 0 | R121: 0 | S121: 0 | T121: 0 | U121: 0 | V121: 0 | W121: 0 | X121: 0 | AJ121: 0 | AK121: 0 | AL121: 15238 | AM121: DUITAMA | AN121: 7 | AO121: 3 | AP121: Natural | AQ121: 15 | AR121: BOYACÁ | AS121: Aprobado con subsidio | AT121: MICRO | AU121: 4761 | AV121: COMERCIO AL POR MAYOR Y AL POR MENOR; REPARACIÓN DE VEHÍCULOS AUTOMOTORES Y MOTOCICLETAS | AW121: G | AX121: Comercio al por menor de artículos culturales y de entretenimiento, en establecimientos especializados | AY121: Comercio al por menor de artículos culturales y de entretenimiento, en establecimientos especializados | AZ121: 3 | BA121: 4 | BB121: 0 | BC121: 5 | BD121: 1 | BE121: 1 | BF121: 7 | BG121: 0 | BT121: 76036 | BU121: 1 | BV121: 76563 | BW121: 3
C122: 17442 | D122: MARMATO | E122: 14 | F122: 8 | G122: Natural | H122: 17 | I122: CALDAS | J122: Aprobado con subsidio | K122: PEQUEÑA | L122: 722 | M122: EXPLOTACIÓN DE MINAS Y CANTERAS | N122: B | O122: Extracción de minerales metalíferos no ferrosos | P122: Extracción de minerales metalíferos no ferrosos | Q122: 0 | R122: 14 | S122: 0 | T122: 9 | U122: 0 | V122: 5 | W122: 12 | X122: 2 | AJ122: 0 | AK122: 0 | AL122: 15238 | AM122: DUITAMA | AN122: 2 | AO122: 1 | AP122: Natural | AQ122: 15 | AR122: BOYACÁ | AS122: Aprobado con subsidio | AT122: PEQUEÑA | AU122: 4771 | AV122: COMERCIO AL POR MAYOR Y AL POR MENOR; REPARACIÓN DE VEHÍCULOS AUTOMOTORES Y MOTOCICLETAS | AW122: G | AX122: Comercio al por menor de otros productos en establecimientos especializados | AY122: Comercio al por menor de otros productos en establecimientos especializados | AZ122: 2 | BA122: 0 | BB122: 0 | BC122: 2 | BD122: 0 | BE122: 0 | BF122: 2 | BG122: 0 | BT122: 91001 | BU122: 6 | BV122: 15204 | BW122: 3
C123: 17442 | D123: MARMATO | E123: 4 | F123: 11 | G123: Natural | H123: 17 | I123: CALDAS | J123: Aprobado con subsidio | K123: PEQUEÑA | L123: 722 | M123: EXPLOTACIÓN DE MINAS Y CANTERAS | N123: B | O123: Extracción de minerales metalíferos no ferrosos | P123: Extracción de minerales metalíferos no ferrosos | Q123: 0 | R123: 4 | S123: 0 | T123: 2 | U123: 0 | V123: 2 | W123: 4 | X123: 0 | AJ123: 0 | AK123: 0 | AL123: 15238 | AM123: DUITAMA | AN123: 1 | AO123: 8 | AP123: Natural | AQ123: 15 | AR123: BOYACÁ | AS123: Aprobado con subsidio | AT123: PEQUEÑA | AU123: 4722 | AV123: COMERCIO AL POR MAYOR Y AL POR MENOR; REPARACIÓN DE VEHÍCULOS AUTOMOTORES Y MOTOCICLETAS | AW123: G | AX123: Comercio al por menor de alimentos (víveres en general), bebidas y tabaco, en establecimientos especializados | AY123: Comercio al por menor de alimentos (víveres en general), bebidas y tabaco, en establecimientos especializados | AZ123: 1 | BA123: 0 | BB123: 0 | BC123: 0 | BD123: 1 | BE123: 0 | BF123: 1 | BG123: 0 | BT123: 19318 | BU123: 0 | BV123: 5030 | BW123: 3
C124: 50001 | D124: VILLAVICENCIO | E124: 5 | F124: 2 | G124: Natural | H124: 50 | I124: META | J124: Aprobado con subsidio | K124: MICRO | L124: 4321 | M124: CONSTRUCCIÓN | N124: F | O124: Instalaciones eléctricas, de fontanería y otras instalaciones especializadas | P124: Instalaciones eléctricas, de fontanería y otras instalaciones especializadas | Q124: 3 | R124: 2 | S124: 0 | T124: 3 | U124: 1 | V124: 1 | W124: 5 | X124: 0 | AJ124: 0 | AK124: 0 | AL124: 15238 | AM124: DUITAMA | AN124: 1 | AO124: 0 | AP124: Natural | AQ124: 15 | AR124: BOYACÁ | AS124: Aprobado con subsidio | AT124: MICRO | AU124: 4530 | AV124: COMERCIO AL POR MAYOR Y AL POR MENOR; REPARACIÓN DE VEHÍCULOS AUTOMOTORES Y MOTOCICLETAS | AW124: G | AX124: Comercio de partes, piezas (autopartes) y accesorios (lujos) para vehículos automotores | AY124: Comercio de partes, piezas (autopartes) y accesorios (lujos) para vehículos automotores | AZ124: 1 | BA124: 0 | BB124: 0 | BC124: 0 | BD124: 1 | BE124: 0 | BF124: 1 | BG124: 0 | BT124: 76364 | BU124: 6 | BV124: 66682 | BW124: 3
C125: 66001 | D125: PEREIRA | E125: 0 | F125: 0 | G125: Natural | H125: 66 | I125: RISARALDA | J125: 0 | K125: MICRO | L125: 5530 | M125: ALOJAMIENTO Y SERVICIOS DE COMIDA | N125: I | O125: Servicios por horas | P125: Servicios por horas | Q125: 0 | R125: 0 | S125: 0 | T125: 0 | U125: 0 | V125: 0 | W125: 0 | X125: 0 | AJ125: 0 | AK125: 0 | AL125: 11001 | AM125: BOGOTÁ, D.C. | AN125: 1 | AO125: 1 | AP125: Natural | AQ125: 11 | AR125: BOGOTÁ, D.C. | AS125: Aprobado con subsidio | AT125: MICRO | AU125: 4752 | AV125: COMERCIO AL POR MAYOR Y AL POR MENOR; REPARACIÓN DE VEHÍCULOS AUTOMOTORES Y MOTOCICLETAS | AW125: G | AX125: Comercio al por menor de otros enseres domésticos en establecimientos especializados | AY125: Comercio al por menor de otros enseres domésticos en establecimientos especializados | AZ125: 1 | BA125: 0 | BB125: 0 | BC125: 1 | BD125: 0 | BE125: 0 | BF125: 1 | BG125: 0 | BT125: 76563 | BU125: 3 | BV125: 68077 | BW125: 3
C126: 66001 | D126: PEREIRA | E126: 0 | F126: 0 | G126: Natural | H126: 66 | I126: RISARALDA | J126: 0 | K126: MICRO | L126: 121 | M126: AGRICULTURA, GANADERÍA, CAZA, SILVICULTURA Y PESCA | N126: A | O126: Cultivos agrícolas permanentes | P126: Cultivos agrícolas permanentes | Q126: 0 | R126: 0 | S126: 0 | T126: 0 | U126: 0 | V126: 0 | W126: 0 | X126: 0 | AJ126: 0 | AK126: 0 | AL126: 15176 | AM126: CHIQUINQUIRÁ | AN126: 0 | AO126: 0 | AP126: Natural | AQ126: 15 | AR126: BOYACÁ | AS126: 0 | AT126: MICRO | AU126: 4729 | AV126: COMERCIO AL POR MAYOR Y AL POR MENOR; REPARACIÓN DE VEHÍCULOS AUTOMOTORES Y MOTOCICLETAS | AW126: G | AX126: Comercio al por menor de alimentos (víveres en general), bebidas y tabaco, en establecimientos especializados | AY126: Comercio al por menor de alimentos (víveres en general), bebidas y tabaco, en establecimientos especializados | AZ126: 0 | BA126: 0 | BB126: 0 | BC126: 0 | BD126: 0 | BE126: 0 | BF126: 0 | BG126: 0 | BT126: 73268 | BU126: 8 | BV126: 5665 | BW126: 3
C127: 66001 | D127: PEREIRA | E127: 9 | F127: 0 | G127: Natural | H127: 66 | I127: RISARALDA | J127: Aprobado con subsidio | K127: MICRO | L127: 9609 | M127: OTRAS ACTIVIDADES DE SERVICIOS | N127: S | O127: Otras actividades de servicios personales | P127: Otras actividades de servicios personales | Q127: 1 | R127: 8 | S127: 0 | T127: 3 | U127: 1 | V127: 5 | W127: 7 | X127: 2 | AJ127: 0 | AK127: 0 | AL127: 8001 | AM127: BARRANQUILLA | AN127: 0 | AO127: 0 | AP127: Natural | AQ127: 8 | AR127: ATLÁNTICO | AS127: 0 | AT127: PEQUEÑA | AU127: 4530 | AV127: COMERCIO AL POR MAYOR Y AL POR MENOR; REPARACIÓN DE VEHÍCULOS AUTOMOTORES Y MOTOCICLETAS | AW127: G | AX127: Comercio de partes, piezas (autopartes) y accesorios (lujos) para vehículos automotores | AY127: Comercio de partes, piezas (autopartes) y accesorios (lujos) para vehículos automotores | AZ127: 0 | BA127: 0 | BB127: 0 | BC127: 0 | BD127: 0 | BE127: 0 | BF127: 0 | BG127: 0 | BT127: 25875 | BU127: 6 | BV127: 85440 | BW127: 3
C128: 66001 | D128: PEREIRA | E128: 0 | F128: 0 | G128: Natural | H128: 66 | I128: RISARALDA | J128: 0 | K128: MICRO | L128: 4711 | M128: COMERCIO AL POR MAYOR Y AL POR MENOR; REPARACIÓN DE VEHÍCULOS AUTOMOTORES Y MOTOCICLETAS | N128: G | O128: Comercio al por menor en establecimientos no especializados | P128: Comercio al por menor en establecimientos no especializados | Q128: 0 | R128: 0 | S128: 0 | T128: 0 | U128: 0 | V128: 0 | W128: 0 | X128: 0 | AJ128: 0 | AK128: 0 | AL128: 47001 | AM128: SANTA MARTA | AN128: 1 | AO128: 3 | AP128: Natural | AQ128: 47 | AR128: MAGDALENA | AS128: Aprobado con subsidio | AT128: MICRO | AU128: 4773 | AV128: COMERCIO AL POR MAYOR Y AL POR MENOR; REPARACIÓN DE VEHÍCULOS AUTOMOTORES Y MOTOCICLETAS | AW128: G | AX128: Comercio al por menor de otros productos en establecimientos especializados | AY128: Comercio al por menor de otros productos en establecimientos especializados | AZ128: 0 | BA128: 1 | BB128: 0 | BC128: 1 | BD128: 0 | BE128: 0 | BF128: 1 | BG128: 0 | BT128: 68755 | BU128: 2 | BV128: 13244 | BW128: 3
C129: 66001 | D129: PEREIRA | E129: 1 | F129: 8 | G129: Natural | H129: 66 | I129: RISARALDA | J129: Aprobado con subsidio | K129: PEQUEÑA | L129: 4773 | M129: COMERCIO AL POR MAYOR Y AL POR MENOR; REPARACIÓN DE VEHÍCULOS AUTOMOTORES Y MOTOCICLETAS | N129: G | O129: Comercio al por menor de otros productos en establecimientos especializados | P129: Comercio al por menor de otros productos en establecimientos especializados | Q129: 0 | R129: 0 | S129: 1 | T129: 1 | U129: 0 | V129: 0 | W129: 0 | X129: 1 | AJ129: 0 | AK129: 0 | AL129: 50001 | AM129: VILLAVICENCIO | AN129: 0 | AO129: 0 | AP129: Natural | AQ129: 50 | AR129: META | AS129: 0 | AT129: PEQUEÑA | AU129: 4751 | AV129: COMERCIO AL POR MAYOR Y AL POR MENOR; REPARACIÓN DE VEHÍCULOS AUTOMOTORES Y MOTOCICLETAS | AW129: G | AX129: Comercio al por menor de otros enseres domésticos en establecimientos especializados | AY129: Comercio al por menor de otros enseres domésticos en establecimientos especializados | AZ129: 0 | BA129: 0 | BB129: 0 | BC129: 0 | BD129: 0 | BE129: 0 | BF129: 0 | BG129: 0 | BT129: 25473 | BU129: 22 | BV129: 27001 | BW129: 3
C130: 66594 | D130: QUINCHÍA | E130: 3 | F130: 1 | G130: Natural | H130: 66 | I130: RISARALDA | J130: Aprobado con subsidio | K130: MICRO | L130: 4711 | M130: COMERCIO AL POR MAYOR Y AL POR MENOR; REPARACIÓN DE VEHÍCULOS AUTOMOTORES Y MOTOCICLETAS | N130: G | O130: Comercio al por menor en establecimientos no especializados | P130: Comercio al por menor en establecimientos no especializados | Q130: 0 | R130: 3 | S130: 0 | T130: 3 | U130: 0 | V130: 0 | W130: 3 | X130: 0 | AJ130: 0 | AK130: 0 | AL130: 63001 | AM130: ARMENIA | AN130: 0 | AO130: 0 | AP130: Natural | AQ130: 63 | AR130: QUINDÍO | AS130: 0 | AT130: MICRO | AU130: 4773 | AV130: COMERCIO AL POR MAYOR Y AL POR MENOR; REPARACIÓN DE VEHÍCULOS AUTOMOTORES Y MOTOCICLETAS | AW130: G | AX130: Comercio al por menor de otros productos en establecimientos especializados | AY130: Comercio al por menor de otros productos en establecimientos especializados | AZ130: 0 | BA130: 0 | BB130: 0 | BC130: 0 | BD130: 0 | BE130: 0 | BF130: 0 | BG130: 0 | BT130: 81001 | BU130: =COUNTIFS($AS$2:$AS$399999,"Aprobado con subsidio",$AL$2:$AL$399999,BT130) -> 14 | BV130: 13836 | BW130: 3
C131: 63001 | D131: ARMENIA | E131: 0 | F131: 0 | G131: Natural | H131: 63 | I131: QUINDÍO | J131: 0 | K131: MICRO | L131: 5611 | M131: ALOJAMIENTO Y SERVICIOS DE COMIDA | N131: I | O131: Actividades de restaurantes, cafeterías y servicio móvil de comidas | P131: Actividades de restaurantes, cafeterías y servicio móvil de comidas | Q131: 0 | R131: 0 | S131: 0 | T131: 0 | U131: 0 | V131: 0 | W131: 0 | X131: 0 | AJ131: 0 | AK131: 0 | AL131: 50001 | AM131: VILLAVICENCIO | AN131: 0 | AO131: 0 | AP131: Natural | AQ131: 50 | AR131: META | AS131: 0 | AT131: MICRO | AU131: 4761 | AV131: COMERCIO AL POR MAYOR Y AL POR MENOR; REPARACIÓN DE VEHÍCULOS AUTOMOTORES Y MOTOCICLETAS | AW131: G | AX131: Comercio al por menor de artículos culturales y de entretenimiento, en establecimientos especializados | AY131: Comercio al por menor de artículos culturales y de entretenimiento, en establecimientos especializados | AZ131: 0 | BA131: 0 | BB131: 0 | BC131: 0 | BD131: 0 | BE131: 0 | BF131: 0 | BG131: 0 | BT131: 81736 | BU131: 6 | BV131: 25785 | BW131: 3
C132: 63001 | D132: ARMENIA | E132: 0 | F132: 0 | G132: Natural | H132: 63 | I132: QUINDÍO | J132: 0 | K132: MICRO | L132: 8530 | M132: EDUCACIÓN | N132: P | O132: Establecimientos que combinan diferentes niveles de educación | P132: Establecimientos que combinan diferentes niveles de educación | Q132: 0 | R132: 0 | S132: 0 | T132: 0 | U132: 0 | V132: 0 | W132: 0 | X132: 0 | AJ132: 0 | AK132: 0 | AL132: 76834 | AM132: TULUÁ | AN132: 1 | AO132: 0 | AP132: Natural | AQ132: 76 | AR132: VALLE DEL CAUCA | AS132: Aprobado con subsidio | AT132: MICRO | AU132: 4530 | AV132: COMERCIO AL POR MAYOR Y AL POR MENOR; REPARACIÓN DE VEHÍCULOS AUTOMOTORES Y MOTOCICLETAS | AW132: G | AX132: Comercio de partes, piezas (autopartes) y accesorios (lujos) para vehículos automotores | AY132: Comercio de partes, piezas (autopartes) y accesorios (lujos) para vehículos automotores | AZ132: 0 | BA132: 1 | BB132: 0 | BC132: 1 | BD132: 0 | BE132: 0 | BF132: 1 | BG132: 0 | BT132: 81794 | BU132: 2 | BV132: 5607 | BW132: 3
C133: 66170 | D133: DOSQUEBRADAS | E133: 1 | F133: 0 | G133: Natural | H133: 66 | I133: RISARALDA | J133: Aprobado con subsidio | K133: MICRO | L133: 4775 | M133: COMERCIO AL POR MAYOR Y AL POR MENOR; REPARACIÓN DE VEHÍCULOS AUTOMOTORES Y MOTOCICLETAS | N133: G | O133: Comercio al por menor de otros productos en establecimientos especializados | P133: Comercio al por menor de otros productos en establecimientos especializados | Q133: 0 | R133: 1 | S133: 0 | T133: 1 | U133: 0 | V133: 0 | W133: 1 | X133: 0 | AJ133: 0 | AK133: 0 | AL133: 19290 | AM133: FLORENCIA | AN133: 2 | AO133: 0 | AP133: Natural | AQ133: 19 | AR133: CAUCA | AS133: Aprobado con subsidio | AT133: MICRO | AU133: 4759 | AV133: COMERCIO AL POR MAYOR Y AL POR MENOR; REPARACIÓN DE VEHÍCULOS AUTOMOTORES Y MOTOCICLETAS | AW133: G | AX133: Comercio al por menor de otros enseres domésticos en establecimientos especializados | AY133: Comercio al por menor de otros enseres domésticos en establecimientos especializados | AZ133: 2 | BA133: 0 | BB133: 0 | BC133: 1 | BD133: 1 | BE133: 0 | BF133: 2 | BG133: 0 | BT133: 86568 | BU133: 5 | BV133: 76828 | BW133: 2
C134: 66170 | D134: DOSQUEBRADAS | E134: 7 | F134: 8 | G134: Natural | H134: 66 | I134: RISARALDA | J134: Aprobado con subsidio | K134: PEQUEÑA | L134: 6910 | M134: ACTIVIDADES PROFESIONALES, CIENTÍFICAS Y TÉCNICAS | N134: M | O134: Actividades jurídicas | P134: Actividades jurídicas | Q134: 6 | R134: 1 | S134: 0 | T134: 4 | U134: 3 | V134: 0 | W134: 7 | X134: 0 | AJ134: 0 | AK134: 0 | AL134: 63001 | AM134: ARMENIA | AN134: 0 | AO134: 0 | AP134: Natural | AQ134: 63 | AR134: QUINDÍO | AS134: 0 | AT134: MICRO | AU134: 4774 | AV134: COMERCIO AL POR MAYOR Y AL POR MENOR; REPARACIÓN DE VEHÍCULOS AUTOMOTORES Y MOTOCICLETAS | AW134: G | AX134: Comercio al por menor de otros productos en establecimientos especializados | AY134: Comercio al por menor de otros productos en establecimientos especializados | AZ134: 0 | BA134: 0 | BB134: 0 | BC134: 0 | BD134: 0 | BE134: 0 | BF134: 0 | BG134: 0 | BT134: 18256 | BU134: 2 | BV134: 5736 | BW134: 2
C135: 66001 | D135: PEREIRA | E135: 5 | F135: 13 | G135: Natural | H135: 66 | I135: RISARALDA | J135: Aprobado con subsidio | K135: PEQUEÑA | L135: 4754 | M135: COMERCIO AL POR MAYOR Y AL POR MENOR; REPARACIÓN DE VEHÍCULOS AUTOMOTORES Y MOTOCICLETAS | N135: G | O135: Comercio al por menor de otros enseres domésticos en establecimientos especializados | P135: Comercio al por menor de otros enseres domésticos en establecimientos especializados | Q135: 1 | R135: 4 | S135: 0 | T135: 5 | U135: 0 | V135: 0 | W135: 4 | X135: 1 | AJ135: 0 | AK135: 0 | AL135: 63001 | AM135: ARMENIA | AN135: 0 | AO135: 0 | AP135: Natural | AQ135: 63 | AR135: QUINDÍO | AS135: 0 | AT135: MEDIANA | AU135: 4752 | AV135: COMERCIO AL POR MAYOR Y AL POR MENOR; REPARACIÓN DE VEHÍCULOS AUTOMOTORES Y MOTOCICLETAS | AW135: G | AX135: Comercio al por menor de otros enseres domésticos en establecimientos especializados | AY135: Comercio al por menor de otros enseres domésticos en establecimientos especializados | AZ135: 0 | BA135: 0 | BB135: 0 | BC135: 0 | BD135: 0 | BE135: 0 | BF135: 0 | BG135: 0 | BT135: 18150 | BU135: 1 | BV135: 8638 | BW135: 2
C136: 17777 | D136: SUPÍA | E136: 0 | F136: 0 | G136: Natural | H136: 17 | I136: CALDAS | J136: 0 | K136: PEQUEÑA | L136: 4759 | M136: COMERCIO AL POR MAYOR Y AL POR MENOR; REPARACIÓN DE VEHÍCULOS AUTOMOTORES Y MOTOCICLETAS | N136: G | O136: Comercio al por menor de otros enseres domésticos en establecimientos especializados | P136: Comercio al por menor de otros enseres domésticos en establecimientos especializados | Q136: 0 | R136: 0 | S136: 0 | T136: 0 | U136: 0 | V136: 0 | W136: 0 | X136: 0 | AJ136: 0 | AK136: 0 | AL136: 73001 | AM136: IBAGUÉ | AN136: 11 | AO136: 17 | AP136: Natural | AQ136: 73 | AR136: TOLIMA | AS136: Aprobado con subsidio | AT136: PEQUEÑA | AU136: 4752 | AV136: COMERCIO AL POR MAYOR Y AL POR MENOR; REPARACIÓN DE VEHÍCULOS AUTOMOTORES Y MOTOCICLETAS | AW136: G | AX136: Comercio al por menor de otros enseres domésticos en establecimientos especializados | AY136: Comercio al por menor de otros enseres domésticos en establecimientos especializados | AZ136: 7 | BA136: 4 | BB136: 0 | BC136: 10 | BD136: 1 | BE136: 0 | BF136: 11 | BG136: 0 | BT136: 86885 | BU136: 2 | BV136: 5034 | BW136: 2
C137: 18205 | D137: CURILLO | E137: 10 | F137: 13 | G137: Natural | H137: 18 | I137: CAQUETÁ | J137: Aprobado con subsidio | K137: PEQUEÑA | L137: 1040 | M137: INDUSTRIAS MANUFACTURERAS | N137: C | O137: Elaboración de productos lácteos | P137: Elaboración de productos alimenticios | Q137: 2 | R137: 8 | S137: 0 | T137: 6 | U137: 1 | V137: 3 | W137: 9 | X137: 1 | AJ137: 0 | AK137: 0 | AL137: 63001 | AM137: ARMENIA | AN137: 1 | AO137: 1 | AP137: Natural | AQ137: 63 | AR137: QUINDÍO | AS137: Aprobado con subsidio | AT137: PEQUEÑA | AU137: 4661 | AV137: COMERCIO AL POR MAYOR Y AL POR MENOR; REPARACIÓN DE VEHÍCULOS AUTOMOTORES Y MOTOCICLETAS | AW137: G | AX137: Comercio al por mayor especializado de otros productos | AY137: Comercio al por mayor especializado de otros productos | AZ137: 1 | BA137: 0 | BB137: 0 | BC137: 1 | BD137: 0 | BE137: 0 | BF137: 1 | BG137: 0 | BT137: 86001 | BU137: 7 | BV137: 8433 | BW137: 2
C138: 19001 | D138: POPAYÁN | E138: 3 | F138: 0 | G138: Natural | H138: 19 | I138: CAUCA | J138: Aprobado con subsidio | K138: MICRO | L138: 8559 | M138: EDUCACIÓN | N138: P | O138: Otros tipos de educación | P138: Otros tipos de educación | Q138: 1 | R138: 2 | S138: 0 | T138: 0 | U138: 1 | V138: 2 | W138: 3 | X138: 0 | AJ138: 0 | AK138: 0 | AL138: 44001 | AM138: RIOHACHA | AN138: 1 | AO138: 3 | AP138: Natural | AQ138: 44 | AR138: LA GUAJIRA | AS138: Aprobado con subsidio | AT138: MICRO | AU138: 4530 | AV138: COMERCIO AL POR MAYOR Y AL POR MENOR; REPARACIÓN DE VEHÍCULOS AUTOMOTORES Y MOTOCICLETAS | AW138: G | AX138: Comercio de partes, piezas (autopartes) y accesorios (lujos) para vehículos automotores | AY138: Comercio de partes, piezas (autopartes) y accesorios (lujos) para vehículos automotores | AZ138: 1 | BA138: 0 | BB138: 0 | BC138: 1 | BD138: 0 | BE138: 0 | BF138: 1 | BG138: 0 | BT138: 5059 | BU138: 0 | BV138: 68432 | BW138: 2
C139: 19698 | D139: SANTANDER DE QUILICHAO | E139: 0 | F139: 0 | G139: Natural | H139: 19 | I139: CAUCA | J139: 0 | K139: MICRO | L139: 4719 | M139: COMERCIO AL POR MAYOR Y AL POR MENOR; REPARACIÓN DE VEHÍCULOS AUTOMOTORES Y MOTOCICLETAS | N139: G | O139: Comercio al por menor en establecimientos no especializados | P139: Comercio al por menor en establecimientos no especializados | Q139: 0 | R139: 0 | S139: 0 | T139: 0 | U139: 0 | V139: 0 | W139: 0 | X139: 0 | AJ139: 0 | AK139: 0 | AL139: 41001 | AM139: NEIVA | AN139: 0 | AO139: 0 | AP139: Natural | AQ139: 41 | AR139: HUILA | AS139: 0 | AT139: MICRO | AU139: 4722 | AV139: COMERCIO AL POR MAYOR Y AL POR MENOR; REPARACIÓN DE VEHÍCULOS AUTOMOTORES Y MOTOCICLETAS | AW139: G | AX139: Comercio al por menor de alimentos (víveres en general), bebidas y tabaco, en establecimientos especializados | AY139: Comercio al por menor de alimentos (víveres en general), bebidas y tabaco, en establecimientos especializados | AZ139: 0 | BA139: 0 | BB139: 0 | BC139: 0 | BD139: 0 | BE139: 0 | BF139: 0 | BG139: 0 | BT139: 73555 | BU139: 1 | BV139: 73349 | BW139: 2
C140: 76001 | D140: CALI | E140: 5 | F140: 0 | G140: Natural | H140: 76 | I140: VALLE DEL CAUCA | J140: Aprobado con subsidio | K140: MICRO | L140: 4752 | M140: COMERCIO AL POR MAYOR Y AL POR MENOR; REPARACIÓN DE VEHÍCULOS AUTOMOTORES Y MOTOCICLETAS | N140: G | O140: Comercio al por menor de otros enseres domésticos en establecimientos especializados | P140: Comercio al por menor de otros enseres domésticos en establecimientos especializados | Q140: 5 | R140: 0 | S140: 0 | T140: 5 | U140: 0 | V140: 0 | W140: 5 | X140: 0 | AJ140: 0 | AK140: 0 | AL140: 73001 | AM140: IBAGUÉ | AN140: 9 | AO140: 1 | AP140: Natural | AQ140: 73 | AR140: TOLIMA | AS140: Aprobado con subsidio | AT140: MICRO | AU140: 4729 | AV140: COMERCIO AL POR MAYOR Y AL POR MENOR; REPARACIÓN DE VEHÍCULOS AUTOMOTORES Y MOTOCICLETAS | AW140: G | AX140: Comercio al por menor de alimentos (víveres en general), bebidas y tabaco, en establecimientos especializados | AY140: Comercio al por menor de alimentos (víveres en general), bebidas y tabaco, en establecimientos especializados | AZ140: 9 | BA140: 0 | BB140: 0 | BC140: 6 | BD140: 3 | BE140: 0 | BF140: 9 | BG140: 0 | BT140: 15204 | BU140: 3 | BV140: 88564 | BW140: 2
C141: 41807 | D141: TIMANÁ | E141: 0 | F141: 0 | G141: Natural | H141: 41 | I141: HUILA | J141: 0 | K141: PEQUEÑA | L141: 4711 | M141: COMERCIO AL POR MAYOR Y AL POR MENOR; REPARACIÓN DE VEHÍCULOS AUTOMOTORES Y MOTOCICLETAS | N141: G | O141: Comercio al por menor en establecimientos no especializados | P141: Comercio al por menor en establecimientos no especializados | Q141: 0 | R141: 0 | S141: 0 | T141: 0 | U141: 0 | V141: 0 | W141: 0 | X141: 0 | AJ141: 0 | AK141: 0 | AL141: 41001 | AM141: NEIVA | AN141: 0 | AO141: 0 | AP141: Natural | AQ141: 41 | AR141: HUILA | AS141: 0 | AT141: PEQUEÑA | AU141: 4620 | AV141: COMERCIO AL POR MAYOR Y AL POR MENOR; REPARACIÓN DE VEHÍCULOS AUTOMOTORES Y MOTOCICLETAS | AW141: G | AX141: Comercio al por mayor de materias primas agropecuarias; animales vivos | AY141: Comercio al por mayor de materias primas agropecuarias; animales vivos | AZ141: 0 | BA141: 0 | BB141: 0 | BC141: 0 | BD141: 0 | BE141: 0 | BF141: 0 | BG141: 0 | BT141: 25740 | BU141: 1 | BV141: 70708 | BW141: 2
C142: 41001 | D142: NEIVA | E142: 46 | F142: 105 | G142: Natural | H142: 41 | I142: HUILA | J142: Aprobado con subsidio | K142: PEQUEÑA | L142: 4752 | M142: COMERCIO AL POR MAYOR Y AL POR MENOR; REPARACIÓN DE VEHÍCULOS AUTOMOTORES Y MOTOCICLETAS | N142: G | O142: Comercio al por menor de otros enseres domésticos en establecimientos especializados | P142: Comercio al por menor de otros enseres domésticos en establecimientos especializados | Q142: 1 | R142: 45 | S142: 0 | T142: 18 | U142: 1 | V142: 27 | W142: 45 | X142: 1 | AJ142: 0 | AK142: 0 | AL142: 41001 | AM142: NEIVA | AN142: 4 | AO142: 0 | AP142: Natural | AQ142: 41 | AR142: HUILA | AS142: Aprobado con subsidio | AT142: MICRO | AU142: 4752 | AV142: COMERCIO AL POR MAYOR Y AL POR MENOR; REPARACIÓN DE VEHÍCULOS AUTOMOTORES Y MOTOCICLETAS | AW142: G | AX142: Comercio al por menor de otros enseres domésticos en establecimientos especializados | AY142: Comercio al por menor de otros enseres domésticos en establecimientos especializados | AZ142: 0 | BA142: 4 | BB142: 0 | BC142: 3 | BD142: 0 | BE142: 1 | BF142: 4 | BG142: 0 | BT142: 25758 | BU142: 6 | BV142: 5679 | BW142: 2
C143: 41001 | D143: NEIVA | E143: 1 | F143: 8 | G143: Natural | H143: 41 | I143: HUILA | J143: Aprobado con subsidio | K143: PEQUEÑA | L143: 4711 | M143: COMERCIO AL POR MAYOR Y AL POR MENOR; REPARACIÓN DE VEHÍCULOS AUTOMOTORES Y MOTOCICLETAS | N143: G | O143: Comercio al por menor en establecimientos no especializados | P143: Comercio al por menor en establecimientos no especializados | Q143: 1 | R143: 0 | S143: 0 | T143: 1 | U143: 0 | V143: 0 | W143: 1 | X143: 0 | AJ143: 0 | AK143: 0 | AL143: 5001 | AM143: MEDELLÍN | AN143: 0 | AO143: 0 | AP143: Natural | AQ143: 5 | AR143: ANTIOQUIA | AS143: 0 | AT143: MICRO | AU143: 4771 | AV143: COMERCIO AL POR MAYOR Y AL POR MENOR; REPARACIÓN DE VEHÍCULOS AUTOMOTORES Y MOTOCICLETAS | AW143: G | AX143: Comercio al por menor de otros productos en establecimientos especializados | AY143: Comercio al por menor de otros productos en establecimientos especializados | AZ143: 0 | BA143: 0 | BB143: 0 | BC143: 0 | BD143: 0 | BE143: 0 | BF143: 0 | BG143: 0 | BT143: 50606 | BU143: 1 | BV143: 18785 | BW143: 2
C144: 41551 | D144: PITALITO | E144: 2 | F144: 3 | G144: Natural | H144: 41 | I144: HUILA | J144: Aprobado con subsidio | K144: MICRO | L144: 4754 | M144: COMERCIO AL POR MAYOR Y AL POR MENOR; REPARACIÓN DE VEHÍCULOS AUTOMOTORES Y MOTOCICLETAS | N144: G | O144: Comercio al por menor de otros enseres domésticos en establecimientos especializados | P144: Comercio al por menor de otros enseres domésticos en establecimientos especializados | Q144: 1 | R144: 1 | S144: 0 | T144: 1 | U144: 1 | V144: 0 | W144: 2 | X144: 0 | AJ144: 0 | AK144: 0 | AL144: 41001 | AM144: NEIVA | AN144: 1 | AO144: 2 | AP144: Natural | AQ144: 41 | AR144: HUILA | AS144: Aprobado con subsidio | AT144: MICRO | AU144: 4653 | AV144: COMERCIO AL POR MAYOR Y AL POR MENOR; REPARACIÓN DE VEHÍCULOS AUTOMOTORES Y MOTOCICLETAS | AW144: G | AX144: Comercio al por mayor de maquinaria y equipo | AY144: Comercio al por mayor de maquinaria y equipo | AZ144: 1 | BA144: 0 | BB144: 0 | BC144: 1 | BD144: 0 | BE144: 0 | BF144: 1 | BG144: 0 | BT144: 50006 | BU144: 5 | BV144: 68755 | BW144: 2
C145: 41551 | D145: PITALITO | E145: 2 | F145: 0 | G145: Natural | H145: 41 | I145: HUILA | J145: Aprobado con subsidio | K145: MICRO | L145: 4620 | M145: COMERCIO AL POR MAYOR Y AL POR MENOR; REPARACIÓN DE VEHÍCULOS AUTOMOTORES Y MOTOCICLETAS | N145: G | O145: Comercio al por mayor de materias primas agropecuarias; animales vivos | P145: Comercio al por mayor de materias primas agropecuarias; animales vivos | Q145: 1 | R145: 1 | S145: 0 | T145: 2 | U145: 0 | V145: 0 | W145: 2 | X145: 0 | AJ145: 0 | AK145: 0 | AL145: 41001 | AM145: NEIVA | AN145: 0 | AO145: 0 | AP145: Natural | AQ145: 41 | AR145: HUILA | AS145: 0 | AT145: MICRO | AU145: 4752 | AV145: COMERCIO AL POR MAYOR Y AL POR MENOR; REPARACIÓN DE VEHÍCULOS AUTOMOTORES Y MOTOCICLETAS | AW145: G | AX145: Comercio al por menor de otros enseres domésticos en establecimientos especializados | AY145: Comercio al por menor de otros enseres domésticos en establecimientos especializados | AZ145: 0 | BA145: 0 | BB145: 0 | BC145: 0 | BD145: 0 | BE145: 0 | BF145: 0 | BG145: 0 | BT145: 5030 | BU145: 3 | BV145: 81794 | BW145: 2
C146: 54498 | D146: OCAÑA | E146: 2 | F146: 6 | G146: Natural | H146: 54 | I146: NORTE DE SANTANDER | J146: Aprobado con subsidio | K146: MICRO | L146: 4541 | M146: COMERCIO AL POR MAYOR Y AL POR MENOR; REPARACIÓN DE VEHÍCULOS AUTOMOTORES Y MOTOCICLETAS | N146: G | O146: Comercio, mantenimiento y reparación de motocicletas y de sus partes, piezas y accesorios | P146: Comercio, mantenimiento y reparación de motocicletas y de sus partes, piezas y accesorios | Q146: 1 | R146: 1 | S146: 0 | T146: 2 | U146: 0 | V146: 0 | W146: 2 | X146: 0 | AJ146: 0 | AK146: 0 | AL146: 41001 | AM146: NEIVA | AN146: 0 | AO146: 0 | AP146: Natural | AQ146: 41 | AR146: HUILA | AS146: 0 | AT146: MICRO | AU146: 4755 | AV146: COMERCIO AL POR MAYOR Y AL POR MENOR; REPARACIÓN DE VEHÍCULOS AUTOMOTORES Y MOTOCICLETAS | AW146: G | AX146: Comercio al por menor de otros enseres domésticos en establecimientos especializados | AY146: Comercio al por menor de otros enseres domésticos en establecimientos especializados | AZ146: 0 | BA146: 0 | BB146: 0 | BC146: 0 | BD146: 0 | BE146: 0 | BF146: 0 | BG146: 0 | BT146: 5368 | BU146: 5 | BV146: 18256 | BW146: 2
C147: 20011 | D147: AGUACHICA | E147: 0 | F147: 0 | G147: Natural | H147: 20 | I147: CESAR | J147: 0 | K147: MICRO | L147: 4759 | M147: COMERCIO AL POR MAYOR Y AL POR MENOR; REPARACIÓN DE VEHÍCULOS AUTOMOTORES Y MOTOCICLETAS | N147: G | O147: Comercio al por menor de otros enseres domésticos en establecimientos especializados | P147: Comercio al por menor de otros enseres domésticos en establecimientos especializados | Q147: 0 | R147: 0 | S147: 0 | T147: 0 | U147: 0 | V147: 0 | W147: 0 | X147: 0 | AJ147: 0 | AK147: 0 | AL147: 50577 | AM147: PUERTO LLERAS | AN147: 0 | AO147: 0 | AP147: Natural | AQ147: 50 | AR147: META | AS147: 0 | AT147: MICRO | AU147: 4731 | AV147: COMERCIO AL POR MAYOR Y AL POR MENOR; REPARACIÓN DE VEHÍCULOS AUTOMOTORES Y MOTOCICLETAS | AW147: G | AX147: Comercio al por menor de combustible, lubricantes, aditivos y productos de limpieza para automotores, en establecimientos especializados | AY147: Comercio al por menor de combustible, lubricantes, aditivos y productos de limpieza para automotores, en establecimientos especializados | AZ147: 0 | BA147: 0 | BB147: 0 | BC147: 0 | BD147: 0 | BE147: 0 | BF147: 0 | BG147: 0 | BT147: 5656 | BU147: 2 | BV147: 86885 | BW147: 2
C148: 8001 | D148: BARRANQUILLA | E148: 0 | F148: 0 | G148: Natural | H148: 8 | I148: ATLÁNTICO | J148: 0 | K148: PEQUEÑA | L148: 6910 | M148: ACTIVIDADES PROFESIONALES, CIENTÍFICAS Y TÉCNICAS | N148: M | O148: Actividades jurídicas | P148: Actividades jurídicas | Q148: 0 | R148: 0 | S148: 0 | T148: 0 | U148: 0 | V148: 0 | W148: 0 | X148: 0 | AJ148: 0 | AK148: 0 | AL148: 13688 | AM148: SANTA ROSA DEL SUR | AN148: 3 | AO148: 6 | AP148: Natural | AQ148: 13 | AR148: BOLÍVAR | AS148: Aprobado con subsidio | AT148: PEQUEÑA | AU148: 4663 | AV148: COMERCIO AL POR MAYOR Y AL POR MENOR; REPARACIÓN DE VEHÍCULOS AUTOMOTORES Y MOTOCICLETAS | AW148: G | AX148: Comercio al por mayor especializado de otros productos | AY148: Comercio al por mayor especializado de otros productos | AZ148: 2 | BA148: 1 | BB148: 0 | BC148: 3 | BD148: 0 | BE148: 0 | BF148: 3 | BG148: 0 | BT148: 5628 | BU148: 1 | BV148: 5656 | BW148: 2
C149: 52001 | D149: PASTO | E149: 0 | F149: 0 | G149: Natural | H149: 52 | I149: NARIÑO | J149: 0 | K149: MICRO | L149: 4530 | M149: COMERCIO AL POR MAYOR Y AL POR MENOR; REPARACIÓN DE VEHÍCULOS AUTOMOTORES Y MOTOCICLETAS | N149: G | O149: Comercio de partes, piezas (autopartes) y accesorios (lujos) para vehículos automotores | P149: Comercio de partes, piezas (autopartes) y accesorios (lujos) para vehículos automotores | Q149: 0 | R149: 0 | S149: 0 | T149: 0 | U149: 0 | V149: 0 | W149: 0 | X149: 0 | AJ149: 0 | AK149: 0 | AL149: 25001 | AM149: AGUA DE DIOS | AN149: 1 | AO149: 1 | AP149: Natural | AQ149: 25 | AR149: CUNDINAMARCA | AS149: Aprobado con subsidio | AT149: MICRO | AU149: 4723 | AV149: COMERCIO AL POR MAYOR Y AL POR MENOR; REPARACIÓN DE VEHÍCULOS AUTOMOTORES Y MOTOCICLETAS | AW149: G | AX149: Comercio al por menor de alimentos (víveres en general), bebidas y tabaco, en establecimientos especializados | AY149: Comercio al por menor de alimentos (víveres en general), bebidas y tabaco, en establecimientos especializados | AZ149: 1 | BA149: 0 | BB149: 0 | BC149: 1 | BD149: 0 | BE149: 0 | BF149: 1 | BG149: 0 | BT149: 5480 | BU149: 0 | BV149: 76275 | BW149: 2
C150: 52001 | D150: PASTO | E150: 0 | F150: 0 | G150: Natural | H150: 52 | I150: NARIÑO | J150: 0 | K150: PEQUEÑA | L150: 5611 | M150: ALOJAMIENTO Y SERVICIOS DE COMIDA | N150: I | O150: Actividades de restaurantes, cafeterías y servicio móvil de comidas | P150: Actividades de restaurantes, cafeterías y servicio móvil de comidas | Q150: 0 | R150: 0 | S150: 0 | T150: 0 | U150: 0 | V150: 0 | W150: 0 | X150: 0 | AJ150: 0 | AK150: 0 | AL150: 5360 | AM150: ITAGUI | AN150: 0 | AO150: 0 | AP150: Natural | AQ150: 5 | AR150: ANTIOQUIA | AS150: 0 | AT150: MICRO | AU150: 4759 | AV150: COMERCIO AL POR MAYOR Y AL POR MENOR; REPARACIÓN DE VEHÍCULOS AUTOMOTORES Y MOTOCICLETAS | AW150: G | AX150: Comercio al por menor de otros enseres domésticos en establecimientos especializados | AY150: Comercio al por menor de otros enseres domésticos en establecimientos especializados | AZ150: 0 | BA150: 0 | BB150: 0 | BC150: 0 | BD150: 0 | BE150: 0 | BF150: 0 | BG150: 0 | BT150: 47545 | BU150: 1 | BV150: 5147 | BW150: 2
C151: 52001 | D151: PASTO | E151: 1 | F151: 2 | G151: Natural | H151: 52 | I151: NARIÑO | J151: Aprobado con subsidio | K151: PEQUEÑA | L151: 4731 | M151: COMERCIO AL POR MAYOR Y AL POR MENOR; REPARACIÓN DE VEHÍCULOS AUTOMOTORES Y MOTOCICLETAS | N151: G | O151: Comercio al por menor de combustible, lubricantes, aditivos y productos de limpieza para automotores, en establecimientos especializados | P151: Comercio al por menor de combustible, lubricantes, aditivos y productos de limpieza para automotores, en establecimientos especializados | Q151: 0 | R151: 1 | S151: 0 | T151: 1 | U151: 0 | V151: 0 | W151: 1 | X151: 0 | AJ151: 0 | AK151: 0 | AL151: 5001 | AM151: MEDELLÍN | AN151: 3 | AO151: 0 | AP151: Natural | AQ151: 5 | AR151: ANTIOQUIA | AS151: Aprobado con subsidio | AT151: PEQUEÑA | AU151: 4711 | AV151: COMERCIO AL POR MAYOR Y AL POR MENOR; REPARACIÓN DE VEHÍCULOS AUTOMOTORES Y MOTOCICLETAS | AW151: G | AX151: Comercio al por menor en establecimientos no especializados | AY151: Comercio al por menor en establecimientos no especializados | AZ151: 2 | BA151: 1 | BB151: 0 | BC151: 3 | BD151: 0 | BE151: 0 | BF151: 3 | BG151: 0 | BT151: 15299 | BU151: 0 | BV151: 73624 | BW151: 2
C152: 52001 | D152: PASTO | E152: 0 | F152: 0 | G152: Natural | H152: 52 | I152: NARIÑO | J152: 0 | K152: MICRO | L152: 4752 | M152: COMERCIO AL POR MAYOR Y AL POR MENOR; REPARACIÓN DE VEHÍCULOS AUTOMOTORES Y MOTOCICLETAS | N152: G | O152: Comercio al por menor de otros enseres domésticos en establecimientos especializados | P152: Comercio al por menor de otros enseres domésticos en establecimientos especializados | Q152: 0 | R152: 0 | S152: 0 | T152: 0 | U152: 0 | V152: 0 | W152: 0 | X152: 0 | AJ152: 0 | AK152: 0 | AL152: 5154 | AM152: CAUCASIA | AN152: 3 | AO152: 0 | AP152: Natural | AQ152: 5 | AR152: ANTIOQUIA | AS152: Aprobado con subsidio | AT152: MICRO | AU152: 4541 | AV152: COMERCIO AL POR MAYOR Y AL POR MENOR; REPARACIÓN DE VEHÍCULOS AUTOMOTORES Y MOTOCICLETAS | AW152: G | AX152: Comercio, mantenimiento y reparación de motocicletas y de sus partes, piezas y accesorios | AY152: Comercio, mantenimiento y reparación de motocicletas y de sus partes, piezas y accesorios | AZ152: 0 | BA152: 3 | BB152: 0 | BC152: 3 | BD152: 0 | BE152: 0 | BF152: 3 | BG152: 0 | BT152: 17541 | BU152: 0 | BV152: 18860 | BW152: 2
C153: 52001 | D153: PASTO | E153: 0 | F153: 0 | G153: Natural | H153: 52 | I153: NARIÑO | J153: 0 | K153: MICRO | L153: 5512 | M153: ALOJAMIENTO Y SERVICIOS DE COMIDA | N153: I | O153: Actividades de alojamiento de estancias cortas | P153: Actividades de alojamiento de estancias cortas | Q153: 0 | R153: 0 | S153: 0 | T153: 0 | U153: 0 | V153: 0 | W153: 0 | X153: 0 | AJ153: 0 | AK153: 0 | AL153: 76001 | AM153: CALI | AN153: 0 | AO153: 0 | AP153: Natural | AQ153: 76 | AR153: VALLE DEL CAUCA | AS153: 0 | AT153: MICRO | AU153: 4751 | AV153: COMERCIO AL POR MAYOR Y AL POR MENOR; REPARACIÓN DE VEHÍCULOS AUTOMOTORES Y MOTOCICLETAS | AW153: G | AX153: Comercio al por menor de otros enseres domésticos en establecimientos especializados | AY153: Comercio al por menor de otros enseres domésticos en establecimientos especializados | AZ153: 0 | BA153: 0 | BB153: 0 | BC153: 0 | BD153: 0 | BE153: 0 | BF153: 0 | BG153: 0 | BT153: 63594 | BU153: 0 | BV153: 50573 | BW153: 2
C154: 52317 | D154: GUACHUCAL | E154: 2 | F154: 0 | G154: Natural | H154: 52 | I154: NARIÑO | J154: Aprobado con subsidio | K154: PEQUEÑA | L154: 4731 | M154: COMERCIO AL POR MAYOR Y AL POR MENOR; REPARACIÓN DE VEHÍCULOS AUTOMOTORES Y MOTOCICLETAS | N154: G | O154: Comercio al por menor de combustible, lubricantes, aditivos y productos de limpieza para automotores, en establecimientos especializados | P154: Comercio al por menor de combustible, lubricantes, aditivos y productos de limpieza para automotores, en establecimientos especializados | Q154: 0 | R154: 2 | S154: 0 | T154: 2 | U154: 0 | V154: 0 | W154: 2 | X154: 0 | AJ154: 0 | AK154: 0 | AL154: 5001 | AM154: MEDELLÍN | AN154: 1 | AO154: 0 | AP154: Natural | AQ154: 5 | AR154: ANTIOQUIA | AS154: Aprobado con subsidio | AT154: MICRO | AU154: 4711 | AV154: COMERCIO AL POR MAYOR Y AL POR MENOR; REPARACIÓN DE VEHÍCULOS AUTOMOTORES Y MOTOCICLETAS | AW154: G | AX154: Comercio al por menor en establecimientos no especializados | AY154: Comercio al por menor en establecimientos no especializados | AZ154: 0 | BA154: 1 | BB154: 0 | BC154: 1 | BD154: 0 | BE154: 0 | BF154: 1 | BG154: 0 | BT154: 66682 | BU154: 3 | BV154: 94001 | BW154: 2
C155: 52001 | D155: PASTO | E155: 0 | F155: 0 | G155: Natural | H155: 52 | I155: NARIÑO | J155: 0 | K155: MICRO | L155: 4731 | M155: COMERCIO AL POR MAYOR Y AL POR MENOR; REPARACIÓN DE VEHÍCULOS AUTOMOTORES Y MOTOCICLETAS | N155: G | O155: Comercio al por menor de combustible, lubricantes, aditivos y productos de limpieza para automotores, en establecimientos especializados | P155: Comercio al por menor de combustible, lubricantes, aditivos y productos de limpieza para automotores, en establecimientos especializados | Q155: 0 | R155: 0 | S155: 0 | T155: 0 | U155: 0 | V155: 0 | W155: 0 | X155: 0 | AJ155: 0 | AK155: 0 | AL155: 5001 | AM155: MEDELLÍN | AN155: 0 | AO155: 0 | AP155: Natural | AQ155: 5 | AR155: ANTIOQUIA | AS155: 0 | AT155: MICRO | AU155: 4711 | AV155: COMERCIO AL POR MAYOR Y AL POR MENOR; REPARACIÓN DE VEHÍCULOS AUTOMOTORES Y MOTOCICLETAS | AW155: G | AX155: Comercio al por menor en establecimientos no especializados | AY155: Comercio al por menor en establecimientos no especializados | AZ155: 0 | BA155: 0 | BB155: 0 | BC155: 0 | BD155: 0 | BE155: 0 | BF155: 0 | BG155: 0 | BT155: 19517 | BU155: 1 | BV155: 5579 | BW155: 2
C156: 76001 | D156: CALI | E156: 0 | F156: 0 | G156: Natural | H156: 76 | I156: VALLE DEL CAUCA | J156: 0 | K156: MICRO | L156: 4774 | M156: COMERCIO AL POR MAYOR Y AL POR MENOR; REPARACIÓN DE VEHÍCULOS AUTOMOTORES Y MOTOCICLETAS | N156: G | O156: Comercio al por menor de otros productos en establecimientos especializados | P156: Comercio al por menor de otros productos en establecimientos especializados | Q156: 0 | R156: 0 | S156: 0 | T156: 0 | U156: 0 | V156: 0 | W156: 0 | X156: 0 | AJ156: 0 | AK156: 0 | AL156: 5001 | AM156: MEDELLÍN | AN156: 3 | AO156: 9 | AP156: Natural | AQ156: 5 | AR156: ANTIOQUIA | AS156: Aprobado con subsidio | AT156: MICRO | AU156: 4741 | AV156: COMERCIO AL POR MAYOR Y AL POR MENOR; REPARACIÓN DE VEHÍCULOS AUTOMOTORES Y MOTOCICLETAS | AW156: G | AX156: Comercio al por menor de equipos de informática y de comunicaciones, en establecimientos especializados | AY156: Comercio al por menor de equipos de informática y de comunicaciones, en establecimientos especializados | AZ156: 1 | BA156: 2 | BB156: 0 | BC156: 2 | BD156: 0 | BE156: 1 | BF156: 3 | BG156: 0 | BT156: 68077 | BU156: 3 | BV156: 5002 | BW156: 2
C157: 52560 | D157: POTOSÍ | E157: 7 | F157: 4 | G157: Natural | H157: 52 | I157: NARIÑO | J157: Aprobado con subsidio | K157: MICRO | L157: 1040 | M157: INDUSTRIAS MANUFACTURERAS | N157: C | O157: Elaboración de productos lácteos | P157: Elaboración de productos alimenticios | Q157: 2 | R157: 5 | S157: 0 | T157: 6 | U157: 1 | V157: 0 | W157: 7 | X157: 0 | AJ157: 0 | AK157: 0 | AL157: 5266 | AM157: ENVIGADO | AN157: 3 | AO157: 1 | AP157: Natural | AQ157: 5 | AR157: ANTIOQUIA | AS157: Aprobado con subsidio | AT157: MICRO | AU157: 4620 | AV157: COMERCIO AL POR MAYOR Y AL POR MENOR; REPARACIÓN DE VEHÍCULOS AUTOMOTORES Y MOTOCICLETAS | AW157: G | AX157: Comercio al por mayor de materias primas agropecuarias; animales vivos | AY157: Comercio al por mayor de materias primas agropecuarias; animales vivos | AZ157: 1 | BA157: 2 | BB157: 0 | BC157: 0 | BD157: 1 | BE157: 2 | BF157: 3 | BG157: 0 | BT157: 25290 | BU157: 9 | BV157: 13052 | BW157: 2
C158: 52683 | D158: SANDONÁ | E158: 2 | F158: 2 | G158: Natural | H158: 52 | I158: NARIÑO | J158: Aprobado con subsidio | K158: MICRO | L158: 4711 | M158: COMERCIO AL POR MAYOR Y AL POR MENOR; REPARACIÓN DE VEHÍCULOS AUTOMOTORES Y MOTOCICLETAS | N158: G | O158: Comercio al por menor en establecimientos no especializados | P158: Comercio al por menor en establecimientos no especializados | Q158: 1 | R158: 1 | S158: 0 | T158: 0 | U158: 1 | V158: 1 | W158: 2 | X158: 0 | AJ158: 0 | AK158: 0 | AL158: 5001 | AM158: MEDELLÍN | AN158: 1 | AO158: 3 | AP158: Natural | AQ158: 5 | AR158: ANTIOQUIA | AS158: Aprobado con subsidio | AT158: MICRO | AU158: 4530 | AV158: COMERCIO AL POR MAYOR Y AL POR MENOR; REPARACIÓN DE VEHÍCULOS AUTOMOTORES Y MOTOCICLETAS | AW158: G | AX158: Comercio de partes, piezas (autopartes) y accesorios (lujos) para vehículos automotores | AY158: Comercio de partes, piezas (autopartes) y accesorios (lujos) para vehículos automotores | AZ158: 0 | BA158: 1 | BB158: 0 | BC158: 1 | BD158: 0 | BE158: 0 | BF158: 1 | BG158: 0 | BT158: 76275 | BU158: 2 | BV158: 73319 | BW158: 2
C159: 54001 | D159: CÚCUTA | E159: 1 | F159: 8 | G159: Natural | H159: 54 | I159: NORTE DE SANTANDER | J159: Aprobado con subsidio | K159: MICRO | L159: 2599 | M159: INDUSTRIAS MANUFACTURERAS | N159: C | O159: Fabricación de otros productos elaborados de metal y actividades de servicios relacionadas con el trabajo de metales | P159: Fabricación de productos elaborados de metal, excepto maquinaria y equipo | Q159: 0 | R159: 1 | S159: 0 | T159: 1 | U159: 0 | V159: 0 | W159: 1 | X159: 0 | AJ159: 0 | AK159: 0 | AL159: 5001 | AM159: MEDELLÍN | AN159: 2 | AO159: 19 | AP159: Natural | AQ159: 5 | AR159: ANTIOQUIA | AS159: Aprobado con subsidio | AT159: PEQUEÑA | AU159: 4711 | AV159: COMERCIO AL POR MAYOR Y AL POR MENOR; REPARACIÓN DE VEHÍCULOS AUTOMOTORES Y MOTOCICLETAS | AW159: G | AX159: Comercio al por menor en establecimientos no especializados | AY159: Comercio al por menor en establecimientos no especializados | AZ159: 2 | BA159: 0 | BB159: 0 | BC159: 2 | BD159: 0 | BE159: 0 | BF159: 2 | BG159: 0 | BT159: 76895 | BU159: 0 | BV159: 73678 | BW159: 2
C160: 54001 | D160: CÚCUTA | E160: 1 | F160: 5 | G160: Natural | H160: 54 | I160: NORTE DE SANTANDER | J160: Aprobado con subsidio | K160: MICRO | L160: 4923 | M160: TRANSPORTE Y ALMACENAMIENTO | N160: H | O160: Transporte terrestre publico automotor | P160: Transporte terrestre publico automotor | Q160: 0 | R160: 1 | S160: 0 | T160: 1 | U160: 0 | V160: 0 | W160: 1 | X160: 0 | AJ160: 0 | AK160: 0 | AL160: 5631 | AM160: SABANETA | AN160: 3 | AO160: 2 | AP160: Natural | AQ160: 5 | AR160: ANTIOQUIA | AS160: Aprobado con subsidio | AT160: MICRO | AU160: 4541 | AV160: COMERCIO AL POR MAYOR Y AL POR MENOR; REPARACIÓN DE VEHÍCULOS AUTOMOTORES Y MOTOCICLETAS | AW160: G | AX160: Comercio, mantenimiento y reparación de motocicletas y de sus partes, piezas y accesorios | AY160: Comercio, mantenimiento y reparación de motocicletas y de sus partes, piezas y accesorios | AZ160: 0 | BA160: 3 | BB160: 0 | BC160: 2 | BD160: 0 | BE160: 1 | BF160: 3 | BG160: 0 | BT160: 15572 | BU160: 0 | BV160: 5400 | BW160: 2
C161: 54001 | D161: CÚCUTA | E161: 0 | F161: 0 | G161: Natural | H161: 54 | I161: NORTE DE SANTANDER | J161: 0 | K161: MICRO | L161: 8521 | M161: EDUCACIÓN | N161: P | O161: Educación secundaria y de formación laboral | P161: Educación secundaria y de formación laboral | Q161: 0 | R161: 0 | S161: 0 | T161: 0 | U161: 0 | V161: 0 | W161: 0 | X161: 0 | AJ161: 0 | AK161: 0 | AL161: 5001 | AM161: MEDELLÍN | AN161: 1 | AO161: 1 | AP161: Natural | AQ161: 5 | AR161: ANTIOQUIA | AS161: Aprobado con subsidio | AT161: MICRO | AU161: 4723 | AV161: COMERCIO AL POR MAYOR Y AL POR MENOR; REPARACIÓN DE VEHÍCULOS AUTOMOTORES Y MOTOCICLETAS | AW161: G | AX161: Comercio al por menor de alimentos (víveres en general), bebidas y tabaco, en establecimientos especializados | AY161: Comercio al por menor de alimentos (víveres en general), bebidas y tabaco, en establecimientos especializados | AZ161: 0 | BA161: 1 | BB161: 0 | BC161: 0 | BD161: 0 | BE161: 1 | BF161: 1 | BG161: 0 | BT161: 5282 | BU161: 0 | BV161: 15516 | BW161: 2
C162: 54498 | D162: OCAÑA | E162: 0 | F162: 0 | G162: Natural | H162: 54 | I162: NORTE DE SANTANDER | J162: 0 | K162: MICRO | L162: 4923 | M162: TRANSPORTE Y ALMACENAMIENTO | N162: H | O162: Transporte terrestre publico automotor | P162: Transporte terrestre publico automotor | Q162: 0 | R162: 0 | S162: 0 | T162: 0 | U162: 0 | V162: 0 | W162: 0 | X162: 0 | AJ162: 0 | AK162: 0 | AL162: 5604 | AM162: REMEDIOS | AN162: 0 | AO162: 0 | AP162: Natural | AQ162: 5 | AR162: ANTIOQUIA | AS162: 0 | AT162: PEQUEÑA | AU162: 4711 | AV162: COMERCIO AL POR MAYOR Y AL POR MENOR; REPARACIÓN DE VEHÍCULOS AUTOMOTORES Y MOTOCICLETAS | AW162: G | AX162: Comercio al por menor en establecimientos no especializados | AY162: Comercio al por menor en establecimientos no especializados | AZ162: 0 | BA162: 0 | BB162: 0 | BC162: 0 | BD162: 0 | BE162: 0 | BF162: 0 | BG162: 0 | BT162: 5665 | BU162: 3 | BV162: 17042 | BW162: 2
C163: 54518 | D163: PAMPLONA | E163: 8 | F163: 14 | G163: Natural | H163: 54 | I163: NORTE DE SANTANDER | J163: Aprobado con subsidio | K163: PEQUEÑA | L163: 5611 | M163: ALOJAMIENTO Y SERVICIOS DE COMIDA | N163: I | O163: Actividades de restaurantes, cafeterías y servicio móvil de comidas | P163: Actividades de restaurantes, cafeterías y servicio móvil de comidas | Q163: 4 | R163: 4 | S163: 0 | T163: 8 | U163: 0 | V163: 0 | W163: 8 | X163: 0 | AJ163: 0 | AK163: 0 | AL163: 5736 | AM163: SEGOVIA | AN163: 7 | AO163: 1 | AP163: Natural | AQ163: 5 | AR163: ANTIOQUIA | AS163: Aprobado con subsidio | AT163: MICRO | AU163: 4723 | AV163: COMERCIO AL POR MAYOR Y AL POR MENOR; REPARACIÓN DE VEHÍCULOS AUTOMOTORES Y MOTOCICLETAS | AW163: G | AX163: Comercio al por menor de alimentos (víveres en general), bebidas y tabaco, en establecimientos especializados | AY163: Comercio al por menor de alimentos (víveres en general), bebidas y tabaco, en establecimientos especializados | AZ163: 4 | BA163: 3 | BB163: 0 | BC163: 4 | BD163: 2 | BE163: 1 | BF163: 7 | BG163: 0 | BT163: 5390 | BU163: 0 | BV163: 25322 | BW163: 2
C164: 54001 | D164: CÚCUTA | E164: 1 | F164: 1 | G164: Natural | H164: 54 | I164: NORTE DE SANTANDER | J164: Aprobado con subsidio | K164: MICRO | L164: 4752 | M164: COMERCIO AL POR MAYOR Y AL POR MENOR; REPARACIÓN DE VEHÍCULOS AUTOMOTORES Y MOTOCICLETAS | N164: G | O164: Comercio al por menor de otros enseres domésticos en establecimientos especializados | P164: Comercio al por menor de otros enseres domésticos en establecimientos especializados | Q164: 0 | R164: 1 | S164: 0 | T164: 0 | U164: 0 | V164: 1 | W164: 1 | X164: 0 | AJ164: 0 | AK164: 0 | AL164: 17873 | AM164: VILLAMARÍA | AN164: 0 | AO164: 0 | AP164: Natural | AQ164: 17 | AR164: CALDAS | AS164: 0 | AT164: PEQUEÑA | AU164: 4711 | AV164: COMERCIO AL POR MAYOR Y AL POR MENOR; REPARACIÓN DE VEHÍCULOS AUTOMOTORES Y MOTOCICLETAS | AW164: G | AX164: Comercio al por menor en establecimientos no especializados | AY164: Comercio al por menor en establecimientos no especializados | AZ164: 0 | BA164: 0 | BB164: 0 | BC164: 0 | BD164: 0 | BE164: 0 | BF164: 0 | BG164: 0 | BT164: 5147 | BU164: 2 | BV164: 27361 | BW164: 2
C165: 54001 | D165: CÚCUTA | E165: 0 | F165: 0 | G165: Natural | H165: 54 | I165: NORTE DE SANTANDER | J165: 0 | K165: MICRO | L165: 8559 | M165: EDUCACIÓN | N165: P | O165: Otros tipos de educación | P165: Otros tipos de educación | Q165: 0 | R165: 0 | S165: 0 | T165: 0 | U165: 0 | V165: 0 | W165: 0 | X165: 0 | AJ165: 0 | AK165: 0 | AL165: 5837 | AM165: TURBO | AN165: 8 | AO165: 6 | AP165: Natural | AQ165: 5 | AR165: ANTIOQUIA | AS165: Aprobado con subsidio | AT165: PEQUEÑA | AU165: 4761 | AV165: COMERCIO AL POR MAYOR Y AL POR MENOR; REPARACIÓN DE VEHÍCULOS AUTOMOTORES Y MOTOCICLETAS | AW165: G | AX165: Comercio al por menor de artículos culturales y de entretenimiento, en establecimientos especializados | AY165: Comercio al por menor de artículos culturales y de entretenimiento, en establecimientos especializados | AZ165: 6 | BA165: 2 | BB165: 0 | BC165: 5 | BD165: 2 | BE165: 1 | BF165: 8 | BG165: 0 | BT165: 5120 | BU165: 0 | BV165: 8296 | BW165: 2
C166: 68001 | D166: BUCARAMANGA | E166: 1 | F166: 1 | G166: Natural | H166: 68 | I166: SANTANDER | J166: Aprobado con subsidio | K166: PEQUEÑA | L166: 1610 | M166: INDUSTRIAS MANUFACTURERAS | N166: C | O166: Aserrado, acepillado e impregnación de la madera | P166: Transformación de la madera y fabricación de productos de madera y de corcho, excepto muebles; fabricación de artículos de cestería y espartería | Q166: 0 | R166: 1 | S166: 0 | T166: 1 | U166: 0 | V166: 0 | W166: 1 | X166: 0 | AJ166: 0 | AK166: 0 | AL166: 5088 | AM166: BELLO | AN166: 0 | AO166: 0 | AP166: Natural | AQ166: 5 | AR166: ANTIOQUIA | AS166: 0 | AT166: MICRO | AU166: 4741 | AV166: COMERCIO AL POR MAYOR Y AL POR MENOR; REPARACIÓN DE VEHÍCULOS AUTOMOTORES Y MOTOCICLETAS | AW166: G | AX166: Comercio al por menor de equipos de informática y de comunicaciones, en establecimientos especializados | AY166: Comercio al por menor de equipos de informática y de comunicaciones, en establecimientos especializados | AZ166: 0 | BA166: 0 | BB166: 0 | BC166: 0 | BD166: 0 | BE166: 0 | BF166: 0 | BG166: 0 | BT166: 20175 | BU166: 0 | BV166: 5364 | BW166: 2
C167: 11001 | D167: BOGOTÁ, D.C. | E167: 0 | F167: 0 | G167: Natural | H167: 11 | I167: BOGOTÁ, D.C. | J167: 0 | K167: MICRO | L167: 1410 | M167: INDUSTRIAS MANUFACTURERAS | N167: C | O167: Confección de prendas de vestir, excepto prendas de piel | P167: Confección de prendas de vestir | Q167: 0 | R167: 0 | S167: 0 | T167: 0 | U167: 0 | V167: 0 | W167: 0 | X167: 0 | AJ167: 0 | AK167: 0 | AL167: 70001 | AM167: SINCELEJO | AN167: 3 | AO167: 0 | AP167: Natural | AQ167: 70 | AR167: SUCRE | AS167: Aprobado con subsidio | AT167: MICRO | AU167: 4530 | AV167: COMERCIO AL POR MAYOR Y AL POR MENOR; REPARACIÓN DE VEHÍCULOS AUTOMOTORES Y MOTOCICLETAS | AW167: G | AX167: Comercio de partes, piezas (autopartes) y accesorios (lujos) para vehículos automotores | AY167: Comercio de partes, piezas (autopartes) y accesorios (lujos) para vehículos automotores | AZ167: 1 | BA167: 2 | BB167: 0 | BC167: 1 | BD167: 0 | BE167: 2 | BF167: 3 | BG167: 0 | BT167: 18753 | BU167: 4 | BV167: 5667 | BW167: 2
C168: 11001 | D168: BOGOTÁ, D.C. | E168: 0 | F168: 0 | G168: Natural | H168: 11 | I168: BOGOTÁ, D.C. | J168: 0 | K168: MICRO | L168: 4773 | M168: COMERCIO AL POR MAYOR Y AL POR MENOR; REPARACIÓN DE VEHÍCULOS AUTOMOTORES Y MOTOCICLETAS | N168: G | O168: Comercio al por menor de otros productos en establecimientos especializados | P168: Comercio al por menor de otros productos en establecimientos especializados | Q168: 0 | R168: 0 | S168: 0 | T168: 0 | U168: 0 | V168: 0 | W168: 0 | X168: 0 | AJ168: 0 | AK168: 0 | AL168: 47189 | AM168: CIÉNAGA | AN168: 0 | AO168: 0 | AP168: Natural | AQ168: 47 | AR168: MAGDALENA | AS168: 0 | AT168: MICRO | AU168: 4771 | AV168: COMERCIO AL POR MAYOR Y AL POR MENOR; REPARACIÓN DE VEHÍCULOS AUTOMOTORES Y MOTOCICLETAS | AW168: G | AX168: Comercio al por menor de otros productos en establecimientos especializados | AY168: Comercio al por menor de otros productos en establecimientos especializados | AZ168: 0 | BA168: 0 | BB168: 0 | BC168: 0 | BD168: 0 | BE168: 0 | BF168: 0 | BG168: 0 | BT168: 68547 | BU168: 16 | BV168: 86865 | BW168: 2
C169: 68001 | D169: BUCARAMANGA | E169: 3 | F169: 2 | G169: Natural | H169: 68 | I169: SANTANDER | J169: Aprobado con subsidio | K169: MICRO | L169: 4774 | M169: COMERCIO AL POR MAYOR Y AL POR MENOR; REPARACIÓN DE VEHÍCULOS AUTOMOTORES Y MOTOCICLETAS | N169: G | O169: Comercio al por menor de otros productos en establecimientos especializados | P169: Comercio al por menor de otros productos en establecimientos especializados | Q169: 3 | R169: 0 | S169: 0 | T169: 3 | U169: 0 | V169: 0 | W169: 3 | X169: 0 | AJ169: 0 | AK169: 0 | AL169: 8638 | AM169: SABANALARGA | AN169: 19 | AO169: 26 | AP169: Natural | AQ169: 8 | AR169: ATLÁNTICO | AS169: Aprobado con subsidio | AT169: PEQUEÑA | AU169: 4773 | AV169: COMERCIO AL POR MAYOR Y AL POR MENOR; REPARACIÓN DE VEHÍCULOS AUTOMOTORES Y MOTOCICLETAS | AW169: G | AX169: Comercio al por menor de otros productos en establecimientos especializados | AY169: Comercio al por menor de otros productos en establecimientos especializados | AZ169: 12 | BA169: 7 | BB169: 0 | BC169: 13 | BD169: 6 | BE169: 0 | BF169: 19 | BG169: 0 | BT169: 68307 | BU169: 21 | BV169: 63190 | BW169: 2
C170: 68001 | D170: BUCARAMANGA | E170: 0 | F170: 0 | G170: Natural | H170: 68 | I170: SANTANDER | J170: 0 | K170: MICRO | L170: 4729 | M170: COMERCIO AL POR MAYOR Y AL POR MENOR; REPARACIÓN DE VEHÍCULOS AUTOMOTORES Y MOTOCICLETAS | N170: G | O170: Comercio al por menor de alimentos (víveres en general), bebidas y tabaco, en establecimientos especializados | P170: Comercio al por menor de alimentos (víveres en general), bebidas y tabaco, en establecimientos especializados | Q170: 0 | R170: 0 | S170: 0 | T170: 0 | U170: 0 | V170: 0 | W170: 0 | X170: 0 | AJ170: 0 | AK170: 0 | AL170: 8001 | AM170: BARRANQUILLA | AN170: 0 | AO170: 0 | AP170: Natural | AQ170: 8 | AR170: ATLÁNTICO | AS170: 0 | AT170: PEQUEÑA | AU170: 4729 | AV170: COMERCIO AL POR MAYOR Y AL POR MENOR; REPARACIÓN DE VEHÍCULOS AUTOMOTORES Y MOTOCICLETAS | AW170: G | AX170: Comercio al por menor de alimentos (víveres en general), bebidas y tabaco, en establecimientos especializados | AY170: Comercio al por menor de alimentos (víveres en general), bebidas y tabaco, en establecimientos especializados | AZ170: 0 | BA170: 0 | BB170: 0 | BC170: 0 | BD170: 0 | BE170: 0 | BF170: 0 | BG170: 0 | BT170: 68190 | BU170: 0 | BV170: 5313 | BW170: 2
C171: 68406 | D171: LEBRIJA | E171: 0 | F171: 0 | G171: Natural | H171: 68 | I171: SANTANDER | J171: 0 | K171: MICRO | L171: 4752 | M171: COMERCIO AL POR MAYOR Y AL POR MENOR; REPARACIÓN DE VEHÍCULOS AUTOMOTORES Y MOTOCICLETAS | N171: G | O171: Comercio al por menor de otros enseres domésticos en establecimientos especializados | P171: Comercio al por menor de otros enseres domésticos en establecimientos especializados | Q171: 0 | R171: 0 | S171: 0 | T171: 0 | U171: 0 | V171: 0 | W171: 0 | X171: 0 | AJ171: 0 | AK171: 0 | AL171: 8001 | AM171: BARRANQUILLA | AN171: 4 | AO171: 2 | AP171: Natural | AQ171: 8 | AR171: ATLÁNTICO | AS171: Aprobado con subsidio | AT171: MICRO | AU171: 4751 | AV171: COMERCIO AL POR MAYOR Y AL POR MENOR; REPARACIÓN DE VEHÍCULOS AUTOMOTORES Y MOTOCICLETAS | AW171: G | AX171: Comercio al por menor de otros enseres domésticos en establecimientos especializados | AY171: Comercio al por menor de otros enseres domésticos en establecimientos especializados | AZ171: 4 | BA171: 0 | BB171: 0 | BC171: 1 | BD171: 3 | BE171: 0 | BF171: 4 | BG171: 0 | BT171: 25320 | BU171: 1 | BV171: 23660 | BW171: 2
C172: 68406 | D172: LEBRIJA | E172: 0 | F172: 0 | G172: Natural | H172: 68 | I172: SANTANDER | J172: 0 | K172: MEDIANA | L172: 4711 | M172: COMERCIO AL POR MAYOR Y AL POR MENOR; REPARACIÓN DE VEHÍCULOS AUTOMOTORES Y MOTOCICLETAS | N172: G | O172: Comercio al por menor en establecimientos no especializados | P172: Comercio al por menor en establecimientos no especializados | Q172: 0 | R172: 0 | S172: 0 | T172: 0 | U172: 0 | V172: 0 | W172: 0 | X172: 0 | AJ172: 0 | AK172: 0 | AL172: 13001 | AM172: CARTAGENA | AN172: 4 | AO172: 4 | AP172: Natural | AQ172: 13 | AR172: BOLÍVAR | AS172: Aprobado con subsidio | AT172: MICRO | AU172: 4759 | AV172: COMERCIO AL POR MAYOR Y AL POR MENOR; REPARACIÓN DE VEHÍCULOS AUTOMOTORES Y MOTOCICLETAS | AW172: G | AX172: Comercio al por menor de otros enseres domésticos en establecimientos especializados | AY172: Comercio al por menor de otros enseres domésticos en establecimientos especializados | AZ172: 1 | BA172: 3 | BB172: 0 | BC172: 3 | BD172: 1 | BE172: 0 | BF172: 4 | BG172: 0 | BT172: 73624 | BU172: 2 | BV172: 85250 | BW172: 2
C173: 68307 | D173: GIRÓN | E173: 0 | F173: 0 | G173: Natural | H173: 68 | I173: SANTANDER | J173: 0 | K173: PEQUEÑA | L173: 8513 | M173: EDUCACIÓN | N173: P | O173: Educación de la primera infancia, preescolar y básica primaria | P173: Educación de la primera infancia, preescolar y básica primaria | Q173: 0 | R173: 0 | S173: 0 | T173: 0 | U173: 0 | V173: 0 | W173: 0 | X173: 0 | AJ173: 0 | AK173: 0 | AL173: 15759 | AM173: SOGAMOSO | AN173: 1 | AO173: 0 | AP173: Natural | AQ173: 15 | AR173: BOYACÁ | AS173: Aprobado con subsidio | AT173: MICRO | AU173: 4752 | AV173: COMERCIO AL POR MAYOR Y AL POR MENOR; REPARACIÓN DE VEHÍCULOS AUTOMOTORES Y MOTOCICLETAS | AW173: G | AX173: Comercio al por menor de otros enseres domésticos en establecimientos especializados | AY173: Comercio al por menor de otros enseres domésticos en establecimientos especializados | AZ173: 1 | BA173: 0 | BB173: 0 | BC173: 1 | BD173: 0 | BE173: 0 | BF173: 1 | BG173: 0 | BT173: 76892 | BU173: 21 | BV173: 47245 | BW173: 2
C174: 11001 | D174: BOGOTÁ, D.C. | E174: 18 | F174: 16 | G174: Natural | H174: 11 | I174: BOGOTÁ, D.C. | J174: Aprobado con subsidio | K174: MICRO | L174: 4732 | M174: COMERCIO AL POR MAYOR Y AL POR MENOR; REPARACIÓN DE VEHÍCULOS AUTOMOTORES Y MOTOCICLETAS | N174: G | O174: Comercio al por menor de combustible, lubricantes, aditivos y productos de limpieza para automotores, en establecimientos especializados | P174: Comercio al por menor de combustible, lubricantes, aditivos y productos de limpieza para automotores, en establecimientos especializados | Q174: 10 | R174: 8 | S174: 0 | T174: 7 | U174: 5 | V174: 6 | W174: 18 | X174: 0 | AJ174: 0 | AK174: 0 | AL174: 15759 | AM174: SOGAMOSO | AN174: 0 | AO174: 0 | AP174: Natural | AQ174: 15 | AR174: BOYACÁ | AS174: 0 | AT174: MICRO | AU174: 4751 | AV174: COMERCIO AL POR MAYOR Y AL POR MENOR; REPARACIÓN DE VEHÍCULOS AUTOMOTORES Y MOTOCICLETAS | AW174: G | AX174: Comercio al por menor de otros enseres domésticos en establecimientos especializados | AY174: Comercio al por menor de otros enseres domésticos en establecimientos especializados | AZ174: 0 | BA174: 0 | BB174: 0 | BC174: 0 | BD174: 0 | BE174: 0 | BF174: 0 | BG174: 0 | BT174: 25175 | BU174: 33 | BV174: 25815 | BW174: 2
C175: 54001 | D175: CÚCUTA | E175: 2 | F175: 2 | G175: Natural | H175: 54 | I175: NORTE DE SANTANDER | J175: Aprobado con subsidio | K175: MICRO | L175: 1410 | M175: INDUSTRIAS MANUFACTURERAS | N175: C | O175: Confección de prendas de vestir, excepto prendas de piel | P175: Confección de prendas de vestir | Q175: 1 | R175: 1 | S175: 0 | T175: 2 | U175: 0 | V175: 0 | W175: 2 | X175: 0 | AJ175: 0 | AK175: 0 | AL175: 15759 | AM175: SOGAMOSO | AN175: 4 | AO175: 4 | AP175: Natural | AQ175: 15 | AR175: BOYACÁ | AS175: Aprobado con subsidio | AT175: PEQUEÑA | AU175: 4530 | AV175: COMERCIO AL POR MAYOR Y AL POR MENOR; REPARACIÓN DE VEHÍCULOS AUTOMOTORES Y MOTOCICLETAS | AW175: G | AX175: Comercio de partes, piezas (autopartes) y accesorios (lujos) para vehículos automotores | AY175: Comercio de partes, piezas (autopartes) y accesorios (lujos) para vehículos automotores | AZ175: 1 | BA175: 3 | BB175: 0 | BC175: 4 | BD175: 0 | BE175: 0 | BF175: 4 | BG175: 0 | BT175: 25843 | BU175: 5 | BV175: 50689 | BW175: 2
C176: 68001 | D176: BUCARAMANGA | E176: 2 | F176: 0 | G176: Natural | H176: 68 | I176: SANTANDER | J176: Aprobado con subsidio | K176: MICRO | L176: 7420 | M176: ACTIVIDADES PROFESIONALES, CIENTÍFICAS Y TÉCNICAS | N176: M | O176: Actividades de fotografía | P176: Actividades de fotografía | Q176: 0 | R176: 2 | S176: 0 | T176: 1 | U176: 0 | V176: 1 | W176: 2 | X176: 0 | AJ176: 0 | AK176: 0 | AL176: 25295 | AM176: GACHANCIPÁ | AN176: 0 | AO176: 0 | AP176: Natural | AQ176: 25 | AR176: CUNDINAMARCA | AS176: 0 | AT176: MICRO | AU176: 4731 | AV176: COMERCIO AL POR MAYOR Y AL POR MENOR; REPARACIÓN DE VEHÍCULOS AUTOMOTORES Y MOTOCICLETAS | AW176: G | AX176: Comercio al por menor de combustible, lubricantes, aditivos y productos de limpieza para automotores, en establecimientos especializados | AY176: Comercio al por menor de combustible, lubricantes, aditivos y productos de limpieza para automotores, en establecimientos especializados | AZ176: 0 | BA176: 0 | BB176: 0 | BC176: 0 | BD176: 0 | BE176: 0 | BF176: 0 | BG176: 0 | BT176: 15861 | BU176: 0 | BV176: 54720 | BW176: 2
C177: 68081 | D177: BARRANCABERMEJA | E177: 0 | F177: 0 | G177: Natural | H177: 68 | I177: SANTANDER | J177: 0 | K177: MICRO | L177: 4731 | M177: COMERCIO AL POR MAYOR Y AL POR MENOR; REPARACIÓN DE VEHÍCULOS AUTOMOTORES Y MOTOCICLETAS | N177: G | O177: Comercio al por menor de combustible, lubricantes, aditivos y productos de limpieza para automotores, en establecimientos especializados | P177: Comercio al por menor de combustible, lubricantes, aditivos y productos de limpieza para automotores, en establecimientos especializados | Q177: 0 | R177: 0 | S177: 0 | T177: 0 | U177: 0 | V177: 0 | W177: 0 | X177: 0 | AJ177: 0 | AK177: 0 | AL177: 68001 | AM177: BUCARAMANGA | AN177: 0 | AO177: 0 | AP177: Natural | AQ177: 68 | AR177: SANTANDER | AS177: 0 | AT177: PEQUEÑA | AU177: 4773 | AV177: COMERCIO AL POR MAYOR Y AL POR MENOR; REPARACIÓN DE VEHÍCULOS AUTOMOTORES Y MOTOCICLETAS | AW177: G | AX177: Comercio al por menor de otros productos en establecimientos especializados | AY177: Comercio al por menor de otros productos en establecimientos especializados | AZ177: 0 | BA177: 0 | BB177: 0 | BC177: 0 | BD177: 0 | BE177: 0 | BF177: 0 | BG177: 0 | BT177: 15407 | BU177: 0 | BV177: 54261 | BW177: 2
C178: 68679 | D178: SAN GIL | E178: 16 | F178: 12 | G178: Natural | H178: 68 | I178: SANTANDER | J178: Aprobado con subsidio | K178: PEQUEÑA | L178: 4711 | M178: COMERCIO AL POR MAYOR Y AL POR MENOR; REPARACIÓN DE VEHÍCULOS AUTOMOTORES Y MOTOCICLETAS | N178: G | O178: Comercio al por menor en establecimientos no especializados | P178: Comercio al por menor en establecimientos no especializados | Q178: 6 | R178: 10 | S178: 0 | T178: 14 | U178: 1 | V178: 1 | W178: 14 | X178: 2 | AJ178: 0 | AK178: 0 | AL178: 11001 | AM178: BOGOTÁ, D.C. | AN178: 0 | AO178: 0 | AP178: Natural | AQ178: 11 | AR178: BOGOTÁ, D.C. | AS178: 0 | AT178: MICRO | AU178: 4729 | AV178: COMERCIO AL POR MAYOR Y AL POR MENOR; REPARACIÓN DE VEHÍCULOS AUTOMOTORES Y MOTOCICLETAS | AW178: G | AX178: Comercio al por menor de alimentos (víveres en general), bebidas y tabaco, en establecimientos especializados | AY178: Comercio al por menor de alimentos (víveres en general), bebidas y tabaco, en establecimientos especializados | AZ178: 0 | BA178: 0 | BB178: 0 | BC178: 0 | BD178: 0 | BE178: 0 | BF178: 0 | BG178: 0 | BT178: 15740 | BU178: 1 | BV178: 19548 | BW178: 2
C179: 11001 | D179: BOGOTÁ, D.C. | E179: 0 | F179: 0 | G179: Natural | H179: 11 | I179: BOGOTÁ, D.C. | J179: 0 | K179: MICRO | L179: 4723 | M179: COMERCIO AL POR MAYOR Y AL POR MENOR; REPARACIÓN DE VEHÍCULOS AUTOMOTORES Y MOTOCICLETAS | N179: G | O179: Comercio al por menor de alimentos (víveres en general), bebidas y tabaco, en establecimientos especializados | P179: Comercio al por menor de alimentos (víveres en general), bebidas y tabaco, en establecimientos especializados | Q179: 0 | R179: 0 | S179: 0 | T179: 0 | U179: 0 | V179: 0 | W179: 0 | X179: 0 | AJ179: 0 | AK179: 0 | AL179: 85001 | AM179: YOPAL | AN179: 3 | AO179: 10 | AP179: Natural | AQ179: 85 | AR179: CASANARE | AS179: Aprobado con subsidio | AT179: PEQUEÑA | AU179: 4530 | AV179: COMERCIO AL POR MAYOR Y AL POR MENOR; REPARACIÓN DE VEHÍCULOS AUTOMOTORES Y MOTOCICLETAS | AW179: G | AX179: Comercio de partes, piezas (autopartes) y accesorios (lujos) para vehículos automotores | AY179: Comercio de partes, piezas (autopartes) y accesorios (lujos) para vehículos automotores | AZ179: 2 | BA179: 1 | BB179: 0 | BC179: 1 | BD179: 2 | BE179: 0 | BF179: 3 | BG179: 0 | BT179: 15837 | BU179: 0 | BV179: 99524 | BW179: 2
C180: 47288 | D180: FUNDACIÓN | E180: 0 | F180: 0 | G180: Natural | H180: 47 | I180: MAGDALENA | J180: 0 | K180: MICRO | L180: 4664 | M180: COMERCIO AL POR MAYOR Y AL POR MENOR; REPARACIÓN DE VEHÍCULOS AUTOMOTORES Y MOTOCICLETAS | N180: G | O180: Comercio al por mayor especializado de otros productos | P180: Comercio al por mayor especializado de otros productos | Q180: 0 | R180: 0 | S180: 0 | T180: 0 | U180: 0 | V180: 0 | W180: 0 | X180: 0 | AJ180: 0 | AK180: 0 | AL180: 63001 | AM180: ARMENIA | AN180: 0 | AO180: 0 | AP180: Natural | AQ180: 63 | AR180: QUINDÍO | AS180: 0 | AT180: MICRO | AU180: 4530 | AV180: COMERCIO AL POR MAYOR Y AL POR MENOR; REPARACIÓN DE VEHÍCULOS AUTOMOTORES Y MOTOCICLETAS | AW180: G | AX180: Comercio de partes, piezas (autopartes) y accesorios (lujos) para vehículos automotores | AY180: Comercio de partes, piezas (autopartes) y accesorios (lujos) para vehículos automotores | AZ180: 0 | BA180: 0 | BB180: 0 | BC180: 0 | BD180: 0 | BE180: 0 | BF180: 0 | BG180: 0 | BT180: 18860 | BU180: 2 | BV180: 5674 | BW180: 2
C181: 5001 | D181: MEDELLÍN | E181: 0 | F181: 0 | G181: Natural | H181: 5 | I181: ANTIOQUIA | J181: 0 | K181: PEQUEÑA | L181: 4390 | M181: CONSTRUCCIÓN | N181: F | O181: Otras actividades especializadas para la construcción de edificios y obras de ingeniería civil | P181: Otras actividades especializadas para la construcción de edificios y obras de ingeniería civil | Q181: 0 | R181: 0 | S181: 0 | T181: 0 | U181: 0 | V181: 0 | W181: 0 | X181: 0 | AJ181: 0 | AK181: 0 | AL181: 63001 | AM181: ARMENIA | AN181: 2 | AO181: 0 | AP181: Natural | AQ181: 63 | AR181: QUINDÍO | AS181: Aprobado con subsidio | AT181: MICRO | AU181: 4719 | AV181: COMERCIO AL POR MAYOR Y AL POR MENOR; REPARACIÓN DE VEHÍCULOS AUTOMOTORES Y MOTOCICLETAS | AW181: G | AX181: Comercio al por menor en establecimientos no especializados | AY181: Comercio al por menor en establecimientos no especializados | AZ181: 0 | BA181: 2 | BB181: 0 | BC181: 1 | BD181: 0 | BE181: 1 | BF181: 2 | BG181: 0 | BT181: 85440 | BU181: 3 | BV181: 76377 | BW181: 2
C182: 68861 | D182: VÉLEZ | E182: 1 | F182: 0 | G182: Natural | H182: 68 | I182: SANTANDER | J182: Aprobado con subsidio | K182: MICRO | L182: 1089 | M182: INDUSTRIAS MANUFACTURERAS | N182: C | O182: Elaboración de otros productos alimenticios | P182: Elaboración de productos alimenticios | Q182: 1 | R182: 0 | S182: 0 | T182: 1 | U182: 0 | V182: 0 | W182: 1 | X182: 0 | AJ182: 0 | AK182: 0 | AL182: 66594 | AM182: QUINCHÍA | AN182: 3 | AO182: 1 | AP182: Natural | AQ182: 66 | AR182: RISARALDA | AS182: Aprobado con subsidio | AT182: MICRO | AU182: 4723 | AV182: COMERCIO AL POR MAYOR Y AL POR MENOR; REPARACIÓN DE VEHÍCULOS AUTOMOTORES Y MOTOCICLETAS | AW182: G | AX182: Comercio al por menor de alimentos (víveres en general), bebidas y tabaco, en establecimientos especializados | AY182: Comercio al por menor de alimentos (víveres en general), bebidas y tabaco, en establecimientos especializados | AZ182: 1 | BA182: 2 | BB182: 0 | BC182: 2 | BD182: 0 | BE182: 1 | BF182: 3 | BG182: 0 | BT182: 50573 | BU182: 2 | BV182: 54743 | BW182: 2
C183: 68001 | D183: BUCARAMANGA | E183: 1 | F183: 0 | G183: Natural | H183: 68 | I183: SANTANDER | J183: Aprobado con subsidio | K183: MICRO | L183: 6621 | M183: ACTIVIDADES FINANCIERAS Y DE SEGUROS | N183: K | O183: Actividades de servicios auxiliares de los servicios de seguros y pensiones | P183: Actividades de servicios auxiliares de los servicios de seguros y pensiones | Q183: 1 | R183: 0 | S183: 0 | T183: 1 | U183: 0 | V183: 0 | W183: 1 | X183: 0 | AJ183: 0 | AK183: 0 | AL183: 17001 | AM183: MANIZALES | AN183: 0 | AO183: 0 | AP183: Natural | AQ183: 17 | AR183: CALDAS | AS183: 0 | AT183: MICRO | AU183: 4754 | AV183: COMERCIO AL POR MAYOR Y AL POR MENOR; REPARACIÓN DE VEHÍCULOS AUTOMOTORES Y MOTOCICLETAS | AW183: G | AX183: Comercio al por menor de otros enseres domésticos en establecimientos especializados | AY183: Comercio al por menor de otros enseres domésticos en establecimientos especializados | AZ183: 0 | BA183: 0 | BB183: 0 | BC183: 0 | BD183: 0 | BE183: 0 | BF183: 0 | BG183: 0 | BT183: 94001 | BU183: 2 | BV183: 25181 | BW183: 1
C184: 68001 | D184: BUCARAMANGA | E184: 3 | F184: 124 | G184: Natural | H184: 68 | I184: SANTANDER | J184: Aprobado con subsidio | K184: MEDIANA | L184: 4711 | M184: COMERCIO AL POR MAYOR Y AL POR MENOR; REPARACIÓN DE VEHÍCULOS AUTOMOTORES Y MOTOCICLETAS | N184: G | O184: Comercio al por menor en establecimientos no especializados | P184: Comercio al por menor en establecimientos no especializados | Q184: 3 | R184: 0 | S184: 0 | T184: 3 | U184: 0 | V184: 0 | W184: 3 | X184: 0 | AJ184: 0 | AK184: 0 | AL184: 63001 | AM184: ARMENIA | AN184: 3 | AO184: 6 | AP184: Natural | AQ184: 63 | AR184: QUINDÍO | AS184: Aprobado con subsidio | AT184: PEQUEÑA | AU184: 4774 | AV184: COMERCIO AL POR MAYOR Y AL POR MENOR; REPARACIÓN DE VEHÍCULOS AUTOMOTORES Y MOTOCICLETAS | AW184: G | AX184: Comercio al por menor de otros productos en establecimientos especializados | AY184: Comercio al por menor de otros productos en establecimientos especializados | AZ184: 0 | BA184: 3 | BB184: 0 | BC184: 3 | BD184: 0 | BE184: 0 | BF184: 3 | BG184: 0 | BT184: 63130 | BU184: 11 | BV184: 25297 | BW184: 1
C185: 68895 | D185: ZAPATOCA | E185: 0 | F185: 0 | G185: Natural | H185: 68 | I185: SANTANDER | J185: 0 | K185: MICRO | L185: 4752 | M185: COMERCIO AL POR MAYOR Y AL POR MENOR; REPARACIÓN DE VEHÍCULOS AUTOMOTORES Y MOTOCICLETAS | N185: G | O185: Comercio al por menor de otros enseres domésticos en establecimientos especializados | P185: Comercio al por menor de otros enseres domésticos en establecimientos especializados | Q185: 0 | R185: 0 | S185: 0 | T185: 0 | U185: 0 | V185: 0 | W185: 0 | X185: 0 | AJ185: 0 | AK185: 0 | AL185: 50001 | AM185: VILLAVICENCIO | AN185: 1 | AO185: 6 | AP185: Natural | AQ185: 50 | AR185: META | AS185: Aprobado con subsidio | AT185: PEQUEÑA | AU185: 4541 | AV185: COMERCIO AL POR MAYOR Y AL POR MENOR; REPARACIÓN DE VEHÍCULOS AUTOMOTORES Y MOTOCICLETAS | AW185: G | AX185: Comercio, mantenimiento y reparación de motocicletas y de sus partes, piezas y accesorios | AY185: Comercio, mantenimiento y reparación de motocicletas y de sus partes, piezas y accesorios | AZ185: 1 | BA185: 0 | BB185: 0 | BC185: 1 | BD185: 0 | BE185: 0 | BF185: 1 | BG185: 0 | BT185: 20770 | BU185: 1 | BV185: 5591 | BW185: 1
C186: 68079 | D186: BARICHARA | E186: 0 | F186: 0 | G186: Natural | H186: 68 | I186: SANTANDER | J186: 0 | K186: PEQUEÑA | L186: 5511 | M186: ALOJAMIENTO Y SERVICIOS DE COMIDA | N186: I | O186: Actividades de alojamiento de estancias cortas | P186: Actividades de alojamiento de estancias cortas | Q186: 0 | R186: 0 | S186: 0 | T186: 0 | U186: 0 | V186: 0 | W186: 0 | X186: 0 | AJ186: 0 | AK186: 0 | AL186: 66001 | AM186: PEREIRA | AN186: 1 | AO186: 0 | AP186: Natural | AQ186: 66 | AR186: RISARALDA | AS186: Aprobado con subsidio | AT186: PEQUEÑA | AU186: 4719 | AV186: COMERCIO AL POR MAYOR Y AL POR MENOR; REPARACIÓN DE VEHÍCULOS AUTOMOTORES Y MOTOCICLETAS | AW186: G | AX186: Comercio al por menor en establecimientos no especializados | AY186: Comercio al por menor en establecimientos no especializados | AZ186: 1 | BA186: 0 | BB186: 0 | BC186: 1 | BD186: 0 | BE186: 0 | BF186: 1 | BG186: 0 | BT186: 5541 | BU186: 6 | BV186: 15753 | BW186: 1
C187: 11001 | D187: BOGOTÁ, D.C. | E187: 2 | F187: 0 | G187: Natural | H187: 11 | I187: BOGOTÁ, D.C. | J187: Aprobado con subsidio | K187: MICRO | L187: 8121 | M187: ACTIVIDADES DE SERVICIOS ADMINISTRATIVOS Y DE APOYO | N187: N | O187: Actividades de limpieza | P187: Actividades de limpieza | Q187: 1 | R187: 1 | S187: 0 | T187: 0 | U187: 1 | V187: 1 | W187: 2 | X187: 0 | AJ187: 0 | AK187: 0 | AL187: 66001 | AM187: PEREIRA | AN187: 1 | AO187: 1 | AP187: Natural | AQ187: 66 | AR187: RISARALDA | AS187: Aprobado con subsidio | AT187: MICRO | AU187: 4520 | AV187: COMERCIO AL POR MAYOR Y AL POR MENOR; REPARACIÓN DE VEHÍCULOS AUTOMOTORES Y MOTOCICLETAS | AW187: G | AX187: Mantenimiento y reparación de vehículos automotores | AY187: Mantenimiento y reparación de vehículos automotores | AZ187: 1 | BA187: 0 | BB187: 0 | BC187: 1 | BD187: 0 | BE187: 0 | BF187: 1 | BG187: 0 | BT187: 5579 | BU187: 2 | BV187: 17777 | BW187: 1
C188: 73001 | D188: IBAGUÉ | E188: 0 | F188: 0 | G188: Natural | H188: 73 | I188: TOLIMA | J188: 0 | K188: MICRO | L188: 4751 | M188: COMERCIO AL POR MAYOR Y AL POR MENOR; REPARACIÓN DE VEHÍCULOS AUTOMOTORES Y MOTOCICLETAS | N188: G | O188: Comercio al por menor de otros enseres domésticos en establecimientos especializados | P188: Comercio al por menor de otros enseres domésticos en establecimientos especializados | Q188: 0 | R188: 0 | S188: 0 | T188: 0 | U188: 0 | V188: 0 | W188: 0 | X188: 0 | AJ188: 0 | AK188: 0 | AL188: 76001 | AM188: CALI | AN188: 3 | AO188: 5 | AP188: Natural | AQ188: 76 | AR188: VALLE DEL CAUCA | AS188: Aprobado con subsidio | AT188: MICRO | AU188: 4669 | AV188: COMERCIO AL POR MAYOR Y AL POR MENOR; REPARACIÓN DE VEHÍCULOS AUTOMOTORES Y MOTOCICLETAS | AW188: G | AX188: Comercio al por mayor especializado de otros productos | AY188: Comercio al por mayor especializado de otros productos | AZ188: 2 | BA188: 1 | BB188: 0 | BC188: 3 | BD188: 0 | BE188: 0 | BF188: 3 | BG188: 0 | BT188: 5490 | BU188: 1 | BV188: 52317 | BW188: 1
C189: 41001 | D189: NEIVA | E189: 3 | F189: 10 | G189: Natural | H189: 41 | I189: HUILA | J189: Aprobado con subsidio | K189: MICRO | L189: 5511 | M189: ALOJAMIENTO Y SERVICIOS DE COMIDA | N189: I | O189: Actividades de alojamiento de estancias cortas | P189: Actividades de alojamiento de estancias cortas | Q189: 1 | R189: 2 | S189: 0 | T189: 3 | U189: 0 | V189: 0 | W189: 3 | X189: 0 | AJ189: 0 | AK189: 0 | AL189: 5001 | AM189: MEDELLÍN | AN189: 1 | AO189: 0 | AP189: Natural | AQ189: 5 | AR189: ANTIOQUIA | AS189: Aprobado con subsidio | AT189: MICRO | AU189: 4645 | AV189: COMERCIO AL POR MAYOR Y AL POR MENOR; REPARACIÓN DE VEHÍCULOS AUTOMOTORES Y MOTOCICLETAS | AW189: G | AX189: Comercio al por mayor de artículos y enseres domésticos (incluidas prendas de vestir) | AY189: Comercio al por mayor de artículos y enseres domésticos (incluidas prendas de vestir) | AZ189: 1 | BA189: 0 | BB189: 0 | BC189: 0 | BD189: 1 | BE189: 0 | BF189: 1 | BG189: 0 | BT189: 5172 | BU189: 4 | BV189: 52683 | BW189: 1
C190: 11001 | D190: BOGOTÁ, D.C. | E190: 0 | F190: 0 | G190: Natural | H190: 11 | I190: BOGOTÁ, D.C. | J190: 0 | K190: MICRO | L190: 6910 | M190: ACTIVIDADES PROFESIONALES, CIENTÍFICAS Y TÉCNICAS | N190: M | O190: Actividades jurídicas | P190: Actividades jurídicas | Q190: 0 | R190: 0 | S190: 0 | T190: 0 | U190: 0 | V190: 0 | W190: 0 | X190: 0 | AJ190: 0 | AK190: 0 | AL190: 73001 | AM190: IBAGUÉ | AN190: 3 | AO190: 1 | AP190: Natural | AQ190: 73 | AR190: TOLIMA | AS190: Aprobado con subsidio | AT190: MICRO | AU190: 4659 | AV190: COMERCIO AL POR MAYOR Y AL POR MENOR; REPARACIÓN DE VEHÍCULOS AUTOMOTORES Y MOTOCICLETAS | AW190: G | AX190: Comercio al por mayor de maquinaria y equipo | AY190: Comercio al por mayor de maquinaria y equipo | AZ190: 0 | BA190: 3 | BB190: 0 | BC190: 2 | BD190: 0 | BE190: 1 | BF190: 3 | BG190: 0 | BT190: 5101 | BU190: 4 | BV190: 47288 | BW190: 1
C191: 73001 | D191: IBAGUÉ | E191: 4 | F191: 0 | G191: Natural | H191: 73 | I191: TOLIMA | J191: Aprobado con subsidio | K191: MICRO | L191: 4773 | M191: COMERCIO AL POR MAYOR Y AL POR MENOR; REPARACIÓN DE VEHÍCULOS AUTOMOTORES Y MOTOCICLETAS | N191: G | O191: Comercio al por menor de otros productos en establecimientos especializados | P191: Comercio al por menor de otros productos en establecimientos especializados | Q191: 3 | R191: 1 | S191: 0 | T191: 0 | U191: 3 | V191: 1 | W191: 4 | X191: 0 | AJ191: 0 | AK191: 0 | AL191: 66170 | AM191: DOSQUEBRADAS | AN191: 1 | AO191: 1 | AP191: Natural | AQ191: 66 | AR191: RISARALDA | AS191: Aprobado con subsidio | AT191: MICRO | AU191: 4762 | AV191: COMERCIO AL POR MAYOR Y AL POR MENOR; REPARACIÓN DE VEHÍCULOS AUTOMOTORES Y MOTOCICLETAS | AW191: G | AX191: Comercio al por menor de artículos culturales y de entretenimiento, en establecimientos especializados | AY191: Comercio al por menor de artículos culturales y de entretenimiento, en establecimientos especializados | AZ191: 0 | BA191: 1 | BB191: 0 | BC191: 1 | BD191: 0 | BE191: 0 | BF191: 1 | BG191: 0 | BT191: 8758 | BU191: 7 | BV191: 76020 | BW191: 1
C192: 76001 | D192: CALI | E192: 2 | F192: 9 | G192: Natural | H192: 76 | I192: VALLE DEL CAUCA | J192: Aprobado con subsidio | K192: MICRO | L192: 1811 | M192: INDUSTRIAS MANUFACTURERAS | N192: C | O192: Actividades de impresión y actividades de servicios relacionados con la impresión | P192: Actividades de impresión y de producción de copias a partir de grabaciones originales | Q192: 2 | R192: 0 | S192: 0 | T192: 2 | U192: 0 | V192: 0 | W192: 2 | X192: 0 | AJ192: 0 | AK192: 0 | AL192: 76001 | AM192: CALI | AN192: 6 | AO192: 3 | AP192: Natural | AQ192: 76 | AR192: VALLE DEL CAUCA | AS192: Aprobado con subsidio | AT192: PEQUEÑA | AU192: 4771 | AV192: COMERCIO AL POR MAYOR Y AL POR MENOR; REPARACIÓN DE VEHÍCULOS AUTOMOTORES Y MOTOCICLETAS | AW192: G | AX192: Comercio al por menor de otros productos en establecimientos especializados | AY192: Comercio al por menor de otros productos en establecimientos especializados | AZ192: 4 | BA192: 2 | BB192: 0 | BC192: 6 | BD192: 0 | BE192: 0 | BF192: 6 | BG192: 0 | BT192: 68276 | BU192: 14 | BV192: 15646 | BW192: 1
C193: 73001 | D193: IBAGUÉ | E193: 1 | F193: 0 | G193: Natural | H193: 73 | I193: TOLIMA | J193: Aprobado con subsidio | K193: MICRO | L193: 4752 | M193: COMERCIO AL POR MAYOR Y AL POR MENOR; REPARACIÓN DE VEHÍCULOS AUTOMOTORES Y MOTOCICLETAS | N193: G | O193: Comercio al por menor de otros enseres domésticos en establecimientos especializados | P193: Comercio al por menor de otros enseres domésticos en establecimientos especializados | Q193: 0 | R193: 1 | S193: 0 | T193: 1 | U193: 0 | V193: 0 | W193: 1 | X193: 0 | AJ193: 0 | AK193: 0 | AL193: 66001 | AM193: PEREIRA | AN193: 4 | AO193: 2 | AP193: Natural | AQ193: 66 | AR193: RISARALDA | AS193: Aprobado con subsidio | AT193: MICRO | AU193: 4541 | AV193: COMERCIO AL POR MAYOR Y AL POR MENOR; REPARACIÓN DE VEHÍCULOS AUTOMOTORES Y MOTOCICLETAS | AW193: G | AX193: Comercio, mantenimiento y reparación de motocicletas y de sus partes, piezas y accesorios | AY193: Comercio, mantenimiento y reparación de motocicletas y de sus partes, piezas y accesorios | AZ193: 2 | BA193: 2 | BB193: 0 | BC193: 1 | BD193: 2 | BE193: 1 | BF193: 3 | BG193: 1 | BT193: 41306 | BU193: 0 | BV193: 85139 | BW193: 1
